Workbook

Sheet Bond Model
B2: BYR | C2: 165442306.4 | D2: =C10+SUMIF(C5019:C10018,">0",C5019:C10018) -> 66787.4255 | E2: =D10+SUMIF(D5019:D10018,">0",D5019:D10018) -> 7599499.064 | F2: 8615209.703 | G2: 8977919.341 | H2: 9337627.98 | I2: 9674335.618 | J2: 10100042.26 | K2: 10553747.9 | L2: 10934452.53 | M2: 11384156.17 | N2: 11926858.81 | O2: 12391560.45 | P2: 12887261.09 | Q2: 13392960.73 | R2: 13997659.36 | S2: 14540357 | T2: 15098053.64 | U2: 15699749.28 | V2: 16406443.92 | W2: 16957137.56 | X2: 17563830.2 | Y2: 18240521.83 | Z2: 18870212.47 | AA2: 19543902.11 | AB2: 20193590.75 | AC2: 20888278.39 | AD2: 21619965.03 | AE2: 22378650.66 | AF2: 22886335.3 | AG2: 23273018.94 | AH2: 23572701.58 | AI2: 23650383.22 | AJ2: 23769063.86 | AK2: 23655743.5 | AL2: 44556849.57 | AM2: 21823527.21 | AN2: 41944212.75 | AO2: 21152888.39 | AP2: 21523563.03 | AQ2: 21283236.66 | AR2: 84745909.3 | AS2: 17320580.94 | AT2: 99251.57967 | AU2: -938273.0588 | AV2: -2020500.128 | AW2: -3124668.483 | AX2: -4192718.411 | AY2: -5285470.769 | AZ2: -6353634.557 | BA2: -7478739.631 | BB2: -8574256.134 | BC2: -9683243.78 | BD2: -10744172.71 | BE2: -11788572.79 | BF2: -12906444.01 | BG2: -13985846.08 | BH2: -15038719.3 | BI2: -16100063.66 | BJ2: -17222938.88 | BK2: -18319285.24 | BL2: -19442162.46 | BM2: -20538510.82 | BN2: -21634860.18 | BO2: -22757740.4 | BP2: -23880621.62 | BQ2: =BP10+SUMIF(BP5019:BP10018,">0",BP5019:BP10018) -> -24976973.98 | BR2: -26099857.2 | BS2: -27157741.42 | BT2: -28215626.64 | BU2: -29273512.85 | BX2: Aaa | BY2: Aa | BZ2: A
B3: Cost | C3: =1131288.3615+(0.1*C2) -> 17675519 | D3: 1131288.362 | E3: 1131289.362 | F3: 1131290.362 | G3: 1131291.362 | H3: 1131292.362 | I3: 1131293.362 | J3: 1131294.362 | K3: 1131295.362 | L3: 1131296.362 | M3: 1131297.362 | N3: 1131298.362 | O3: 1131299.362 | P3: 1131300.362 | Q3: 1131301.362 | R3: 1131302.362 | S3: 1131303.362 | T3: 1131304.362 | U3: 1131305.362 | V3: 1131306.362 | W3: 1131307.362 | X3: 1131308.362 | Y3: 1131309.362 | Z3: 1131310.362 | AA3: 1131311.362 | AB3: 1131312.362 | AC3: 1131313.362 | AD3: 1131314.362 | AE3: 1131315.362 | AF3: 1131316.362 | AG3: 1131317.362 | AH3: 1131318.362 | AI3: 1131319.362 | AJ3: 1131320.362 | AK3: 1131321.362 | AL3: 1131322.362 | AM3: 1131323.362 | AN3: 1131324.362 | AO3: 1131325.362 | AP3: 1131326.362 | AQ3: 1131327.362 | AR3: 1131328.362 | AS3: 1131329.362 | AT3: 1131330.362 | AU3: 1131331.362 | AV3: 1131332.362 | AW3: 1131333.362 | AX3: 1131334.362 | AY3: 1131335.362 | AZ3: 1131336.362 | BA3: 1131337.362 | BB3: 1131338.362 | BC3: 1131339.362 | BD3: 1131340.362 | BE3: 1131341.362 | BF3: 1131342.362 | BG3: 1131343.362 | BH3: 1131344.362 | BI3: 1131345.362 | BJ3: 1131346.362 | BK3: 1131347.362 | BL3: 1131348.362 | BM3: 1131349.362 | BN3: 1131350.362 | BO3: 1131351.362 | BP3: 1131352.362 | BQ3: 1131353.362 | BR3: 1131354.362 | BS3: 1131355.362 | BT3: 1131356.362 | BU3: 1131357.362 | BW3: Prob | BX3: 0.0052 | BY3: 0.0058 | BZ3: 0.0129
B4: People | C4: ='# of People'!B36 -> 0 | D4: ='# of People'!C36 -> 0 | E4: ='# of People'!D36 -> 0 | F4: ='# of People'!E36 -> 0 | G4: ='# of People'!F36 -> 0 | H4: ='# of People'!G36 -> 0 | I4: ='# of People'!H36 -> 0 | J4: ='# of People'!I36 -> 0 | K4: ='# of People'!J36 -> 0 | L4: ='# of People'!K36 -> 0 | M4: ='# of People'!L36 -> 3 | N4: ='# of People'!M36 -> 6 | O4: ='# of People'!N36 -> 10 | P4: ='# of People'!O36 -> 13 | Q4: ='# of People'!P36 -> 17 | R4: ='# of People'!Q36 -> 17 | S4: ='# of People'!R36 -> 18 | T4: ='# of People'!S36 -> 21 | U4: ='# of People'!T36 -> 26 | V4: ='# of People'!U36 -> 31 | W4: ='# of People'!V36 -> 33 | X4: ='# of People'!W36 -> 36 | Y4: ='# of People'!X36 -> 41 | Z4: ='# of People'!Y36 -> 46 | AA4: ='# of People'!Z36 -> 50 | AB4: ='# of People'!AA36 -> 51 | AC4: ='# of People'!AB36 -> 85 | AD4: ='# of People'!AC36 -> 134 | AE4: ='# of People'!AD36 -> 175 | AF4: ='# of People'!AE36 -> 211 | AG4: ='# of People'!AF36 -> 249 | AH4: ='# of People'!AG36 -> 283 | AI4: ='# of People'!AH36 -> 310 | AJ4: ='# of People'!AI36 -> 342 | AK4: ='# of People'!AJ36 -> 379 | AL4: ='# of People'!AK36 -> 408 | AM4: ='# of People'!AL36 -> 357 | AN4: ='# of People'!AM36 -> 325 | AO4: ='# of People'!AN36 -> 298 | AP4: ='# of People'!AO36 -> 258 | AQ4: ='# of People'!AP36 -> 225 | AR4: ='# of People'!AQ36 -> 188 | AS4: ='# of People'!AR36 -> 166 | AT4: ='# of People'!AS36 -> 133 | AU4: ='# of People'!AT36 -> 107 | AV4: ='# of People'!AU36 -> 82 | AW4: ='# of People'!AV36 -> 60 | AX4: ='# of People'!AW36 -> 46 | AY4: ='# of People'!AX36 -> 33 | AZ4: ='# of People'!AY36 -> 27 | BA4: ='# of People'!AZ36 -> 17 | BB4: ='# of People'!BA36 -> 13 | BC4: ='# of People'!BB36 -> 10 | BD4: ='# of People'!BC36 -> 4 | BE4: ='# of People'!BD36 -> 4 | BF4: ='# of People'!BE36 -> 3 | BG4: ='# of People'!BF36 -> 3 | BH4: ='# of People'!BG36 -> 2 | BI4: ='# of People'!BH36 -> 1 | BJ4: ='# of People'!BI36 -> 1 | BK4: ='# of People'!BJ36 -> 1 | BL4: ='# of People'!BK36 -> 1 | BM4: ='# of People'!BL36 -> 1 | BN4: ='# of People'!BM36 -> 1 | BO4: ='# of People'!BN36 -> 1 | BP4: ='# of People'!BO36 -> 1 | BQ4: ='# of People'!BP36 -> 1 | BR4: ='# of People'!BQ36 -> 0 | BS4: ='# of People'!BR36 -> 0 | BT4: ='# of People'!BS36 -> 0 | BU4: ='# of People'!BT36 -> 0 | BW4: Coupon | BX4: 500 | BY4: 600 | BZ4: 700
B5: Benefit Need Next Year | C5: =65000*D4 -> 0 | D5: =65000*E4 -> 0 | E5: 0 | F5: 0 | G5: 0 | H5: 0 | I5: 0 | J5: 0 | K5: 0 | L5: 195000 | M5: 390000 | N5: 650000 | O5: 845000 | P5: 1105000 | Q5: 1105000 | R5: 1170000 | S5: 1365000 | T5: 1690000 | U5: 2015000 | V5: 2145000 | W5: 2340000 | X5: 2665000 | Y5: 2990000 | Z5: 3250000 | AA5: 3315000 | AB5: 5525000 | AC5: 8710000 | AD5: 11375000 | AE5: 13715000 | AF5: 16185000 | AG5: 18395000 | AH5: 20150000 | AI5: 22230000 | AJ5: 24635000 | AK5: 26520000 | AL5: 23205000 | AM5: 21125000 | AN5: 19370000 | AO5: 16770000 | AP5: 14625000 | AQ5: 12220000 | AR5: 10790000 | AS5: 8645000 | AT5: 6955000 | AU5: 5330000 | AV5: 3900000 | AW5: 2990000 | AX5: 2145000 | AY5: 1755000 | AZ5: 1105000 | BA5: 845000 | BB5: 650000 | BC5: 260000 | BD5: 260000 | BE5: 195000 | BF5: 195000 | BG5: 130000 | BH5: 65000 | BI5: 65000 | BJ5: 65000 | BK5: 65000 | BL5: 65000 | BM5: 65000 | BN5: 65000 | BO5: 65000 | BP5: =65000*BQ4 -> 65000 | BQ5: 0 | BR5: 0 | BS5: 0 | BT5: 0 | BU5: 0 | BW5: % | BX5: 0.4 | BY5: 0.3 | BZ5: 0.3
B6: Benefit Paid This Year | C6: =65000*C4 -> 0 | D6: =65000*D4 -> 0 | E6: 0 | F6: 0 | G6: 0 | H6: 0 | I6: 0 | J6: 0 | K6: 0 | L6: 0 | M6: 195000 | N6: 390000 | O6: 650000 | P6: 845000 | Q6: 1105000 | R6: 1105000 | S6: 1170000 | T6: 1365000 | U6: 1690000 | V6: 2015000 | W6: 2145000 | X6: 2340000 | Y6: 2665000 | Z6: 2990000 | AA6: 3250000 | AB6: 3315000 | AC6: 5525000 | AD6: 8710000 | AE6: 11375000 | AF6: 13715000 | AG6: 16185000 | AH6: 18395000 | AI6: 20150000 | AJ6: 22230000 | AK6: 24635000 | AL6: 26520000 | AM6: 23205000 | AN6: 21125000 | AO6: 19370000 | AP6: 16770000 | AQ6: 14625000 | AR6: 12220000 | AS6: 10790000 | AT6: 8645000 | AU6: 6955000 | AV6: 5330000 | AW6: 3900000 | AX6: 2990000 | AY6: 2145000 | AZ6: 1755000 | BA6: 1105000 | BB6: 845000 | BC6: 650000 | BD6: 260000 | BE6: 260000 | BF6: 195000 | BG6: 195000 | BH6: 130000 | BI6: 65000 | BJ6: 65000 | BK6: 65000 | BL6: 65000 | BM6: 65000 | BN6: 65000 | BO6: 65000 | BP6: =65000*BP4 -> 65000 | BQ6: 65000 | BR6: 0 | BS6: 0 | BT6: 0 | BU6: 0
B7: Earnings after Csts & Ben | C7: =C2-C3-C6 -> 147766787.4 | D7: =D2-D3-D6 -> -1064500.936 | E7: =E2-E3-E6 -> 6468209.703 | F7: 7483919.341 | G7: 7846627.98 | H7: 8206335.618 | I7: 8543042.257 | J7: 8968747.895 | K7: 9422452.534 | L7: 9803156.172 | M7: 10057858.81 | N7: 10405560.45 | O7: 10610261.09 | P7: 10910960.73 | Q7: 11156659.36 | R7: 11761357 | S7: 12239053.64 | T7: 12601749.28 | U7: 12878443.92 | V7: 13260137.56 | W7: 13680830.2 | X7: 14092521.83 | Y7: 14444212.47 | Z7: 14748902.11 | AA7: 15162590.75 | AB7: 15747278.39 | AC7: 14231965.03 | AD7: 11778650.66 | AE7: 9872335.304 | AF7: 8040018.942 | AG7: 5956701.581 | AH7: 4046383.219 | AI7: 2369063.858 | AJ7: 407743.496 | AK7: -2110577.865 | AL7: 16905527.21 | AM7: -2512796.155 | AN7: 19687888.39 | AO7: 651563.0257 | AP7: 3622236.664 | AQ7: 5526909.303 | AR7: 71394580.94 | AS7: 5399251.58 | AT7: -9677078.782 | AU7: -9024604.42 | AV7: -8481832.489 | AW7: -8156001.845 | AX7: -8314052.772 | AY7: -8561806.131 | AZ7: -9239970.919 | BA7: -9715076.992 | BB7: -10550594.5 | BC7: -11464583.14 | BD7: -12135513.07 | BE7: -13179914.15 | BF7: -14232786.37 | BG7: -15312189.44 | BH7: -16300063.66 | BI7: -17296409.02 | BJ7: -18419285.24 | BK7: -19515632.6 | BL7: -20638510.82 | BM7: -21734860.18 | BN7: -22831210.54 | BO7: -23954091.76 | BP7: -25076973.98 | BQ7: =BQ2-BQ3-BQ6 -> -26173327.34 | BR7: -27231211.56 | BS7: -28289096.78 | BT7: -29346983 | BU7: -30404870.22
B8: Reinvestment | C8: =ROUNDDOWN(C7,-5) -> 147700000 | D8: =IF(D7>0,ROUNDDOWN(D7,-5),0) -> 0 | E8: =IF(E7>0,ROUNDDOWN(E7,-5),0) -> 6400000 | F8: 7400000 | G8: 7800000 | H8: 8200000 | I8: 8500000 | J8: 8900000 | K8: 9400000 | L8: 9800000 | M8: 10000000 | N8: 10400000 | O8: 10600000 | P8: 10900000 | Q8: 11100000 | R8: 11700000 | S8: 12200000 | T8: 12600000 | U8: 12800000 | V8: 13200000 | W8: 13600000 | X8: 14000000 | Y8: 14400000 | Z8: 14700000 | AA8: 15100000 | AB8: 15700000 | AC8: 14200000 | AD8: 11700000 | AE8: 9800000 | AF8: 8000000 | AG8: 5900000 | AH8: 4000000 | AI8: 2300000 | AJ8: 400000 | AK8: 0 | AL8: 16900000 | AM8: 0 | AN8: 19600000 | AO8: 600000 | AP8: 3600000 | AQ8: 5500000 | AR8: 71300000 | AS8: 5300000 | AT8: 0 | AU8: 0 | AV8: 0 | AW8: 0 | AX8: 0 | AY8: 0 | AZ8: 0 | BA8: 0 | BB8: 0 | BC8: 0 | BD8: 0 | BE8: 0 | BF8: 0 | BG8: 0 | BH8: 0 | BI8: 0 | BJ8: 0 | BK8: 0 | BL8: 0 | BM8: 0 | BN8: 0 | BO8: 0 | BP8: 0 | BQ8: =IF(BQ7>0,ROUNDDOWN(BQ7,-5),0) -> 0 | BR8: 0 | BS8: 0 | BT8: 0 | BU8: 0
B9: # of New Bonds | C9: =C8/100000 -> 1477 | D9: =D8/100000 -> 0 | E9: 64 | F9: 74 | G9: 78 | H9: 82 | I9: 85 | J9: 89 | K9: 94 | L9: 98 | M9: 100 | N9: 104 | O9: 106 | P9: 109 | Q9: 111 | R9: 117 | S9: 122 | T9: 126 | U9: 128 | V9: 132 | W9: 136 | X9: 140 | Y9: 144 | Z9: 147 | AA9: 151 | AB9: 157 | AC9: 142 | AD9: 117 | AE9: 98 | AF9: 80 | AG9: 59 | AH9: 40 | AI9: 23 | AJ9: 4 | AK9: 0 | AL9: 169 | AM9: 0 | AN9: 196 | AO9: 6 | AP9: 36 | AQ9: 55 | AR9: 713 | AS9: 53 | AT9: 0 | AU9: 0 | AV9: 0 | AW9: 0 | AX9: 0 | AY9: 0 | AZ9: 0 | BA9: 0 | BB9: 0 | BC9: 0 | BD9: 0 | BE9: 0 | BF9: 0 | BG9: 0 | BH9: 0 | BI9: 0 | BJ9: 0 | BK9: 0 | BL9: 0 | BM9: 0 | BN9: 0 | BO9: 0 | BP9: =BP8/100000 -> 0 | BQ9: 0 | BR9: 0 | BS9: 0 | BT9: 0 | BU9: 0
B10: Profit | C10: =C7-C8 -> 66787.4255 | D10: =D2-D3-D8-D6 -> -1064500.936 | E10: =E2-E3-E8-E6 -> 68209.7025 | F10: 83919.341 | G10: 46627.9795 | H10: 6335.618 | I10: 43042.2565 | J10: 68747.895 | K10: 22452.5335 | L10: 3156.172 | M10: 57858.8105 | N10: 5560.449 | O10: 10261.0875 | P10: 10960.726 | Q10: 56659.3645 | R10: 61357.003 | S10: 39053.6415 | T10: 1749.28 | U10: 78443.9185 | V10: 60137.557 | W10: 80830.1955 | X10: 92521.834 | Y10: 44212.4725 | Z10: 48902.111 | AA10: 62590.7495 | AB10: 47278.388 | AC10: 31965.0265 | AD10: 78650.665 | AE10: 72335.3035 | AF10: 40018.942 | AG10: 56701.5805 | AH10: 46383.219 | AI10: 69063.8575 | AJ10: 7743.496 | AK10: -2110577.865 | AL10: 5527.206491 | AM10: -2512796.155 | AN10: 87888.38717 | AO10: 51563.02567 | AP10: 22236.66417 | AQ10: 26909.30267 | AR10: 94580.94117 | AS10: 99251.57967 | AT10: -9677078.782 | AU10: -9024604.42 | AV10: -8481832.489 | AW10: -8156001.845 | AX10: -8314052.772 | AY10: -8561806.131 | AZ10: -9239970.919 | BA10: -9715076.992 | BB10: -10550594.5 | BC10: -11464583.14 | BD10: -12135513.07 | BE10: -13179914.15 | BF10: -14232786.37 | BG10: -15312189.44 | BH10: -16300063.66 | BI10: -17296409.02 | BJ10: -18419285.24 | BK10: -19515632.6 | BL10: -20638510.82 | BM10: -21734860.18 | BN10: -22831210.54 | BO10: -23954091.76 | BP10: -25076973.98 | BQ10: =BQ2-BQ3-BQ8-BQ6 -> -26173327.34 | BR10: -27231211.56 | BS10: -28289096.78 | BT10: -29346983 | BU10: =BU2-BU3-BU8-BU6 -> -30404870.22
B12: Longevity Table | BX12: Payout Table
C13: =C9 -> 1477 | D13: =D9 -> 0 | E13: =E9 -> 64 | F13: =F9 -> 74 | G13: =G9 -> 78 | H13: 82 | I13: 85 | J13: 89 | K13: 94 | L13: 98 | M13: 100 | N13: 104 | O13: 106 | P13: 109 | Q13: 111 | R13: 117 | S13: 122 | T13: 126 | U13: 128 | V13: 132 | W13: 136 | X13: 140 | Y13: 144 | Z13: 147 | AA13: 151 | AB13: 157 | AC13: 142 | AD13: 117 | AE13: 98 | AF13: 80 | AG13: 59 | AH13: 40 | AI13: 23 | AJ13: 4 | AK13: 0 | AL13: 169 | AM13: 0 | AN13: 196 | AO13: 6 | AP13: 36 | AQ13: 55 | AR13: 713 | AS13: 53 | AT13: 0 | AU13: 0 | AV13: 0 | AW13: 0 | AX13: 0 | AY13: 0 | AZ13: 0 | BA13: 0 | BB13: 0 | BC13: 0 | BD13: 0 | BE13: 0 | BF13: 0 | BG13: 0 | BH13: 0 | BI13: 0 | BJ13: 0 | BK13: 0 | BL13: 0 | BM13: 0 | BN13: 0 | BO13: 0 | BP13: 0 | BQ13: =BQ9 -> 0 | BR13: 0 | BS13: 0 | BT13: 0 | BU13: 0
C14: =C13 -> 1477 | D14: =C14+D13 -> 1477 | E14: =D14+E13 -> 1541 | F14: =E14+F13 -> 1615 | G14: 1693 | H14: 1775 | I14: 1860 | J14: 1949 | K14: 2043 | L14: 2141 | M14: 2241 | N14: 2345 | O14: 2451 | P14: 2560 | Q14: 2671 | R14: 2788 | S14: 2910 | T14: 3036 | U14: 3164 | V14: 3296 | W14: 3432 | X14: 3572 | Y14: 3716 | Z14: 3863 | AA14: 4014 | AB14: 4171 | AC14: 4313 | AD14: 4430 | AE14: 4528 | AF14: 4608 | AG14: 4667 | AH14: 4707 | AI14: 4730 | AJ14: 4734 | AK14: 4734 | AL14: 4903 | AM14: 4903 | AN14: 5099 | AO14: 5105 | AP14: 5141 | AQ14: 5196 | AR14: 5909 | AS14: 5962 | AT14: 5962 | AU14: 5962 | AV14: 5962 | AW14: 5962 | AX14: 5962 | AY14: 5962 | AZ14: 5962 | BA14: 5962 | BB14: 5962 | BC14: 5962 | BD14: 5962 | BE14: 5962 | BF14: 5962 | BG14: 5962 | BH14: 5962 | BI14: 5962 | BJ14: 5962 | BK14: 5962 | BL14: 5962 | BM14: 5962 | BN14: 5962 | BO14: 5962 | BP14: 5962 | BQ14: =BP14+BQ13 -> 5962 | BR14: 5962 | BS14: 5962 | BT14: 5962 | BU14: 5962
B15: Bond | C15: t=0 | D15: t=1 | E15: t=2 | F15: t=3 | G15: t=4 | H15: t=5 | I15: t=6 | J15: t=7 | K15: t=8 | L15: t=9 | M15: t=10 | N15: t=11 | O15: t=12 | P15: t=13 | Q15: t=14 | R15: t=15 | S15: t=16 | T15: t=17 | U15: t=18 | V15: t=19 | W15: t=20 | X15: t=21 | Y15: t=22 | Z15: t=23 | AA15: t=24 | AB15: t=25 | AC15: t=26 | AD15: t=27 | AE15: t=28 | AF15: t=29 | AG15: t=30 | AH15: t=31 | AI15: t=32 | AJ15: t=33 | AK15: t=34 | AL15: t=35 | AM15: t=36 | AN15: t=37 | AO15: t=38 | AP15: t=39 | AQ15: t=40 | AR15: t=41 | AS15: t=42 | AT15: t=43 | AU15: t=44 | AV15: t=45 | AW15: t=46 | AX15: t=47 | AY15: t=48 | AZ15: t=49 | BA15: t=50 | BB15: t=51 | BC15: t=52 | BD15: t=53 | BE15: t=54 | BF15: t=55 | BG15: t=56 | BH15: t=57 | BI15: t=58 | BJ15: t=59 | BK15: t=60 | BL15: t=61 | BM15: t=62 | BN15: t=63 | BO15: t=64 | BP15: t=65 | BQ15: t=66 | BR15: t=67 | BS15: t=68 | BT15: t=69 | BU15: t=70 | BX15: Bond | BY15: t=0 | BZ15: t=1 | CA15: t=2 | CB15: t=3 | CC15: t=4 | CD15: t=5 | CE15: t=6 | CF15: t=7 | CG15: t=8 | CH15: t=9 | CI15: t=10 | CJ15: t=11 | CK15: t=12 | CL15: t=13 | CM15: t=14 | CN15: t=15 | CO15: t=16 | CP15: t=17 | CQ15: t=18 | CR15: t=19 | CS15: t=20 | CT15: t=21 | CU15: t=22 | CV15: t=23 | CW15: t=24 | CX15: t=25 | CY15: t=26 | CZ15: t=27 | DA15: t=28 | DB15: t=29 | DC15: t=30 | DD15: t=31 | DE15: t=32 | DF15: t=33 | DG15: t=34 | DH15: t=35 | DI15: t=36 | DJ15: t=37 | DK15: t=38 | DL15: t=39 | DM15: t=40 | DN15: t=41 | DO15: t=42 | DP15: t=43 | DQ15: t=44 | DR15: t=45 | DS15: t=46 | DT15: t=47 | DU15: t=48 | DV15: t=49 | DW15: t=50 | DX15: t=51 | DY15: t=52 | DZ15: t=53 | EA15: t=54 | EB15: t=55 | EC15: t=56 | ED15: t=57 | EE15: t=58 | EF15: t=59 | EG15: t=60 | EH15: t=61 | EI15: t=62 | EJ15: t=63 | EK15: t=64 | EL15: t=65 | EM15: t=66 | EN15: t=67 | EO15: t=68 | EP15: t=69 | EQ15: t=70
A16: AAA | B16: 1 | C16: =default_model(A16,$C$13,$B16,C$14,TRUE) -> 1 | D16: =IF(C5019=10000,0,default_model($A16,D$13,$B16,D$14)) -> 1 | E16: =IF(D5019=BZ5019,0,default_model($A16,E$13,$B16,E$14)) -> 1 | F16: =IF(E5019=CA5019,0,default_model($A16,F$13,$B16,F$14)) -> 1 | G16: =IF(F5019=CB5019,0,default_model($A16,G$13,$B16,G$14)) -> 1 | H16: =IF(G5019=CC5019,0,default_model($A16,H$13,$B16,H$14)) -> 1 | I16: =IF(H5019=CD5019,0,default_model($A16,I$13,$B16,I$14)) -> 1 | J16: =IF(I5019=CE5019,0,default_model($A16,J$13,$B16,J$14)) -> 1 | K16: =IF(J5019=CF5019,0,default_model($A16,K$13,$B16,K$14)) -> 1 | L16: =IF(K5019=CG5019,0,default_model($A16,L$13,$B16,L$14)) -> 1 | M16: =IF(L5019=CH5019,0,default_model($A16,M$13,$B16,M$14)) -> 1 | N16: =IF(M5019=CI5019,0,default_model($A16,N$13,$B16,N$14)) -> 1 | O16: =IF(N5019=CJ5019,0,default_model($A16,O$13,$B16,O$14)) -> 1 | P16: =IF(O5019=CK5019,0,default_model($A16,P$13,$B16,P$14)) -> 0 | Q16: =IF(P5019=CL5019,0,default_model($A16,Q$13,$B16,Q$14)) -> 0 | R16: =IF(Q5019=CM5019,0,default_model($A16,R$13,$B16,R$14)) -> 0 | S16: =IF(R5019=CN5019,0,default_model($A16,S$13,$B16,S$14)) -> 0 | T16: =IF(S5019=CO5019,0,default_model($A16,T$13,$B16,T$14)) -> 0 | U16: =IF(T5019=CP5019,0,default_model($A16,U$13,$B16,U$14)) -> 0 | V16: =IF(U5019=CQ5019,0,default_model($A16,V$13,$B16,V$14)) -> 0 | W16: =IF(V5019=CR5019,0,default_model($A16,W$13,$B16,W$14)) -> 0 | X16: =IF(W5019=CS5019,0,default_model($A16,X$13,$B16,X$14)) -> 0 | Y16: =IF(X5019=CT5019,0,default_model($A16,Y$13,$B16,Y$14)) -> 0 | Z16: =IF(Y5019=CU5019,0,default_model($A16,Z$13,$B16,Z$14)) -> 0 | AA16: =IF(Z5019=CV5019,0,default_model($A16,AA$13,$B16,AA$14)) -> 0 | AB16: =IF(AA5019=CW5019,0,default_model($A16,AB$13,$B16,AB$14)) -> 0 | AC16: =IF(AB5019=CX5019,0,default_model($A16,AC$13,$B16,AC$14)) -> 0 | AD16: =IF(AC5019=CY5019,0,default_model($A16,AD$13,$B16,AD$14)) -> 0 | AE16: =IF(AD5019=CZ5019,0,default_model($A16,AE$13,$B16,AE$14)) -> 0 | AF16: =IF(AE5019=DA5019,0,default_model($A16,AF$13,$B16,AF$14)) -> 0 | AG16: =IF(AF5019=DB5019,0,default_model($A16,AG$13,$B16,AG$14)) -> 0 | AH16: =IF(AG5019=DC5019,0,default_model($A16,AH$13,$B16,AH$14)) -> 0 | AI16: =IF(AH5019=DD5019,0,default_model($A16,AI$13,$B16,AI$14)) -> 0 | AJ16: =IF(AI5019=DE5019,0,default_model($A16,AJ$13,$B16,AJ$14)) -> 0 | AK16: =IF(AJ5019=DF5019,0,default_model($A16,AK$13,$B16,AK$14)) -> 0 | AL16: =IF(AK5019=DG5019,0,default_model($A16,AL$13,$B16,AL$14)) -> 0 | AM16: =IF(AL5019=DH5019,0,default_model($A16,AM$13,$B16,AM$14)) -> 0 | AN16: =IF(AM5019=DI5019,0,default_model($A16,AN$13,$B16,AN$14)) -> 0 | AO16: =IF(AN5019=DJ5019,0,default_model($A16,AO$13,$B16,AO$14)) -> 0 | AP16: =IF(AO5019=DK5019,0,default_model($A16,AP$13,$B16,AP$14)) -> 0 | AQ16: =IF(AP5019=DL5019,0,default_model($A16,AQ$13,$B16,AQ$14)) -> 0 | AR16: =IF(AQ5019=DM5019,0,default_model($A16,AR$13,$B16,AR$14)) -> 0 | AS16: =IF(AR5019=DN5019,0,default_model($A16,AS$13,$B16,AS$14)) -> 0 | AT16: =IF(AS5019=DO5019,0,default_model($A16,AT$13,$B16,AT$14)) -> 0 | AU16: =IF(AT5019=DP5019,0,default_model($A16,AU$13,$B16,AU$14)) -> 0 | AV16: =IF(AU5019=DQ5019,0,default_model($A16,AV$13,$B16,AV$14)) -> 0 | AW16: =IF(AV5019=DR5019,0,default_model($A16,AW$13,$B16,AW$14)) -> 0 | AX16: =IF(AW5019=DS5019,0,default_model($A16,AX$13,$B16,AX$14)) -> 0 | AY16: =IF(AX5019=DT5019,0,default_model($A16,AY$13,$B16,AY$14)) -> 0 | AZ16: =IF(AY5019=DU5019,0,default_model($A16,AZ$13,$B16,AZ$14)) -> 0 | BA16: =IF(AZ5019=DV5019,0,default_model($A16,BA$13,$B16,BA$14)) -> 0 | BB16: =IF(BA5019=DW5019,0,default_model($A16,BB$13,$B16,BB$14)) -> 0 | BC16: =IF(BB5019=DX5019,0,default_model($A16,BC$13,$B16,BC$14)) -> 0 | BD16: =IF(BC5019=DY5019,0,default_model($A16,BD$13,$B16,BD$14)) -> 0 | BE16: =IF(BD5019=DZ5019,0,default_model($A16,BE$13,$B16,BE$14)) -> 0 | BF16: =IF(BE5019=EA5019,0,default_model($A16,BF$13,$B16,BF$14)) -> 0 | BG16: =IF(BF5019=EB5019,0,default_model($A16,BG$13,$B16,BG$14)) -> 0 | BH16: =IF(BG5019=EC5019,0,default_model($A16,BH$13,$B16,BH$14)) -> 0 | BI16: =IF(BH5019=ED5019,0,default_model($A16,BI$13,$B16,BI$14)) -> 0 | BJ16: =IF(BI5019=EE5019,0,default_model($A16,BJ$13,$B16,BJ$14)) -> 0 | BK16: =IF(BJ5019=EF5019,0,default_model($A16,BK$13,$B16,BK$14)) -> 0 | BL16: =IF(BK5019=EG5019,0,default_model($A16,BL$13,$B16,BL$14)) -> 0 | BM16: =IF(BL5019=EH5019,0,default_model($A16,BM$13,$B16,BM$14)) -> 0 | BN16: =IF(BM5019=EI5019,0,default_model($A16,BN$13,$B16,BN$14)) -> 0 | BO16: =IF(BN5019=EJ5019,0,default_model($A16,BO$13,$B16,BO$14)) -> 0 | BP16: =IF(BO5019=EK5019,0,default_model($A16,BP$13,$B16,BP$14)) -> 0 | BQ16: =IF(BP5019=EL5019,0,default_model($A16,BQ$13,$B16,BQ$14)) -> 0 | BR16: =IF(BQ5019=EM5019,0,default_model($A16,BR$13,$B16,BR$14)) -> 0 | BS16: =IF(BR5019=EN5019,0,default_model($A16,BS$13,$B16,BS$14)) -> 0 | BT16: =IF(BS5019=EO5019,0,default_model($A16,BT$13,$B16,BT$14)) -> 0 | BU16: =IF(BT5019=EP5019,0,default_model($A16,BU$13,$B16,BU$14)) -> 0 | BW16: =A16 -> AAA | BX16: 1 | BY16: =IF(C16,-100000,0) -> -100000 | BZ16: =payout($A16,D16,$C16:C16,BY16,$BY16:BY16) -> 5000 | CA16: =payout($A16,E16,$C16:D16,BZ16,$BY16:BZ16) -> 5000 | CB16: =payout($A16,F16,$C16:E16,CA16,$BY16:CA16) -> 5000 | CC16: =payout($A16,G16,$C16:F16,CB16,$BY16:CB16) -> 5000 | CD16: =payout($A16,H16,$C16:G16,CC16,$BY16:CC16) -> 5000 | CE16: =payout($A16,I16,$C16:H16,CD16,$BY16:CD16) -> 5000 | CF16: =payout($A16,J16,$C16:I16,CE16,$BY16:CE16) -> 5000 | CG16: =payout($A16,K16,$C16:J16,CF16,$BY16:CF16) -> 5000 | CH16: =payout($A16,L16,$C16:K16,CG16,$BY16:CG16) -> 5000 | CI16: =payout($A16,M16,$C16:L16,CH16,$BY16:CH16) -> 5000 | CJ16: =payout($A16,N16,$C16:M16,CI16,$BY16:CI16) -> 5000 | CK16: =payout($A16,O16,$C16:N16,CJ16,$BY16:CJ16) -> 5000 | CL16: =payout($A16,P16,$C16:O16,CK16,$BY16:CK16) -> 5000 | CM16: =payout($A16,Q16,$C16:P16,CL16,$BY16:CL16) -> 5000 | CN16: =payout($A16,R16,$C16:Q16,CM16,$BY16:CM16) -> 5000 | CO16: =payout($A16,S16,$C16:R16,CN16,$BY16:CN16) -> 5000 | CP16: =payout($A16,T16,$C16:S16,CO16,$BY16:CO16) -> 5000 | CQ16: =payout($A16,U16,$C16:T16,CP16,$BY16:CP16) -> 5000 | CR16: =payout($A16,V16,$C16:U16,CQ16,$BY16:CQ16) -> 5000 | CS16: =payout($A16,W16,$C16:V16,CR16,$BY16:CR16) -> 5000 | CT16: =payout($A16,X16,$C16:W16,CS16,$BY16:CS16) -> 5000 | CU16: =payout($A16,Y16,$C16:X16,CT16,$BY16:CT16) -> 5000 | CV16: =payout($A16,Z16,$C16:Y16,CU16,$BY16:CU16) -> 5000 | CW16: =payout($A16,AA16,$C16:Z16,CV16,$BY16:CV16) -> 5000 | CX16: =payout($A16,AB16,$C16:AA16,CW16,$BY16:CW16) -> 5000 | CY16: =payout($A16,AC16,$C16:AB16,CX16,$BY16:CX16) -> 5000 | CZ16: =payout($A16,AD16,$C16:AC16,CY16,$BY16:CY16) -> 5000 | DA16: =payout($A16,AE16,$C16:AD16,CZ16,$BY16:CZ16) -> 5000 | DB16: =payout($A16,AF16,$C16:AE16,DA16,$BY16:DA16) -> 5000 | DC16: =payout($A16,AG16,$C16:AF16,DB16,$BY16:DB16) -> 5000 | DD16: =payout($A16,AH16,$C16:AG16,DC16,$BY16:DC16) -> 5000 | DE16: =payout($A16,AI16,$C16:AH16,DD16,$BY16:DD16) -> 5000 | DF16: =payout($A16,AJ16,$C16:AI16,DE16,$BY16:DE16) -> 5000 | DG16: =payout($A16,AK16,$C16:AJ16,DF16,$BY16:DF16) -> 5000 | DH16: =payout($A16,AL16,$C16:AK16,DG16,$BY16:DG16) -> 5000 | DI16: =payout($A16,AM16,$C16:AL16,DH16,$BY16:DH16) -> 5000 | DJ16: =payout($A16,AN16,$C16:AM16,DI16,$BY16:DI16) -> 5000 | DK16: =payout($A16,AO16,$C16:AN16,DJ16,$BY16:DJ16) -> 5000 | DL16: =payout($A16,AP16,$C16:AO16,DK16,$BY16:DK16) -> 5000 | DM16: =payout($A16,AQ16,$C16:AP16,DL16,$BY16:DL16) -> 105000 | DN16: =payout($A16,AR16,$C16:AQ16,DM16,$BY16:DM16) -> 0 | DO16: 0 | DP16: 0 | DQ16: 0 | DR16: 0 | DS16: 0 | DT16: 0 | DU16: 0 | DV16: 0 | DW16: 0 | DX16: 0 | DY16: 0 | DZ16: 0 | EA16: 0 | EB16: 0 | EC16: 0 | ED16: 0 | EE16: 0 | EF16: 0 | EG16: 0 | EH16: 0 | EI16: 0 | EJ16: 0 | EK16: 0 | EL16: 0 | EM16: 0 | EN16: 0 | EO16: 0 | EP16: 0 | EQ16: 0
A17: =get_bond_grade($A$16:A16,$BX$5,$BY$5,$BZ$5) -> AA | B17: 2 | C17: =default_model(A17,$C$13,$B17,C$14,TRUE) -> 1 | D17: 1 | E17: 1 | F17: 1 | G17: 1 | H17: 1 | I17: 1 | J17: 1 | K17: 1 | L17: 1 | M17: 1 | N17: 1 | O17: 1 | P17: 1 | Q17: 1 | R17: 1 | S17: 1 | T17: 1 | U17: 1 | V17: 1 | W17: 1 | X17: 1 | Y17: 1 | Z17: 1 | AA17: 1 | AB17: 1 | AC17: 1 | AD17: 1 | AE17: 1 | AF17: 1 | AG17: 1 | AH17: 1 | AI17: 1 | AJ17: 1 | AK17: 1 | AL17: 0 | AM17: 0 | AN17: 0 | AO17: 0 | AP17: 0 | AQ17: 0 | AR17: 0 | AS17: 0 | AT17: 0 | AU17: 0 | AV17: 0 | AW17: 0 | AX17: 0 | AY17: 0 | AZ17: 0 | BA17: 0 | BB17: 0 | BC17: 0 | BD17: 0 | BE17: 0 | BF17: 0 | BG17: 0 | BH17: 0 | BI17: 0 | BJ17: 0 | BK17: 0 | BL17: 0 | BM17: 0 | BN17: 0 | BO17: 0 | BP17: 0 | BQ17: 0 | BR17: 0 | BS17: 0 | BT17: 0 | BU17: 0 | BW17: =A17 -> AA | BX17: 2 | BY17: =IF(C17,-100000,0) -> -100000 | BZ17: =payout($A17,D17,$C17:C17,BY17,$BY17:BY17) -> 6000 | CA17: =payout($A17,E17,$C17:D17,BZ17,$BY17:BZ17) -> 6000 | CB17: =payout($A17,F17,$C17:E17,CA17,$BY17:CA17) -> 6000 | CC17: =payout($A17,G17,$C17:F17,CB17,$BY17:CB17) -> 6000 | CD17: =payout($A17,H17,$C17:G17,CC17,$BY17:CC17) -> 6000 | CE17: =payout($A17,I17,$C17:H17,CD17,$BY17:CD17) -> 6000 | CF17: =payout($A17,J17,$C17:I17,CE17,$BY17:CE17) -> 6000 | CG17: =payout($A17,K17,$C17:J17,CF17,$BY17:CF17) -> 6000 | CH17: =payout($A17,L17,$C17:K17,CG17,$BY17:CG17) -> 6000 | CI17: =payout($A17,M17,$C17:L17,CH17,$BY17:CH17) -> 6000 | CJ17: =payout($A17,N17,$C17:M17,CI17,$BY17:CI17) -> 6000 | CK17: =payout($A17,O17,$C17:N17,CJ17,$BY17:CJ17) -> 6000 | CL17: =payout($A17,P17,$C17:O17,CK17,$BY17:CK17) -> 6000 | CM17: =payout($A17,Q17,$C17:P17,CL17,$BY17:CL17) -> 6000 | CN17: =payout($A17,R17,$C17:Q17,CM17,$BY17:CM17) -> 6000 | CO17: =payout($A17,S17,$C17:R17,CN17,$BY17:CN17) -> 6000 | CP17: =payout($A17,T17,$C17:S17,CO17,$BY17:CO17) -> 6000 | CQ17: =payout($A17,U17,$C17:T17,CP17,$BY17:CP17) -> 6000 | CR17: =payout($A17,V17,$C17:U17,CQ17,$BY17:CQ17) -> 6000 | CS17: =payout($A17,W17,$C17:V17,CR17,$BY17:CR17) -> 6000 | CT17: =payout($A17,X17,$C17:W17,CS17,$BY17:CS17) -> 6000 | CU17: =payout($A17,Y17,$C17:X17,CT17,$BY17:CT17) -> 6000 | CV17: =payout($A17,Z17,$C17:Y17,CU17,$BY17:CU17) -> 6000 | CW17: =payout($A17,AA17,$C17:Z17,CV17,$BY17:CV17) -> 6000 | CX17: =payout($A17,AB17,$C17:AA17,CW17,$BY17:CW17) -> 6000 | CY17: =payout($A17,AC17,$C17:AB17,CX17,$BY17:CX17) -> 6000 | CZ17: =payout($A17,AD17,$C17:AC17,CY17,$BY17:CY17) -> 6000 | DA17: =payout($A17,AE17,$C17:AD17,CZ17,$BY17:CZ17) -> 6000 | DB17: =payout($A17,AF17,$C17:AE17,DA17,$BY17:DA17) -> 6000 | DC17: =payout($A17,AG17,$C17:AF17,DB17,$BY17:DB17) -> 6000 | DD17: =payout($A17,AH17,$C17:AG17,DC17,$BY17:DC17) -> 6000 | DE17: =payout($A17,AI17,$C17:AH17,DD17,$BY17:DD17) -> 6000 | DF17: =payout($A17,AJ17,$C17:AI17,DE17,$BY17:DE17) -> 6000 | DG17: =payout($A17,AK17,$C17:AJ17,DF17,$BY17:DF17) -> 6000 | DH17: =payout($A17,AL17,$C17:AK17,DG17,$BY17:DG17) -> 6000 | DI17: =payout($A17,AM17,$C17:AL17,DH17,$BY17:DH17) -> 6000 | DJ17: =payout($A17,AN17,$C17:AM17,DI17,$BY17:DI17) -> 6000 | DK17: =payout($A17,AO17,$C17:AN17,DJ17,$BY17:DJ17) -> 6000 | DL17: =payout($A17,AP17,$C17:AO17,DK17,$BY17:DK17) -> 6000 | DM17: =payout($A17,AQ17,$C17:AP17,DL17,$BY17:DL17) -> 106000 | DN17: =payout($A17,AR17,$C17:AQ17,DM17,$BY17:DM17) -> 0 | DO17: 0 | DP17: 0 | DQ17: 0 | DR17: 0 | DS17: 0 | DT17: 0 | DU17: 0 | DV17: 0 | DW17: 0 | DX17: 0 | DY17: 0 | DZ17: 0 | EA17: 0 | EB17: 0 | EC17: 0 | ED17: 0 | EE17: 0 | EF17: 0 | EG17: 0 | EH17: 0 | EI17: 0 | EJ17: 0 | EK17: 0 | EL17: 0 | EM17: 0 | EN17: 0 | EO17: 0 | EP17: 0 | EQ17: 0
A18: =get_bond_grade($A$16:A17,$BX$5,$BY$5,$BZ$5) -> A | B18: 3 | C18: 1 | D18: 1 | E18: 1 | F18: 1 | G18: 1 | H18: 1 | I18: 1 | J18: 1 | K18: 1 | L18: 1 | M18: 1 | N18: 1 | O18: 1 | P18: 1 | Q18: 1 | R18: 1 | S18: 1 | T18: 1 | U18: 1 | V18: 1 | W18: 1 | X18: 1 | Y18: 1 | Z18: 0 | AA18: 0 | AB18: 0 | AC18: 0 | AD18: 0 | AE18: 0 | AF18: 0 | AG18: 0 | AH18: 0 | AI18: 0 | AJ18: 0 | AK18: 0 | AL18: 0 | AM18: 0 | AN18: 0 | AO18: 0 | AP18: 0 | AQ18: 0 | AR18: 0 | AS18: 0 | AT18: 0 | AU18: 0 | AV18: 0 | AW18: 0 | AX18: 0 | AY18: 0 | AZ18: 0 | BA18: 0 | BB18: 0 | BC18: 0 | BD18: 0 | BE18: 0 | BF18: 0 | BG18: 0 | BH18: 0 | BI18: 0 | BJ18: 0 | BK18: 0 | BL18: 0 | BM18: 0 | BN18: 0 | BO18: 0 | BP18: 0 | BQ18: 0 | BR18: 0 | BS18: 0 | BT18: 0 | BU18: 0 | BW18: A | BX18: 3 | BY18: -100000 | BZ18: =payout($A18,D18,$C18:C18,BY18,$BY18:BY18) -> 7000 | CA18: =payout($A18,E18,$C18:D18,BZ18,$BY18:BZ18) -> 7000 | CB18: =payout($A18,F18,$C18:E18,CA18,$BY18:CA18) -> 7000 | CC18: =payout($A18,G18,$C18:F18,CB18,$BY18:CB18) -> 7000 | CD18: =payout($A18,H18,$C18:G18,CC18,$BY18:CC18) -> 7000 | CE18: =payout($A18,I18,$C18:H18,CD18,$BY18:CD18) -> 7000 | CF18: =payout($A18,J18,$C18:I18,CE18,$BY18:CE18) -> 7000 | CG18: =payout($A18,K18,$C18:J18,CF18,$BY18:CF18) -> 7000 | CH18: =payout($A18,L18,$C18:K18,CG18,$BY18:CG18) -> 7000 | CI18: =payout($A18,M18,$C18:L18,CH18,$BY18:CH18) -> 7000 | CJ18: =payout($A18,N18,$C18:M18,CI18,$BY18:CI18) -> 7000 | CK18: =payout($A18,O18,$C18:N18,CJ18,$BY18:CJ18) -> 7000 | CL18: =payout($A18,P18,$C18:O18,CK18,$BY18:CK18) -> 7000 | CM18: =payout($A18,Q18,$C18:P18,CL18,$BY18:CL18) -> 7000 | CN18: =payout($A18,R18,$C18:Q18,CM18,$BY18:CM18) -> 7000 | CO18: =payout($A18,S18,$C18:R18,CN18,$BY18:CN18) -> 7000 | CP18: =payout($A18,T18,$C18:S18,CO18,$BY18:CO18) -> 7000 | CQ18: =payout($A18,U18,$C18:T18,CP18,$BY18:CP18) -> 7000 | CR18: =payout($A18,V18,$C18:U18,CQ18,$BY18:CQ18) -> 7000 | CS18: =payout($A18,W18,$C18:V18,CR18,$BY18:CR18) -> 7000 | CT18: =payout($A18,X18,$C18:W18,CS18,$BY18:CS18) -> 7000 | CU18: =payout($A18,Y18,$C18:X18,CT18,$BY18:CT18) -> 7000 | CV18: =payout($A18,Z18,$C18:Y18,CU18,$BY18:CU18) -> 7000 | CW18: =payout($A18,AA18,$C18:Z18,CV18,$BY18:CV18) -> 7000 | CX18: =payout($A18,AB18,$C18:AA18,CW18,$BY18:CW18) -> 7000 | CY18: =payout($A18,AC18,$C18:AB18,CX18,$BY18:CX18) -> 7000 | CZ18: =payout($A18,AD18,$C18:AC18,CY18,$BY18:CY18) -> 7000 | DA18: =payout($A18,AE18,$C18:AD18,CZ18,$BY18:CZ18) -> 7000 | DB18: =payout($A18,AF18,$C18:AE18,DA18,$BY18:DA18) -> 7000 | DC18: =payout($A18,AG18,$C18:AF18,DB18,$BY18:DB18) -> 7000 | DD18: =payout($A18,AH18,$C18:AG18,DC18,$BY18:DC18) -> 7000 | DE18: =payout($A18,AI18,$C18:AH18,DD18,$BY18:DD18) -> 7000 | DF18: =payout($A18,AJ18,$C18:AI18,DE18,$BY18:DE18) -> 7000 | DG18: =payout($A18,AK18,$C18:AJ18,DF18,$BY18:DF18) -> 7000 | DH18: =payout($A18,AL18,$C18:AK18,DG18,$BY18:DG18) -> 7000 | DI18: =payout($A18,AM18,$C18:AL18,DH18,$BY18:DH18) -> 7000 | DJ18: =payout($A18,AN18,$C18:AM18,DI18,$BY18:DI18) -> 7000 | DK18: =payout($A18,AO18,$C18:AN18,DJ18,$BY18:DJ18) -> 7000 | DL18: =payout($A18,AP18,$C18:AO18,DK18,$BY18:DK18) -> 7000 | DM18: =payout($A18,AQ18,$C18:AP18,DL18,$BY18:DL18) -> 107000 | DN18: =payout($A18,AR18,$C18:AQ18,DM18,$BY18:DM18) -> 0 | DO18: 0 | DP18: 0 | DQ18: 0 | DR18: 0 | DS18: 0 | DT18: 0 | DU18: 0 | DV18: 0 | DW18: 0 | DX18: 0 | DY18: 0 | DZ18: 0 | EA18: 0 | EB18: 0 | EC18: 0 | ED18: 0 | EE18: 0 | EF18: 0 | EG18: 0 | EH18: 0 | EI18: 0 | EJ18: 0 | EK18: 0 | EL18: 0 | EM18: 0 | EN18: 0 | EO18: 0 | EP18: 0 | EQ18: 0
A19: =get_bond_grade($A$16:A18,$BX$5,$BY$5,$BZ$5) -> AAA | B19: 4 | C19: 1 | D19: 1 | E19: 1 | F19: 1 | G19: 1 | H19: 1 | I19: 1 | J19: 1 | K19: 1 | L19: 1 | M19: 1 | N19: 1 | O19: 1 | P19: 1 | Q19: 1 | R19: 1 | S19: 1 | T19: 1 | U19: 1 | V19: 1 | W19: 1 | X19: 1 | Y19: 1 | Z19: 1 | AA19: 1 | AB19: 1 | AC19: 1 | AD19: 1 | AE19: 1 | AF19: 1 | AG19: 1 | AH19: 1 | AI19: 1 | AJ19: 1 | AK19: 1 | AL19: 0 | AM19: 0 | AN19: 0 | AO19: 0 | AP19: 0 | AQ19: 0 | AR19: 0 | AS19: 0 | AT19: 0 | AU19: 0 | AV19: 0 | AW19: 0 | AX19: 0 | AY19: 0 | AZ19: 0 | BA19: 0 | BB19: 0 | BC19: 0 | BD19: 0 | BE19: 0 | BF19: 0 | BG19: 0 | BH19: 0 | BI19: 0 | BJ19: 0 | BK19: 0 | BL19: 0 | BM19: 0 | BN19: 0 | BO19: 0 | BP19: 0 | BQ19: 0 | BR19: 0 | BS19: 0 | BT19: 0 | BU19: 0 | BW19: AAA | BX19: 4 | BY19: -100000 | BZ19: =payout($A19,D19,$C19:C19,BY19,$BY19:BY19) -> 5000 | CA19: =payout($A19,E19,$C19:D19,BZ19,$BY19:BZ19) -> 5000 | CB19: =payout($A19,F19,$C19:E19,CA19,$BY19:CA19) -> 5000 | CC19: =payout($A19,G19,$C19:F19,CB19,$BY19:CB19) -> 5000 | CD19: =payout($A19,H19,$C19:G19,CC19,$BY19:CC19) -> 5000 | CE19: =payout($A19,I19,$C19:H19,CD19,$BY19:CD19) -> 5000 | CF19: =payout($A19,J19,$C19:I19,CE19,$BY19:CE19) -> 5000 | CG19: =payout($A19,K19,$C19:J19,CF19,$BY19:CF19) -> 5000 | CH19: =payout($A19,L19,$C19:K19,CG19,$BY19:CG19) -> 5000 | CI19: =payout($A19,M19,$C19:L19,CH19,$BY19:CH19) -> 5000 | CJ19: =payout($A19,N19,$C19:M19,CI19,$BY19:CI19) -> 5000 | CK19: =payout($A19,O19,$C19:N19,CJ19,$BY19:CJ19) -> 5000 | CL19: =payout($A19,P19,$C19:O19,CK19,$BY19:CK19) -> 5000 | CM19: =payout($A19,Q19,$C19:P19,CL19,$BY19:CL19) -> 5000 | CN19: =payout($A19,R19,$C19:Q19,CM19,$BY19:CM19) -> 5000 | CO19: =payout($A19,S19,$C19:R19,CN19,$BY19:CN19) -> 5000 | CP19: =payout($A19,T19,$C19:S19,CO19,$BY19:CO19) -> 5000 | CQ19: =payout($A19,U19,$C19:T19,CP19,$BY19:CP19) -> 5000 | CR19: =payout($A19,V19,$C19:U19,CQ19,$BY19:CQ19) -> 5000 | CS19: =payout($A19,W19,$C19:V19,CR19,$BY19:CR19) -> 5000 | CT19: =payout($A19,X19,$C19:W19,CS19,$BY19:CS19) -> 5000 | CU19: =payout($A19,Y19,$C19:X19,CT19,$BY19:CT19) -> 5000 | CV19: =payout($A19,Z19,$C19:Y19,CU19,$BY19:CU19) -> 5000 | CW19: =payout($A19,AA19,$C19:Z19,CV19,$BY19:CV19) -> 5000 | CX19: =payout($A19,AB19,$C19:AA19,CW19,$BY19:CW19) -> 5000 | CY19: =payout($A19,AC19,$C19:AB19,CX19,$BY19:CX19) -> 5000 | CZ19: =payout($A19,AD19,$C19:AC19,CY19,$BY19:CY19) -> 5000 | DA19: =payout($A19,AE19,$C19:AD19,CZ19,$BY19:CZ19) -> 5000 | DB19: =payout($A19,AF19,$C19:AE19,DA19,$BY19:DA19) -> 5000 | DC19: =payout($A19,AG19,$C19:AF19,DB19,$BY19:DB19) -> 5000 | DD19: =payout($A19,AH19,$C19:AG19,DC19,$BY19:DC19) -> 5000 | DE19: =payout($A19,AI19,$C19:AH19,DD19,$BY19:DD19) -> 5000 | DF19: =payout($A19,AJ19,$C19:AI19,DE19,$BY19:DE19) -> 5000 | DG19: =payout($A19,AK19,$C19:AJ19,DF19,$BY19:DF19) -> 5000 | DH19: =payout($A19,AL19,$C19:AK19,DG19,$BY19:DG19) -> 5000 | DI19: =payout($A19,AM19,$C19:AL19,DH19,$BY19:DH19) -> 5000 | DJ19: =payout($A19,AN19,$C19:AM19,DI19,$BY19:DI19) -> 5000 | DK19: =payout($A19,AO19,$C19:AN19,DJ19,$BY19:DJ19) -> 5000 | DL19: =payout($A19,AP19,$C19:AO19,DK19,$BY19:DK19) -> 5000 | DM19: =payout($A19,AQ19,$C19:AP19,DL19,$BY19:DL19) -> 105000 | DN19: =payout($A19,AR19,$C19:AQ19,DM19,$BY19:DM19) -> 0 | DO19: 0 | DP19: 0 | DQ19: 0 | DR19: 0 | DS19: 0 | DT19: 0 | DU19: 0 | DV19: 0 | DW19: 0 | DX19: 0 | DY19: 0 | DZ19: 0 | EA19: 0 | EB19: 0 | EC19: 0 | ED19: 0 | EE19: 0 | EF19: 0 | EG19: 0 | EH19: 0 | EI19: 0 | EJ19: 0 | EK19: 0 | EL19: 0 | EM19: 0 | EN19: 0 | EO19: 0 | EP19: 0 | EQ19: 0
A20: =get_bond_grade($A$16:A19,$BX$5,$BY$5,$BZ$5) -> AA | B20: 5 | C20: 1 | D20: 1 | E20: 1 | F20: 1 | G20: 1 | H20: 1 | I20: 1 | J20: 1 | K20: 1 | L20: 1 | M20: 1 | N20: 1 | O20: 1 | P20: 1 | Q20: 1 | R20: 1 | S20: 1 | T20: 1 | U20: 1 | V20: 1 | W20: 1 | X20: 1 | Y20: 1 | Z20: 1 | AA20: 1 | AB20: 1 | AC20: 1 | AD20: 1 | AE20: 1 | AF20: 1 | AG20: 1 | AH20: 1 | AI20: 1 | AJ20: 1 | AK20: 1 | AL20: 0 | AM20: 0 | AN20: 0 | AO20: 0 | AP20: 0 | AQ20: 0 | AR20: 0 | AS20: 0 | AT20: 0 | AU20: 0 | AV20: 0 | AW20: 0 | AX20: 0 | AY20: 0 | AZ20: 0 | BA20: 0 | BB20: 0 | BC20: 0 | BD20: 0 | BE20: 0 | BF20: 0 | BG20: 0 | BH20: 0 | BI20: 0 | BJ20: 0 | BK20: 0 | BL20: 0 | BM20: 0 | BN20: 0 | BO20: 0 | BP20: 0 | BQ20: 0 | BR20: 0 | BS20: 0 | BT20: 0 | BU20: 0 | BW20: AA | BX20: 5 | BY20: -100000 | BZ20: =payout($A20,D20,$C20:C20,BY20,$BY20:BY20) -> 6000 | CA20: =payout($A20,E20,$C20:D20,BZ20,$BY20:BZ20) -> 6000 | CB20: =payout($A20,F20,$C20:E20,CA20,$BY20:CA20) -> 6000 | CC20: =payout($A20,G20,$C20:F20,CB20,$BY20:CB20) -> 6000 | CD20: =payout($A20,H20,$C20:G20,CC20,$BY20:CC20) -> 6000 | CE20: =payout($A20,I20,$C20:H20,CD20,$BY20:CD20) -> 6000 | CF20: =payout($A20,J20,$C20:I20,CE20,$BY20:CE20) -> 6000 | CG20: =payout($A20,K20,$C20:J20,CF20,$BY20:CF20) -> 6000 | CH20: =payout($A20,L20,$C20:K20,CG20,$BY20:CG20) -> 6000 | CI20: =payout($A20,M20,$C20:L20,CH20,$BY20:CH20) -> 6000 | CJ20: =payout($A20,N20,$C20:M20,CI20,$BY20:CI20) -> 6000 | CK20: =payout($A20,O20,$C20:N20,CJ20,$BY20:CJ20) -> 6000 | CL20: =payout($A20,P20,$C20:O20,CK20,$BY20:CK20) -> 6000 | CM20: =payout($A20,Q20,$C20:P20,CL20,$BY20:CL20) -> 6000 | CN20: =payout($A20,R20,$C20:Q20,CM20,$BY20:CM20) -> 6000 | CO20: =payout($A20,S20,$C20:R20,CN20,$BY20:CN20) -> 6000 | CP20: =payout($A20,T20,$C20:S20,CO20,$BY20:CO20) -> 6000 | CQ20: =payout($A20,U20,$C20:T20,CP20,$BY20:CP20) -> 6000 | CR20: =payout($A20,V20,$C20:U20,CQ20,$BY20:CQ20) -> 6000 | CS20: =payout($A20,W20,$C20:V20,CR20,$BY20:CR20) -> 6000 | CT20: =payout($A20,X20,$C20:W20,CS20,$BY20:CS20) -> 6000 | CU20: =payout($A20,Y20,$C20:X20,CT20,$BY20:CT20) -> 6000 | CV20: =payout($A20,Z20,$C20:Y20,CU20,$BY20:CU20) -> 6000 | CW20: =payout($A20,AA20,$C20:Z20,CV20,$BY20:CV20) -> 6000 | CX20: =payout($A20,AB20,$C20:AA20,CW20,$BY20:CW20) -> 6000 | CY20: =payout($A20,AC20,$C20:AB20,CX20,$BY20:CX20) -> 6000 | CZ20: =payout($A20,AD20,$C20:AC20,CY20,$BY20:CY20) -> 6000 | DA20: =payout($A20,AE20,$C20:AD20,CZ20,$BY20:CZ20) -> 6000 | DB20: =payout($A20,AF20,$C20:AE20,DA20,$BY20:DA20) -> 6000 | DC20: =payout($A20,AG20,$C20:AF20,DB20,$BY20:DB20) -> 6000 | DD20: =payout($A20,AH20,$C20:AG20,DC20,$BY20:DC20) -> 6000 | DE20: =payout($A20,AI20,$C20:AH20,DD20,$BY20:DD20) -> 6000 | DF20: =payout($A20,AJ20,$C20:AI20,DE20,$BY20:DE20) -> 6000 | DG20: =payout($A20,AK20,$C20:AJ20,DF20,$BY20:DF20) -> 6000 | DH20: =payout($A20,AL20,$C20:AK20,DG20,$BY20:DG20) -> 6000 | DI20: =payout($A20,AM20,$C20:AL20,DH20,$BY20:DH20) -> 6000 | DJ20: =payout($A20,AN20,$C20:AM20,DI20,$BY20:DI20) -> 6000 | DK20: =payout($A20,AO20,$C20:AN20,DJ20,$BY20:DJ20) -> 6000 | DL20: =payout($A20,AP20,$C20:AO20,DK20,$BY20:DK20) -> 6000 | DM20: =payout($A20,AQ20,$C20:AP20,DL20,$BY20:DL20) -> 106000 | DN20: =payout($A20,AR20,$C20:AQ20,DM20,$BY20:DM20) -> 0 | DO20: 0 | DP20: 0 | DQ20: 0 | DR20: 0 | DS20: 0 | DT20: 0 | DU20: 0 | DV20: 0 | DW20: 0 | DX20: 0 | DY20: 0 | DZ20: 0 | EA20: 0 | EB20: 0 | EC20: 0 | ED20: 0 | EE20: 0 | EF20: 0 | EG20: 0 | EH20: 0 | EI20: 0 | EJ20: 0 | EK20: 0 | EL20: 0 | EM20: 0 | EN20: 0 | EO20: 0 | EP20: 0 | EQ20: 0
A21: =get_bond_grade($A$16:A20,$BX$5,$BY$5,$BZ$5) -> A | B21: 6 | C21: 1 | D21: 1 | E21: 1 | F21: 1 | G21: 1 | H21: 1 | I21: 1 | J21: 1 | K21: 1 | L21: 1 | M21: 1 | N21: 1 | O21: 1 | P21: 1 | Q21: 1 | R21: 1 | S21: 1 | T21: 1 | U21: 1 | V21: 1 | W21: 1 | X21: 1 | Y21: 1 | Z21: 1 | AA21: 1 | AB21: 1 | AC21: 1 | AD21: 1 | AE21: 1 | AF21: 1 | AG21: 1 | AH21: 1 | AI21: 1 | AJ21: 1 | AK21: 1 | AL21: 0 | AM21: 0 | AN21: 0 | AO21: 0 | AP21: 0 | AQ21: 0 | AR21: 0 | AS21: 0 | AT21: 0 | AU21: 0 | AV21: 0 | AW21: 0 | AX21: 0 | AY21: 0 | AZ21: 0 | BA21: 0 | BB21: 0 | BC21: 0 | BD21: 0 | BE21: 0 | BF21: 0 | BG21: 0 | BH21: 0 | BI21: 0 | BJ21: 0 | BK21: 0 | BL21: 0 | BM21: 0 | BN21: 0 | BO21: 0 | BP21: 0 | BQ21: 0 | BR21: 0 | BS21: 0 | BT21: 0 | BU21: 0 | BW21: A | BX21: 6 | BY21: -100000 | BZ21: =payout($A21,D21,$C21:C21,BY21,$BY21:BY21) -> 7000 | CA21: =payout($A21,E21,$C21:D21,BZ21,$BY21:BZ21) -> 7000 | CB21: =payout($A21,F21,$C21:E21,CA21,$BY21:CA21) -> 7000 | CC21: =payout($A21,G21,$C21:F21,CB21,$BY21:CB21) -> 7000 | CD21: =payout($A21,H21,$C21:G21,CC21,$BY21:CC21) -> 7000 | CE21: =payout($A21,I21,$C21:H21,CD21,$BY21:CD21) -> 7000 | CF21: =payout($A21,J21,$C21:I21,CE21,$BY21:CE21) -> 7000 | CG21: =payout($A21,K21,$C21:J21,CF21,$BY21:CF21) -> 7000 | CH21: =payout($A21,L21,$C21:K21,CG21,$BY21:CG21) -> 7000 | CI21: =payout($A21,M21,$C21:L21,CH21,$BY21:CH21) -> 7000 | CJ21: =payout($A21,N21,$C21:M21,CI21,$BY21:CI21) -> 7000 | CK21: =payout($A21,O21,$C21:N21,CJ21,$BY21:CJ21) -> 7000 | CL21: =payout($A21,P21,$C21:O21,CK21,$BY21:CK21) -> 7000 | CM21: =payout($A21,Q21,$C21:P21,CL21,$BY21:CL21) -> 7000 | CN21: =payout($A21,R21,$C21:Q21,CM21,$BY21:CM21) -> 7000 | CO21: =payout($A21,S21,$C21:R21,CN21,$BY21:CN21) -> 7000 | CP21: =payout($A21,T21,$C21:S21,CO21,$BY21:CO21) -> 7000 | CQ21: =payout($A21,U21,$C21:T21,CP21,$BY21:CP21) -> 7000 | CR21: =payout($A21,V21,$C21:U21,CQ21,$BY21:CQ21) -> 7000 | CS21: =payout($A21,W21,$C21:V21,CR21,$BY21:CR21) -> 7000 | CT21: =payout($A21,X21,$C21:W21,CS21,$BY21:CS21) -> 7000 | CU21: =payout($A21,Y21,$C21:X21,CT21,$BY21:CT21) -> 7000 | CV21: =payout($A21,Z21,$C21:Y21,CU21,$BY21:CU21) -> 7000 | CW21: =payout($A21,AA21,$C21:Z21,CV21,$BY21:CV21) -> 7000 | CX21: =payout($A21,AB21,$C21:AA21,CW21,$BY21:CW21) -> 7000 | CY21: =payout($A21,AC21,$C21:AB21,CX21,$BY21:CX21) -> 7000 | CZ21: =payout($A21,AD21,$C21:AC21,CY21,$BY21:CY21) -> 7000 | DA21: =payout($A21,AE21,$C21:AD21,CZ21,$BY21:CZ21) -> 7000 | DB21: =payout($A21,AF21,$C21:AE21,DA21,$BY21:DA21) -> 7000 | DC21: =payout($A21,AG21,$C21:AF21,DB21,$BY21:DB21) -> 7000 | DD21: =payout($A21,AH21,$C21:AG21,DC21,$BY21:DC21) -> 7000 | DE21: =payout($A21,AI21,$C21:AH21,DD21,$BY21:DD21) -> 7000 | DF21: =payout($A21,AJ21,$C21:AI21,DE21,$BY21:DE21) -> 7000 | DG21: =payout($A21,AK21,$C21:AJ21,DF21,$BY21:DF21) -> 7000 | DH21: =payout($A21,AL21,$C21:AK21,DG21,$BY21:DG21) -> 7000 | DI21: =payout($A21,AM21,$C21:AL21,DH21,$BY21:DH21) -> 7000 | DJ21: =payout($A21,AN21,$C21:AM21,DI21,$BY21:DI21) -> 7000 | DK21: =payout($A21,AO21,$C21:AN21,DJ21,$BY21:DJ21) -> 7000 | DL21: =payout($A21,AP21,$C21:AO21,DK21,$BY21:DK21) -> 7000 | DM21: =payout($A21,AQ21,$C21:AP21,DL21,$BY21:DL21) -> 107000 | DN21: =payout($A21,AR21,$C21:AQ21,DM21,$BY21:DM21) -> 0 | DO21: 0 | DP21: 0 | DQ21: 0 | DR21: 0 | DS21: 0 | DT21: 0 | DU21: 0 | DV21: 0 | DW21: 0 | DX21: 0 | DY21: 0 | DZ21: 0 | EA21: 0 | EB21: 0 | EC21: 0 | ED21: 0 | EE21: 0 | EF21: 0 | EG21: 0 | EH21: 0 | EI21: 0 | EJ21: 0 | EK21: 0 | EL21: 0 | EM21: 0 | EN21: 0 | EO21: 0 | EP21: 0 | EQ21: 0
A22: =get_bond_grade($A$16:A21,$BX$5,$BY$5,$BZ$5) -> AAA | B22: 7 | C22: 1 | D22: 1 | E22: 1 | F22: 1 | G22: 1 | H22: 1 | I22: 1 | J22: 1 | K22: 1 | L22: 1 | M22: 1 | N22: 1 | O22: 1 | P22: 1 | Q22: 1 | R22: 1 | S22: 1 | T22: 1 | U22: 1 | V22: 1 | W22: 1 | X22: 1 | Y22: 1 | Z22: 1 | AA22: 1 | AB22: 1 | AC22: 1 | AD22: 1 | AE22: 0 | AF22: 0 | AG22: 0 | AH22: 0 | AI22: 0 | AJ22: 0 | AK22: 0 | AL22: 0 | AM22: 0 | AN22: 0 | AO22: 0 | AP22: 0 | AQ22: 0 | AR22: 0 | AS22: 0 | AT22: 0 | AU22: 0 | AV22: 0 | AW22: 0 | AX22: 0 | AY22: 0 | AZ22: 0 | BA22: 0 | BB22: 0 | BC22: 0 | BD22: 0 | BE22: 0 | BF22: 0 | BG22: 0 | BH22: 0 | BI22: 0 | BJ22: 0 | BK22: 0 | BL22: 0 | BM22: 0 | BN22: 0 | BO22: 0 | BP22: 0 | BQ22: 0 | BR22: 0 | BS22: 0 | BT22: 0 | BU22: 0 | BW22: AAA | BX22: 7 | BY22: -100000 | BZ22: =payout($A22,D22,$C22:C22,BY22,$BY22:BY22) -> 5000 | CA22: =payout($A22,E22,$C22:D22,BZ22,$BY22:BZ22) -> 5000 | CB22: =payout($A22,F22,$C22:E22,CA22,$BY22:CA22) -> 5000 | CC22: =payout($A22,G22,$C22:F22,CB22,$BY22:CB22) -> 5000 | CD22: =payout($A22,H22,$C22:G22,CC22,$BY22:CC22) -> 5000 | CE22: =payout($A22,I22,$C22:H22,CD22,$BY22:CD22) -> 5000 | CF22: =payout($A22,J22,$C22:I22,CE22,$BY22:CE22) -> 5000 | CG22: =payout($A22,K22,$C22:J22,CF22,$BY22:CF22) -> 5000 | CH22: =payout($A22,L22,$C22:K22,CG22,$BY22:CG22) -> 5000 | CI22: =payout($A22,M22,$C22:L22,CH22,$BY22:CH22) -> 5000 | CJ22: =payout($A22,N22,$C22:M22,CI22,$BY22:CI22) -> 5000 | CK22: =payout($A22,O22,$C22:N22,CJ22,$BY22:CJ22) -> 5000 | CL22: =payout($A22,P22,$C22:O22,CK22,$BY22:CK22) -> 5000 | CM22: =payout($A22,Q22,$C22:P22,CL22,$BY22:CL22) -> 5000 | CN22: =payout($A22,R22,$C22:Q22,CM22,$BY22:CM22) -> 5000 | CO22: =payout($A22,S22,$C22:R22,CN22,$BY22:CN22) -> 5000 | CP22: =payout($A22,T22,$C22:S22,CO22,$BY22:CO22) -> 5000 | CQ22: =payout($A22,U22,$C22:T22,CP22,$BY22:CP22) -> 5000 | CR22: =payout($A22,V22,$C22:U22,CQ22,$BY22:CQ22) -> 5000 | CS22: =payout($A22,W22,$C22:V22,CR22,$BY22:CR22) -> 5000 | CT22: =payout($A22,X22,$C22:W22,CS22,$BY22:CS22) -> 5000 | CU22: =payout($A22,Y22,$C22:X22,CT22,$BY22:CT22) -> 5000 | CV22: =payout($A22,Z22,$C22:Y22,CU22,$BY22:CU22) -> 5000 | CW22: =payout($A22,AA22,$C22:Z22,CV22,$BY22:CV22) -> 5000 | CX22: =payout($A22,AB22,$C22:AA22,CW22,$BY22:CW22) -> 5000 | CY22: =payout($A22,AC22,$C22:AB22,CX22,$BY22:CX22) -> 5000 | CZ22: =payout($A22,AD22,$C22:AC22,CY22,$BY22:CY22) -> 5000 | DA22: =payout($A22,AE22,$C22:AD22,CZ22,$BY22:CZ22) -> 5000 | DB22: =payout($A22,AF22,$C22:AE22,DA22,$BY22:DA22) -> 5000 | DC22: =payout($A22,AG22,$C22:AF22,DB22,$BY22:DB22) -> 5000 | DD22: =payout($A22,AH22,$C22:AG22,DC22,$BY22:DC22) -> 5000 | DE22: =payout($A22,AI22,$C22:AH22,DD22,$BY22:DD22) -> 5000 | DF22: =payout($A22,AJ22,$C22:AI22,DE22,$BY22:DE22) -> 5000 | DG22: =payout($A22,AK22,$C22:AJ22,DF22,$BY22:DF22) -> 5000 | DH22: =payout($A22,AL22,$C22:AK22,DG22,$BY22:DG22) -> 5000 | DI22: =payout($A22,AM22,$C22:AL22,DH22,$BY22:DH22) -> 5000 | DJ22: =payout($A22,AN22,$C22:AM22,DI22,$BY22:DI22) -> 5000 | DK22: =payout($A22,AO22,$C22:AN22,DJ22,$BY22:DJ22) -> 5000 | DL22: =payout($A22,AP22,$C22:AO22,DK22,$BY22:DK22) -> 5000 | DM22: =payout($A22,AQ22,$C22:AP22,DL22,$BY22:DL22) -> 105000 | DN22: =payout($A22,AR22,$C22:AQ22,DM22,$BY22:DM22) -> 0 | DO22: 0 | DP22: 0 | DQ22: 0 | DR22: 0 | DS22: 0 | DT22: 0 | DU22: 0 | DV22: 0 | DW22: 0 | DX22: 0 | DY22: 0 | DZ22: 0 | EA22: 0 | EB22: 0 | EC22: 0 | ED22: 0 | EE22: 0 | EF22: 0 | EG22: 0 | EH22: 0 | EI22: 0 | EJ22: 0 | EK22: 0 | EL22: 0 | EM22: 0 | EN22: 0 | EO22: 0 | EP22: 0 | EQ22: 0
A23: =get_bond_grade($A$16:A22,$BX$5,$BY$5,$BZ$5) -> AA | B23: 8 | C23: 1 | D23: 1 | E23: 1 | F23: 1 | G23: 1 | H23: 1 | I23: 1 | J23: 1 | K23: 1 | L23: 1 | M23: 1 | N23: 1 | O23: 1 | P23: 1 | Q23: 1 | R23: 1 | S23: 1 | T23: 1 | U23: 1 | V23: 1 | W23: 1 | X23: 1 | Y23: 1 | Z23: 1 | AA23: 1 | AB23: 1 | AC23: 1 | AD23: 1 | AE23: 1 | AF23: 1 | AG23: 1 | AH23: 1 | AI23: 1 | AJ23: 1 | AK23: 1 | AL23: 0 | AM23: 0 | AN23: 0 | AO23: 0 | AP23: 0 | AQ23: 0 | AR23: 0 | AS23: 0 | AT23: 0 | AU23: 0 | AV23: 0 | AW23: 0 | AX23: 0 | AY23: 0 | AZ23: 0 | BA23: 0 | BB23: 0 | BC23: 0 | BD23: 0 | BE23: 0 | BF23: 0 | BG23: 0 | BH23: 0 | BI23: 0 | BJ23: 0 | BK23: 0 | BL23: 0 | BM23: 0 | BN23: 0 | BO23: 0 | BP23: 0 | BQ23: 0 | BR23: 0 | BS23: 0 | BT23: 0 | BU23: 0 | BW23: AA | BX23: 8 | BY23: -100000 | BZ23: =payout($A23,D23,$C23:C23,BY23,$BY23:BY23) -> 6000 | CA23: =payout($A23,E23,$C23:D23,BZ23,$BY23:BZ23) -> 6000 | CB23: =payout($A23,F23,$C23:E23,CA23,$BY23:CA23) -> 6000 | CC23: =payout($A23,G23,$C23:F23,CB23,$BY23:CB23) -> 6000 | CD23: =payout($A23,H23,$C23:G23,CC23,$BY23:CC23) -> 6000 | CE23: =payout($A23,I23,$C23:H23,CD23,$BY23:CD23) -> 6000 | CF23: =payout($A23,J23,$C23:I23,CE23,$BY23:CE23) -> 6000 | CG23: =payout($A23,K23,$C23:J23,CF23,$BY23:CF23) -> 6000 | CH23: =payout($A23,L23,$C23:K23,CG23,$BY23:CG23) -> 6000 | CI23: =payout($A23,M23,$C23:L23,CH23,$BY23:CH23) -> 6000 | CJ23: =payout($A23,N23,$C23:M23,CI23,$BY23:CI23) -> 6000 | CK23: =payout($A23,O23,$C23:N23,CJ23,$BY23:CJ23) -> 6000 | CL23: =payout($A23,P23,$C23:O23,CK23,$BY23:CK23) -> 6000 | CM23: =payout($A23,Q23,$C23:P23,CL23,$BY23:CL23) -> 6000 | CN23: =payout($A23,R23,$C23:Q23,CM23,$BY23:CM23) -> 6000 | CO23: =payout($A23,S23,$C23:R23,CN23,$BY23:CN23) -> 6000 | CP23: =payout($A23,T23,$C23:S23,CO23,$BY23:CO23) -> 6000 | CQ23: =payout($A23,U23,$C23:T23,CP23,$BY23:CP23) -> 6000 | CR23: =payout($A23,V23,$C23:U23,CQ23,$BY23:CQ23) -> 6000 | CS23: =payout($A23,W23,$C23:V23,CR23,$BY23:CR23) -> 6000 | CT23: =payout($A23,X23,$C23:W23,CS23,$BY23:CS23) -> 6000 | CU23: =payout($A23,Y23,$C23:X23,CT23,$BY23:CT23) -> 6000 | CV23: =payout($A23,Z23,$C23:Y23,CU23,$BY23:CU23) -> 6000 | CW23: =payout($A23,AA23,$C23:Z23,CV23,$BY23:CV23) -> 6000 | CX23: =payout($A23,AB23,$C23:AA23,CW23,$BY23:CW23) -> 6000 | CY23: =payout($A23,AC23,$C23:AB23,CX23,$BY23:CX23) -> 6000 | CZ23: =payout($A23,AD23,$C23:AC23,CY23,$BY23:CY23) -> 6000 | DA23: =payout($A23,AE23,$C23:AD23,CZ23,$BY23:CZ23) -> 6000 | DB23: =payout($A23,AF23,$C23:AE23,DA23,$BY23:DA23) -> 6000 | DC23: =payout($A23,AG23,$C23:AF23,DB23,$BY23:DB23) -> 6000 | DD23: =payout($A23,AH23,$C23:AG23,DC23,$BY23:DC23) -> 6000 | DE23: =payout($A23,AI23,$C23:AH23,DD23,$BY23:DD23) -> 6000 | DF23: =payout($A23,AJ23,$C23:AI23,DE23,$BY23:DE23) -> 6000 | DG23: =payout($A23,AK23,$C23:AJ23,DF23,$BY23:DF23) -> 6000 | DH23: =payout($A23,AL23,$C23:AK23,DG23,$BY23:DG23) -> 6000 | DI23: =payout($A23,AM23,$C23:AL23,DH23,$BY23:DH23) -> 6000 | DJ23: =payout($A23,AN23,$C23:AM23,DI23,$BY23:DI23) -> 6000 | DK23: =payout($A23,AO23,$C23:AN23,DJ23,$BY23:DJ23) -> 6000 | DL23: =payout($A23,AP23,$C23:AO23,DK23,$BY23:DK23) -> 6000 | DM23: =payout($A23,AQ23,$C23:AP23,DL23,$BY23:DL23) -> 106000 | DN23: =payout($A23,AR23,$C23:AQ23,DM23,$BY23:DM23) -> 0 | DO23: 0 | DP23: 0 | DQ23: 0 | DR23: 0 | DS23: 0 | DT23: 0 | DU23: 0 | DV23: 0 | DW23: 0 | DX23: 0 | DY23: 0 | DZ23: 0 | EA23: 0 | EB23: 0 | EC23: 0 | ED23: 0 | EE23: 0 | EF23: 0 | EG23: 0 | EH23: 0 | EI23: 0 | EJ23: 0 | EK23: 0 | EL23: 0 | EM23: 0 | EN23: 0 | EO23: 0 | EP23: 0 | EQ23: 0
A24: =get_bond_grade($A$16:A23,$BX$5,$BY$5,$BZ$5) -> AAA | B24: 9 | C24: 1 | D24: 1 | E24: 1 | F24: 1 | G24: 1 | H24: 1 | I24: 1 | J24: 1 | K24: 1 | L24: 1 | M24: 1 | N24: 1 | O24: 1 | P24: 1 | Q24: 1 | R24: 1 | S24: 1 | T24: 1 | U24: 1 | V24: 1 | W24: 1 | X24: 1 | Y24: 1 | Z24: 1 | AA24: 1 | AB24: 1 | AC24: 1 | AD24: 1 | AE24: 1 | AF24: 1 | AG24: 1 | AH24: 1 | AI24: 1 | AJ24: 1 | AK24: 1 | AL24: 0 | AM24: 0 | AN24: 0 | AO24: 0 | AP24: 0 | AQ24: 0 | AR24: 0 | AS24: 0 | AT24: 0 | AU24: 0 | AV24: 0 | AW24: 0 | AX24: 0 | AY24: 0 | AZ24: 0 | BA24: 0 | BB24: 0 | BC24: 0 | BD24: 0 | BE24: 0 | BF24: 0 | BG24: 0 | BH24: 0 | BI24: 0 | BJ24: 0 | BK24: 0 | BL24: 0 | BM24: 0 | BN24: 0 | BO24: 0 | BP24: 0 | BQ24: 0 | BR24: 0 | BS24: 0 | BT24: 0 | BU24: 0 | BW24: AAA | BX24: 9 | BY24: -100000 | BZ24: =payout($A24,D24,$C24:C24,BY24,$BY24:BY24) -> 5000 | CA24: =payout($A24,E24,$C24:D24,BZ24,$BY24:BZ24) -> 5000 | CB24: =payout($A24,F24,$C24:E24,CA24,$BY24:CA24) -> 5000 | CC24: =payout($A24,G24,$C24:F24,CB24,$BY24:CB24) -> 5000 | CD24: =payout($A24,H24,$C24:G24,CC24,$BY24:CC24) -> 5000 | CE24: =payout($A24,I24,$C24:H24,CD24,$BY24:CD24) -> 5000 | CF24: =payout($A24,J24,$C24:I24,CE24,$BY24:CE24) -> 5000 | CG24: =payout($A24,K24,$C24:J24,CF24,$BY24:CF24) -> 5000 | CH24: =payout($A24,L24,$C24:K24,CG24,$BY24:CG24) -> 5000 | CI24: =payout($A24,M24,$C24:L24,CH24,$BY24:CH24) -> 5000 | CJ24: =payout($A24,N24,$C24:M24,CI24,$BY24:CI24) -> 5000 | CK24: =payout($A24,O24,$C24:N24,CJ24,$BY24:CJ24) -> 5000 | CL24: =payout($A24,P24,$C24:O24,CK24,$BY24:CK24) -> 5000 | CM24: =payout($A24,Q24,$C24:P24,CL24,$BY24:CL24) -> 5000 | CN24: =payout($A24,R24,$C24:Q24,CM24,$BY24:CM24) -> 5000 | CO24: =payout($A24,S24,$C24:R24,CN24,$BY24:CN24) -> 5000 | CP24: =payout($A24,T24,$C24:S24,CO24,$BY24:CO24) -> 5000 | CQ24: =payout($A24,U24,$C24:T24,CP24,$BY24:CP24) -> 5000 | CR24: =payout($A24,V24,$C24:U24,CQ24,$BY24:CQ24) -> 5000 | CS24: =payout($A24,W24,$C24:V24,CR24,$BY24:CR24) -> 5000 | CT24: =payout($A24,X24,$C24:W24,CS24,$BY24:CS24) -> 5000 | CU24: =payout($A24,Y24,$C24:X24,CT24,$BY24:CT24) -> 5000 | CV24: =payout($A24,Z24,$C24:Y24,CU24,$BY24:CU24) -> 5000 | CW24: =payout($A24,AA24,$C24:Z24,CV24,$BY24:CV24) -> 5000 | CX24: =payout($A24,AB24,$C24:AA24,CW24,$BY24:CW24) -> 5000 | CY24: =payout($A24,AC24,$C24:AB24,CX24,$BY24:CX24) -> 5000 | CZ24: =payout($A24,AD24,$C24:AC24,CY24,$BY24:CY24) -> 5000 | DA24: =payout($A24,AE24,$C24:AD24,CZ24,$BY24:CZ24) -> 5000 | DB24: =payout($A24,AF24,$C24:AE24,DA24,$BY24:DA24) -> 5000 | DC24: =payout($A24,AG24,$C24:AF24,DB24,$BY24:DB24) -> 5000 | DD24: =payout($A24,AH24,$C24:AG24,DC24,$BY24:DC24) -> 5000 | DE24: =payout($A24,AI24,$C24:AH24,DD24,$BY24:DD24) -> 5000 | DF24: =payout($A24,AJ24,$C24:AI24,DE24,$BY24:DE24) -> 5000 | DG24: =payout($A24,AK24,$C24:AJ24,DF24,$BY24:DF24) -> 5000 | DH24: =payout($A24,AL24,$C24:AK24,DG24,$BY24:DG24) -> 5000 | DI24: =payout($A24,AM24,$C24:AL24,DH24,$BY24:DH24) -> 5000 | DJ24: =payout($A24,AN24,$C24:AM24,DI24,$BY24:DI24) -> 5000 | DK24: =payout($A24,AO24,$C24:AN24,DJ24,$BY24:DJ24) -> 5000 | DL24: =payout($A24,AP24,$C24:AO24,DK24,$BY24:DK24) -> 5000 | DM24: =payout($A24,AQ24,$C24:AP24,DL24,$BY24:DL24) -> 105000 | DN24: =payout($A24,AR24,$C24:AQ24,DM24,$BY24:DM24) -> 0 | DO24: 0 | DP24: 0 | DQ24: 0 | DR24: 0 | DS24: 0 | DT24: 0 | DU24: 0 | DV24: 0 | DW24: 0 | DX24: 0 | DY24: 0 | DZ24: 0 | EA24: 0 | EB24: 0 | EC24: 0 | ED24: 0 | EE24: 0 | EF24: 0 | EG24: 0 | EH24: 0 | EI24: 0 | EJ24: 0 | EK24: 0 | EL24: 0 | EM24: 0 | EN24: 0 | EO24: 0 | EP24: 0 | EQ24: 0
A25: =get_bond_grade($A$16:A24,$BX$5,$BY$5,$BZ$5) -> A | B25: 10 | C25: 1 | D25: 1 | E25: 1 | F25: 1 | G25: 1 | H25: 1 | I25: 1 | J25: 1 | K25: 1 | L25: 1 | M25: 1 | N25: 1 | O25: 1 | P25: 1 | Q25: 1 | R25: 1 | S25: 1 | T25: 1 | U25: 1 | V25: 1 | W25: 1 | X25: 1 | Y25: 1 | Z25: 1 | AA25: 1 | AB25: 1 | AC25: 1 | AD25: 1 | AE25: 1 | AF25: 1 | AG25: 1 | AH25: 1 | AI25: 1 | AJ25: 1 | AK25: 1 | AL25: 0 | AM25: 0 | AN25: 0 | AO25: 0 | AP25: 0 | AQ25: 0 | AR25: 0 | AS25: 0 | AT25: 0 | AU25: 0 | AV25: 0 | AW25: 0 | AX25: 0 | AY25: 0 | AZ25: 0 | BA25: 0 | BB25: 0 | BC25: 0 | BD25: 0 | BE25: 0 | BF25: 0 | BG25: 0 | BH25: 0 | BI25: 0 | BJ25: 0 | BK25: 0 | BL25: 0 | BM25: 0 | BN25: 0 | BO25: 0 | BP25: 0 | BQ25: 0 | BR25: 0 | BS25: 0 | BT25: 0 | BU25: 0 | BW25: A | BX25: 10 | BY25: -100000 | BZ25: =payout($A25,D25,$C25:C25,BY25,$BY25:BY25) -> 7000 | CA25: =payout($A25,E25,$C25:D25,BZ25,$BY25:BZ25) -> 7000 | CB25: =payout($A25,F25,$C25:E25,CA25,$BY25:CA25) -> 7000 | CC25: =payout($A25,G25,$C25:F25,CB25,$BY25:CB25) -> 7000 | CD25: =payout($A25,H25,$C25:G25,CC25,$BY25:CC25) -> 7000 | CE25: =payout($A25,I25,$C25:H25,CD25,$BY25:CD25) -> 7000 | CF25: =payout($A25,J25,$C25:I25,CE25,$BY25:CE25) -> 7000 | CG25: =payout($A25,K25,$C25:J25,CF25,$BY25:CF25) -> 7000 | CH25: =payout($A25,L25,$C25:K25,CG25,$BY25:CG25) -> 7000 | CI25: =payout($A25,M25,$C25:L25,CH25,$BY25:CH25) -> 7000 | CJ25: =payout($A25,N25,$C25:M25,CI25,$BY25:CI25) -> 7000 | CK25: =payout($A25,O25,$C25:N25,CJ25,$BY25:CJ25) -> 7000 | CL25: =payout($A25,P25,$C25:O25,CK25,$BY25:CK25) -> 7000 | CM25: =payout($A25,Q25,$C25:P25,CL25,$BY25:CL25) -> 7000 | CN25: =payout($A25,R25,$C25:Q25,CM25,$BY25:CM25) -> 7000 | CO25: =payout($A25,S25,$C25:R25,CN25,$BY25:CN25) -> 7000 | CP25: =payout($A25,T25,$C25:S25,CO25,$BY25:CO25) -> 7000 | CQ25: =payout($A25,U25,$C25:T25,CP25,$BY25:CP25) -> 7000 | CR25: =payout($A25,V25,$C25:U25,CQ25,$BY25:CQ25) -> 7000 | CS25: =payout($A25,W25,$C25:V25,CR25,$BY25:CR25) -> 7000 | CT25: =payout($A25,X25,$C25:W25,CS25,$BY25:CS25) -> 7000 | CU25: =payout($A25,Y25,$C25:X25,CT25,$BY25:CT25) -> 7000 | CV25: =payout($A25,Z25,$C25:Y25,CU25,$BY25:CU25) -> 7000 | CW25: =payout($A25,AA25,$C25:Z25,CV25,$BY25:CV25) -> 7000 | CX25: =payout($A25,AB25,$C25:AA25,CW25,$BY25:CW25) -> 7000 | CY25: =payout($A25,AC25,$C25:AB25,CX25,$BY25:CX25) -> 7000 | CZ25: =payout($A25,AD25,$C25:AC25,CY25,$BY25:CY25) -> 7000 | DA25: =payout($A25,AE25,$C25:AD25,CZ25,$BY25:CZ25) -> 7000 | DB25: =payout($A25,AF25,$C25:AE25,DA25,$BY25:DA25) -> 7000 | DC25: =payout($A25,AG25,$C25:AF25,DB25,$BY25:DB25) -> 7000 | DD25: =payout($A25,AH25,$C25:AG25,DC25,$BY25:DC25) -> 7000 | DE25: =payout($A25,AI25,$C25:AH25,DD25,$BY25:DD25) -> 7000 | DF25: =payout($A25,AJ25,$C25:AI25,DE25,$BY25:DE25) -> 7000 | DG25: =payout($A25,AK25,$C25:AJ25,DF25,$BY25:DF25) -> 7000 | DH25: =payout($A25,AL25,$C25:AK25,DG25,$BY25:DG25) -> 7000 | DI25: =payout($A25,AM25,$C25:AL25,DH25,$BY25:DH25) -> 7000 | DJ25: =payout($A25,AN25,$C25:AM25,DI25,$BY25:DI25) -> 7000 | DK25: =payout($A25,AO25,$C25:AN25,DJ25,$BY25:DJ25) -> 7000 | DL25: =payout($A25,AP25,$C25:AO25,DK25,$BY25:DK25) -> 7000 | DM25: =payout($A25,AQ25,$C25:AP25,DL25,$BY25:DL25) -> 107000 | DN25: =payout($A25,AR25,$C25:AQ25,DM25,$BY25:DM25) -> 0 | DO25: 0 | DP25: 0 | DQ25: 0 | DR25: 0 | DS25: 0 | DT25: 0 | DU25: 0 | DV25: 0 | DW25: 0 | DX25: 0 | DY25: 0 | DZ25: 0 | EA25: 0 | EB25: 0 | EC25: 0 | ED25: 0 | EE25: 0 | EF25: 0 | EG25: 0 | EH25: 0 | EI25: 0 | EJ25: 0 | EK25: 0 | EL25: 0 | EM25: 0 | EN25: 0 | EO25: 0 | EP25: 0 | EQ25: 0
A26: =get_bond_grade($A$16:A25,$BX$5,$BY$5,$BZ$5) -> A | B26: 11 | C26: 1 | D26: 1 | E26: 1 | F26: 1 | G26: 1 | H26: 1 | I26: 1 | J26: 1 | K26: 1 | L26: 1 | M26: 1 | N26: 1 | O26: 1 | P26: 1 | Q26: 1 | R26: 1 | S26: 1 | T26: 1 | U26: 1 | V26: 1 | W26: 1 | X26: 1 | Y26: 1 | Z26: 1 | AA26: 1 | AB26: 1 | AC26: 1 | AD26: 1 | AE26: 1 | AF26: 1 | AG26: 1 | AH26: 1 | AI26: 1 | AJ26: 1 | AK26: 1 | AL26: 0 | AM26: 0 | AN26: 0 | AO26: 0 | AP26: 0 | AQ26: 0 | AR26: 0 | AS26: 0 | AT26: 0 | AU26: 0 | AV26: 0 | AW26: 0 | AX26: 0 | AY26: 0 | AZ26: 0 | BA26: 0 | BB26: 0 | BC26: 0 | BD26: 0 | BE26: 0 | BF26: 0 | BG26: 0 | BH26: 0 | BI26: 0 | BJ26: 0 | BK26: 0 | BL26: 0 | BM26: 0 | BN26: 0 | BO26: 0 | BP26: 0 | BQ26: 0 | BR26: 0 | BS26: 0 | BT26: 0 | BU26: 0 | BW26: A | BX26: 11 | BY26: -100000 | BZ26: =payout($A26,D26,$C26:C26,BY26,$BY26:BY26) -> 7000 | CA26: =payout($A26,E26,$C26:D26,BZ26,$BY26:BZ26) -> 7000 | CB26: =payout($A26,F26,$C26:E26,CA26,$BY26:CA26) -> 7000 | CC26: =payout($A26,G26,$C26:F26,CB26,$BY26:CB26) -> 7000 | CD26: =payout($A26,H26,$C26:G26,CC26,$BY26:CC26) -> 7000 | CE26: =payout($A26,I26,$C26:H26,CD26,$BY26:CD26) -> 7000 | CF26: =payout($A26,J26,$C26:I26,CE26,$BY26:CE26) -> 7000 | CG26: =payout($A26,K26,$C26:J26,CF26,$BY26:CF26) -> 7000 | CH26: =payout($A26,L26,$C26:K26,CG26,$BY26:CG26) -> 7000 | CI26: =payout($A26,M26,$C26:L26,CH26,$BY26:CH26) -> 7000 | CJ26: =payout($A26,N26,$C26:M26,CI26,$BY26:CI26) -> 7000 | CK26: =payout($A26,O26,$C26:N26,CJ26,$BY26:CJ26) -> 7000 | CL26: =payout($A26,P26,$C26:O26,CK26,$BY26:CK26) -> 7000 | CM26: =payout($A26,Q26,$C26:P26,CL26,$BY26:CL26) -> 7000 | CN26: =payout($A26,R26,$C26:Q26,CM26,$BY26:CM26) -> 7000 | CO26: =payout($A26,S26,$C26:R26,CN26,$BY26:CN26) -> 7000 | CP26: =payout($A26,T26,$C26:S26,CO26,$BY26:CO26) -> 7000 | CQ26: =payout($A26,U26,$C26:T26,CP26,$BY26:CP26) -> 7000 | CR26: =payout($A26,V26,$C26:U26,CQ26,$BY26:CQ26) -> 7000 | CS26: =payout($A26,W26,$C26:V26,CR26,$BY26:CR26) -> 7000 | CT26: =payout($A26,X26,$C26:W26,CS26,$BY26:CS26) -> 7000 | CU26: =payout($A26,Y26,$C26:X26,CT26,$BY26:CT26) -> 7000 | CV26: =payout($A26,Z26,$C26:Y26,CU26,$BY26:CU26) -> 7000 | CW26: =payout($A26,AA26,$C26:Z26,CV26,$BY26:CV26) -> 7000 | CX26: =payout($A26,AB26,$C26:AA26,CW26,$BY26:CW26) -> 7000 | CY26: =payout($A26,AC26,$C26:AB26,CX26,$BY26:CX26) -> 7000 | CZ26: =payout($A26,AD26,$C26:AC26,CY26,$BY26:CY26) -> 7000 | DA26: =payout($A26,AE26,$C26:AD26,CZ26,$BY26:CZ26) -> 7000 | DB26: =payout($A26,AF26,$C26:AE26,DA26,$BY26:DA26) -> 7000 | DC26: =payout($A26,AG26,$C26:AF26,DB26,$BY26:DB26) -> 7000 | DD26: =payout($A26,AH26,$C26:AG26,DC26,$BY26:DC26) -> 7000 | DE26: =payout($A26,AI26,$C26:AH26,DD26,$BY26:DD26) -> 7000 | DF26: =payout($A26,AJ26,$C26:AI26,DE26,$BY26:DE26) -> 7000 | DG26: =payout($A26,AK26,$C26:AJ26,DF26,$BY26:DF26) -> 7000 | DH26: =payout($A26,AL26,$C26:AK26,DG26,$BY26:DG26) -> 7000 | DI26: =payout($A26,AM26,$C26:AL26,DH26,$BY26:DH26) -> 7000 | DJ26: =payout($A26,AN26,$C26:AM26,DI26,$BY26:DI26) -> 7000 | DK26: =payout($A26,AO26,$C26:AN26,DJ26,$BY26:DJ26) -> 7000 | DL26: =payout($A26,AP26,$C26:AO26,DK26,$BY26:DK26) -> 7000 | DM26: =payout($A26,AQ26,$C26:AP26,DL26,$BY26:DL26) -> 107000 | DN26: =payout($A26,AR26,$C26:AQ26,DM26,$BY26:DM26) -> 0 | DO26: 0 | DP26: 0 | DQ26: 0 | DR26: 0 | DS26: 0 | DT26: 0 | DU26: 0 | DV26: 0 | DW26: 0 | DX26: 0 | DY26: 0 | DZ26: 0 | EA26: 0 | EB26: 0 | EC26: 0 | ED26: 0 | EE26: 0 | EF26: 0 | EG26: 0 | EH26: 0 | EI26: 0 | EJ26: 0 | EK26: 0 | EL26: 0 | EM26: 0 | EN26: 0 | EO26: 0 | EP26: 0 | EQ26: 0
A27: =get_bond_grade($A$16:A26,$BX$5,$BY$5,$BZ$5) -> AAA | B27: 12 | C27: 1 | D27: 1 | E27: 1 | F27: 1 | G27: 1 | H27: 1 | I27: 1 | J27: 1 | K27: 1 | L27: 1 | M27: 1 | N27: 1 | O27: 1 | P27: 1 | Q27: 1 | R27: 1 | S27: 1 | T27: 1 | U27: 1 | V27: 1 | W27: 1 | X27: 1 | Y27: 1 | Z27: 1 | AA27: 1 | AB27: 1 | AC27: 1 | AD27: 1 | AE27: 1 | AF27: 1 | AG27: 1 | AH27: 1 | AI27: 1 | AJ27: 1 | AK27: 1 | AL27: 0 | AM27: 0 | AN27: 0 | AO27: 0 | AP27: 0 | AQ27: 0 | AR27: 0 | AS27: 0 | AT27: 0 | AU27: 0 | AV27: 0 | AW27: 0 | AX27: 0 | AY27: 0 | AZ27: 0 | BA27: 0 | BB27: 0 | BC27: 0 | BD27: 0 | BE27: 0 | BF27: 0 | BG27: 0 | BH27: 0 | BI27: 0 | BJ27: 0 | BK27: 0 | BL27: 0 | BM27: 0 | BN27: 0 | BO27: 0 | BP27: 0 | BQ27: 0 | BR27: 0 | BS27: 0 | BT27: 0 | BU27: 0 | BW27: AAA | BX27: 12 | BY27: -100000 | BZ27: =payout($A27,D27,$C27:C27,BY27,$BY27:BY27) -> 5000 | CA27: =payout($A27,E27,$C27:D27,BZ27,$BY27:BZ27) -> 5000 | CB27: =payout($A27,F27,$C27:E27,CA27,$BY27:CA27) -> 5000 | CC27: =payout($A27,G27,$C27:F27,CB27,$BY27:CB27) -> 5000 | CD27: =payout($A27,H27,$C27:G27,CC27,$BY27:CC27) -> 5000 | CE27: =payout($A27,I27,$C27:H27,CD27,$BY27:CD27) -> 5000 | CF27: =payout($A27,J27,$C27:I27,CE27,$BY27:CE27) -> 5000 | CG27: =payout($A27,K27,$C27:J27,CF27,$BY27:CF27) -> 5000 | CH27: =payout($A27,L27,$C27:K27,CG27,$BY27:CG27) -> 5000 | CI27: =payout($A27,M27,$C27:L27,CH27,$BY27:CH27) -> 5000 | CJ27: =payout($A27,N27,$C27:M27,CI27,$BY27:CI27) -> 5000 | CK27: =payout($A27,O27,$C27:N27,CJ27,$BY27:CJ27) -> 5000 | CL27: =payout($A27,P27,$C27:O27,CK27,$BY27:CK27) -> 5000 | CM27: =payout($A27,Q27,$C27:P27,CL27,$BY27:CL27) -> 5000 | CN27: =payout($A27,R27,$C27:Q27,CM27,$BY27:CM27) -> 5000 | CO27: =payout($A27,S27,$C27:R27,CN27,$BY27:CN27) -> 5000 | CP27: =payout($A27,T27,$C27:S27,CO27,$BY27:CO27) -> 5000 | CQ27: =payout($A27,U27,$C27:T27,CP27,$BY27:CP27) -> 5000 | CR27: =payout($A27,V27,$C27:U27,CQ27,$BY27:CQ27) -> 5000 | CS27: =payout($A27,W27,$C27:V27,CR27,$BY27:CR27) -> 5000 | CT27: =payout($A27,X27,$C27:W27,CS27,$BY27:CS27) -> 5000 | CU27: =payout($A27,Y27,$C27:X27,CT27,$BY27:CT27) -> 5000 | CV27: =payout($A27,Z27,$C27:Y27,CU27,$BY27:CU27) -> 5000 | CW27: =payout($A27,AA27,$C27:Z27,CV27,$BY27:CV27) -> 5000 | CX27: =payout($A27,AB27,$C27:AA27,CW27,$BY27:CW27) -> 5000 | CY27: =payout($A27,AC27,$C27:AB27,CX27,$BY27:CX27) -> 5000 | CZ27: =payout($A27,AD27,$C27:AC27,CY27,$BY27:CY27) -> 5000 | DA27: =payout($A27,AE27,$C27:AD27,CZ27,$BY27:CZ27) -> 5000 | DB27: =payout($A27,AF27,$C27:AE27,DA27,$BY27:DA27) -> 5000 | DC27: =payout($A27,AG27,$C27:AF27,DB27,$BY27:DB27) -> 5000 | DD27: =payout($A27,AH27,$C27:AG27,DC27,$BY27:DC27) -> 5000 | DE27: =payout($A27,AI27,$C27:AH27,DD27,$BY27:DD27) -> 5000 | DF27: =payout($A27,AJ27,$C27:AI27,DE27,$BY27:DE27) -> 5000 | DG27: =payout($A27,AK27,$C27:AJ27,DF27,$BY27:DF27) -> 5000 | DH27: =payout($A27,AL27,$C27:AK27,DG27,$BY27:DG27) -> 5000 | DI27: =payout($A27,AM27,$C27:AL27,DH27,$BY27:DH27) -> 5000 | DJ27: =payout($A27,AN27,$C27:AM27,DI27,$BY27:DI27) -> 5000 | DK27: =payout($A27,AO27,$C27:AN27,DJ27,$BY27:DJ27) -> 5000 | DL27: =payout($A27,AP27,$C27:AO27,DK27,$BY27:DK27) -> 5000 | DM27: =payout($A27,AQ27,$C27:AP27,DL27,$BY27:DL27) -> 105000 | DN27: =payout($A27,AR27,$C27:AQ27,DM27,$BY27:DM27) -> 0 | DO27: 0 | DP27: 0 | DQ27: 0 | DR27: 0 | DS27: 0 | DT27: 0 | DU27: 0 | DV27: 0 | DW27: 0 | DX27: 0 | DY27: 0 | DZ27: 0 | EA27: 0 | EB27: 0 | EC27: 0 | ED27: 0 | EE27: 0 | EF27: 0 | EG27: 0 | EH27: 0 | EI27: 0 | EJ27: 0 | EK27: 0 | EL27: 0 | EM27: 0 | EN27: 0 | EO27: 0 | EP27: 0 | EQ27: 0
A28: =get_bond_grade($A$16:A27,$BX$5,$BY$5,$BZ$5) -> AA | B28: 13 | C28: 1 | D28: 1 | E28: 1 | F28: 1 | G28: 1 | H28: 1 | I28: 1 | J28: 1 | K28: 1 | L28: 1 | M28: 1 | N28: 1 | O28: 1 | P28: 1 | Q28: 1 | R28: 1 | S28: 1 | T28: 1 | U28: 1 | V28: 1 | W28: 1 | X28: 1 | Y28: 1 | Z28: 1 | AA28: 1 | AB28: 1 | AC28: 1 | AD28: 1 | AE28: 1 | AF28: 1 | AG28: 1 | AH28: 1 | AI28: 1 | AJ28: 1 | AK28: 1 | AL28: 0 | AM28: 0 | AN28: 0 | AO28: 0 | AP28: 0 | AQ28: 0 | AR28: 0 | AS28: 0 | AT28: 0 | AU28: 0 | AV28: 0 | AW28: 0 | AX28: 0 | AY28: 0 | AZ28: 0 | BA28: 0 | BB28: 0 | BC28: 0 | BD28: 0 | BE28: 0 | BF28: 0 | BG28: 0 | BH28: 0 | BI28: 0 | BJ28: 0 | BK28: 0 | BL28: 0 | BM28: 0 | BN28: 0 | BO28: 0 | BP28: 0 | BQ28: 0 | BR28: 0 | BS28: 0 | BT28: 0 | BU28: 0 | BW28: AA | BX28: 13 | BY28: -100000 | BZ28: =payout($A28,D28,$C28:C28,BY28,$BY28:BY28) -> 6000 | CA28: =payout($A28,E28,$C28:D28,BZ28,$BY28:BZ28) -> 6000 | CB28: =payout($A28,F28,$C28:E28,CA28,$BY28:CA28) -> 6000 | CC28: =payout($A28,G28,$C28:F28,CB28,$BY28:CB28) -> 6000 | CD28: =payout($A28,H28,$C28:G28,CC28,$BY28:CC28) -> 6000 | CE28: =payout($A28,I28,$C28:H28,CD28,$BY28:CD28) -> 6000 | CF28: =payout($A28,J28,$C28:I28,CE28,$BY28:CE28) -> 6000 | CG28: =payout($A28,K28,$C28:J28,CF28,$BY28:CF28) -> 6000 | CH28: =payout($A28,L28,$C28:K28,CG28,$BY28:CG28) -> 6000 | CI28: =payout($A28,M28,$C28:L28,CH28,$BY28:CH28) -> 6000 | CJ28: =payout($A28,N28,$C28:M28,CI28,$BY28:CI28) -> 6000 | CK28: =payout($A28,O28,$C28:N28,CJ28,$BY28:CJ28) -> 6000 | CL28: =payout($A28,P28,$C28:O28,CK28,$BY28:CK28) -> 6000 | CM28: =payout($A28,Q28,$C28:P28,CL28,$BY28:CL28) -> 6000 | CN28: =payout($A28,R28,$C28:Q28,CM28,$BY28:CM28) -> 6000 | CO28: =payout($A28,S28,$C28:R28,CN28,$BY28:CN28) -> 6000 | CP28: =payout($A28,T28,$C28:S28,CO28,$BY28:CO28) -> 6000 | CQ28: =payout($A28,U28,$C28:T28,CP28,$BY28:CP28) -> 6000 | CR28: =payout($A28,V28,$C28:U28,CQ28,$BY28:CQ28) -> 6000 | CS28: =payout($A28,W28,$C28:V28,CR28,$BY28:CR28) -> 6000 | CT28: =payout($A28,X28,$C28:W28,CS28,$BY28:CS28) -> 6000 | CU28: =payout($A28,Y28,$C28:X28,CT28,$BY28:CT28) -> 6000 | CV28: =payout($A28,Z28,$C28:Y28,CU28,$BY28:CU28) -> 6000 | CW28: =payout($A28,AA28,$C28:Z28,CV28,$BY28:CV28) -> 6000 | CX28: =payout($A28,AB28,$C28:AA28,CW28,$BY28:CW28) -> 6000 | CY28: =payout($A28,AC28,$C28:AB28,CX28,$BY28:CX28) -> 6000 | CZ28: =payout($A28,AD28,$C28:AC28,CY28,$BY28:CY28) -> 6000 | DA28: =payout($A28,AE28,$C28:AD28,CZ28,$BY28:CZ28) -> 6000 | DB28: =payout($A28,AF28,$C28:AE28,DA28,$BY28:DA28) -> 6000 | DC28: =payout($A28,AG28,$C28:AF28,DB28,$BY28:DB28) -> 6000 | DD28: =payout($A28,AH28,$C28:AG28,DC28,$BY28:DC28) -> 6000 | DE28: =payout($A28,AI28,$C28:AH28,DD28,$BY28:DD28) -> 6000 | DF28: =payout($A28,AJ28,$C28:AI28,DE28,$BY28:DE28) -> 6000 | DG28: =payout($A28,AK28,$C28:AJ28,DF28,$BY28:DF28) -> 6000 | DH28: =payout($A28,AL28,$C28:AK28,DG28,$BY28:DG28) -> 6000 | DI28: =payout($A28,AM28,$C28:AL28,DH28,$BY28:DH28) -> 6000 | DJ28: =payout($A28,AN28,$C28:AM28,DI28,$BY28:DI28) -> 6000 | DK28: =payout($A28,AO28,$C28:AN28,DJ28,$BY28:DJ28) -> 6000 | DL28: =payout($A28,AP28,$C28:AO28,DK28,$BY28:DK28) -> 6000 | DM28: =payout($A28,AQ28,$C28:AP28,DL28,$BY28:DL28) -> 106000 | DN28: =payout($A28,AR28,$C28:AQ28,DM28,$BY28:DM28) -> 0 | DO28: 0 | DP28: 0 | DQ28: 0 | DR28: 0 | DS28: 0 | DT28: 0 | DU28: 0 | DV28: 0 | DW28: 0 | DX28: 0 | DY28: 0 | DZ28: 0 | EA28: 0 | EB28: 0 | EC28: 0 | ED28: 0 | EE28: 0 | EF28: 0 | EG28: 0 | EH28: 0 | EI28: 0 | EJ28: 0 | EK28: 0 | EL28: 0 | EM28: 0 | EN28: 0 | EO28: 0 | EP28: 0 | EQ28: 0
A29: =get_bond_grade($A$16:A28,$BX$5,$BY$5,$BZ$5) -> AAA | B29: 14 | C29: 1 | D29: 1 | E29: 1 | F29: 1 | G29: 1 | H29: 1 | I29: 1 | J29: 1 | K29: 1 | L29: 1 | M29: 1 | N29: 1 | O29: 1 | P29: 1 | Q29: 1 | R29: 1 | S29: 1 | T29: 1 | U29: 1 | V29: 1 | W29: 1 | X29: 1 | Y29: 1 | Z29: 1 | AA29: 1 | AB29: 1 | AC29: 1 | AD29: 1 | AE29: 1 | AF29: 1 | AG29: 1 | AH29: 1 | AI29: 1 | AJ29: 1 | AK29: 1 | AL29: 0 | AM29: 0 | AN29: 0 | AO29: 0 | AP29: 0 | AQ29: 0 | AR29: 0 | AS29: 0 | AT29: 0 | AU29: 0 | AV29: 0 | AW29: 0 | AX29: 0 | AY29: 0 | AZ29: 0 | BA29: 0 | BB29: 0 | BC29: 0 | BD29: 0 | BE29: 0 | BF29: 0 | BG29: 0 | BH29: 0 | BI29: 0 | BJ29: 0 | BK29: 0 | BL29: 0 | BM29: 0 | BN29: 0 | BO29: 0 | BP29: 0 | BQ29: 0 | BR29: 0 | BS29: 0 | BT29: 0 | BU29: 0 | BW29: AAA | BX29: 14 | BY29: -100000 | BZ29: =payout($A29,D29,$C29:C29,BY29,$BY29:BY29) -> 5000 | CA29: =payout($A29,E29,$C29:D29,BZ29,$BY29:BZ29) -> 5000 | CB29: =payout($A29,F29,$C29:E29,CA29,$BY29:CA29) -> 5000 | CC29: =payout($A29,G29,$C29:F29,CB29,$BY29:CB29) -> 5000 | CD29: =payout($A29,H29,$C29:G29,CC29,$BY29:CC29) -> 5000 | CE29: =payout($A29,I29,$C29:H29,CD29,$BY29:CD29) -> 5000 | CF29: =payout($A29,J29,$C29:I29,CE29,$BY29:CE29) -> 5000 | CG29: =payout($A29,K29,$C29:J29,CF29,$BY29:CF29) -> 5000 | CH29: =payout($A29,L29,$C29:K29,CG29,$BY29:CG29) -> 5000 | CI29: =payout($A29,M29,$C29:L29,CH29,$BY29:CH29) -> 5000 | CJ29: =payout($A29,N29,$C29:M29,CI29,$BY29:CI29) -> 5000 | CK29: =payout($A29,O29,$C29:N29,CJ29,$BY29:CJ29) -> 5000 | CL29: =payout($A29,P29,$C29:O29,CK29,$BY29:CK29) -> 5000 | CM29: =payout($A29,Q29,$C29:P29,CL29,$BY29:CL29) -> 5000 | CN29: =payout($A29,R29,$C29:Q29,CM29,$BY29:CM29) -> 5000 | CO29: =payout($A29,S29,$C29:R29,CN29,$BY29:CN29) -> 5000 | CP29: =payout($A29,T29,$C29:S29,CO29,$BY29:CO29) -> 5000 | CQ29: =payout($A29,U29,$C29:T29,CP29,$BY29:CP29) -> 5000 | CR29: =payout($A29,V29,$C29:U29,CQ29,$BY29:CQ29) -> 5000 | CS29: =payout($A29,W29,$C29:V29,CR29,$BY29:CR29) -> 5000 | CT29: =payout($A29,X29,$C29:W29,CS29,$BY29:CS29) -> 5000 | CU29: =payout($A29,Y29,$C29:X29,CT29,$BY29:CT29) -> 5000 | CV29: =payout($A29,Z29,$C29:Y29,CU29,$BY29:CU29) -> 5000 | CW29: =payout($A29,AA29,$C29:Z29,CV29,$BY29:CV29) -> 5000 | CX29: =payout($A29,AB29,$C29:AA29,CW29,$BY29:CW29) -> 5000 | CY29: =payout($A29,AC29,$C29:AB29,CX29,$BY29:CX29) -> 5000 | CZ29: =payout($A29,AD29,$C29:AC29,CY29,$BY29:CY29) -> 5000 | DA29: =payout($A29,AE29,$C29:AD29,CZ29,$BY29:CZ29) -> 5000 | DB29: =payout($A29,AF29,$C29:AE29,DA29,$BY29:DA29) -> 5000 | DC29: =payout($A29,AG29,$C29:AF29,DB29,$BY29:DB29) -> 5000 | DD29: =payout($A29,AH29,$C29:AG29,DC29,$BY29:DC29) -> 5000 | DE29: =payout($A29,AI29,$C29:AH29,DD29,$BY29:DD29) -> 5000 | DF29: =payout($A29,AJ29,$C29:AI29,DE29,$BY29:DE29) -> 5000 | DG29: =payout($A29,AK29,$C29:AJ29,DF29,$BY29:DF29) -> 5000 | DH29: =payout($A29,AL29,$C29:AK29,DG29,$BY29:DG29) -> 5000 | DI29: =payout($A29,AM29,$C29:AL29,DH29,$BY29:DH29) -> 5000 | DJ29: =payout($A29,AN29,$C29:AM29,DI29,$BY29:DI29) -> 5000 | DK29: =payout($A29,AO29,$C29:AN29,DJ29,$BY29:DJ29) -> 5000 | DL29: =payout($A29,AP29,$C29:AO29,DK29,$BY29:DK29) -> 5000 | DM29: =payout($A29,AQ29,$C29:AP29,DL29,$BY29:DL29) -> 105000 | DN29: =payout($A29,AR29,$C29:AQ29,DM29,$BY29:DM29) -> 0 | DO29: 0 | DP29: 0 | DQ29: 0 | DR29: 0 | DS29: 0 | DT29: 0 | DU29: 0 | DV29: 0 | DW29: 0 | DX29: 0 | DY29: 0 | DZ29: 0 | EA29: 0 | EB29: 0 | EC29: 0 | ED29: 0 | EE29: 0 | EF29: 0 | EG29: 0 | EH29: 0 | EI29: 0 | EJ29: 0 | EK29: 0 | EL29: 0 | EM29: 0 | EN29: 0 | EO29: 0 | EP29: 0 | EQ29: 0
A30: =get_bond_grade($A$16:A29,$BX$5,$BY$5,$BZ$5) -> AA | B30: 15 | C30: 1 | D30: 1 | E30: 1 | F30: 1 | G30: 1 | H30: 1 | I30: 1 | J30: 1 | K30: 1 | L30: 1 | M30: 1 | N30: 1 | O30: 1 | P30: 1 | Q30: 1 | R30: 1 | S30: 1 | T30: 1 | U30: 1 | V30: 1 | W30: 1 | X30: 1 | Y30: 1 | Z30: 1 | AA30: 1 | AB30: 1 | AC30: 1 | AD30: 1 | AE30: 1 | AF30: 1 | AG30: 1 | AH30: 1 | AI30: 1 | AJ30: 1 | AK30: 1 | AL30: 0 | AM30: 0 | AN30: 0 | AO30: 0 | AP30: 0 | AQ30: 0 | AR30: 0 | AS30: 0 | AT30: 0 | AU30: 0 | AV30: 0 | AW30: 0 | AX30: 0 | AY30: 0 | AZ30: 0 | BA30: 0 | BB30: 0 | BC30: 0 | BD30: 0 | BE30: 0 | BF30: 0 | BG30: 0 | BH30: 0 | BI30: 0 | BJ30: 0 | BK30: 0 | BL30: 0 | BM30: 0 | BN30: 0 | BO30: 0 | BP30: 0 | BQ30: 0 | BR30: 0 | BS30: 0 | BT30: 0 | BU30: 0 | BW30: AA | BX30: 15 | BY30: -100000 | BZ30: =payout($A30,D30,$C30:C30,BY30,$BY30:BY30) -> 6000 | CA30: =payout($A30,E30,$C30:D30,BZ30,$BY30:BZ30) -> 6000 | CB30: =payout($A30,F30,$C30:E30,CA30,$BY30:CA30) -> 6000 | CC30: =payout($A30,G30,$C30:F30,CB30,$BY30:CB30) -> 6000 | CD30: =payout($A30,H30,$C30:G30,CC30,$BY30:CC30) -> 6000 | CE30: =payout($A30,I30,$C30:H30,CD30,$BY30:CD30) -> 6000 | CF30: =payout($A30,J30,$C30:I30,CE30,$BY30:CE30) -> 6000 | CG30: =payout($A30,K30,$C30:J30,CF30,$BY30:CF30) -> 6000 | CH30: =payout($A30,L30,$C30:K30,CG30,$BY30:CG30) -> 6000 | CI30: =payout($A30,M30,$C30:L30,CH30,$BY30:CH30) -> 6000 | CJ30: =payout($A30,N30,$C30:M30,CI30,$BY30:CI30) -> 6000 | CK30: =payout($A30,O30,$C30:N30,CJ30,$BY30:CJ30) -> 6000 | CL30: =payout($A30,P30,$C30:O30,CK30,$BY30:CK30) -> 6000 | CM30: =payout($A30,Q30,$C30:P30,CL30,$BY30:CL30) -> 6000 | CN30: =payout($A30,R30,$C30:Q30,CM30,$BY30:CM30) -> 6000 | CO30: =payout($A30,S30,$C30:R30,CN30,$BY30:CN30) -> 6000 | CP30: =payout($A30,T30,$C30:S30,CO30,$BY30:CO30) -> 6000 | CQ30: =payout($A30,U30,$C30:T30,CP30,$BY30:CP30) -> 6000 | CR30: =payout($A30,V30,$C30:U30,CQ30,$BY30:CQ30) -> 6000 | CS30: =payout($A30,W30,$C30:V30,CR30,$BY30:CR30) -> 6000 | CT30: =payout($A30,X30,$C30:W30,CS30,$BY30:CS30) -> 6000 | CU30: =payout($A30,Y30,$C30:X30,CT30,$BY30:CT30) -> 6000 | CV30: =payout($A30,Z30,$C30:Y30,CU30,$BY30:CU30) -> 6000 | CW30: =payout($A30,AA30,$C30:Z30,CV30,$BY30:CV30) -> 6000 | CX30: =payout($A30,AB30,$C30:AA30,CW30,$BY30:CW30) -> 6000 | CY30: =payout($A30,AC30,$C30:AB30,CX30,$BY30:CX30) -> 6000 | CZ30: =payout($A30,AD30,$C30:AC30,CY30,$BY30:CY30) -> 6000 | DA30: =payout($A30,AE30,$C30:AD30,CZ30,$BY30:CZ30) -> 6000 | DB30: =payout($A30,AF30,$C30:AE30,DA30,$BY30:DA30) -> 6000 | DC30: =payout($A30,AG30,$C30:AF30,DB30,$BY30:DB30) -> 6000 | DD30: =payout($A30,AH30,$C30:AG30,DC30,$BY30:DC30) -> 6000 | DE30: =payout($A30,AI30,$C30:AH30,DD30,$BY30:DD30) -> 6000 | DF30: =payout($A30,AJ30,$C30:AI30,DE30,$BY30:DE30) -> 6000 | DG30: =payout($A30,AK30,$C30:AJ30,DF30,$BY30:DF30) -> 6000 | DH30: =payout($A30,AL30,$C30:AK30,DG30,$BY30:DG30) -> 6000 | DI30: =payout($A30,AM30,$C30:AL30,DH30,$BY30:DH30) -> 6000 | DJ30: =payout($A30,AN30,$C30:AM30,DI30,$BY30:DI30) -> 6000 | DK30: =payout($A30,AO30,$C30:AN30,DJ30,$BY30:DJ30) -> 6000 | DL30: =payout($A30,AP30,$C30:AO30,DK30,$BY30:DK30) -> 6000 | DM30: =payout($A30,AQ30,$C30:AP30,DL30,$BY30:DL30) -> 106000 | DN30: =payout($A30,AR30,$C30:AQ30,DM30,$BY30:DM30) -> 0 | DO30: 0 | DP30: 0 | DQ30: 0 | DR30: 0 | DS30: 0 | DT30: 0 | DU30: 0 | DV30: 0 | DW30: 0 | DX30: 0 | DY30: 0 | DZ30: 0 | EA30: 0 | EB30: 0 | EC30: 0 | ED30: 0 | EE30: 0 | EF30: 0 | EG30: 0 | EH30: 0 | EI30: 0 | EJ30: 0 | EK30: 0 | EL30: 0 | EM30: 0 | EN30: 0 | EO30: 0 | EP30: 0 | EQ30: 0
A31: =get_bond_grade($A$16:A30,$BX$5,$BY$5,$BZ$5) -> A | B31: 16 | C31: 1 | D31: 1 | E31: 1 | F31: 1 | G31: 1 | H31: 1 | I31: 1 | J31: 1 | K31: 1 | L31: 1 | M31: 1 | N31: 1 | O31: 1 | P31: 1 | Q31: 1 | R31: 1 | S31: 1 | T31: 1 | U31: 1 | V31: 1 | W31: 1 | X31: 1 | Y31: 1 | Z31: 1 | AA31: 1 | AB31: 1 | AC31: 1 | AD31: 1 | AE31: 1 | AF31: 1 | AG31: 1 | AH31: 1 | AI31: 1 | AJ31: 1 | AK31: 1 | AL31: 0 | AM31: 0 | AN31: 0 | AO31: 0 | AP31: 0 | AQ31: 0 | AR31: 0 | AS31: 0 | AT31: 0 | AU31: 0 | AV31: 0 | AW31: 0 | AX31: 0 | AY31: 0 | AZ31: 0 | BA31: 0 | BB31: 0 | BC31: 0 | BD31: 0 | BE31: 0 | BF31: 0 | BG31: 0 | BH31: 0 | BI31: 0 | BJ31: 0 | BK31: 0 | BL31: 0 | BM31: 0 | BN31: 0 | BO31: 0 | BP31: 0 | BQ31: 0 | BR31: 0 | BS31: 0 | BT31: 0 | BU31: 0 | BW31: A | BX31: 16 | BY31: -100000 | BZ31: =payout($A31,D31,$C31:C31,BY31,$BY31:BY31) -> 7000 | CA31: =payout($A31,E31,$C31:D31,BZ31,$BY31:BZ31) -> 7000 | CB31: =payout($A31,F31,$C31:E31,CA31,$BY31:CA31) -> 7000 | CC31: =payout($A31,G31,$C31:F31,CB31,$BY31:CB31) -> 7000 | CD31: =payout($A31,H31,$C31:G31,CC31,$BY31:CC31) -> 7000 | CE31: =payout($A31,I31,$C31:H31,CD31,$BY31:CD31) -> 7000 | CF31: =payout($A31,J31,$C31:I31,CE31,$BY31:CE31) -> 7000 | CG31: =payout($A31,K31,$C31:J31,CF31,$BY31:CF31) -> 7000 | CH31: =payout($A31,L31,$C31:K31,CG31,$BY31:CG31) -> 7000 | CI31: =payout($A31,M31,$C31:L31,CH31,$BY31:CH31) -> 7000 | CJ31: =payout($A31,N31,$C31:M31,CI31,$BY31:CI31) -> 7000 | CK31: =payout($A31,O31,$C31:N31,CJ31,$BY31:CJ31) -> 7000 | CL31: =payout($A31,P31,$C31:O31,CK31,$BY31:CK31) -> 7000 | CM31: =payout($A31,Q31,$C31:P31,CL31,$BY31:CL31) -> 7000 | CN31: =payout($A31,R31,$C31:Q31,CM31,$BY31:CM31) -> 7000 | CO31: =payout($A31,S31,$C31:R31,CN31,$BY31:CN31) -> 7000 | CP31: =payout($A31,T31,$C31:S31,CO31,$BY31:CO31) -> 7000 | CQ31: =payout($A31,U31,$C31:T31,CP31,$BY31:CP31) -> 7000 | CR31: =payout($A31,V31,$C31:U31,CQ31,$BY31:CQ31) -> 7000 | CS31: =payout($A31,W31,$C31:V31,CR31,$BY31:CR31) -> 7000 | CT31: =payout($A31,X31,$C31:W31,CS31,$BY31:CS31) -> 7000 | CU31: =payout($A31,Y31,$C31:X31,CT31,$BY31:CT31) -> 7000 | CV31: =payout($A31,Z31,$C31:Y31,CU31,$BY31:CU31) -> 7000 | CW31: =payout($A31,AA31,$C31:Z31,CV31,$BY31:CV31) -> 7000 | CX31: =payout($A31,AB31,$C31:AA31,CW31,$BY31:CW31) -> 7000 | CY31: =payout($A31,AC31,$C31:AB31,CX31,$BY31:CX31) -> 7000 | CZ31: =payout($A31,AD31,$C31:AC31,CY31,$BY31:CY31) -> 7000 | DA31: =payout($A31,AE31,$C31:AD31,CZ31,$BY31:CZ31) -> 7000 | DB31: =payout($A31,AF31,$C31:AE31,DA31,$BY31:DA31) -> 7000 | DC31: =payout($A31,AG31,$C31:AF31,DB31,$BY31:DB31) -> 7000 | DD31: =payout($A31,AH31,$C31:AG31,DC31,$BY31:DC31) -> 7000 | DE31: =payout($A31,AI31,$C31:AH31,DD31,$BY31:DD31) -> 7000 | DF31: =payout($A31,AJ31,$C31:AI31,DE31,$BY31:DE31) -> 7000 | DG31: =payout($A31,AK31,$C31:AJ31,DF31,$BY31:DF31) -> 7000 | DH31: =payout($A31,AL31,$C31:AK31,DG31,$BY31:DG31) -> 7000 | DI31: =payout($A31,AM31,$C31:AL31,DH31,$BY31:DH31) -> 7000 | DJ31: =payout($A31,AN31,$C31:AM31,DI31,$BY31:DI31) -> 7000 | DK31: =payout($A31,AO31,$C31:AN31,DJ31,$BY31:DJ31) -> 7000 | DL31: =payout($A31,AP31,$C31:AO31,DK31,$BY31:DK31) -> 7000 | DM31: =payout($A31,AQ31,$C31:AP31,DL31,$BY31:DL31) -> 107000 | DN31: =payout($A31,AR31,$C31:AQ31,DM31,$BY31:DM31) -> 0 | DO31: 0 | DP31: 0 | DQ31: 0 | DR31: 0 | DS31: 0 | DT31: 0 | DU31: 0 | DV31: 0 | DW31: 0 | DX31: 0 | DY31: 0 | DZ31: 0 | EA31: 0 | EB31: 0 | EC31: 0 | ED31: 0 | EE31: 0 | EF31: 0 | EG31: 0 | EH31: 0 | EI31: 0 | EJ31: 0 | EK31: 0 | EL31: 0 | EM31: 0 | EN31: 0 | EO31: 0 | EP31: 0 | EQ31: 0
A32: =get_bond_grade($A$16:A31,$BX$5,$BY$5,$BZ$5) -> AAA | B32: 17 | C32: 1 | D32: 1 | E32: 1 | F32: 1 | G32: 1 | H32: 1 | I32: 1 | J32: 1 | K32: 1 | L32: 1 | M32: 1 | N32: 1 | O32: 1 | P32: 1 | Q32: 1 | R32: 1 | S32: 1 | T32: 1 | U32: 1 | V32: 1 | W32: 1 | X32: 1 | Y32: 1 | Z32: 1 | AA32: 1 | AB32: 1 | AC32: 1 | AD32: 1 | AE32: 1 | AF32: 1 | AG32: 1 | AH32: 1 | AI32: 1 | AJ32: 1 | AK32: 1 | AL32: 0 | AM32: 0 | AN32: 0 | AO32: 0 | AP32: 0 | AQ32: 0 | AR32: 0 | AS32: 0 | AT32: 0 | AU32: 0 | AV32: 0 | AW32: 0 | AX32: 0 | AY32: 0 | AZ32: 0 | BA32: 0 | BB32: 0 | BC32: 0 | BD32: 0 | BE32: 0 | BF32: 0 | BG32: 0 | BH32: 0 | BI32: 0 | BJ32: 0 | BK32: 0 | BL32: 0 | BM32: 0 | BN32: 0 | BO32: 0 | BP32: 0 | BQ32: 0 | BR32: 0 | BS32: 0 | BT32: 0 | BU32: 0 | BW32: AAA | BX32: 17 | BY32: -100000 | BZ32: =payout($A32,D32,$C32:C32,BY32,$BY32:BY32) -> 5000 | CA32: =payout($A32,E32,$C32:D32,BZ32,$BY32:BZ32) -> 5000 | CB32: =payout($A32,F32,$C32:E32,CA32,$BY32:CA32) -> 5000 | CC32: =payout($A32,G32,$C32:F32,CB32,$BY32:CB32) -> 5000 | CD32: =payout($A32,H32,$C32:G32,CC32,$BY32:CC32) -> 5000 | CE32: =payout($A32,I32,$C32:H32,CD32,$BY32:CD32) -> 5000 | CF32: =payout($A32,J32,$C32:I32,CE32,$BY32:CE32) -> 5000 | CG32: =payout($A32,K32,$C32:J32,CF32,$BY32:CF32) -> 5000 | CH32: =payout($A32,L32,$C32:K32,CG32,$BY32:CG32) -> 5000 | CI32: =payout($A32,M32,$C32:L32,CH32,$BY32:CH32) -> 5000 | CJ32: =payout($A32,N32,$C32:M32,CI32,$BY32:CI32) -> 5000 | CK32: =payout($A32,O32,$C32:N32,CJ32,$BY32:CJ32) -> 5000 | CL32: =payout($A32,P32,$C32:O32,CK32,$BY32:CK32) -> 5000 | CM32: =payout($A32,Q32,$C32:P32,CL32,$BY32:CL32) -> 5000 | CN32: =payout($A32,R32,$C32:Q32,CM32,$BY32:CM32) -> 5000 | CO32: =payout($A32,S32,$C32:R32,CN32,$BY32:CN32) -> 5000 | CP32: =payout($A32,T32,$C32:S32,CO32,$BY32:CO32) -> 5000 | CQ32: =payout($A32,U32,$C32:T32,CP32,$BY32:CP32) -> 5000 | CR32: =payout($A32,V32,$C32:U32,CQ32,$BY32:CQ32) -> 5000 | CS32: =payout($A32,W32,$C32:V32,CR32,$BY32:CR32) -> 5000 | CT32: =payout($A32,X32,$C32:W32,CS32,$BY32:CS32) -> 5000 | CU32: =payout($A32,Y32,$C32:X32,CT32,$BY32:CT32) -> 5000 | CV32: =payout($A32,Z32,$C32:Y32,CU32,$BY32:CU32) -> 5000 | CW32: =payout($A32,AA32,$C32:Z32,CV32,$BY32:CV32) -> 5000 | CX32: =payout($A32,AB32,$C32:AA32,CW32,$BY32:CW32) -> 5000 | CY32: =payout($A32,AC32,$C32:AB32,CX32,$BY32:CX32) -> 5000 | CZ32: =payout($A32,AD32,$C32:AC32,CY32,$BY32:CY32) -> 5000 | DA32: =payout($A32,AE32,$C32:AD32,CZ32,$BY32:CZ32) -> 5000 | DB32: =payout($A32,AF32,$C32:AE32,DA32,$BY32:DA32) -> 5000 | DC32: =payout($A32,AG32,$C32:AF32,DB32,$BY32:DB32) -> 5000 | DD32: =payout($A32,AH32,$C32:AG32,DC32,$BY32:DC32) -> 5000 | DE32: =payout($A32,AI32,$C32:AH32,DD32,$BY32:DD32) -> 5000 | DF32: =payout($A32,AJ32,$C32:AI32,DE32,$BY32:DE32) -> 5000 | DG32: =payout($A32,AK32,$C32:AJ32,DF32,$BY32:DF32) -> 5000 | DH32: =payout($A32,AL32,$C32:AK32,DG32,$BY32:DG32) -> 5000 | DI32: =payout($A32,AM32,$C32:AL32,DH32,$BY32:DH32) -> 5000 | DJ32: =payout($A32,AN32,$C32:AM32,DI32,$BY32:DI32) -> 5000 | DK32: =payout($A32,AO32,$C32:AN32,DJ32,$BY32:DJ32) -> 5000 | DL32: =payout($A32,AP32,$C32:AO32,DK32,$BY32:DK32) -> 5000 | DM32: =payout($A32,AQ32,$C32:AP32,DL32,$BY32:DL32) -> 105000 | DN32: =payout($A32,AR32,$C32:AQ32,DM32,$BY32:DM32) -> 0 | DO32: 0 | DP32: 0 | DQ32: 0 | DR32: 0 | DS32: 0 | DT32: 0 | DU32: 0 | DV32: 0 | DW32: 0 | DX32: 0 | DY32: 0 | DZ32: 0 | EA32: 0 | EB32: 0 | EC32: 0 | ED32: 0 | EE32: 0 | EF32: 0 | EG32: 0 | EH32: 0 | EI32: 0 | EJ32: 0 | EK32: 0 | EL32: 0 | EM32: 0 | EN32: 0 | EO32: 0 | EP32: 0 | EQ32: 0
A33: =get_bond_grade($A$16:A32,$BX$5,$BY$5,$BZ$5) -> AA | B33: 18 | C33: 1 | D33: 1 | E33: 1 | F33: 1 | G33: 1 | H33: 1 | I33: 1 | J33: 1 | K33: 1 | L33: 1 | M33: 1 | N33: 1 | O33: 1 | P33: 1 | Q33: 1 | R33: 1 | S33: 1 | T33: 1 | U33: 1 | V33: 1 | W33: 1 | X33: 1 | Y33: 1 | Z33: 1 | AA33: 1 | AB33: 1 | AC33: 1 | AD33: 1 | AE33: 1 | AF33: 1 | AG33: 1 | AH33: 1 | AI33: 1 | AJ33: 1 | AK33: 1 | AL33: 0 | AM33: 0 | AN33: 0 | AO33: 0 | AP33: 0 | AQ33: 0 | AR33: 0 | AS33: 0 | AT33: 0 | AU33: 0 | AV33: 0 | AW33: 0 | AX33: 0 | AY33: 0 | AZ33: 0 | BA33: 0 | BB33: 0 | BC33: 0 | BD33: 0 | BE33: 0 | BF33: 0 | BG33: 0 | BH33: 0 | BI33: 0 | BJ33: 0 | BK33: 0 | BL33: 0 | BM33: 0 | BN33: 0 | BO33: 0 | BP33: 0 | BQ33: 0 | BR33: 0 | BS33: 0 | BT33: 0 | BU33: 0 | BW33: AA | BX33: 18 | BY33: -100000 | BZ33: =payout($A33,D33,$C33:C33,BY33,$BY33:BY33) -> 6000 | CA33: =payout($A33,E33,$C33:D33,BZ33,$BY33:BZ33) -> 6000 | CB33: =payout($A33,F33,$C33:E33,CA33,$BY33:CA33) -> 6000 | CC33: =payout($A33,G33,$C33:F33,CB33,$BY33:CB33) -> 6000 | CD33: =payout($A33,H33,$C33:G33,CC33,$BY33:CC33) -> 6000 | CE33: =payout($A33,I33,$C33:H33,CD33,$BY33:CD33) -> 6000 | CF33: =payout($A33,J33,$C33:I33,CE33,$BY33:CE33) -> 6000 | CG33: =payout($A33,K33,$C33:J33,CF33,$BY33:CF33) -> 6000 | CH33: =payout($A33,L33,$C33:K33,CG33,$BY33:CG33) -> 6000 | CI33: =payout($A33,M33,$C33:L33,CH33,$BY33:CH33) -> 6000 | CJ33: =payout($A33,N33,$C33:M33,CI33,$BY33:CI33) -> 6000 | CK33: =payout($A33,O33,$C33:N33,CJ33,$BY33:CJ33) -> 6000 | CL33: =payout($A33,P33,$C33:O33,CK33,$BY33:CK33) -> 6000 | CM33: =payout($A33,Q33,$C33:P33,CL33,$BY33:CL33) -> 6000 | CN33: =payout($A33,R33,$C33:Q33,CM33,$BY33:CM33) -> 6000 | CO33: =payout($A33,S33,$C33:R33,CN33,$BY33:CN33) -> 6000 | CP33: =payout($A33,T33,$C33:S33,CO33,$BY33:CO33) -> 6000 | CQ33: =payout($A33,U33,$C33:T33,CP33,$BY33:CP33) -> 6000 | CR33: =payout($A33,V33,$C33:U33,CQ33,$BY33:CQ33) -> 6000 | CS33: =payout($A33,W33,$C33:V33,CR33,$BY33:CR33) -> 6000 | CT33: =payout($A33,X33,$C33:W33,CS33,$BY33:CS33) -> 6000 | CU33: =payout($A33,Y33,$C33:X33,CT33,$BY33:CT33) -> 6000 | CV33: =payout($A33,Z33,$C33:Y33,CU33,$BY33:CU33) -> 6000 | CW33: =payout($A33,AA33,$C33:Z33,CV33,$BY33:CV33) -> 6000 | CX33: =payout($A33,AB33,$C33:AA33,CW33,$BY33:CW33) -> 6000 | CY33: =payout($A33,AC33,$C33:AB33,CX33,$BY33:CX33) -> 6000 | CZ33: =payout($A33,AD33,$C33:AC33,CY33,$BY33:CY33) -> 6000 | DA33: =payout($A33,AE33,$C33:AD33,CZ33,$BY33:CZ33) -> 6000 | DB33: =payout($A33,AF33,$C33:AE33,DA33,$BY33:DA33) -> 6000 | DC33: =payout($A33,AG33,$C33:AF33,DB33,$BY33:DB33) -> 6000 | DD33: =payout($A33,AH33,$C33:AG33,DC33,$BY33:DC33) -> 6000 | DE33: =payout($A33,AI33,$C33:AH33,DD33,$BY33:DD33) -> 6000 | DF33: =payout($A33,AJ33,$C33:AI33,DE33,$BY33:DE33) -> 6000 | DG33: =payout($A33,AK33,$C33:AJ33,DF33,$BY33:DF33) -> 6000 | DH33: =payout($A33,AL33,$C33:AK33,DG33,$BY33:DG33) -> 6000 | DI33: =payout($A33,AM33,$C33:AL33,DH33,$BY33:DH33) -> 6000 | DJ33: =payout($A33,AN33,$C33:AM33,DI33,$BY33:DI33) -> 6000 | DK33: =payout($A33,AO33,$C33:AN33,DJ33,$BY33:DJ33) -> 6000 | DL33: =payout($A33,AP33,$C33:AO33,DK33,$BY33:DK33) -> 6000 | DM33: =payout($A33,AQ33,$C33:AP33,DL33,$BY33:DL33) -> 106000 | DN33: =payout($A33,AR33,$C33:AQ33,DM33,$BY33:DM33) -> 0 | DO33: 0 | DP33: 0 | DQ33: 0 | DR33: 0 | DS33: 0 | DT33: 0 | DU33: 0 | DV33: 0 | DW33: 0 | DX33: 0 | DY33: 0 | DZ33: 0 | EA33: 0 | EB33: 0 | EC33: 0 | ED33: 0 | EE33: 0 | EF33: 0 | EG33: 0 | EH33: 0 | EI33: 0 | EJ33: 0 | EK33: 0 | EL33: 0 | EM33: 0 | EN33: 0 | EO33: 0 | EP33: 0 | EQ33: 0
A34: =get_bond_grade($A$16:A33,$BX$5,$BY$5,$BZ$5) -> AAA | B34: 19 | C34: 1 | D34: 1 | E34: 1 | F34: 1 | G34: 1 | H34: 1 | I34: 1 | J34: 1 | K34: 1 | L34: 1 | M34: 1 | N34: 1 | O34: 1 | P34: 1 | Q34: 1 | R34: 1 | S34: 1 | T34: 1 | U34: 1 | V34: 1 | W34: 1 | X34: 1 | Y34: 1 | Z34: 1 | AA34: 1 | AB34: 1 | AC34: 1 | AD34: 1 | AE34: 1 | AF34: 1 | AG34: 1 | AH34: 0 | AI34: 0 | AJ34: 0 | AK34: 0 | AL34: 0 | AM34: 0 | AN34: 0 | AO34: 0 | AP34: 0 | AQ34: 0 | AR34: 0 | AS34: 0 | AT34: 0 | AU34: 0 | AV34: 0 | AW34: 0 | AX34: 0 | AY34: 0 | AZ34: 0 | BA34: 0 | BB34: 0 | BC34: 0 | BD34: 0 | BE34: 0 | BF34: 0 | BG34: 0 | BH34: 0 | BI34: 0 | BJ34: 0 | BK34: 0 | BL34: 0 | BM34: 0 | BN34: 0 | BO34: 0 | BP34: 0 | BQ34: 0 | BR34: 0 | BS34: 0 | BT34: 0 | BU34: 0 | BW34: AAA | BX34: 19 | BY34: -100000 | BZ34: =payout($A34,D34,$C34:C34,BY34,$BY34:BY34) -> 5000 | CA34: =payout($A34,E34,$C34:D34,BZ34,$BY34:BZ34) -> 5000 | CB34: =payout($A34,F34,$C34:E34,CA34,$BY34:CA34) -> 5000 | CC34: =payout($A34,G34,$C34:F34,CB34,$BY34:CB34) -> 5000 | CD34: =payout($A34,H34,$C34:G34,CC34,$BY34:CC34) -> 5000 | CE34: =payout($A34,I34,$C34:H34,CD34,$BY34:CD34) -> 5000 | CF34: =payout($A34,J34,$C34:I34,CE34,$BY34:CE34) -> 5000 | CG34: =payout($A34,K34,$C34:J34,CF34,$BY34:CF34) -> 5000 | CH34: =payout($A34,L34,$C34:K34,CG34,$BY34:CG34) -> 5000 | CI34: =payout($A34,M34,$C34:L34,CH34,$BY34:CH34) -> 5000 | CJ34: =payout($A34,N34,$C34:M34,CI34,$BY34:CI34) -> 5000 | CK34: =payout($A34,O34,$C34:N34,CJ34,$BY34:CJ34) -> 5000 | CL34: =payout($A34,P34,$C34:O34,CK34,$BY34:CK34) -> 5000 | CM34: =payout($A34,Q34,$C34:P34,CL34,$BY34:CL34) -> 5000 | CN34: =payout($A34,R34,$C34:Q34,CM34,$BY34:CM34) -> 5000 | CO34: =payout($A34,S34,$C34:R34,CN34,$BY34:CN34) -> 5000 | CP34: =payout($A34,T34,$C34:S34,CO34,$BY34:CO34) -> 5000 | CQ34: =payout($A34,U34,$C34:T34,CP34,$BY34:CP34) -> 5000 | CR34: =payout($A34,V34,$C34:U34,CQ34,$BY34:CQ34) -> 5000 | CS34: =payout($A34,W34,$C34:V34,CR34,$BY34:CR34) -> 5000 | CT34: =payout($A34,X34,$C34:W34,CS34,$BY34:CS34) -> 5000 | CU34: =payout($A34,Y34,$C34:X34,CT34,$BY34:CT34) -> 5000 | CV34: =payout($A34,Z34,$C34:Y34,CU34,$BY34:CU34) -> 5000 | CW34: =payout($A34,AA34,$C34:Z34,CV34,$BY34:CV34) -> 5000 | CX34: =payout($A34,AB34,$C34:AA34,CW34,$BY34:CW34) -> 5000 | CY34: =payout($A34,AC34,$C34:AB34,CX34,$BY34:CX34) -> 5000 | CZ34: =payout($A34,AD34,$C34:AC34,CY34,$BY34:CY34) -> 5000 | DA34: =payout($A34,AE34,$C34:AD34,CZ34,$BY34:CZ34) -> 5000 | DB34: =payout($A34,AF34,$C34:AE34,DA34,$BY34:DA34) -> 5000 | DC34: =payout($A34,AG34,$C34:AF34,DB34,$BY34:DB34) -> 5000 | DD34: =payout($A34,AH34,$C34:AG34,DC34,$BY34:DC34) -> 5000 | DE34: =payout($A34,AI34,$C34:AH34,DD34,$BY34:DD34) -> 5000 | DF34: =payout($A34,AJ34,$C34:AI34,DE34,$BY34:DE34) -> 5000 | DG34: =payout($A34,AK34,$C34:AJ34,DF34,$BY34:DF34) -> 5000 | DH34: =payout($A34,AL34,$C34:AK34,DG34,$BY34:DG34) -> 5000 | DI34: =payout($A34,AM34,$C34:AL34,DH34,$BY34:DH34) -> 5000 | DJ34: =payout($A34,AN34,$C34:AM34,DI34,$BY34:DI34) -> 5000 | DK34: =payout($A34,AO34,$C34:AN34,DJ34,$BY34:DJ34) -> 5000 | DL34: =payout($A34,AP34,$C34:AO34,DK34,$BY34:DK34) -> 5000 | DM34: =payout($A34,AQ34,$C34:AP34,DL34,$BY34:DL34) -> 105000 | DN34: =payout($A34,AR34,$C34:AQ34,DM34,$BY34:DM34) -> 0 | DO34: 0 | DP34: 0 | DQ34: 0 | DR34: 0 | DS34: 0 | DT34: 0 | DU34: 0 | DV34: 0 | DW34: 0 | DX34: 0 | DY34: 0 | DZ34: 0 | EA34: 0 | EB34: 0 | EC34: 0 | ED34: 0 | EE34: 0 | EF34: 0 | EG34: 0 | EH34: 0 | EI34: 0 | EJ34: 0 | EK34: 0 | EL34: 0 | EM34: 0 | EN34: 0 | EO34: 0 | EP34: 0 | EQ34: 0
A35: =get_bond_grade($A$16:A34,$BX$5,$BY$5,$BZ$5) -> A | B35: 20 | C35: 1 | D35: 1 | E35: 1 | F35: 1 | G35: 1 | H35: 1 | I35: 1 | J35: 1 | K35: 1 | L35: 1 | M35: 1 | N35: 1 | O35: 1 | P35: 1 | Q35: 1 | R35: 1 | S35: 1 | T35: 1 | U35: 1 | V35: 1 | W35: 1 | X35: 1 | Y35: 1 | Z35: 1 | AA35: 1 | AB35: 1 | AC35: 1 | AD35: 1 | AE35: 1 | AF35: 1 | AG35: 1 | AH35: 1 | AI35: 1 | AJ35: 1 | AK35: 1 | AL35: 0 | AM35: 0 | AN35: 0 | AO35: 0 | AP35: 0 | AQ35: 0 | AR35: 0 | AS35: 0 | AT35: 0 | AU35: 0 | AV35: 0 | AW35: 0 | AX35: 0 | AY35: 0 | AZ35: 0 | BA35: 0 | BB35: 0 | BC35: 0 | BD35: 0 | BE35: 0 | BF35: 0 | BG35: 0 | BH35: 0 | BI35: 0 | BJ35: 0 | BK35: 0 | BL35: 0 | BM35: 0 | BN35: 0 | BO35: 0 | BP35: 0 | BQ35: 0 | BR35: 0 | BS35: 0 | BT35: 0 | BU35: 0 | BW35: A | BX35: 20 | BY35: -100000 | BZ35: =payout($A35,D35,$C35:C35,BY35,$BY35:BY35) -> 7000 | CA35: =payout($A35,E35,$C35:D35,BZ35,$BY35:BZ35) -> 7000 | CB35: =payout($A35,F35,$C35:E35,CA35,$BY35:CA35) -> 7000 | CC35: =payout($A35,G35,$C35:F35,CB35,$BY35:CB35) -> 7000 | CD35: =payout($A35,H35,$C35:G35,CC35,$BY35:CC35) -> 7000 | CE35: =payout($A35,I35,$C35:H35,CD35,$BY35:CD35) -> 7000 | CF35: =payout($A35,J35,$C35:I35,CE35,$BY35:CE35) -> 7000 | CG35: =payout($A35,K35,$C35:J35,CF35,$BY35:CF35) -> 7000 | CH35: =payout($A35,L35,$C35:K35,CG35,$BY35:CG35) -> 7000 | CI35: =payout($A35,M35,$C35:L35,CH35,$BY35:CH35) -> 7000 | CJ35: =payout($A35,N35,$C35:M35,CI35,$BY35:CI35) -> 7000 | CK35: =payout($A35,O35,$C35:N35,CJ35,$BY35:CJ35) -> 7000 | CL35: =payout($A35,P35,$C35:O35,CK35,$BY35:CK35) -> 7000 | CM35: =payout($A35,Q35,$C35:P35,CL35,$BY35:CL35) -> 7000 | CN35: =payout($A35,R35,$C35:Q35,CM35,$BY35:CM35) -> 7000 | CO35: =payout($A35,S35,$C35:R35,CN35,$BY35:CN35) -> 7000 | CP35: =payout($A35,T35,$C35:S35,CO35,$BY35:CO35) -> 7000 | CQ35: =payout($A35,U35,$C35:T35,CP35,$BY35:CP35) -> 7000 | CR35: =payout($A35,V35,$C35:U35,CQ35,$BY35:CQ35) -> 7000 | CS35: =payout($A35,W35,$C35:V35,CR35,$BY35:CR35) -> 7000 | CT35: =payout($A35,X35,$C35:W35,CS35,$BY35:CS35) -> 7000 | CU35: =payout($A35,Y35,$C35:X35,CT35,$BY35:CT35) -> 7000 | CV35: =payout($A35,Z35,$C35:Y35,CU35,$BY35:CU35) -> 7000 | CW35: =payout($A35,AA35,$C35:Z35,CV35,$BY35:CV35) -> 7000 | CX35: =payout($A35,AB35,$C35:AA35,CW35,$BY35:CW35) -> 7000 | CY35: =payout($A35,AC35,$C35:AB35,CX35,$BY35:CX35) -> 7000 | CZ35: =payout($A35,AD35,$C35:AC35,CY35,$BY35:CY35) -> 7000 | DA35: =payout($A35,AE35,$C35:AD35,CZ35,$BY35:CZ35) -> 7000 | DB35: =payout($A35,AF35,$C35:AE35,DA35,$BY35:DA35) -> 7000 | DC35: =payout($A35,AG35,$C35:AF35,DB35,$BY35:DB35) -> 7000 | DD35: =payout($A35,AH35,$C35:AG35,DC35,$BY35:DC35) -> 7000 | DE35: =payout($A35,AI35,$C35:AH35,DD35,$BY35:DD35) -> 7000 | DF35: =payout($A35,AJ35,$C35:AI35,DE35,$BY35:DE35) -> 7000 | DG35: =payout($A35,AK35,$C35:AJ35,DF35,$BY35:DF35) -> 7000 | DH35: =payout($A35,AL35,$C35:AK35,DG35,$BY35:DG35) -> 7000 | DI35: =payout($A35,AM35,$C35:AL35,DH35,$BY35:DH35) -> 7000 | DJ35: =payout($A35,AN35,$C35:AM35,DI35,$BY35:DI35) -> 7000 | DK35: =payout($A35,AO35,$C35:AN35,DJ35,$BY35:DJ35) -> 7000 | DL35: =payout($A35,AP35,$C35:AO35,DK35,$BY35:DK35) -> 7000 | DM35: =payout($A35,AQ35,$C35:AP35,DL35,$BY35:DL35) -> 107000 | DN35: =payout($A35,AR35,$C35:AQ35,DM35,$BY35:DM35) -> 0 | DO35: 0 | DP35: 0 | DQ35: 0 | DR35: 0 | DS35: 0 | DT35: 0 | DU35: 0 | DV35: 0 | DW35: 0 | DX35: 0 | DY35: 0 | DZ35: 0 | EA35: 0 | EB35: 0 | EC35: 0 | ED35: 0 | EE35: 0 | EF35: 0 | EG35: 0 | EH35: 0 | EI35: 0 | EJ35: 0 | EK35: 0 | EL35: 0 | EM35: 0 | EN35: 0 | EO35: 0 | EP35: 0 | EQ35: 0
A36: =get_bond_grade($A$16:A35,$BX$5,$BY$5,$BZ$5) -> A | B36: 21 | C36: 1 | D36: 1 | E36: 1 | F36: 1 | G36: 1 | H36: 1 | I36: 1 | J36: 1 | K36: 1 | L36: 1 | M36: 1 | N36: 1 | O36: 1 | P36: 1 | Q36: 1 | R36: 1 | S36: 1 | T36: 1 | U36: 1 | V36: 1 | W36: 1 | X36: 1 | Y36: 1 | Z36: 1 | AA36: 1 | AB36: 1 | AC36: 1 | AD36: 1 | AE36: 1 | AF36: 1 | AG36: 1 | AH36: 1 | AI36: 1 | AJ36: 1 | AK36: 1 | AL36: 0 | AM36: 0 | AN36: 0 | AO36: 0 | AP36: 0 | AQ36: 0 | AR36: 0 | AS36: 0 | AT36: 0 | AU36: 0 | AV36: 0 | AW36: 0 | AX36: 0 | AY36: 0 | AZ36: 0 | BA36: 0 | BB36: 0 | BC36: 0 | BD36: 0 | BE36: 0 | BF36: 0 | BG36: 0 | BH36: 0 | BI36: 0 | BJ36: 0 | BK36: 0 | BL36: 0 | BM36: 0 | BN36: 0 | BO36: 0 | BP36: 0 | BQ36: 0 | BR36: 0 | BS36: 0 | BT36: 0 | BU36: 0 | BW36: A | BX36: 21 | BY36: -100000 | BZ36: =payout($A36,D36,$C36:C36,BY36,$BY36:BY36) -> 7000 | CA36: =payout($A36,E36,$C36:D36,BZ36,$BY36:BZ36) -> 7000 | CB36: =payout($A36,F36,$C36:E36,CA36,$BY36:CA36) -> 7000 | CC36: =payout($A36,G36,$C36:F36,CB36,$BY36:CB36) -> 7000 | CD36: =payout($A36,H36,$C36:G36,CC36,$BY36:CC36) -> 7000 | CE36: =payout($A36,I36,$C36:H36,CD36,$BY36:CD36) -> 7000 | CF36: =payout($A36,J36,$C36:I36,CE36,$BY36:CE36) -> 7000 | CG36: =payout($A36,K36,$C36:J36,CF36,$BY36:CF36) -> 7000 | CH36: =payout($A36,L36,$C36:K36,CG36,$BY36:CG36) -> 7000 | CI36: =payout($A36,M36,$C36:L36,CH36,$BY36:CH36) -> 7000 | CJ36: =payout($A36,N36,$C36:M36,CI36,$BY36:CI36) -> 7000 | CK36: =payout($A36,O36,$C36:N36,CJ36,$BY36:CJ36) -> 7000 | CL36: =payout($A36,P36,$C36:O36,CK36,$BY36:CK36) -> 7000 | CM36: =payout($A36,Q36,$C36:P36,CL36,$BY36:CL36) -> 7000 | CN36: =payout($A36,R36,$C36:Q36,CM36,$BY36:CM36) -> 7000 | CO36: =payout($A36,S36,$C36:R36,CN36,$BY36:CN36) -> 7000 | CP36: =payout($A36,T36,$C36:S36,CO36,$BY36:CO36) -> 7000 | CQ36: =payout($A36,U36,$C36:T36,CP36,$BY36:CP36) -> 7000 | CR36: =payout($A36,V36,$C36:U36,CQ36,$BY36:CQ36) -> 7000 | CS36: =payout($A36,W36,$C36:V36,CR36,$BY36:CR36) -> 7000 | CT36: =payout($A36,X36,$C36:W36,CS36,$BY36:CS36) -> 7000 | CU36: =payout($A36,Y36,$C36:X36,CT36,$BY36:CT36) -> 7000 | CV36: =payout($A36,Z36,$C36:Y36,CU36,$BY36:CU36) -> 7000 | CW36: =payout($A36,AA36,$C36:Z36,CV36,$BY36:CV36) -> 7000 | CX36: =payout($A36,AB36,$C36:AA36,CW36,$BY36:CW36) -> 7000 | CY36: =payout($A36,AC36,$C36:AB36,CX36,$BY36:CX36) -> 7000 | CZ36: =payout($A36,AD36,$C36:AC36,CY36,$BY36:CY36) -> 7000 | DA36: =payout($A36,AE36,$C36:AD36,CZ36,$BY36:CZ36) -> 7000 | DB36: =payout($A36,AF36,$C36:AE36,DA36,$BY36:DA36) -> 7000 | DC36: =payout($A36,AG36,$C36:AF36,DB36,$BY36:DB36) -> 7000 | DD36: =payout($A36,AH36,$C36:AG36,DC36,$BY36:DC36) -> 7000 | DE36: =payout($A36,AI36,$C36:AH36,DD36,$BY36:DD36) -> 7000 | DF36: =payout($A36,AJ36,$C36:AI36,DE36,$BY36:DE36) -> 7000 | DG36: =payout($A36,AK36,$C36:AJ36,DF36,$BY36:DF36) -> 7000 | DH36: =payout($A36,AL36,$C36:AK36,DG36,$BY36:DG36) -> 7000 | DI36: =payout($A36,AM36,$C36:AL36,DH36,$BY36:DH36) -> 7000 | DJ36: =payout($A36,AN36,$C36:AM36,DI36,$BY36:DI36) -> 7000 | DK36: =payout($A36,AO36,$C36:AN36,DJ36,$BY36:DJ36) -> 7000 | DL36: =payout($A36,AP36,$C36:AO36,DK36,$BY36:DK36) -> 7000 | DM36: =payout($A36,AQ36,$C36:AP36,DL36,$BY36:DL36) -> 107000 | DN36: =payout($A36,AR36,$C36:AQ36,DM36,$BY36:DM36) -> 0 | DO36: 0 | DP36: 0 | DQ36: 0 | DR36: 0 | DS36: 0 | DT36: 0 | DU36: 0 | DV36: 0 | DW36: 0 | DX36: 0 | DY36: 0 | DZ36: 0 | EA36: 0 | EB36: 0 | EC36: 0 | ED36: 0 | EE36: 0 | EF36: 0 | EG36: 0 | EH36: 0 | EI36: 0 | EJ36: 0 | EK36: 0 | EL36: 0 | EM36: 0 | EN36: 0 | EO36: 0 | EP36: 0 | EQ36: 0
A37: =get_bond_grade($A$16:A36,$BX$5,$BY$5,$BZ$5) -> AAA | B37: 22 | C37: 1 | D37: 1 | E37: 1 | F37: 1 | G37: 1 | H37: 1 | I37: 1 | J37: 1 | K37: 1 | L37: 1 | M37: 1 | N37: 1 | O37: 1 | P37: 1 | Q37: 1 | R37: 1 | S37: 1 | T37: 1 | U37: 1 | V37: 1 | W37: 1 | X37: 1 | Y37: 1 | Z37: 1 | AA37: 1 | AB37: 1 | AC37: 1 | AD37: 1 | AE37: 1 | AF37: 1 | AG37: 1 | AH37: 1 | AI37: 1 | AJ37: 1 | AK37: 1 | AL37: 0 | AM37: 0 | AN37: 0 | AO37: 0 | AP37: 0 | AQ37: 0 | AR37: 0 | AS37: 0 | AT37: 0 | AU37: 0 | AV37: 0 | AW37: 0 | AX37: 0 | AY37: 0 | AZ37: 0 | BA37: 0 | BB37: 0 | BC37: 0 | BD37: 0 | BE37: 0 | BF37: 0 | BG37: 0 | BH37: 0 | BI37: 0 | BJ37: 0 | BK37: 0 | BL37: 0 | BM37: 0 | BN37: 0 | BO37: 0 | BP37: 0 | BQ37: 0 | BR37: 0 | BS37: 0 | BT37: 0 | BU37: 0 | BW37: AAA | BX37: 22 | BY37: -100000 | BZ37: =payout($A37,D37,$C37:C37,BY37,$BY37:BY37) -> 5000 | CA37: =payout($A37,E37,$C37:D37,BZ37,$BY37:BZ37) -> 5000 | CB37: =payout($A37,F37,$C37:E37,CA37,$BY37:CA37) -> 5000 | CC37: =payout($A37,G37,$C37:F37,CB37,$BY37:CB37) -> 5000 | CD37: =payout($A37,H37,$C37:G37,CC37,$BY37:CC37) -> 5000 | CE37: =payout($A37,I37,$C37:H37,CD37,$BY37:CD37) -> 5000 | CF37: =payout($A37,J37,$C37:I37,CE37,$BY37:CE37) -> 5000 | CG37: =payout($A37,K37,$C37:J37,CF37,$BY37:CF37) -> 5000 | CH37: =payout($A37,L37,$C37:K37,CG37,$BY37:CG37) -> 5000 | CI37: =payout($A37,M37,$C37:L37,CH37,$BY37:CH37) -> 5000 | CJ37: =payout($A37,N37,$C37:M37,CI37,$BY37:CI37) -> 5000 | CK37: =payout($A37,O37,$C37:N37,CJ37,$BY37:CJ37) -> 5000 | CL37: =payout($A37,P37,$C37:O37,CK37,$BY37:CK37) -> 5000 | CM37: =payout($A37,Q37,$C37:P37,CL37,$BY37:CL37) -> 5000 | CN37: =payout($A37,R37,$C37:Q37,CM37,$BY37:CM37) -> 5000 | CO37: =payout($A37,S37,$C37:R37,CN37,$BY37:CN37) -> 5000 | CP37: =payout($A37,T37,$C37:S37,CO37,$BY37:CO37) -> 5000 | CQ37: =payout($A37,U37,$C37:T37,CP37,$BY37:CP37) -> 5000 | CR37: =payout($A37,V37,$C37:U37,CQ37,$BY37:CQ37) -> 5000 | CS37: =payout($A37,W37,$C37:V37,CR37,$BY37:CR37) -> 5000 | CT37: =payout($A37,X37,$C37:W37,CS37,$BY37:CS37) -> 5000 | CU37: =payout($A37,Y37,$C37:X37,CT37,$BY37:CT37) -> 5000 | CV37: =payout($A37,Z37,$C37:Y37,CU37,$BY37:CU37) -> 5000 | CW37: =payout($A37,AA37,$C37:Z37,CV37,$BY37:CV37) -> 5000 | CX37: =payout($A37,AB37,$C37:AA37,CW37,$BY37:CW37) -> 5000 | CY37: =payout($A37,AC37,$C37:AB37,CX37,$BY37:CX37) -> 5000 | CZ37: =payout($A37,AD37,$C37:AC37,CY37,$BY37:CY37) -> 5000 | DA37: =payout($A37,AE37,$C37:AD37,CZ37,$BY37:CZ37) -> 5000 | DB37: =payout($A37,AF37,$C37:AE37,DA37,$BY37:DA37) -> 5000 | DC37: =payout($A37,AG37,$C37:AF37,DB37,$BY37:DB37) -> 5000 | DD37: =payout($A37,AH37,$C37:AG37,DC37,$BY37:DC37) -> 5000 | DE37: =payout($A37,AI37,$C37:AH37,DD37,$BY37:DD37) -> 5000 | DF37: =payout($A37,AJ37,$C37:AI37,DE37,$BY37:DE37) -> 5000 | DG37: =payout($A37,AK37,$C37:AJ37,DF37,$BY37:DF37) -> 5000 | DH37: =payout($A37,AL37,$C37:AK37,DG37,$BY37:DG37) -> 5000 | DI37: =payout($A37,AM37,$C37:AL37,DH37,$BY37:DH37) -> 5000 | DJ37: =payout($A37,AN37,$C37:AM37,DI37,$BY37:DI37) -> 5000 | DK37: =payout($A37,AO37,$C37:AN37,DJ37,$BY37:DJ37) -> 5000 | DL37: =payout($A37,AP37,$C37:AO37,DK37,$BY37:DK37) -> 5000 | DM37: =payout($A37,AQ37,$C37:AP37,DL37,$BY37:DL37) -> 105000 | DN37: =payout($A37,AR37,$C37:AQ37,DM37,$BY37:DM37) -> 0 | DO37: 0 | DP37: 0 | DQ37: 0 | DR37: 0 | DS37: 0 | DT37: 0 | DU37: 0 | DV37: 0 | DW37: 0 | DX37: 0 | DY37: 0 | DZ37: 0 | EA37: 0 | EB37: 0 | EC37: 0 | ED37: 0 | EE37: 0 | EF37: 0 | EG37: 0 | EH37: 0 | EI37: 0 | EJ37: 0 | EK37: 0 | EL37: 0 | EM37: 0 | EN37: 0 | EO37: 0 | EP37: 0 | EQ37: 0
A38: =get_bond_grade($A$16:A37,$BX$5,$BY$5,$BZ$5) -> AA | B38: 23 | C38: 1 | D38: 1 | E38: 1 | F38: 1 | G38: 1 | H38: 1 | I38: 1 | J38: 1 | K38: 1 | L38: 1 | M38: 1 | N38: 1 | O38: 1 | P38: 1 | Q38: 1 | R38: 1 | S38: 1 | T38: 1 | U38: 1 | V38: 1 | W38: 1 | X38: 1 | Y38: 1 | Z38: 1 | AA38: 1 | AB38: 1 | AC38: 1 | AD38: 1 | AE38: 1 | AF38: 1 | AG38: 1 | AH38: 1 | AI38: 1 | AJ38: 1 | AK38: 1 | AL38: 0 | AM38: 0 | AN38: 0 | AO38: 0 | AP38: 0 | AQ38: 0 | AR38: 0 | AS38: 0 | AT38: 0 | AU38: 0 | AV38: 0 | AW38: 0 | AX38: 0 | AY38: 0 | AZ38: 0 | BA38: 0 | BB38: 0 | BC38: 0 | BD38: 0 | BE38: 0 | BF38: 0 | BG38: 0 | BH38: 0 | BI38: 0 | BJ38: 0 | BK38: 0 | BL38: 0 | BM38: 0 | BN38: 0 | BO38: 0 | BP38: 0 | BQ38: 0 | BR38: 0 | BS38: 0 | BT38: 0 | BU38: 0 | BW38: AA | BX38: 23 | BY38: -100000 | BZ38: =payout($A38,D38,$C38:C38,BY38,$BY38:BY38) -> 6000 | CA38: =payout($A38,E38,$C38:D38,BZ38,$BY38:BZ38) -> 6000 | CB38: =payout($A38,F38,$C38:E38,CA38,$BY38:CA38) -> 6000 | CC38: =payout($A38,G38,$C38:F38,CB38,$BY38:CB38) -> 6000 | CD38: =payout($A38,H38,$C38:G38,CC38,$BY38:CC38) -> 6000 | CE38: =payout($A38,I38,$C38:H38,CD38,$BY38:CD38) -> 6000 | CF38: =payout($A38,J38,$C38:I38,CE38,$BY38:CE38) -> 6000 | CG38: =payout($A38,K38,$C38:J38,CF38,$BY38:CF38) -> 6000 | CH38: =payout($A38,L38,$C38:K38,CG38,$BY38:CG38) -> 6000 | CI38: =payout($A38,M38,$C38:L38,CH38,$BY38:CH38) -> 6000 | CJ38: =payout($A38,N38,$C38:M38,CI38,$BY38:CI38) -> 6000 | CK38: =payout($A38,O38,$C38:N38,CJ38,$BY38:CJ38) -> 6000 | CL38: =payout($A38,P38,$C38:O38,CK38,$BY38:CK38) -> 6000 | CM38: =payout($A38,Q38,$C38:P38,CL38,$BY38:CL38) -> 6000 | CN38: =payout($A38,R38,$C38:Q38,CM38,$BY38:CM38) -> 6000 | CO38: =payout($A38,S38,$C38:R38,CN38,$BY38:CN38) -> 6000 | CP38: =payout($A38,T38,$C38:S38,CO38,$BY38:CO38) -> 6000 | CQ38: =payout($A38,U38,$C38:T38,CP38,$BY38:CP38) -> 6000 | CR38: =payout($A38,V38,$C38:U38,CQ38,$BY38:CQ38) -> 6000 | CS38: =payout($A38,W38,$C38:V38,CR38,$BY38:CR38) -> 6000 | CT38: =payout($A38,X38,$C38:W38,CS38,$BY38:CS38) -> 6000 | CU38: =payout($A38,Y38,$C38:X38,CT38,$BY38:CT38) -> 6000 | CV38: =payout($A38,Z38,$C38:Y38,CU38,$BY38:CU38) -> 6000 | CW38: =payout($A38,AA38,$C38:Z38,CV38,$BY38:CV38) -> 6000 | CX38: =payout($A38,AB38,$C38:AA38,CW38,$BY38:CW38) -> 6000 | CY38: =payout($A38,AC38,$C38:AB38,CX38,$BY38:CX38) -> 6000 | CZ38: =payout($A38,AD38,$C38:AC38,CY38,$BY38:CY38) -> 6000 | DA38: =payout($A38,AE38,$C38:AD38,CZ38,$BY38:CZ38) -> 6000 | DB38: =payout($A38,AF38,$C38:AE38,DA38,$BY38:DA38) -> 6000 | DC38: =payout($A38,AG38,$C38:AF38,DB38,$BY38:DB38) -> 6000 | DD38: =payout($A38,AH38,$C38:AG38,DC38,$BY38:DC38) -> 6000 | DE38: =payout($A38,AI38,$C38:AH38,DD38,$BY38:DD38) -> 6000 | DF38: =payout($A38,AJ38,$C38:AI38,DE38,$BY38:DE38) -> 6000 | DG38: =payout($A38,AK38,$C38:AJ38,DF38,$BY38:DF38) -> 6000 | DH38: =payout($A38,AL38,$C38:AK38,DG38,$BY38:DG38) -> 6000 | DI38: =payout($A38,AM38,$C38:AL38,DH38,$BY38:DH38) -> 6000 | DJ38: =payout($A38,AN38,$C38:AM38,DI38,$BY38:DI38) -> 6000 | DK38: =payout($A38,AO38,$C38:AN38,DJ38,$BY38:DJ38) -> 6000 | DL38: =payout($A38,AP38,$C38:AO38,DK38,$BY38:DK38) -> 6000 | DM38: =payout($A38,AQ38,$C38:AP38,DL38,$BY38:DL38) -> 106000 | DN38: =payout($A38,AR38,$C38:AQ38,DM38,$BY38:DM38) -> 0 | DO38: 0 | DP38: 0 | DQ38: 0 | DR38: 0 | DS38: 0 | DT38: 0 | DU38: 0 | DV38: 0 | DW38: 0 | DX38: 0 | DY38: 0 | DZ38: 0 | EA38: 0 | EB38: 0 | EC38: 0 | ED38: 0 | EE38: 0 | EF38: 0 | EG38: 0 | EH38: 0 | EI38: 0 | EJ38: 0 | EK38: 0 | EL38: 0 | EM38: 0 | EN38: 0 | EO38: 0 | EP38: 0 | EQ38: 0
A39: =get_bond_grade($A$16:A38,$BX$5,$BY$5,$BZ$5) -> AAA | B39: 24 | C39: 1 | D39: 1 | E39: 1 | F39: 1 | G39: 1 | H39: 1 | I39: 1 | J39: 1 | K39: 1 | L39: 1 | M39: 1 | N39: 1 | O39: 1 | P39: 1 | Q39: 1 | R39: 1 | S39: 1 | T39: 1 | U39: 1 | V39: 1 | W39: 1 | X39: 1 | Y39: 1 | Z39: 1 | AA39: 1 | AB39: 1 | AC39: 1 | AD39: 1 | AE39: 1 | AF39: 1 | AG39: 1 | AH39: 1 | AI39: 1 | AJ39: 1 | AK39: 1 | AL39: 0 | AM39: 0 | AN39: 0 | AO39: 0 | AP39: 0 | AQ39: 0 | AR39: 0 | AS39: 0 | AT39: 0 | AU39: 0 | AV39: 0 | AW39: 0 | AX39: 0 | AY39: 0 | AZ39: 0 | BA39: 0 | BB39: 0 | BC39: 0 | BD39: 0 | BE39: 0 | BF39: 0 | BG39: 0 | BH39: 0 | BI39: 0 | BJ39: 0 | BK39: 0 | BL39: 0 | BM39: 0 | BN39: 0 | BO39: 0 | BP39: 0 | BQ39: 0 | BR39: 0 | BS39: 0 | BT39: 0 | BU39: 0 | BW39: AAA | BX39: 24 | BY39: -100000 | BZ39: =payout($A39,D39,$C39:C39,BY39,$BY39:BY39) -> 5000 | CA39: =payout($A39,E39,$C39:D39,BZ39,$BY39:BZ39) -> 5000 | CB39: =payout($A39,F39,$C39:E39,CA39,$BY39:CA39) -> 5000 | CC39: =payout($A39,G39,$C39:F39,CB39,$BY39:CB39) -> 5000 | CD39: =payout($A39,H39,$C39:G39,CC39,$BY39:CC39) -> 5000 | CE39: =payout($A39,I39,$C39:H39,CD39,$BY39:CD39) -> 5000 | CF39: =payout($A39,J39,$C39:I39,CE39,$BY39:CE39) -> 5000 | CG39: =payout($A39,K39,$C39:J39,CF39,$BY39:CF39) -> 5000 | CH39: =payout($A39,L39,$C39:K39,CG39,$BY39:CG39) -> 5000 | CI39: =payout($A39,M39,$C39:L39,CH39,$BY39:CH39) -> 5000 | CJ39: =payout($A39,N39,$C39:M39,CI39,$BY39:CI39) -> 5000 | CK39: =payout($A39,O39,$C39:N39,CJ39,$BY39:CJ39) -> 5000 | CL39: =payout($A39,P39,$C39:O39,CK39,$BY39:CK39) -> 5000 | CM39: =payout($A39,Q39,$C39:P39,CL39,$BY39:CL39) -> 5000 | CN39: =payout($A39,R39,$C39:Q39,CM39,$BY39:CM39) -> 5000 | CO39: =payout($A39,S39,$C39:R39,CN39,$BY39:CN39) -> 5000 | CP39: =payout($A39,T39,$C39:S39,CO39,$BY39:CO39) -> 5000 | CQ39: =payout($A39,U39,$C39:T39,CP39,$BY39:CP39) -> 5000 | CR39: =payout($A39,V39,$C39:U39,CQ39,$BY39:CQ39) -> 5000 | CS39: =payout($A39,W39,$C39:V39,CR39,$BY39:CR39) -> 5000 | CT39: =payout($A39,X39,$C39:W39,CS39,$BY39:CS39) -> 5000 | CU39: =payout($A39,Y39,$C39:X39,CT39,$BY39:CT39) -> 5000 | CV39: =payout($A39,Z39,$C39:Y39,CU39,$BY39:CU39) -> 5000 | CW39: =payout($A39,AA39,$C39:Z39,CV39,$BY39:CV39) -> 5000 | CX39: =payout($A39,AB39,$C39:AA39,CW39,$BY39:CW39) -> 5000 | CY39: =payout($A39,AC39,$C39:AB39,CX39,$BY39:CX39) -> 5000 | CZ39: =payout($A39,AD39,$C39:AC39,CY39,$BY39:CY39) -> 5000 | DA39: =payout($A39,AE39,$C39:AD39,CZ39,$BY39:CZ39) -> 5000 | DB39: =payout($A39,AF39,$C39:AE39,DA39,$BY39:DA39) -> 5000 | DC39: =payout($A39,AG39,$C39:AF39,DB39,$BY39:DB39) -> 5000 | DD39: =payout($A39,AH39,$C39:AG39,DC39,$BY39:DC39) -> 5000 | DE39: =payout($A39,AI39,$C39:AH39,DD39,$BY39:DD39) -> 5000 | DF39: =payout($A39,AJ39,$C39:AI39,DE39,$BY39:DE39) -> 5000 | DG39: =payout($A39,AK39,$C39:AJ39,DF39,$BY39:DF39) -> 5000 | DH39: =payout($A39,AL39,$C39:AK39,DG39,$BY39:DG39) -> 5000 | DI39: =payout($A39,AM39,$C39:AL39,DH39,$BY39:DH39) -> 5000 | DJ39: =payout($A39,AN39,$C39:AM39,DI39,$BY39:DI39) -> 5000 | DK39: =payout($A39,AO39,$C39:AN39,DJ39,$BY39:DJ39) -> 5000 | DL39: =payout($A39,AP39,$C39:AO39,DK39,$BY39:DK39) -> 5000 | DM39: =payout($A39,AQ39,$C39:AP39,DL39,$BY39:DL39) -> 105000 | DN39: =payout($A39,AR39,$C39:AQ39,DM39,$BY39:DM39) -> 0 | DO39: 0 | DP39: 0 | DQ39: 0 | DR39: 0 | DS39: 0 | DT39: 0 | DU39: 0 | DV39: 0 | DW39: 0 | DX39: 0 | DY39: 0 | DZ39: 0 | EA39: 0 | EB39: 0 | EC39: 0 | ED39: 0 | EE39: 0 | EF39: 0 | EG39: 0 | EH39: 0 | EI39: 0 | EJ39: 0 | EK39: 0 | EL39: 0 | EM39: 0 | EN39: 0 | EO39: 0 | EP39: 0 | EQ39: 0
A40: =get_bond_grade($A$16:A39,$BX$5,$BY$5,$BZ$5) -> AA | B40: 25 | C40: 1 | D40: 1 | E40: 1 | F40: 1 | G40: 1 | H40: 1 | I40: 1 | J40: 1 | K40: 1 | L40: 1 | M40: 1 | N40: 1 | O40: 1 | P40: 1 | Q40: 1 | R40: 1 | S40: 1 | T40: 1 | U40: 1 | V40: 1 | W40: 1 | X40: 1 | Y40: 1 | Z40: 1 | AA40: 1 | AB40: 1 | AC40: 1 | AD40: 1 | AE40: 1 | AF40: 1 | AG40: 1 | AH40: 1 | AI40: 1 | AJ40: 1 | AK40: 1 | AL40: 0 | AM40: 0 | AN40: 0 | AO40: 0 | AP40: 0 | AQ40: 0 | AR40: 0 | AS40: 0 | AT40: 0 | AU40: 0 | AV40: 0 | AW40: 0 | AX40: 0 | AY40: 0 | AZ40: 0 | BA40: 0 | BB40: 0 | BC40: 0 | BD40: 0 | BE40: 0 | BF40: 0 | BG40: 0 | BH40: 0 | BI40: 0 | BJ40: 0 | BK40: 0 | BL40: 0 | BM40: 0 | BN40: 0 | BO40: 0 | BP40: 0 | BQ40: 0 | BR40: 0 | BS40: 0 | BT40: 0 | BU40: 0 | BW40: AA | BX40: 25 | BY40: -100000 | BZ40: =payout($A40,D40,$C40:C40,BY40,$BY40:BY40) -> 6000 | CA40: =payout($A40,E40,$C40:D40,BZ40,$BY40:BZ40) -> 6000 | CB40: =payout($A40,F40,$C40:E40,CA40,$BY40:CA40) -> 6000 | CC40: =payout($A40,G40,$C40:F40,CB40,$BY40:CB40) -> 6000 | CD40: =payout($A40,H40,$C40:G40,CC40,$BY40:CC40) -> 6000 | CE40: =payout($A40,I40,$C40:H40,CD40,$BY40:CD40) -> 6000 | CF40: =payout($A40,J40,$C40:I40,CE40,$BY40:CE40) -> 6000 | CG40: =payout($A40,K40,$C40:J40,CF40,$BY40:CF40) -> 6000 | CH40: =payout($A40,L40,$C40:K40,CG40,$BY40:CG40) -> 6000 | CI40: =payout($A40,M40,$C40:L40,CH40,$BY40:CH40) -> 6000 | CJ40: =payout($A40,N40,$C40:M40,CI40,$BY40:CI40) -> 6000 | CK40: =payout($A40,O40,$C40:N40,CJ40,$BY40:CJ40) -> 6000 | CL40: =payout($A40,P40,$C40:O40,CK40,$BY40:CK40) -> 6000 | CM40: =payout($A40,Q40,$C40:P40,CL40,$BY40:CL40) -> 6000 | CN40: =payout($A40,R40,$C40:Q40,CM40,$BY40:CM40) -> 6000 | CO40: =payout($A40,S40,$C40:R40,CN40,$BY40:CN40) -> 6000 | CP40: =payout($A40,T40,$C40:S40,CO40,$BY40:CO40) -> 6000 | CQ40: =payout($A40,U40,$C40:T40,CP40,$BY40:CP40) -> 6000 | CR40: =payout($A40,V40,$C40:U40,CQ40,$BY40:CQ40) -> 6000 | CS40: =payout($A40,W40,$C40:V40,CR40,$BY40:CR40) -> 6000 | CT40: =payout($A40,X40,$C40:W40,CS40,$BY40:CS40) -> 6000 | CU40: =payout($A40,Y40,$C40:X40,CT40,$BY40:CT40) -> 6000 | CV40: =payout($A40,Z40,$C40:Y40,CU40,$BY40:CU40) -> 6000 | CW40: =payout($A40,AA40,$C40:Z40,CV40,$BY40:CV40) -> 6000 | CX40: =payout($A40,AB40,$C40:AA40,CW40,$BY40:CW40) -> 6000 | CY40: =payout($A40,AC40,$C40:AB40,CX40,$BY40:CX40) -> 6000 | CZ40: =payout($A40,AD40,$C40:AC40,CY40,$BY40:CY40) -> 6000 | DA40: =payout($A40,AE40,$C40:AD40,CZ40,$BY40:CZ40) -> 6000 | DB40: =payout($A40,AF40,$C40:AE40,DA40,$BY40:DA40) -> 6000 | DC40: =payout($A40,AG40,$C40:AF40,DB40,$BY40:DB40) -> 6000 | DD40: =payout($A40,AH40,$C40:AG40,DC40,$BY40:DC40) -> 6000 | DE40: =payout($A40,AI40,$C40:AH40,DD40,$BY40:DD40) -> 6000 | DF40: =payout($A40,AJ40,$C40:AI40,DE40,$BY40:DE40) -> 6000 | DG40: =payout($A40,AK40,$C40:AJ40,DF40,$BY40:DF40) -> 6000 | DH40: =payout($A40,AL40,$C40:AK40,DG40,$BY40:DG40) -> 6000 | DI40: =payout($A40,AM40,$C40:AL40,DH40,$BY40:DH40) -> 6000 | DJ40: =payout($A40,AN40,$C40:AM40,DI40,$BY40:DI40) -> 6000 | DK40: =payout($A40,AO40,$C40:AN40,DJ40,$BY40:DJ40) -> 6000 | DL40: =payout($A40,AP40,$C40:AO40,DK40,$BY40:DK40) -> 6000 | DM40: =payout($A40,AQ40,$C40:AP40,DL40,$BY40:DL40) -> 106000 | DN40: =payout($A40,AR40,$C40:AQ40,DM40,$BY40:DM40) -> 0 | DO40: 0 | DP40: 0 | DQ40: 0 | DR40: 0 | DS40: 0 | DT40: 0 | DU40: 0 | DV40: 0 | DW40: 0 | DX40: 0 | DY40: 0 | DZ40: 0 | EA40: 0 | EB40: 0 | EC40: 0 | ED40: 0 | EE40: 0 | EF40: 0 | EG40: 0 | EH40: 0 | EI40: 0 | EJ40: 0 | EK40: 0 | EL40: 0 | EM40: 0 | EN40: 0 | EO40: 0 | EP40: 0 | EQ40: 0
A41: =get_bond_grade($A$16:A40,$BX$5,$BY$5,$BZ$5) -> A | B41: 26 | C41: 1 | D41: 1 | E41: 1 | F41: 1 | G41: 1 | H41: 1 | I41: 1 | J41: 1 | K41: 1 | L41: 1 | M41: 1 | N41: 1 | O41: 1 | P41: 1 | Q41: 1 | R41: 1 | S41: 1 | T41: 1 | U41: 1 | V41: 1 | W41: 1 | X41: 1 | Y41: 1 | Z41: 1 | AA41: 1 | AB41: 1 | AC41: 1 | AD41: 1 | AE41: 1 | AF41: 1 | AG41: 1 | AH41: 1 | AI41: 1 | AJ41: 1 | AK41: 1 | AL41: 0 | AM41: 0 | AN41: 0 | AO41: 0 | AP41: 0 | AQ41: 0 | AR41: 0 | AS41: 0 | AT41: 0 | AU41: 0 | AV41: 0 | AW41: 0 | AX41: 0 | AY41: 0 | AZ41: 0 | BA41: 0 | BB41: 0 | BC41: 0 | BD41: 0 | BE41: 0 | BF41: 0 | BG41: 0 | BH41: 0 | BI41: 0 | BJ41: 0 | BK41: 0 | BL41: 0 | BM41: 0 | BN41: 0 | BO41: 0 | BP41: 0 | BQ41: 0 | BR41: 0 | BS41: 0 | BT41: 0 | BU41: 0 | BW41: A | BX41: 26 | BY41: -100000 | BZ41: =payout($A41,D41,$C41:C41,BY41,$BY41:BY41) -> 7000 | CA41: =payout($A41,E41,$C41:D41,BZ41,$BY41:BZ41) -> 7000 | CB41: =payout($A41,F41,$C41:E41,CA41,$BY41:CA41) -> 7000 | CC41: =payout($A41,G41,$C41:F41,CB41,$BY41:CB41) -> 7000 | CD41: =payout($A41,H41,$C41:G41,CC41,$BY41:CC41) -> 7000 | CE41: =payout($A41,I41,$C41:H41,CD41,$BY41:CD41) -> 7000 | CF41: =payout($A41,J41,$C41:I41,CE41,$BY41:CE41) -> 7000 | CG41: =payout($A41,K41,$C41:J41,CF41,$BY41:CF41) -> 7000 | CH41: =payout($A41,L41,$C41:K41,CG41,$BY41:CG41) -> 7000 | CI41: =payout($A41,M41,$C41:L41,CH41,$BY41:CH41) -> 7000 | CJ41: =payout($A41,N41,$C41:M41,CI41,$BY41:CI41) -> 7000 | CK41: =payout($A41,O41,$C41:N41,CJ41,$BY41:CJ41) -> 7000 | CL41: =payout($A41,P41,$C41:O41,CK41,$BY41:CK41) -> 7000 | CM41: =payout($A41,Q41,$C41:P41,CL41,$BY41:CL41) -> 7000 | CN41: =payout($A41,R41,$C41:Q41,CM41,$BY41:CM41) -> 7000 | CO41: =payout($A41,S41,$C41:R41,CN41,$BY41:CN41) -> 7000 | CP41: =payout($A41,T41,$C41:S41,CO41,$BY41:CO41) -> 7000 | CQ41: =payout($A41,U41,$C41:T41,CP41,$BY41:CP41) -> 7000 | CR41: =payout($A41,V41,$C41:U41,CQ41,$BY41:CQ41) -> 7000 | CS41: =payout($A41,W41,$C41:V41,CR41,$BY41:CR41) -> 7000 | CT41: =payout($A41,X41,$C41:W41,CS41,$BY41:CS41) -> 7000 | CU41: =payout($A41,Y41,$C41:X41,CT41,$BY41:CT41) -> 7000 | CV41: =payout($A41,Z41,$C41:Y41,CU41,$BY41:CU41) -> 7000 | CW41: =payout($A41,AA41,$C41:Z41,CV41,$BY41:CV41) -> 7000 | CX41: =payout($A41,AB41,$C41:AA41,CW41,$BY41:CW41) -> 7000 | CY41: =payout($A41,AC41,$C41:AB41,CX41,$BY41:CX41) -> 7000 | CZ41: =payout($A41,AD41,$C41:AC41,CY41,$BY41:CY41) -> 7000 | DA41: =payout($A41,AE41,$C41:AD41,CZ41,$BY41:CZ41) -> 7000 | DB41: =payout($A41,AF41,$C41:AE41,DA41,$BY41:DA41) -> 7000 | DC41: =payout($A41,AG41,$C41:AF41,DB41,$BY41:DB41) -> 7000 | DD41: =payout($A41,AH41,$C41:AG41,DC41,$BY41:DC41) -> 7000 | DE41: =payout($A41,AI41,$C41:AH41,DD41,$BY41:DD41) -> 7000 | DF41: =payout($A41,AJ41,$C41:AI41,DE41,$BY41:DE41) -> 7000 | DG41: =payout($A41,AK41,$C41:AJ41,DF41,$BY41:DF41) -> 7000 | DH41: =payout($A41,AL41,$C41:AK41,DG41,$BY41:DG41) -> 7000 | DI41: =payout($A41,AM41,$C41:AL41,DH41,$BY41:DH41) -> 7000 | DJ41: =payout($A41,AN41,$C41:AM41,DI41,$BY41:DI41) -> 7000 | DK41: =payout($A41,AO41,$C41:AN41,DJ41,$BY41:DJ41) -> 7000 | DL41: =payout($A41,AP41,$C41:AO41,DK41,$BY41:DK41) -> 7000 | DM41: =payout($A41,AQ41,$C41:AP41,DL41,$BY41:DL41) -> 107000 | DN41: =payout($A41,AR41,$C41:AQ41,DM41,$BY41:DM41) -> 0 | DO41: 0 | DP41: 0 | DQ41: 0 | DR41: 0 | DS41: 0 | DT41: 0 | DU41: 0 | DV41: 0 | DW41: 0 | DX41: 0 | DY41: 0 | DZ41: 0 | EA41: 0 | EB41: 0 | EC41: 0 | ED41: 0 | EE41: 0 | EF41: 0 | EG41: 0 | EH41: 0 | EI41: 0 | EJ41: 0 | EK41: 0 | EL41: 0 | EM41: 0 | EN41: 0 | EO41: 0 | EP41: 0 | EQ41: 0
A42: =get_bond_grade($A$16:A41,$BX$5,$BY$5,$BZ$5) -> AAA | B42: 27 | C42: 1 | D42: 1 | E42: 1 | F42: 1 | G42: 1 | H42: 1 | I42: 1 | J42: 1 | K42: 1 | L42: 1 | M42: 1 | N42: 1 | O42: 1 | P42: 1 | Q42: 1 | R42: 1 | S42: 1 | T42: 1 | U42: 0 | V42: 0 | W42: 0 | X42: 0 | Y42: 0 | Z42: 0 | AA42: 0 | AB42: 0 | AC42: 0 | AD42: 0 | AE42: 0 | AF42: 0 | AG42: 0 | AH42: 0 | AI42: 0 | AJ42: 0 | AK42: 0 | AL42: 0 | AM42: 0 | AN42: 0 | AO42: 0 | AP42: 0 | AQ42: 0 | AR42: 0 | AS42: 0 | AT42: 0 | AU42: 0 | AV42: 0 | AW42: 0 | AX42: 0 | AY42: 0 | AZ42: 0 | BA42: 0 | BB42: 0 | BC42: 0 | BD42: 0 | BE42: 0 | BF42: 0 | BG42: 0 | BH42: 0 | BI42: 0 | BJ42: 0 | BK42: 0 | BL42: 0 | BM42: 0 | BN42: 0 | BO42: 0 | BP42: 0 | BQ42: 0 | BR42: 0 | BS42: 0 | BT42: 0 | BU42: 0 | BW42: AAA | BX42: 27 | BY42: -100000 | BZ42: =payout($A42,D42,$C42:C42,BY42,$BY42:BY42) -> 5000 | CA42: =payout($A42,E42,$C42:D42,BZ42,$BY42:BZ42) -> 5000 | CB42: =payout($A42,F42,$C42:E42,CA42,$BY42:CA42) -> 5000 | CC42: =payout($A42,G42,$C42:F42,CB42,$BY42:CB42) -> 5000 | CD42: =payout($A42,H42,$C42:G42,CC42,$BY42:CC42) -> 5000 | CE42: =payout($A42,I42,$C42:H42,CD42,$BY42:CD42) -> 5000 | CF42: =payout($A42,J42,$C42:I42,CE42,$BY42:CE42) -> 5000 | CG42: =payout($A42,K42,$C42:J42,CF42,$BY42:CF42) -> 5000 | CH42: =payout($A42,L42,$C42:K42,CG42,$BY42:CG42) -> 5000 | CI42: =payout($A42,M42,$C42:L42,CH42,$BY42:CH42) -> 5000 | CJ42: =payout($A42,N42,$C42:M42,CI42,$BY42:CI42) -> 5000 | CK42: =payout($A42,O42,$C42:N42,CJ42,$BY42:CJ42) -> 5000 | CL42: =payout($A42,P42,$C42:O42,CK42,$BY42:CK42) -> 5000 | CM42: =payout($A42,Q42,$C42:P42,CL42,$BY42:CL42) -> 5000 | CN42: =payout($A42,R42,$C42:Q42,CM42,$BY42:CM42) -> 5000 | CO42: =payout($A42,S42,$C42:R42,CN42,$BY42:CN42) -> 5000 | CP42: =payout($A42,T42,$C42:S42,CO42,$BY42:CO42) -> 5000 | CQ42: =payout($A42,U42,$C42:T42,CP42,$BY42:CP42) -> 5000 | CR42: =payout($A42,V42,$C42:U42,CQ42,$BY42:CQ42) -> 5000 | CS42: =payout($A42,W42,$C42:V42,CR42,$BY42:CR42) -> 5000 | CT42: =payout($A42,X42,$C42:W42,CS42,$BY42:CS42) -> 5000 | CU42: =payout($A42,Y42,$C42:X42,CT42,$BY42:CT42) -> 5000 | CV42: =payout($A42,Z42,$C42:Y42,CU42,$BY42:CU42) -> 5000 | CW42: =payout($A42,AA42,$C42:Z42,CV42,$BY42:CV42) -> 5000 | CX42: =payout($A42,AB42,$C42:AA42,CW42,$BY42:CW42) -> 5000 | CY42: =payout($A42,AC42,$C42:AB42,CX42,$BY42:CX42) -> 5000 | CZ42: =payout($A42,AD42,$C42:AC42,CY42,$BY42:CY42) -> 5000 | DA42: =payout($A42,AE42,$C42:AD42,CZ42,$BY42:CZ42) -> 5000 | DB42: =payout($A42,AF42,$C42:AE42,DA42,$BY42:DA42) -> 5000 | DC42: =payout($A42,AG42,$C42:AF42,DB42,$BY42:DB42) -> 5000 | DD42: =payout($A42,AH42,$C42:AG42,DC42,$BY42:DC42) -> 5000 | DE42: =payout($A42,AI42,$C42:AH42,DD42,$BY42:DD42) -> 5000 | DF42: =payout($A42,AJ42,$C42:AI42,DE42,$BY42:DE42) -> 5000 | DG42: =payout($A42,AK42,$C42:AJ42,DF42,$BY42:DF42) -> 5000 | DH42: =payout($A42,AL42,$C42:AK42,DG42,$BY42:DG42) -> 5000 | DI42: =payout($A42,AM42,$C42:AL42,DH42,$BY42:DH42) -> 5000 | DJ42: =payout($A42,AN42,$C42:AM42,DI42,$BY42:DI42) -> 5000 | DK42: =payout($A42,AO42,$C42:AN42,DJ42,$BY42:DJ42) -> 5000 | DL42: =payout($A42,AP42,$C42:AO42,DK42,$BY42:DK42) -> 5000 | DM42: =payout($A42,AQ42,$C42:AP42,DL42,$BY42:DL42) -> 105000 | DN42: =payout($A42,AR42,$C42:AQ42,DM42,$BY42:DM42) -> 0 | DO42: 0 | DP42: 0 | DQ42: 0 | DR42: 0 | DS42: 0 | DT42: 0 | DU42: 0 | DV42: 0 | DW42: 0 | DX42: 0 | DY42: 0 | DZ42: 0 | EA42: 0 | EB42: 0 | EC42: 0 | ED42: 0 | EE42: 0 | EF42: 0 | EG42: 0 | EH42: 0 | EI42: 0 | EJ42: 0 | EK42: 0 | EL42: 0 | EM42: 0 | EN42: 0 | EO42: 0 | EP42: 0 | EQ42: 0
A43: =get_bond_grade($A$16:A42,$BX$5,$BY$5,$BZ$5) -> AA | B43: 28 | C43: 1 | D43: 1 | E43: 1 | F43: 1 | G43: 1 | H43: 1 | I43: 1 | J43: 1 | K43: 1 | L43: 1 | M43: 1 | N43: 1 | O43: 1 | P43: 1 | Q43: 1 | R43: 1 | S43: 1 | T43: 1 | U43: 1 | V43: 1 | W43: 1 | X43: 1 | Y43: 1 | Z43: 1 | AA43: 1 | AB43: 1 | AC43: 1 | AD43: 1 | AE43: 1 | AF43: 1 | AG43: 1 | AH43: 1 | AI43: 1 | AJ43: 1 | AK43: 1 | AL43: 0 | AM43: 0 | AN43: 0 | AO43: 0 | AP43: 0 | AQ43: 0 | AR43: 0 | AS43: 0 | AT43: 0 | AU43: 0 | AV43: 0 | AW43: 0 | AX43: 0 | AY43: 0 | AZ43: 0 | BA43: 0 | BB43: 0 | BC43: 0 | BD43: 0 | BE43: 0 | BF43: 0 | BG43: 0 | BH43: 0 | BI43: 0 | BJ43: 0 | BK43: 0 | BL43: 0 | BM43: 0 | BN43: 0 | BO43: 0 | BP43: 0 | BQ43: 0 | BR43: 0 | BS43: 0 | BT43: 0 | BU43: 0 | BW43: AA | BX43: 28 | BY43: -100000 | BZ43: =payout($A43,D43,$C43:C43,BY43,$BY43:BY43) -> 6000 | CA43: =payout($A43,E43,$C43:D43,BZ43,$BY43:BZ43) -> 6000 | CB43: =payout($A43,F43,$C43:E43,CA43,$BY43:CA43) -> 6000 | CC43: =payout($A43,G43,$C43:F43,CB43,$BY43:CB43) -> 6000 | CD43: =payout($A43,H43,$C43:G43,CC43,$BY43:CC43) -> 6000 | CE43: =payout($A43,I43,$C43:H43,CD43,$BY43:CD43) -> 6000 | CF43: =payout($A43,J43,$C43:I43,CE43,$BY43:CE43) -> 6000 | CG43: =payout($A43,K43,$C43:J43,CF43,$BY43:CF43) -> 6000 | CH43: =payout($A43,L43,$C43:K43,CG43,$BY43:CG43) -> 6000 | CI43: =payout($A43,M43,$C43:L43,CH43,$BY43:CH43) -> 6000 | CJ43: =payout($A43,N43,$C43:M43,CI43,$BY43:CI43) -> 6000 | CK43: =payout($A43,O43,$C43:N43,CJ43,$BY43:CJ43) -> 6000 | CL43: =payout($A43,P43,$C43:O43,CK43,$BY43:CK43) -> 6000 | CM43: =payout($A43,Q43,$C43:P43,CL43,$BY43:CL43) -> 6000 | CN43: =payout($A43,R43,$C43:Q43,CM43,$BY43:CM43) -> 6000 | CO43: =payout($A43,S43,$C43:R43,CN43,$BY43:CN43) -> 6000 | CP43: =payout($A43,T43,$C43:S43,CO43,$BY43:CO43) -> 6000 | CQ43: =payout($A43,U43,$C43:T43,CP43,$BY43:CP43) -> 6000 | CR43: =payout($A43,V43,$C43:U43,CQ43,$BY43:CQ43) -> 6000 | CS43: =payout($A43,W43,$C43:V43,CR43,$BY43:CR43) -> 6000 | CT43: =payout($A43,X43,$C43:W43,CS43,$BY43:CS43) -> 6000 | CU43: =payout($A43,Y43,$C43:X43,CT43,$BY43:CT43) -> 6000 | CV43: =payout($A43,Z43,$C43:Y43,CU43,$BY43:CU43) -> 6000 | CW43: =payout($A43,AA43,$C43:Z43,CV43,$BY43:CV43) -> 6000 | CX43: =payout($A43,AB43,$C43:AA43,CW43,$BY43:CW43) -> 6000 | CY43: =payout($A43,AC43,$C43:AB43,CX43,$BY43:CX43) -> 6000 | CZ43: =payout($A43,AD43,$C43:AC43,CY43,$BY43:CY43) -> 6000 | DA43: =payout($A43,AE43,$C43:AD43,CZ43,$BY43:CZ43) -> 6000 | DB43: =payout($A43,AF43,$C43:AE43,DA43,$BY43:DA43) -> 6000 | DC43: =payout($A43,AG43,$C43:AF43,DB43,$BY43:DB43) -> 6000 | DD43: =payout($A43,AH43,$C43:AG43,DC43,$BY43:DC43) -> 6000 | DE43: =payout($A43,AI43,$C43:AH43,DD43,$BY43:DD43) -> 6000 | DF43: =payout($A43,AJ43,$C43:AI43,DE43,$BY43:DE43) -> 6000 | DG43: =payout($A43,AK43,$C43:AJ43,DF43,$BY43:DF43) -> 6000 | DH43: =payout($A43,AL43,$C43:AK43,DG43,$BY43:DG43) -> 6000 | DI43: =payout($A43,AM43,$C43:AL43,DH43,$BY43:DH43) -> 6000 | DJ43: =payout($A43,AN43,$C43:AM43,DI43,$BY43:DI43) -> 6000 | DK43: =payout($A43,AO43,$C43:AN43,DJ43,$BY43:DJ43) -> 6000 | DL43: =payout($A43,AP43,$C43:AO43,DK43,$BY43:DK43) -> 6000 | DM43: =payout($A43,AQ43,$C43:AP43,DL43,$BY43:DL43) -> 106000 | DN43: =payout($A43,AR43,$C43:AQ43,DM43,$BY43:DM43) -> 0 | DO43: 0 | DP43: 0 | DQ43: 0 | DR43: 0 | DS43: 0 | DT43: 0 | DU43: 0 | DV43: 0 | DW43: 0 | DX43: 0 | DY43: 0 | DZ43: 0 | EA43: 0 | EB43: 0 | EC43: 0 | ED43: 0 | EE43: 0 | EF43: 0 | EG43: 0 | EH43: 0 | EI43: 0 | EJ43: 0 | EK43: 0 | EL43: 0 | EM43: 0 | EN43: 0 | EO43: 0 | EP43: 0 | EQ43: 0
A44: =get_bond_grade($A$16:A43,$BX$5,$BY$5,$BZ$5) -> AAA | B44: 29 | C44: 1 | D44: 1 | E44: 1 | F44: 1 | G44: 1 | H44: 1 | I44: 1 | J44: 1 | K44: 1 | L44: 1 | M44: 1 | N44: 1 | O44: 1 | P44: 1 | Q44: 1 | R44: 1 | S44: 1 | T44: 1 | U44: 1 | V44: 1 | W44: 1 | X44: 1 | Y44: 1 | Z44: 1 | AA44: 1 | AB44: 1 | AC44: 1 | AD44: 1 | AE44: 1 | AF44: 1 | AG44: 1 | AH44: 1 | AI44: 1 | AJ44: 1 | AK44: 1 | AL44: 0 | AM44: 0 | AN44: 0 | AO44: 0 | AP44: 0 | AQ44: 0 | AR44: 0 | AS44: 0 | AT44: 0 | AU44: 0 | AV44: 0 | AW44: 0 | AX44: 0 | AY44: 0 | AZ44: 0 | BA44: 0 | BB44: 0 | BC44: 0 | BD44: 0 | BE44: 0 | BF44: 0 | BG44: 0 | BH44: 0 | BI44: 0 | BJ44: 0 | BK44: 0 | BL44: 0 | BM44: 0 | BN44: 0 | BO44: 0 | BP44: 0 | BQ44: 0 | BR44: 0 | BS44: 0 | BT44: 0 | BU44: 0 | BW44: AAA | BX44: 29 | BY44: -100000 | BZ44: =payout($A44,D44,$C44:C44,BY44,$BY44:BY44) -> 5000 | CA44: =payout($A44,E44,$C44:D44,BZ44,$BY44:BZ44) -> 5000 | CB44: =payout($A44,F44,$C44:E44,CA44,$BY44:CA44) -> 5000 | CC44: =payout($A44,G44,$C44:F44,CB44,$BY44:CB44) -> 5000 | CD44: =payout($A44,H44,$C44:G44,CC44,$BY44:CC44) -> 5000 | CE44: =payout($A44,I44,$C44:H44,CD44,$BY44:CD44) -> 5000 | CF44: =payout($A44,J44,$C44:I44,CE44,$BY44:CE44) -> 5000 | CG44: =payout($A44,K44,$C44:J44,CF44,$BY44:CF44) -> 5000 | CH44: =payout($A44,L44,$C44:K44,CG44,$BY44:CG44) -> 5000 | CI44: =payout($A44,M44,$C44:L44,CH44,$BY44:CH44) -> 5000 | CJ44: =payout($A44,N44,$C44:M44,CI44,$BY44:CI44) -> 5000 | CK44: =payout($A44,O44,$C44:N44,CJ44,$BY44:CJ44) -> 5000 | CL44: =payout($A44,P44,$C44:O44,CK44,$BY44:CK44) -> 5000 | CM44: =payout($A44,Q44,$C44:P44,CL44,$BY44:CL44) -> 5000 | CN44: =payout($A44,R44,$C44:Q44,CM44,$BY44:CM44) -> 5000 | CO44: =payout($A44,S44,$C44:R44,CN44,$BY44:CN44) -> 5000 | CP44: =payout($A44,T44,$C44:S44,CO44,$BY44:CO44) -> 5000 | CQ44: =payout($A44,U44,$C44:T44,CP44,$BY44:CP44) -> 5000 | CR44: =payout($A44,V44,$C44:U44,CQ44,$BY44:CQ44) -> 5000 | CS44: =payout($A44,W44,$C44:V44,CR44,$BY44:CR44) -> 5000 | CT44: =payout($A44,X44,$C44:W44,CS44,$BY44:CS44) -> 5000 | CU44: =payout($A44,Y44,$C44:X44,CT44,$BY44:CT44) -> 5000 | CV44: =payout($A44,Z44,$C44:Y44,CU44,$BY44:CU44) -> 5000 | CW44: =payout($A44,AA44,$C44:Z44,CV44,$BY44:CV44) -> 5000 | CX44: =payout($A44,AB44,$C44:AA44,CW44,$BY44:CW44) -> 5000 | CY44: =payout($A44,AC44,$C44:AB44,CX44,$BY44:CX44) -> 5000 | CZ44: =payout($A44,AD44,$C44:AC44,CY44,$BY44:CY44) -> 5000 | DA44: =payout($A44,AE44,$C44:AD44,CZ44,$BY44:CZ44) -> 5000 | DB44: =payout($A44,AF44,$C44:AE44,DA44,$BY44:DA44) -> 5000 | DC44: =payout($A44,AG44,$C44:AF44,DB44,$BY44:DB44) -> 5000 | DD44: =payout($A44,AH44,$C44:AG44,DC44,$BY44:DC44) -> 5000 | DE44: =payout($A44,AI44,$C44:AH44,DD44,$BY44:DD44) -> 5000 | DF44: =payout($A44,AJ44,$C44:AI44,DE44,$BY44:DE44) -> 5000 | DG44: =payout($A44,AK44,$C44:AJ44,DF44,$BY44:DF44) -> 5000 | DH44: =payout($A44,AL44,$C44:AK44,DG44,$BY44:DG44) -> 5000 | DI44: =payout($A44,AM44,$C44:AL44,DH44,$BY44:DH44) -> 5000 | DJ44: =payout($A44,AN44,$C44:AM44,DI44,$BY44:DI44) -> 5000 | DK44: =payout($A44,AO44,$C44:AN44,DJ44,$BY44:DJ44) -> 5000 | DL44: =payout($A44,AP44,$C44:AO44,DK44,$BY44:DK44) -> 5000 | DM44: =payout($A44,AQ44,$C44:AP44,DL44,$BY44:DL44) -> 105000 | DN44: =payout($A44,AR44,$C44:AQ44,DM44,$BY44:DM44) -> 0 | DO44: 0 | DP44: 0 | DQ44: 0 | DR44: 0 | DS44: 0 | DT44: 0 | DU44: 0 | DV44: 0 | DW44: 0 | DX44: 0 | DY44: 0 | DZ44: 0 | EA44: 0 | EB44: 0 | EC44: 0 | ED44: 0 | EE44: 0 | EF44: 0 | EG44: 0 | EH44: 0 | EI44: 0 | EJ44: 0 | EK44: 0 | EL44: 0 | EM44: 0 | EN44: 0 | EO44: 0 | EP44: 0 | EQ44: 0
A45: =get_bond_grade($A$16:A44,$BX$5,$BY$5,$BZ$5) -> A | B45: 30 | C45: 1 | D45: 1 | E45: 1 | F45: 1 | G45: 1 | H45: 1 | I45: 1 | J45: 1 | K45: 1 | L45: 1 | M45: 1 | N45: 1 | O45: 1 | P45: 1 | Q45: 1 | R45: 1 | S45: 1 | T45: 1 | U45: 1 | V45: 1 | W45: 1 | X45: 1 | Y45: 1 | Z45: 1 | AA45: 1 | AB45: 1 | AC45: 1 | AD45: 1 | AE45: 1 | AF45: 1 | AG45: 1 | AH45: 1 | AI45: 1 | AJ45: 1 | AK45: 1 | AL45: 0 | AM45: 0 | AN45: 0 | AO45: 0 | AP45: 0 | AQ45: 0 | AR45: 0 | AS45: 0 | AT45: 0 | AU45: 0 | AV45: 0 | AW45: 0 | AX45: 0 | AY45: 0 | AZ45: 0 | BA45: 0 | BB45: 0 | BC45: 0 | BD45: 0 | BE45: 0 | BF45: 0 | BG45: 0 | BH45: 0 | BI45: 0 | BJ45: 0 | BK45: 0 | BL45: 0 | BM45: 0 | BN45: 0 | BO45: 0 | BP45: 0 | BQ45: 0 | BR45: 0 | BS45: 0 | BT45: 0 | BU45: 0 | BW45: A | BX45: 30 | BY45: -100000 | BZ45: =payout($A45,D45,$C45:C45,BY45,$BY45:BY45) -> 7000 | CA45: =payout($A45,E45,$C45:D45,BZ45,$BY45:BZ45) -> 7000 | CB45: =payout($A45,F45,$C45:E45,CA45,$BY45:CA45) -> 7000 | CC45: =payout($A45,G45,$C45:F45,CB45,$BY45:CB45) -> 7000 | CD45: =payout($A45,H45,$C45:G45,CC45,$BY45:CC45) -> 7000 | CE45: =payout($A45,I45,$C45:H45,CD45,$BY45:CD45) -> 7000 | CF45: =payout($A45,J45,$C45:I45,CE45,$BY45:CE45) -> 7000 | CG45: =payout($A45,K45,$C45:J45,CF45,$BY45:CF45) -> 7000 | CH45: =payout($A45,L45,$C45:K45,CG45,$BY45:CG45) -> 7000 | CI45: =payout($A45,M45,$C45:L45,CH45,$BY45:CH45) -> 7000 | CJ45: =payout($A45,N45,$C45:M45,CI45,$BY45:CI45) -> 7000 | CK45: =payout($A45,O45,$C45:N45,CJ45,$BY45:CJ45) -> 7000 | CL45: =payout($A45,P45,$C45:O45,CK45,$BY45:CK45) -> 7000 | CM45: =payout($A45,Q45,$C45:P45,CL45,$BY45:CL45) -> 7000 | CN45: =payout($A45,R45,$C45:Q45,CM45,$BY45:CM45) -> 7000 | CO45: =payout($A45,S45,$C45:R45,CN45,$BY45:CN45) -> 7000 | CP45: =payout($A45,T45,$C45:S45,CO45,$BY45:CO45) -> 7000 | CQ45: =payout($A45,U45,$C45:T45,CP45,$BY45:CP45) -> 7000 | CR45: =payout($A45,V45,$C45:U45,CQ45,$BY45:CQ45) -> 7000 | CS45: =payout($A45,W45,$C45:V45,CR45,$BY45:CR45) -> 7000 | CT45: =payout($A45,X45,$C45:W45,CS45,$BY45:CS45) -> 7000 | CU45: =payout($A45,Y45,$C45:X45,CT45,$BY45:CT45) -> 7000 | CV45: =payout($A45,Z45,$C45:Y45,CU45,$BY45:CU45) -> 7000 | CW45: =payout($A45,AA45,$C45:Z45,CV45,$BY45:CV45) -> 7000 | CX45: =payout($A45,AB45,$C45:AA45,CW45,$BY45:CW45) -> 7000 | CY45: =payout($A45,AC45,$C45:AB45,CX45,$BY45:CX45) -> 7000 | CZ45: =payout($A45,AD45,$C45:AC45,CY45,$BY45:CY45) -> 7000 | DA45: =payout($A45,AE45,$C45:AD45,CZ45,$BY45:CZ45) -> 7000 | DB45: =payout($A45,AF45,$C45:AE45,DA45,$BY45:DA45) -> 7000 | DC45: =payout($A45,AG45,$C45:AF45,DB45,$BY45:DB45) -> 7000 | DD45: =payout($A45,AH45,$C45:AG45,DC45,$BY45:DC45) -> 7000 | DE45: =payout($A45,AI45,$C45:AH45,DD45,$BY45:DD45) -> 7000 | DF45: =payout($A45,AJ45,$C45:AI45,DE45,$BY45:DE45) -> 7000 | DG45: =payout($A45,AK45,$C45:AJ45,DF45,$BY45:DF45) -> 7000 | DH45: =payout($A45,AL45,$C45:AK45,DG45,$BY45:DG45) -> 7000 | DI45: =payout($A45,AM45,$C45:AL45,DH45,$BY45:DH45) -> 7000 | DJ45: =payout($A45,AN45,$C45:AM45,DI45,$BY45:DI45) -> 7000 | DK45: =payout($A45,AO45,$C45:AN45,DJ45,$BY45:DJ45) -> 7000 | DL45: =payout($A45,AP45,$C45:AO45,DK45,$BY45:DK45) -> 7000 | DM45: =payout($A45,AQ45,$C45:AP45,DL45,$BY45:DL45) -> 107000 | DN45: =payout($A45,AR45,$C45:AQ45,DM45,$BY45:DM45) -> 0 | DO45: 0 | DP45: 0 | DQ45: 0 | DR45: 0 | DS45: 0 | DT45: 0 | DU45: 0 | DV45: 0 | DW45: 0 | DX45: 0 | DY45: 0 | DZ45: 0 | EA45: 0 | EB45: 0 | EC45: 0 | ED45: 0 | EE45: 0 | EF45: 0 | EG45: 0 | EH45: 0 | EI45: 0 | EJ45: 0 | EK45: 0 | EL45: 0 | EM45: 0 | EN45: 0 | EO45: 0 | EP45: 0 | EQ45: 0
A46: =get_bond_grade($A$16:A45,$BX$5,$BY$5,$BZ$5) -> A | B46: 31 | C46: 1 | D46: 1 | E46: 1 | F46: 1 | G46: 1 | H46: 1 | I46: 1 | J46: 1 | K46: 1 | L46: 1 | M46: 1 | N46: 1 | O46: 1 | P46: 1 | Q46: 1 | R46: 1 | S46: 1 | T46: 1 | U46: 1 | V46: 1 | W46: 1 | X46: 1 | Y46: 1 | Z46: 1 | AA46: 1 | AB46: 1 | AC46: 1 | AD46: 1 | AE46: 1 | AF46: 1 | AG46: 1 | AH46: 1 | AI46: 1 | AJ46: 1 | AK46: 1 | AL46: 0 | AM46: 0 | AN46: 0 | AO46: 0 | AP46: 0 | AQ46: 0 | AR46: 0 | AS46: 0 | AT46: 0 | AU46: 0 | AV46: 0 | AW46: 0 | AX46: 0 | AY46: 0 | AZ46: 0 | BA46: 0 | BB46: 0 | BC46: 0 | BD46: 0 | BE46: 0 | BF46: 0 | BG46: 0 | BH46: 0 | BI46: 0 | BJ46: 0 | BK46: 0 | BL46: 0 | BM46: 0 | BN46: 0 | BO46: 0 | BP46: 0 | BQ46: 0 | BR46: 0 | BS46: 0 | BT46: 0 | BU46: 0 | BW46: A | BX46: 31 | BY46: -100000 | BZ46: =payout($A46,D46,$C46:C46,BY46,$BY46:BY46) -> 7000 | CA46: =payout($A46,E46,$C46:D46,BZ46,$BY46:BZ46) -> 7000 | CB46: =payout($A46,F46,$C46:E46,CA46,$BY46:CA46) -> 7000 | CC46: =payout($A46,G46,$C46:F46,CB46,$BY46:CB46) -> 7000 | CD46: =payout($A46,H46,$C46:G46,CC46,$BY46:CC46) -> 7000 | CE46: =payout($A46,I46,$C46:H46,CD46,$BY46:CD46) -> 7000 | CF46: =payout($A46,J46,$C46:I46,CE46,$BY46:CE46) -> 7000 | CG46: =payout($A46,K46,$C46:J46,CF46,$BY46:CF46) -> 7000 | CH46: =payout($A46,L46,$C46:K46,CG46,$BY46:CG46) -> 7000 | CI46: =payout($A46,M46,$C46:L46,CH46,$BY46:CH46) -> 7000 | CJ46: =payout($A46,N46,$C46:M46,CI46,$BY46:CI46) -> 7000 | CK46: =payout($A46,O46,$C46:N46,CJ46,$BY46:CJ46) -> 7000 | CL46: =payout($A46,P46,$C46:O46,CK46,$BY46:CK46) -> 7000 | CM46: =payout($A46,Q46,$C46:P46,CL46,$BY46:CL46) -> 7000 | CN46: =payout($A46,R46,$C46:Q46,CM46,$BY46:CM46) -> 7000 | CO46: =payout($A46,S46,$C46:R46,CN46,$BY46:CN46) -> 7000 | CP46: =payout($A46,T46,$C46:S46,CO46,$BY46:CO46) -> 7000 | CQ46: =payout($A46,U46,$C46:T46,CP46,$BY46:CP46) -> 7000 | CR46: =payout($A46,V46,$C46:U46,CQ46,$BY46:CQ46) -> 7000 | CS46: =payout($A46,W46,$C46:V46,CR46,$BY46:CR46) -> 7000 | CT46: =payout($A46,X46,$C46:W46,CS46,$BY46:CS46) -> 7000 | CU46: =payout($A46,Y46,$C46:X46,CT46,$BY46:CT46) -> 7000 | CV46: =payout($A46,Z46,$C46:Y46,CU46,$BY46:CU46) -> 7000 | CW46: =payout($A46,AA46,$C46:Z46,CV46,$BY46:CV46) -> 7000 | CX46: =payout($A46,AB46,$C46:AA46,CW46,$BY46:CW46) -> 7000 | CY46: =payout($A46,AC46,$C46:AB46,CX46,$BY46:CX46) -> 7000 | CZ46: =payout($A46,AD46,$C46:AC46,CY46,$BY46:CY46) -> 7000 | DA46: =payout($A46,AE46,$C46:AD46,CZ46,$BY46:CZ46) -> 7000 | DB46: =payout($A46,AF46,$C46:AE46,DA46,$BY46:DA46) -> 7000 | DC46: =payout($A46,AG46,$C46:AF46,DB46,$BY46:DB46) -> 7000 | DD46: =payout($A46,AH46,$C46:AG46,DC46,$BY46:DC46) -> 7000 | DE46: =payout($A46,AI46,$C46:AH46,DD46,$BY46:DD46) -> 7000 | DF46: =payout($A46,AJ46,$C46:AI46,DE46,$BY46:DE46) -> 7000 | DG46: =payout($A46,AK46,$C46:AJ46,DF46,$BY46:DF46) -> 7000 | DH46: =payout($A46,AL46,$C46:AK46,DG46,$BY46:DG46) -> 7000 | DI46: =payout($A46,AM46,$C46:AL46,DH46,$BY46:DH46) -> 7000 | DJ46: =payout($A46,AN46,$C46:AM46,DI46,$BY46:DI46) -> 7000 | DK46: =payout($A46,AO46,$C46:AN46,DJ46,$BY46:DJ46) -> 7000 | DL46: =payout($A46,AP46,$C46:AO46,DK46,$BY46:DK46) -> 7000 | DM46: =payout($A46,AQ46,$C46:AP46,DL46,$BY46:DL46) -> 107000 | DN46: =payout($A46,AR46,$C46:AQ46,DM46,$BY46:DM46) -> 0 | DO46: 0 | DP46: 0 | DQ46: 0 | DR46: 0 | DS46: 0 | DT46: 0 | DU46: 0 | DV46: 0 | DW46: 0 | DX46: 0 | DY46: 0 | DZ46: 0 | EA46: 0 | EB46: 0 | EC46: 0 | ED46: 0 | EE46: 0 | EF46: 0 | EG46: 0 | EH46: 0 | EI46: 0 | EJ46: 0 | EK46: 0 | EL46: 0 | EM46: 0 | EN46: 0 | EO46: 0 | EP46: 0 | EQ46: 0
A47: =get_bond_grade($A$16:A46,$BX$5,$BY$5,$BZ$5) -> AAA | B47: 32 | C47: 1 | D47: 1 | E47: 1 | F47: 1 | G47: 1 | H47: 1 | I47: 1 | J47: 1 | K47: 1 | L47: 1 | M47: 1 | N47: 1 | O47: 1 | P47: 1 | Q47: 1 | R47: 1 | S47: 1 | T47: 1 | U47: 1 | V47: 1 | W47: 1 | X47: 1 | Y47: 1 | Z47: 1 | AA47: 1 | AB47: 1 | AC47: 1 | AD47: 1 | AE47: 1 | AF47: 1 | AG47: 1 | AH47: 1 | AI47: 1 | AJ47: 1 | AK47: 1 | AL47: 0 | AM47: 0 | AN47: 0 | AO47: 0 | AP47: 0 | AQ47: 0 | AR47: 0 | AS47: 0 | AT47: 0 | AU47: 0 | AV47: 0 | AW47: 0 | AX47: 0 | AY47: 0 | AZ47: 0 | BA47: 0 | BB47: 0 | BC47: 0 | BD47: 0 | BE47: 0 | BF47: 0 | BG47: 0 | BH47: 0 | BI47: 0 | BJ47: 0 | BK47: 0 | BL47: 0 | BM47: 0 | BN47: 0 | BO47: 0 | BP47: 0 | BQ47: 0 | BR47: 0 | BS47: 0 | BT47: 0 | BU47: 0 | BW47: AAA | BX47: 32 | BY47: -100000 | BZ47: =payout($A47,D47,$C47:C47,BY47,$BY47:BY47) -> 5000 | CA47: =payout($A47,E47,$C47:D47,BZ47,$BY47:BZ47) -> 5000 | CB47: =payout($A47,F47,$C47:E47,CA47,$BY47:CA47) -> 5000 | CC47: =payout($A47,G47,$C47:F47,CB47,$BY47:CB47) -> 5000 | CD47: =payout($A47,H47,$C47:G47,CC47,$BY47:CC47) -> 5000 | CE47: =payout($A47,I47,$C47:H47,CD47,$BY47:CD47) -> 5000 | CF47: =payout($A47,J47,$C47:I47,CE47,$BY47:CE47) -> 5000 | CG47: =payout($A47,K47,$C47:J47,CF47,$BY47:CF47) -> 5000 | CH47: =payout($A47,L47,$C47:K47,CG47,$BY47:CG47) -> 5000 | CI47: =payout($A47,M47,$C47:L47,CH47,$BY47:CH47) -> 5000 | CJ47: =payout($A47,N47,$C47:M47,CI47,$BY47:CI47) -> 5000 | CK47: =payout($A47,O47,$C47:N47,CJ47,$BY47:CJ47) -> 5000 | CL47: =payout($A47,P47,$C47:O47,CK47,$BY47:CK47) -> 5000 | CM47: =payout($A47,Q47,$C47:P47,CL47,$BY47:CL47) -> 5000 | CN47: =payout($A47,R47,$C47:Q47,CM47,$BY47:CM47) -> 5000 | CO47: =payout($A47,S47,$C47:R47,CN47,$BY47:CN47) -> 5000 | CP47: =payout($A47,T47,$C47:S47,CO47,$BY47:CO47) -> 5000 | CQ47: =payout($A47,U47,$C47:T47,CP47,$BY47:CP47) -> 5000 | CR47: =payout($A47,V47,$C47:U47,CQ47,$BY47:CQ47) -> 5000 | CS47: =payout($A47,W47,$C47:V47,CR47,$BY47:CR47) -> 5000 | CT47: =payout($A47,X47,$C47:W47,CS47,$BY47:CS47) -> 5000 | CU47: =payout($A47,Y47,$C47:X47,CT47,$BY47:CT47) -> 5000 | CV47: =payout($A47,Z47,$C47:Y47,CU47,$BY47:CU47) -> 5000 | CW47: =payout($A47,AA47,$C47:Z47,CV47,$BY47:CV47) -> 5000 | CX47: =payout($A47,AB47,$C47:AA47,CW47,$BY47:CW47) -> 5000 | CY47: =payout($A47,AC47,$C47:AB47,CX47,$BY47:CX47) -> 5000 | CZ47: =payout($A47,AD47,$C47:AC47,CY47,$BY47:CY47) -> 5000 | DA47: =payout($A47,AE47,$C47:AD47,CZ47,$BY47:CZ47) -> 5000 | DB47: =payout($A47,AF47,$C47:AE47,DA47,$BY47:DA47) -> 5000 | DC47: =payout($A47,AG47,$C47:AF47,DB47,$BY47:DB47) -> 5000 | DD47: =payout($A47,AH47,$C47:AG47,DC47,$BY47:DC47) -> 5000 | DE47: =payout($A47,AI47,$C47:AH47,DD47,$BY47:DD47) -> 5000 | DF47: =payout($A47,AJ47,$C47:AI47,DE47,$BY47:DE47) -> 5000 | DG47: =payout($A47,AK47,$C47:AJ47,DF47,$BY47:DF47) -> 5000 | DH47: =payout($A47,AL47,$C47:AK47,DG47,$BY47:DG47) -> 5000 | DI47: =payout($A47,AM47,$C47:AL47,DH47,$BY47:DH47) -> 5000 | DJ47: =payout($A47,AN47,$C47:AM47,DI47,$BY47:DI47) -> 5000 | DK47: =payout($A47,AO47,$C47:AN47,DJ47,$BY47:DJ47) -> 5000 | DL47: =payout($A47,AP47,$C47:AO47,DK47,$BY47:DK47) -> 5000 | DM47: =payout($A47,AQ47,$C47:AP47,DL47,$BY47:DL47) -> 105000 | DN47: =payout($A47,AR47,$C47:AQ47,DM47,$BY47:DM47) -> 0 | DO47: 0 | DP47: 0 | DQ47: 0 | DR47: 0 | DS47: 0 | DT47: 0 | DU47: 0 | DV47: 0 | DW47: 0 | DX47: 0 | DY47: 0 | DZ47: 0 | EA47: 0 | EB47: 0 | EC47: 0 | ED47: 0 | EE47: 0 | EF47: 0 | EG47: 0 | EH47: 0 | EI47: 0 | EJ47: 0 | EK47: 0 | EL47: 0 | EM47: 0 | EN47: 0 | EO47: 0 | EP47: 0 | EQ47: 0
A48: =get_bond_grade($A$16:A47,$BX$5,$BY$5,$BZ$5) -> AA | B48: 33 | C48: 1 | D48: 1 | E48: 1 | F48: 1 | G48: 1 | H48: 1 | I48: 1 | J48: 1 | K48: 1 | L48: 1 | M48: 1 | N48: 1 | O48: 1 | P48: 1 | Q48: 1 | R48: 1 | S48: 1 | T48: 1 | U48: 1 | V48: 1 | W48: 1 | X48: 1 | Y48: 1 | Z48: 1 | AA48: 1 | AB48: 1 | AC48: 1 | AD48: 1 | AE48: 1 | AF48: 1 | AG48: 1 | AH48: 1 | AI48: 1 | AJ48: 1 | AK48: 1 | AL48: 0 | AM48: 0 | AN48: 0 | AO48: 0 | AP48: 0 | AQ48: 0 | AR48: 0 | AS48: 0 | AT48: 0 | AU48: 0 | AV48: 0 | AW48: 0 | AX48: 0 | AY48: 0 | AZ48: 0 | BA48: 0 | BB48: 0 | BC48: 0 | BD48: 0 | BE48: 0 | BF48: 0 | BG48: 0 | BH48: 0 | BI48: 0 | BJ48: 0 | BK48: 0 | BL48: 0 | BM48: 0 | BN48: 0 | BO48: 0 | BP48: 0 | BQ48: 0 | BR48: 0 | BS48: 0 | BT48: 0 | BU48: 0 | BW48: AA | BX48: 33 | BY48: -100000 | BZ48: =payout($A48,D48,$C48:C48,BY48,$BY48:BY48) -> 6000 | CA48: =payout($A48,E48,$C48:D48,BZ48,$BY48:BZ48) -> 6000 | CB48: =payout($A48,F48,$C48:E48,CA48,$BY48:CA48) -> 6000 | CC48: =payout($A48,G48,$C48:F48,CB48,$BY48:CB48) -> 6000 | CD48: =payout($A48,H48,$C48:G48,CC48,$BY48:CC48) -> 6000 | CE48: =payout($A48,I48,$C48:H48,CD48,$BY48:CD48) -> 6000 | CF48: =payout($A48,J48,$C48:I48,CE48,$BY48:CE48) -> 6000 | CG48: =payout($A48,K48,$C48:J48,CF48,$BY48:CF48) -> 6000 | CH48: =payout($A48,L48,$C48:K48,CG48,$BY48:CG48) -> 6000 | CI48: =payout($A48,M48,$C48:L48,CH48,$BY48:CH48) -> 6000 | CJ48: =payout($A48,N48,$C48:M48,CI48,$BY48:CI48) -> 6000 | CK48: =payout($A48,O48,$C48:N48,CJ48,$BY48:CJ48) -> 6000 | CL48: =payout($A48,P48,$C48:O48,CK48,$BY48:CK48) -> 6000 | CM48: =payout($A48,Q48,$C48:P48,CL48,$BY48:CL48) -> 6000 | CN48: =payout($A48,R48,$C48:Q48,CM48,$BY48:CM48) -> 6000 | CO48: =payout($A48,S48,$C48:R48,CN48,$BY48:CN48) -> 6000 | CP48: =payout($A48,T48,$C48:S48,CO48,$BY48:CO48) -> 6000 | CQ48: =payout($A48,U48,$C48:T48,CP48,$BY48:CP48) -> 6000 | CR48: =payout($A48,V48,$C48:U48,CQ48,$BY48:CQ48) -> 6000 | CS48: =payout($A48,W48,$C48:V48,CR48,$BY48:CR48) -> 6000 | CT48: =payout($A48,X48,$C48:W48,CS48,$BY48:CS48) -> 6000 | CU48: =payout($A48,Y48,$C48:X48,CT48,$BY48:CT48) -> 6000 | CV48: =payout($A48,Z48,$C48:Y48,CU48,$BY48:CU48) -> 6000 | CW48: =payout($A48,AA48,$C48:Z48,CV48,$BY48:CV48) -> 6000 | CX48: =payout($A48,AB48,$C48:AA48,CW48,$BY48:CW48) -> 6000 | CY48: =payout($A48,AC48,$C48:AB48,CX48,$BY48:CX48) -> 6000 | CZ48: =payout($A48,AD48,$C48:AC48,CY48,$BY48:CY48) -> 6000 | DA48: =payout($A48,AE48,$C48:AD48,CZ48,$BY48:CZ48) -> 6000 | DB48: =payout($A48,AF48,$C48:AE48,DA48,$BY48:DA48) -> 6000 | DC48: =payout($A48,AG48,$C48:AF48,DB48,$BY48:DB48) -> 6000 | DD48: =payout($A48,AH48,$C48:AG48,DC48,$BY48:DC48) -> 6000 | DE48: =payout($A48,AI48,$C48:AH48,DD48,$BY48:DD48) -> 6000 | DF48: =payout($A48,AJ48,$C48:AI48,DE48,$BY48:DE48) -> 6000 | DG48: =payout($A48,AK48,$C48:AJ48,DF48,$BY48:DF48) -> 6000 | DH48: =payout($A48,AL48,$C48:AK48,DG48,$BY48:DG48) -> 6000 | DI48: =payout($A48,AM48,$C48:AL48,DH48,$BY48:DH48) -> 6000 | DJ48: =payout($A48,AN48,$C48:AM48,DI48,$BY48:DI48) -> 6000 | DK48: =payout($A48,AO48,$C48:AN48,DJ48,$BY48:DJ48) -> 6000 | DL48: =payout($A48,AP48,$C48:AO48,DK48,$BY48:DK48) -> 6000 | DM48: =payout($A48,AQ48,$C48:AP48,DL48,$BY48:DL48) -> 106000 | DN48: =payout($A48,AR48,$C48:AQ48,DM48,$BY48:DM48) -> 0 | DO48: 0 | DP48: 0 | DQ48: 0 | DR48: 0 | DS48: 0 | DT48: 0 | DU48: 0 | DV48: 0 | DW48: 0 | DX48: 0 | DY48: 0 | DZ48: 0 | EA48: 0 | EB48: 0 | EC48: 0 | ED48: 0 | EE48: 0 | EF48: 0 | EG48: 0 | EH48: 0 | EI48: 0 | EJ48: 0 | EK48: 0 | EL48: 0 | EM48: 0 | EN48: 0 | EO48: 0 | EP48: 0 | EQ48: 0
A49: =get_bond_grade($A$16:A48,$BX$5,$BY$5,$BZ$5) -> AAA | B49: 34 | C49: 1 | D49: 1 | E49: 1 | F49: 1 | G49: 1 | H49: 1 | I49: 1 | J49: 1 | K49: 1 | L49: 1 | M49: 1 | N49: 1 | O49: 1 | P49: 1 | Q49: 1 | R49: 1 | S49: 1 | T49: 1 | U49: 1 | V49: 1 | W49: 1 | X49: 1 | Y49: 1 | Z49: 1 | AA49: 1 | AB49: 1 | AC49: 1 | AD49: 1 | AE49: 1 | AF49: 1 | AG49: 1 | AH49: 1 | AI49: 1 | AJ49: 1 | AK49: 1 | AL49: 0 | AM49: 0 | AN49: 0 | AO49: 0 | AP49: 0 | AQ49: 0 | AR49: 0 | AS49: 0 | AT49: 0 | AU49: 0 | AV49: 0 | AW49: 0 | AX49: 0 | AY49: 0 | AZ49: 0 | BA49: 0 | BB49: 0 | BC49: 0 | BD49: 0 | BE49: 0 | BF49: 0 | BG49: 0 | BH49: 0 | BI49: 0 | BJ49: 0 | BK49: 0 | BL49: 0 | BM49: 0 | BN49: 0 | BO49: 0 | BP49: 0 | BQ49: 0 | BR49: 0 | BS49: 0 | BT49: 0 | BU49: 0 | BW49: AAA | BX49: 34 | BY49: -100000 | BZ49: =payout($A49,D49,$C49:C49,BY49,$BY49:BY49) -> 5000 | CA49: =payout($A49,E49,$C49:D49,BZ49,$BY49:BZ49) -> 5000 | CB49: =payout($A49,F49,$C49:E49,CA49,$BY49:CA49) -> 5000 | CC49: =payout($A49,G49,$C49:F49,CB49,$BY49:CB49) -> 5000 | CD49: =payout($A49,H49,$C49:G49,CC49,$BY49:CC49) -> 5000 | CE49: =payout($A49,I49,$C49:H49,CD49,$BY49:CD49) -> 5000 | CF49: =payout($A49,J49,$C49:I49,CE49,$BY49:CE49) -> 5000 | CG49: =payout($A49,K49,$C49:J49,CF49,$BY49:CF49) -> 5000 | CH49: =payout($A49,L49,$C49:K49,CG49,$BY49:CG49) -> 5000 | CI49: =payout($A49,M49,$C49:L49,CH49,$BY49:CH49) -> 5000 | CJ49: =payout($A49,N49,$C49:M49,CI49,$BY49:CI49) -> 5000 | CK49: =payout($A49,O49,$C49:N49,CJ49,$BY49:CJ49) -> 5000 | CL49: =payout($A49,P49,$C49:O49,CK49,$BY49:CK49) -> 5000 | CM49: =payout($A49,Q49,$C49:P49,CL49,$BY49:CL49) -> 5000 | CN49: =payout($A49,R49,$C49:Q49,CM49,$BY49:CM49) -> 5000 | CO49: =payout($A49,S49,$C49:R49,CN49,$BY49:CN49) -> 5000 | CP49: =payout($A49,T49,$C49:S49,CO49,$BY49:CO49) -> 5000 | CQ49: =payout($A49,U49,$C49:T49,CP49,$BY49:CP49) -> 5000 | CR49: =payout($A49,V49,$C49:U49,CQ49,$BY49:CQ49) -> 5000 | CS49: =payout($A49,W49,$C49:V49,CR49,$BY49:CR49) -> 5000 | CT49: =payout($A49,X49,$C49:W49,CS49,$BY49:CS49) -> 5000 | CU49: =payout($A49,Y49,$C49:X49,CT49,$BY49:CT49) -> 5000 | CV49: =payout($A49,Z49,$C49:Y49,CU49,$BY49:CU49) -> 5000 | CW49: =payout($A49,AA49,$C49:Z49,CV49,$BY49:CV49) -> 5000 | CX49: =payout($A49,AB49,$C49:AA49,CW49,$BY49:CW49) -> 5000 | CY49: =payout($A49,AC49,$C49:AB49,CX49,$BY49:CX49) -> 5000 | CZ49: =payout($A49,AD49,$C49:AC49,CY49,$BY49:CY49) -> 5000 | DA49: =payout($A49,AE49,$C49:AD49,CZ49,$BY49:CZ49) -> 5000 | DB49: =payout($A49,AF49,$C49:AE49,DA49,$BY49:DA49) -> 5000 | DC49: =payout($A49,AG49,$C49:AF49,DB49,$BY49:DB49) -> 5000 | DD49: =payout($A49,AH49,$C49:AG49,DC49,$BY49:DC49) -> 5000 | DE49: =payout($A49,AI49,$C49:AH49,DD49,$BY49:DD49) -> 5000 | DF49: =payout($A49,AJ49,$C49:AI49,DE49,$BY49:DE49) -> 5000 | DG49: =payout($A49,AK49,$C49:AJ49,DF49,$BY49:DF49) -> 5000 | DH49: =payout($A49,AL49,$C49:AK49,DG49,$BY49:DG49) -> 5000 | DI49: =payout($A49,AM49,$C49:AL49,DH49,$BY49:DH49) -> 5000 | DJ49: =payout($A49,AN49,$C49:AM49,DI49,$BY49:DI49) -> 5000 | DK49: =payout($A49,AO49,$C49:AN49,DJ49,$BY49:DJ49) -> 5000 | DL49: =payout($A49,AP49,$C49:AO49,DK49,$BY49:DK49) -> 5000 | DM49: =payout($A49,AQ49,$C49:AP49,DL49,$BY49:DL49) -> 105000 | DN49: =payout($A49,AR49,$C49:AQ49,DM49,$BY49:DM49) -> 0 | DO49: 0 | DP49: 0 | DQ49: 0 | DR49: 0 | DS49: 0 | DT49: 0 | DU49: 0 | DV49: 0 | DW49: 0 | DX49: 0 | DY49: 0 | DZ49: 0 | EA49: 0 | EB49: 0 | EC49: 0 | ED49: 0 | EE49: 0 | EF49: 0 | EG49: 0 | EH49: 0 | EI49: 0 | EJ49: 0 | EK49: 0 | EL49: 0 | EM49: 0 | EN49: 0 | EO49: 0 | EP49: 0 | EQ49: 0
A50: =get_bond_grade($A$16:A49,$BX$5,$BY$5,$BZ$5) -> AA | B50: 35 | C50: 1 | D50: 1 | E50: 1 | F50: 1 | G50: 1 | H50: 1 | I50: 1 | J50: 1 | K50: 1 | L50: 1 | M50: 1 | N50: 1 | O50: 1 | P50: 1 | Q50: 1 | R50: 1 | S50: 1 | T50: 1 | U50: 1 | V50: 1 | W50: 1 | X50: 1 | Y50: 1 | Z50: 1 | AA50: 1 | AB50: 1 | AC50: 1 | AD50: 1 | AE50: 1 | AF50: 1 | AG50: 1 | AH50: 1 | AI50: 1 | AJ50: 1 | AK50: 1 | AL50: 0 | AM50: 0 | AN50: 0 | AO50: 0 | AP50: 0 | AQ50: 0 | AR50: 0 | AS50: 0 | AT50: 0 | AU50: 0 | AV50: 0 | AW50: 0 | AX50: 0 | AY50: 0 | AZ50: 0 | BA50: 0 | BB50: 0 | BC50: 0 | BD50: 0 | BE50: 0 | BF50: 0 | BG50: 0 | BH50: 0 | BI50: 0 | BJ50: 0 | BK50: 0 | BL50: 0 | BM50: 0 | BN50: 0 | BO50: 0 | BP50: 0 | BQ50: 0 | BR50: 0 | BS50: 0 | BT50: 0 | BU50: 0 | BW50: AA | BX50: 35 | BY50: -100000 | BZ50: =payout($A50,D50,$C50:C50,BY50,$BY50:BY50) -> 6000 | CA50: =payout($A50,E50,$C50:D50,BZ50,$BY50:BZ50) -> 6000 | CB50: =payout($A50,F50,$C50:E50,CA50,$BY50:CA50) -> 6000 | CC50: =payout($A50,G50,$C50:F50,CB50,$BY50:CB50) -> 6000 | CD50: =payout($A50,H50,$C50:G50,CC50,$BY50:CC50) -> 6000 | CE50: =payout($A50,I50,$C50:H50,CD50,$BY50:CD50) -> 6000 | CF50: =payout($A50,J50,$C50:I50,CE50,$BY50:CE50) -> 6000 | CG50: =payout($A50,K50,$C50:J50,CF50,$BY50:CF50) -> 6000 | CH50: =payout($A50,L50,$C50:K50,CG50,$BY50:CG50) -> 6000 | CI50: =payout($A50,M50,$C50:L50,CH50,$BY50:CH50) -> 6000 | CJ50: =payout($A50,N50,$C50:M50,CI50,$BY50:CI50) -> 6000 | CK50: =payout($A50,O50,$C50:N50,CJ50,$BY50:CJ50) -> 6000 | CL50: =payout($A50,P50,$C50:O50,CK50,$BY50:CK50) -> 6000 | CM50: =payout($A50,Q50,$C50:P50,CL50,$BY50:CL50) -> 6000 | CN50: =payout($A50,R50,$C50:Q50,CM50,$BY50:CM50) -> 6000 | CO50: =payout($A50,S50,$C50:R50,CN50,$BY50:CN50) -> 6000 | CP50: =payout($A50,T50,$C50:S50,CO50,$BY50:CO50) -> 6000 | CQ50: =payout($A50,U50,$C50:T50,CP50,$BY50:CP50) -> 6000 | CR50: =payout($A50,V50,$C50:U50,CQ50,$BY50:CQ50) -> 6000 | CS50: =payout($A50,W50,$C50:V50,CR50,$BY50:CR50) -> 6000 | CT50: =payout($A50,X50,$C50:W50,CS50,$BY50:CS50) -> 6000 | CU50: =payout($A50,Y50,$C50:X50,CT50,$BY50:CT50) -> 6000 | CV50: =payout($A50,Z50,$C50:Y50,CU50,$BY50:CU50) -> 6000 | CW50: =payout($A50,AA50,$C50:Z50,CV50,$BY50:CV50) -> 6000 | CX50: =payout($A50,AB50,$C50:AA50,CW50,$BY50:CW50) -> 6000 | CY50: =payout($A50,AC50,$C50:AB50,CX50,$BY50:CX50) -> 6000 | CZ50: =payout($A50,AD50,$C50:AC50,CY50,$BY50:CY50) -> 6000 | DA50: =payout($A50,AE50,$C50:AD50,CZ50,$BY50:CZ50) -> 6000 | DB50: =payout($A50,AF50,$C50:AE50,DA50,$BY50:DA50) -> 6000 | DC50: =payout($A50,AG50,$C50:AF50,DB50,$BY50:DB50) -> 6000 | DD50: =payout($A50,AH50,$C50:AG50,DC50,$BY50:DC50) -> 6000 | DE50: =payout($A50,AI50,$C50:AH50,DD50,$BY50:DD50) -> 6000 | DF50: =payout($A50,AJ50,$C50:AI50,DE50,$BY50:DE50) -> 6000 | DG50: =payout($A50,AK50,$C50:AJ50,DF50,$BY50:DF50) -> 6000 | DH50: =payout($A50,AL50,$C50:AK50,DG50,$BY50:DG50) -> 6000 | DI50: =payout($A50,AM50,$C50:AL50,DH50,$BY50:DH50) -> 6000 | DJ50: =payout($A50,AN50,$C50:AM50,DI50,$BY50:DI50) -> 6000 | DK50: =payout($A50,AO50,$C50:AN50,DJ50,$BY50:DJ50) -> 6000 | DL50: =payout($A50,AP50,$C50:AO50,DK50,$BY50:DK50) -> 6000 | DM50: =payout($A50,AQ50,$C50:AP50,DL50,$BY50:DL50) -> 106000 | DN50: =payout($A50,AR50,$C50:AQ50,DM50,$BY50:DM50) -> 0 | DO50: 0 | DP50: 0 | DQ50: 0 | DR50: 0 | DS50: 0 | DT50: 0 | DU50: 0 | DV50: 0 | DW50: 0 | DX50: 0 | DY50: 0 | DZ50: 0 | EA50: 0 | EB50: 0 | EC50: 0 | ED50: 0 | EE50: 0 | EF50: 0 | EG50: 0 | EH50: 0 | EI50: 0 | EJ50: 0 | EK50: 0 | EL50: 0 | EM50: 0 | EN50: 0 | EO50: 0 | EP50: 0 | EQ50: 0
A51: =get_bond_grade($A$16:A50,$BX$5,$BY$5,$BZ$5) -> A | B51: 36 | C51: 1 | D51: 1 | E51: 1 | F51: 1 | G51: 1 | H51: 1 | I51: 1 | J51: 1 | K51: 1 | L51: 1 | M51: 1 | N51: 1 | O51: 1 | P51: 1 | Q51: 1 | R51: 1 | S51: 1 | T51: 1 | U51: 1 | V51: 1 | W51: 1 | X51: 1 | Y51: 1 | Z51: 1 | AA51: 1 | AB51: 1 | AC51: 1 | AD51: 1 | AE51: 1 | AF51: 1 | AG51: 1 | AH51: 1 | AI51: 1 | AJ51: 1 | AK51: 1 | AL51: 0 | AM51: 0 | AN51: 0 | AO51: 0 | AP51: 0 | AQ51: 0 | AR51: 0 | AS51: 0 | AT51: 0 | AU51: 0 | AV51: 0 | AW51: 0 | AX51: 0 | AY51: 0 | AZ51: 0 | BA51: 0 | BB51: 0 | BC51: 0 | BD51: 0 | BE51: 0 | BF51: 0 | BG51: 0 | BH51: 0 | BI51: 0 | BJ51: 0 | BK51: 0 | BL51: 0 | BM51: 0 | BN51: 0 | BO51: 0 | BP51: 0 | BQ51: 0 | BR51: 0 | BS51: 0 | BT51: 0 | BU51: 0 | BW51: A | BX51: 36 | BY51: -100000 | BZ51: =payout($A51,D51,$C51:C51,BY51,$BY51:BY51) -> 7000 | CA51: =payout($A51,E51,$C51:D51,BZ51,$BY51:BZ51) -> 7000 | CB51: =payout($A51,F51,$C51:E51,CA51,$BY51:CA51) -> 7000 | CC51: =payout($A51,G51,$C51:F51,CB51,$BY51:CB51) -> 7000 | CD51: =payout($A51,H51,$C51:G51,CC51,$BY51:CC51) -> 7000 | CE51: =payout($A51,I51,$C51:H51,CD51,$BY51:CD51) -> 7000 | CF51: =payout($A51,J51,$C51:I51,CE51,$BY51:CE51) -> 7000 | CG51: =payout($A51,K51,$C51:J51,CF51,$BY51:CF51) -> 7000 | CH51: =payout($A51,L51,$C51:K51,CG51,$BY51:CG51) -> 7000 | CI51: =payout($A51,M51,$C51:L51,CH51,$BY51:CH51) -> 7000 | CJ51: =payout($A51,N51,$C51:M51,CI51,$BY51:CI51) -> 7000 | CK51: =payout($A51,O51,$C51:N51,CJ51,$BY51:CJ51) -> 7000 | CL51: =payout($A51,P51,$C51:O51,CK51,$BY51:CK51) -> 7000 | CM51: =payout($A51,Q51,$C51:P51,CL51,$BY51:CL51) -> 7000 | CN51: =payout($A51,R51,$C51:Q51,CM51,$BY51:CM51) -> 7000 | CO51: =payout($A51,S51,$C51:R51,CN51,$BY51:CN51) -> 7000 | CP51: =payout($A51,T51,$C51:S51,CO51,$BY51:CO51) -> 7000 | CQ51: =payout($A51,U51,$C51:T51,CP51,$BY51:CP51) -> 7000 | CR51: =payout($A51,V51,$C51:U51,CQ51,$BY51:CQ51) -> 7000 | CS51: =payout($A51,W51,$C51:V51,CR51,$BY51:CR51) -> 7000 | CT51: =payout($A51,X51,$C51:W51,CS51,$BY51:CS51) -> 7000 | CU51: =payout($A51,Y51,$C51:X51,CT51,$BY51:CT51) -> 7000 | CV51: =payout($A51,Z51,$C51:Y51,CU51,$BY51:CU51) -> 7000 | CW51: =payout($A51,AA51,$C51:Z51,CV51,$BY51:CV51) -> 7000 | CX51: =payout($A51,AB51,$C51:AA51,CW51,$BY51:CW51) -> 7000 | CY51: =payout($A51,AC51,$C51:AB51,CX51,$BY51:CX51) -> 7000 | CZ51: =payout($A51,AD51,$C51:AC51,CY51,$BY51:CY51) -> 7000 | DA51: =payout($A51,AE51,$C51:AD51,CZ51,$BY51:CZ51) -> 7000 | DB51: =payout($A51,AF51,$C51:AE51,DA51,$BY51:DA51) -> 7000 | DC51: =payout($A51,AG51,$C51:AF51,DB51,$BY51:DB51) -> 7000 | DD51: =payout($A51,AH51,$C51:AG51,DC51,$BY51:DC51) -> 7000 | DE51: =payout($A51,AI51,$C51:AH51,DD51,$BY51:DD51) -> 7000 | DF51: =payout($A51,AJ51,$C51:AI51,DE51,$BY51:DE51) -> 7000 | DG51: =payout($A51,AK51,$C51:AJ51,DF51,$BY51:DF51) -> 7000 | DH51: =payout($A51,AL51,$C51:AK51,DG51,$BY51:DG51) -> 7000 | DI51: =payout($A51,AM51,$C51:AL51,DH51,$BY51:DH51) -> 7000 | DJ51: =payout($A51,AN51,$C51:AM51,DI51,$BY51:DI51) -> 7000 | DK51: =payout($A51,AO51,$C51:AN51,DJ51,$BY51:DJ51) -> 7000 | DL51: =payout($A51,AP51,$C51:AO51,DK51,$BY51:DK51) -> 7000 | DM51: =payout($A51,AQ51,$C51:AP51,DL51,$BY51:DL51) -> 107000 | DN51: =payout($A51,AR51,$C51:AQ51,DM51,$BY51:DM51) -> 0 | DO51: 0 | DP51: 0 | DQ51: 0 | DR51: 0 | DS51: 0 | DT51: 0 | DU51: 0 | DV51: 0 | DW51: 0 | DX51: 0 | DY51: 0 | DZ51: 0 | EA51: 0 | EB51: 0 | EC51: 0 | ED51: 0 | EE51: 0 | EF51: 0 | EG51: 0 | EH51: 0 | EI51: 0 | EJ51: 0 | EK51: 0 | EL51: 0 | EM51: 0 | EN51: 0 | EO51: 0 | EP51: 0 | EQ51: 0
A52: =get_bond_grade($A$16:A51,$BX$5,$BY$5,$BZ$5) -> AAA | B52: 37 | C52: 1 | D52: 1 | E52: 1 | F52: 1 | G52: 1 | H52: 1 | I52: 1 | J52: 1 | K52: 1 | L52: 1 | M52: 1 | N52: 1 | O52: 1 | P52: 1 | Q52: 1 | R52: 1 | S52: 1 | T52: 1 | U52: 1 | V52: 1 | W52: 1 | X52: 1 | Y52: 1 | Z52: 1 | AA52: 1 | AB52: 1 | AC52: 1 | AD52: 1 | AE52: 1 | AF52: 1 | AG52: 1 | AH52: 1 | AI52: 1 | AJ52: 1 | AK52: 1 | AL52: 0 | AM52: 0 | AN52: 0 | AO52: 0 | AP52: 0 | AQ52: 0 | AR52: 0 | AS52: 0 | AT52: 0 | AU52: 0 | AV52: 0 | AW52: 0 | AX52: 0 | AY52: 0 | AZ52: 0 | BA52: 0 | BB52: 0 | BC52: 0 | BD52: 0 | BE52: 0 | BF52: 0 | BG52: 0 | BH52: 0 | BI52: 0 | BJ52: 0 | BK52: 0 | BL52: 0 | BM52: 0 | BN52: 0 | BO52: 0 | BP52: 0 | BQ52: 0 | BR52: 0 | BS52: 0 | BT52: 0 | BU52: 0 | BW52: AAA | BX52: 37 | BY52: -100000 | BZ52: =payout($A52,D52,$C52:C52,BY52,$BY52:BY52) -> 5000 | CA52: =payout($A52,E52,$C52:D52,BZ52,$BY52:BZ52) -> 5000 | CB52: =payout($A52,F52,$C52:E52,CA52,$BY52:CA52) -> 5000 | CC52: =payout($A52,G52,$C52:F52,CB52,$BY52:CB52) -> 5000 | CD52: =payout($A52,H52,$C52:G52,CC52,$BY52:CC52) -> 5000 | CE52: =payout($A52,I52,$C52:H52,CD52,$BY52:CD52) -> 5000 | CF52: =payout($A52,J52,$C52:I52,CE52,$BY52:CE52) -> 5000 | CG52: =payout($A52,K52,$C52:J52,CF52,$BY52:CF52) -> 5000 | CH52: =payout($A52,L52,$C52:K52,CG52,$BY52:CG52) -> 5000 | CI52: =payout($A52,M52,$C52:L52,CH52,$BY52:CH52) -> 5000 | CJ52: =payout($A52,N52,$C52:M52,CI52,$BY52:CI52) -> 5000 | CK52: =payout($A52,O52,$C52:N52,CJ52,$BY52:CJ52) -> 5000 | CL52: =payout($A52,P52,$C52:O52,CK52,$BY52:CK52) -> 5000 | CM52: =payout($A52,Q52,$C52:P52,CL52,$BY52:CL52) -> 5000 | CN52: =payout($A52,R52,$C52:Q52,CM52,$BY52:CM52) -> 5000 | CO52: =payout($A52,S52,$C52:R52,CN52,$BY52:CN52) -> 5000 | CP52: =payout($A52,T52,$C52:S52,CO52,$BY52:CO52) -> 5000 | CQ52: =payout($A52,U52,$C52:T52,CP52,$BY52:CP52) -> 5000 | CR52: =payout($A52,V52,$C52:U52,CQ52,$BY52:CQ52) -> 5000 | CS52: =payout($A52,W52,$C52:V52,CR52,$BY52:CR52) -> 5000 | CT52: =payout($A52,X52,$C52:W52,CS52,$BY52:CS52) -> 5000 | CU52: =payout($A52,Y52,$C52:X52,CT52,$BY52:CT52) -> 5000 | CV52: =payout($A52,Z52,$C52:Y52,CU52,$BY52:CU52) -> 5000 | CW52: =payout($A52,AA52,$C52:Z52,CV52,$BY52:CV52) -> 5000 | CX52: =payout($A52,AB52,$C52:AA52,CW52,$BY52:CW52) -> 5000 | CY52: =payout($A52,AC52,$C52:AB52,CX52,$BY52:CX52) -> 5000 | CZ52: =payout($A52,AD52,$C52:AC52,CY52,$BY52:CY52) -> 5000 | DA52: =payout($A52,AE52,$C52:AD52,CZ52,$BY52:CZ52) -> 5000 | DB52: =payout($A52,AF52,$C52:AE52,DA52,$BY52:DA52) -> 5000 | DC52: =payout($A52,AG52,$C52:AF52,DB52,$BY52:DB52) -> 5000 | DD52: =payout($A52,AH52,$C52:AG52,DC52,$BY52:DC52) -> 5000 | DE52: =payout($A52,AI52,$C52:AH52,DD52,$BY52:DD52) -> 5000 | DF52: =payout($A52,AJ52,$C52:AI52,DE52,$BY52:DE52) -> 5000 | DG52: =payout($A52,AK52,$C52:AJ52,DF52,$BY52:DF52) -> 5000 | DH52: =payout($A52,AL52,$C52:AK52,DG52,$BY52:DG52) -> 5000 | DI52: =payout($A52,AM52,$C52:AL52,DH52,$BY52:DH52) -> 5000 | DJ52: =payout($A52,AN52,$C52:AM52,DI52,$BY52:DI52) -> 5000 | DK52: =payout($A52,AO52,$C52:AN52,DJ52,$BY52:DJ52) -> 5000 | DL52: =payout($A52,AP52,$C52:AO52,DK52,$BY52:DK52) -> 5000 | DM52: =payout($A52,AQ52,$C52:AP52,DL52,$BY52:DL52) -> 105000 | DN52: =payout($A52,AR52,$C52:AQ52,DM52,$BY52:DM52) -> 0 | DO52: 0 | DP52: 0 | DQ52: 0 | DR52: 0 | DS52: 0 | DT52: 0 | DU52: 0 | DV52: 0 | DW52: 0 | DX52: 0 | DY52: 0 | DZ52: 0 | EA52: 0 | EB52: 0 | EC52: 0 | ED52: 0 | EE52: 0 | EF52: 0 | EG52: 0 | EH52: 0 | EI52: 0 | EJ52: 0 | EK52: 0 | EL52: 0 | EM52: 0 | EN52: 0 | EO52: 0 | EP52: 0 | EQ52: 0
A53: =get_bond_grade($A$16:A52,$BX$5,$BY$5,$BZ$5) -> AA | B53: 38 | C53: 1 | D53: 1 | E53: 1 | F53: 1 | G53: 1 | H53: 1 | I53: 1 | J53: 1 | K53: 1 | L53: 1 | M53: 1 | N53: 1 | O53: 1 | P53: 1 | Q53: 1 | R53: 1 | S53: 1 | T53: 1 | U53: 1 | V53: 0 | W53: 0 | X53: 0 | Y53: 0 | Z53: 0 | AA53: 0 | AB53: 0 | AC53: 0 | AD53: 0 | AE53: 0 | AF53: 0 | AG53: 0 | AH53: 0 | AI53: 0 | AJ53: 0 | AK53: 0 | AL53: 0 | AM53: 0 | AN53: 0 | AO53: 0 | AP53: 0 | AQ53: 0 | AR53: 0 | AS53: 0 | AT53: 0 | AU53: 0 | AV53: 0 | AW53: 0 | AX53: 0 | AY53: 0 | AZ53: 0 | BA53: 0 | BB53: 0 | BC53: 0 | BD53: 0 | BE53: 0 | BF53: 0 | BG53: 0 | BH53: 0 | BI53: 0 | BJ53: 0 | BK53: 0 | BL53: 0 | BM53: 0 | BN53: 0 | BO53: 0 | BP53: 0 | BQ53: 0 | BR53: 0 | BS53: 0 | BT53: 0 | BU53: 0 | BW53: AA | BX53: 38 | BY53: -100000 | BZ53: =payout($A53,D53,$C53:C53,BY53,$BY53:BY53) -> 6000 | CA53: =payout($A53,E53,$C53:D53,BZ53,$BY53:BZ53) -> 6000 | CB53: =payout($A53,F53,$C53:E53,CA53,$BY53:CA53) -> 6000 | CC53: =payout($A53,G53,$C53:F53,CB53,$BY53:CB53) -> 6000 | CD53: =payout($A53,H53,$C53:G53,CC53,$BY53:CC53) -> 6000 | CE53: =payout($A53,I53,$C53:H53,CD53,$BY53:CD53) -> 6000 | CF53: =payout($A53,J53,$C53:I53,CE53,$BY53:CE53) -> 6000 | CG53: =payout($A53,K53,$C53:J53,CF53,$BY53:CF53) -> 6000 | CH53: =payout($A53,L53,$C53:K53,CG53,$BY53:CG53) -> 6000 | CI53: =payout($A53,M53,$C53:L53,CH53,$BY53:CH53) -> 6000 | CJ53: =payout($A53,N53,$C53:M53,CI53,$BY53:CI53) -> 6000 | CK53: =payout($A53,O53,$C53:N53,CJ53,$BY53:CJ53) -> 6000 | CL53: =payout($A53,P53,$C53:O53,CK53,$BY53:CK53) -> 6000 | CM53: =payout($A53,Q53,$C53:P53,CL53,$BY53:CL53) -> 6000 | CN53: =payout($A53,R53,$C53:Q53,CM53,$BY53:CM53) -> 6000 | CO53: =payout($A53,S53,$C53:R53,CN53,$BY53:CN53) -> 6000 | CP53: =payout($A53,T53,$C53:S53,CO53,$BY53:CO53) -> 6000 | CQ53: =payout($A53,U53,$C53:T53,CP53,$BY53:CP53) -> 6000 | CR53: =payout($A53,V53,$C53:U53,CQ53,$BY53:CQ53) -> 6000 | CS53: =payout($A53,W53,$C53:V53,CR53,$BY53:CR53) -> 6000 | CT53: =payout($A53,X53,$C53:W53,CS53,$BY53:CS53) -> 6000 | CU53: =payout($A53,Y53,$C53:X53,CT53,$BY53:CT53) -> 6000 | CV53: =payout($A53,Z53,$C53:Y53,CU53,$BY53:CU53) -> 6000 | CW53: =payout($A53,AA53,$C53:Z53,CV53,$BY53:CV53) -> 6000 | CX53: =payout($A53,AB53,$C53:AA53,CW53,$BY53:CW53) -> 6000 | CY53: =payout($A53,AC53,$C53:AB53,CX53,$BY53:CX53) -> 6000 | CZ53: =payout($A53,AD53,$C53:AC53,CY53,$BY53:CY53) -> 6000 | DA53: =payout($A53,AE53,$C53:AD53,CZ53,$BY53:CZ53) -> 6000 | DB53: =payout($A53,AF53,$C53:AE53,DA53,$BY53:DA53) -> 6000 | DC53: =payout($A53,AG53,$C53:AF53,DB53,$BY53:DB53) -> 6000 | DD53: =payout($A53,AH53,$C53:AG53,DC53,$BY53:DC53) -> 6000 | DE53: =payout($A53,AI53,$C53:AH53,DD53,$BY53:DD53) -> 6000 | DF53: =payout($A53,AJ53,$C53:AI53,DE53,$BY53:DE53) -> 6000 | DG53: =payout($A53,AK53,$C53:AJ53,DF53,$BY53:DF53) -> 6000 | DH53: =payout($A53,AL53,$C53:AK53,DG53,$BY53:DG53) -> 6000 | DI53: =payout($A53,AM53,$C53:AL53,DH53,$BY53:DH53) -> 6000 | DJ53: =payout($A53,AN53,$C53:AM53,DI53,$BY53:DI53) -> 6000 | DK53: =payout($A53,AO53,$C53:AN53,DJ53,$BY53:DJ53) -> 6000 | DL53: =payout($A53,AP53,$C53:AO53,DK53,$BY53:DK53) -> 6000 | DM53: =payout($A53,AQ53,$C53:AP53,DL53,$BY53:DL53) -> 106000 | DN53: =payout($A53,AR53,$C53:AQ53,DM53,$BY53:DM53) -> 0 | DO53: 0 | DP53: 0 | DQ53: 0 | DR53: 0 | DS53: 0 | DT53: 0 | DU53: 0 | DV53: 0 | DW53: 0 | DX53: 0 | DY53: 0 | DZ53: 0 | EA53: 0 | EB53: 0 | EC53: 0 | ED53: 0 | EE53: 0 | EF53: 0 | EG53: 0 | EH53: 0 | EI53: 0 | EJ53: 0 | EK53: 0 | EL53: 0 | EM53: 0 | EN53: 0 | EO53: 0 | EP53: 0 | EQ53: 0
A54: =get_bond_grade($A$16:A53,$BX$5,$BY$5,$BZ$5) -> AAA | B54: 39 | C54: 1 | D54: 1 | E54: 1 | F54: 1 | G54: 1 | H54: 1 | I54: 1 | J54: 1 | K54: 1 | L54: 1 | M54: 1 | N54: 1 | O54: 1 | P54: 1 | Q54: 1 | R54: 1 | S54: 1 | T54: 1 | U54: 1 | V54: 1 | W54: 1 | X54: 1 | Y54: 1 | Z54: 0 | AA54: 0 | AB54: 0 | AC54: 0 | AD54: 0 | AE54: 0 | AF54: 0 | AG54: 0 | AH54: 0 | AI54: 0 | AJ54: 0 | AK54: 0 | AL54: 0 | AM54: 0 | AN54: 0 | AO54: 0 | AP54: 0 | AQ54: 0 | AR54: 0 | AS54: 0 | AT54: 0 | AU54: 0 | AV54: 0 | AW54: 0 | AX54: 0 | AY54: 0 | AZ54: 0 | BA54: 0 | BB54: 0 | BC54: 0 | BD54: 0 | BE54: 0 | BF54: 0 | BG54: 0 | BH54: 0 | BI54: 0 | BJ54: 0 | BK54: 0 | BL54: 0 | BM54: 0 | BN54: 0 | BO54: 0 | BP54: 0 | BQ54: 0 | BR54: 0 | BS54: 0 | BT54: 0 | BU54: 0 | BW54: AAA | BX54: 39 | BY54: -100000 | BZ54: =payout($A54,D54,$C54:C54,BY54,$BY54:BY54) -> 5000 | CA54: =payout($A54,E54,$C54:D54,BZ54,$BY54:BZ54) -> 5000 | CB54: =payout($A54,F54,$C54:E54,CA54,$BY54:CA54) -> 5000 | CC54: =payout($A54,G54,$C54:F54,CB54,$BY54:CB54) -> 5000 | CD54: =payout($A54,H54,$C54:G54,CC54,$BY54:CC54) -> 5000 | CE54: =payout($A54,I54,$C54:H54,CD54,$BY54:CD54) -> 5000 | CF54: =payout($A54,J54,$C54:I54,CE54,$BY54:CE54) -> 5000 | CG54: =payout($A54,K54,$C54:J54,CF54,$BY54:CF54) -> 5000 | CH54: =payout($A54,L54,$C54:K54,CG54,$BY54:CG54) -> 5000 | CI54: =payout($A54,M54,$C54:L54,CH54,$BY54:CH54) -> 5000 | CJ54: =payout($A54,N54,$C54:M54,CI54,$BY54:CI54) -> 5000 | CK54: =payout($A54,O54,$C54:N54,CJ54,$BY54:CJ54) -> 5000 | CL54: =payout($A54,P54,$C54:O54,CK54,$BY54:CK54) -> 5000 | CM54: =payout($A54,Q54,$C54:P54,CL54,$BY54:CL54) -> 5000 | CN54: =payout($A54,R54,$C54:Q54,CM54,$BY54:CM54) -> 5000 | CO54: =payout($A54,S54,$C54:R54,CN54,$BY54:CN54) -> 5000 | CP54: =payout($A54,T54,$C54:S54,CO54,$BY54:CO54) -> 5000 | CQ54: =payout($A54,U54,$C54:T54,CP54,$BY54:CP54) -> 5000 | CR54: =payout($A54,V54,$C54:U54,CQ54,$BY54:CQ54) -> 5000 | CS54: =payout($A54,W54,$C54:V54,CR54,$BY54:CR54) -> 5000 | CT54: =payout($A54,X54,$C54:W54,CS54,$BY54:CS54) -> 5000 | CU54: =payout($A54,Y54,$C54:X54,CT54,$BY54:CT54) -> 5000 | CV54: =payout($A54,Z54,$C54:Y54,CU54,$BY54:CU54) -> 5000 | CW54: =payout($A54,AA54,$C54:Z54,CV54,$BY54:CV54) -> 5000 | CX54: =payout($A54,AB54,$C54:AA54,CW54,$BY54:CW54) -> 5000 | CY54: =payout($A54,AC54,$C54:AB54,CX54,$BY54:CX54) -> 5000 | CZ54: =payout($A54,AD54,$C54:AC54,CY54,$BY54:CY54) -> 5000 | DA54: =payout($A54,AE54,$C54:AD54,CZ54,$BY54:CZ54) -> 5000 | DB54: =payout($A54,AF54,$C54:AE54,DA54,$BY54:DA54) -> 5000 | DC54: =payout($A54,AG54,$C54:AF54,DB54,$BY54:DB54) -> 5000 | DD54: =payout($A54,AH54,$C54:AG54,DC54,$BY54:DC54) -> 5000 | DE54: =payout($A54,AI54,$C54:AH54,DD54,$BY54:DD54) -> 5000 | DF54: =payout($A54,AJ54,$C54:AI54,DE54,$BY54:DE54) -> 5000 | DG54: =payout($A54,AK54,$C54:AJ54,DF54,$BY54:DF54) -> 5000 | DH54: =payout($A54,AL54,$C54:AK54,DG54,$BY54:DG54) -> 5000 | DI54: =payout($A54,AM54,$C54:AL54,DH54,$BY54:DH54) -> 5000 | DJ54: =payout($A54,AN54,$C54:AM54,DI54,$BY54:DI54) -> 5000 | DK54: =payout($A54,AO54,$C54:AN54,DJ54,$BY54:DJ54) -> 5000 | DL54: =payout($A54,AP54,$C54:AO54,DK54,$BY54:DK54) -> 5000 | DM54: =payout($A54,AQ54,$C54:AP54,DL54,$BY54:DL54) -> 105000 | DN54: =payout($A54,AR54,$C54:AQ54,DM54,$BY54:DM54) -> 0 | DO54: 0 | DP54: 0 | DQ54: 0 | DR54: 0 | DS54: 0 | DT54: 0 | DU54: 0 | DV54: 0 | DW54: 0 | DX54: 0 | DY54: 0 | DZ54: 0 | EA54: 0 | EB54: 0 | EC54: 0 | ED54: 0 | EE54: 0 | EF54: 0 | EG54: 0 | EH54: 0 | EI54: 0 | EJ54: 0 | EK54: 0 | EL54: 0 | EM54: 0 | EN54: 0 | EO54: 0 | EP54: 0 | EQ54: 0
A55: =get_bond_grade($A$16:A54,$BX$5,$BY$5,$BZ$5) -> A | B55: 40 | C55: 1 | D55: 1 | E55: 1 | F55: 1 | G55: 1 | H55: 1 | I55: 1 | J55: 1 | K55: 1 | L55: 1 | M55: 1 | N55: 1 | O55: 1 | P55: 1 | Q55: 1 | R55: 1 | S55: 1 | T55: 1 | U55: 1 | V55: 1 | W55: 1 | X55: 1 | Y55: 1 | Z55: 1 | AA55: 1 | AB55: 1 | AC55: 1 | AD55: 1 | AE55: 1 | AF55: 1 | AG55: 1 | AH55: 1 | AI55: 1 | AJ55: 1 | AK55: 1 | AL55: 0 | AM55: 0 | AN55: 0 | AO55: 0 | AP55: 0 | AQ55: 0 | AR55: 0 | AS55: 0 | AT55: 0 | AU55: 0 | AV55: 0 | AW55: 0 | AX55: 0 | AY55: 0 | AZ55: 0 | BA55: 0 | BB55: 0 | BC55: 0 | BD55: 0 | BE55: 0 | BF55: 0 | BG55: 0 | BH55: 0 | BI55: 0 | BJ55: 0 | BK55: 0 | BL55: 0 | BM55: 0 | BN55: 0 | BO55: 0 | BP55: 0 | BQ55: 0 | BR55: 0 | BS55: 0 | BT55: 0 | BU55: 0 | BW55: A | BX55: 40 | BY55: -100000 | BZ55: =payout($A55,D55,$C55:C55,BY55,$BY55:BY55) -> 7000 | CA55: =payout($A55,E55,$C55:D55,BZ55,$BY55:BZ55) -> 7000 | CB55: =payout($A55,F55,$C55:E55,CA55,$BY55:CA55) -> 7000 | CC55: =payout($A55,G55,$C55:F55,CB55,$BY55:CB55) -> 7000 | CD55: =payout($A55,H55,$C55:G55,CC55,$BY55:CC55) -> 7000 | CE55: =payout($A55,I55,$C55:H55,CD55,$BY55:CD55) -> 7000 | CF55: =payout($A55,J55,$C55:I55,CE55,$BY55:CE55) -> 7000 | CG55: =payout($A55,K55,$C55:J55,CF55,$BY55:CF55) -> 7000 | CH55: =payout($A55,L55,$C55:K55,CG55,$BY55:CG55) -> 7000 | CI55: =payout($A55,M55,$C55:L55,CH55,$BY55:CH55) -> 7000 | CJ55: =payout($A55,N55,$C55:M55,CI55,$BY55:CI55) -> 7000 | CK55: =payout($A55,O55,$C55:N55,CJ55,$BY55:CJ55) -> 7000 | CL55: =payout($A55,P55,$C55:O55,CK55,$BY55:CK55) -> 7000 | CM55: =payout($A55,Q55,$C55:P55,CL55,$BY55:CL55) -> 7000 | CN55: =payout($A55,R55,$C55:Q55,CM55,$BY55:CM55) -> 7000 | CO55: =payout($A55,S55,$C55:R55,CN55,$BY55:CN55) -> 7000 | CP55: =payout($A55,T55,$C55:S55,CO55,$BY55:CO55) -> 7000 | CQ55: =payout($A55,U55,$C55:T55,CP55,$BY55:CP55) -> 7000 | CR55: =payout($A55,V55,$C55:U55,CQ55,$BY55:CQ55) -> 7000 | CS55: =payout($A55,W55,$C55:V55,CR55,$BY55:CR55) -> 7000 | CT55: =payout($A55,X55,$C55:W55,CS55,$BY55:CS55) -> 7000 | CU55: =payout($A55,Y55,$C55:X55,CT55,$BY55:CT55) -> 7000 | CV55: =payout($A55,Z55,$C55:Y55,CU55,$BY55:CU55) -> 7000 | CW55: =payout($A55,AA55,$C55:Z55,CV55,$BY55:CV55) -> 7000 | CX55: =payout($A55,AB55,$C55:AA55,CW55,$BY55:CW55) -> 7000 | CY55: =payout($A55,AC55,$C55:AB55,CX55,$BY55:CX55) -> 7000 | CZ55: =payout($A55,AD55,$C55:AC55,CY55,$BY55:CY55) -> 7000 | DA55: =payout($A55,AE55,$C55:AD55,CZ55,$BY55:CZ55) -> 7000 | DB55: =payout($A55,AF55,$C55:AE55,DA55,$BY55:DA55) -> 7000 | DC55: =payout($A55,AG55,$C55:AF55,DB55,$BY55:DB55) -> 7000 | DD55: =payout($A55,AH55,$C55:AG55,DC55,$BY55:DC55) -> 7000 | DE55: =payout($A55,AI55,$C55:AH55,DD55,$BY55:DD55) -> 7000 | DF55: =payout($A55,AJ55,$C55:AI55,DE55,$BY55:DE55) -> 7000 | DG55: =payout($A55,AK55,$C55:AJ55,DF55,$BY55:DF55) -> 7000 | DH55: =payout($A55,AL55,$C55:AK55,DG55,$BY55:DG55) -> 7000 | DI55: =payout($A55,AM55,$C55:AL55,DH55,$BY55:DH55) -> 7000 | DJ55: =payout($A55,AN55,$C55:AM55,DI55,$BY55:DI55) -> 7000 | DK55: =payout($A55,AO55,$C55:AN55,DJ55,$BY55:DJ55) -> 7000 | DL55: =payout($A55,AP55,$C55:AO55,DK55,$BY55:DK55) -> 7000 | DM55: =payout($A55,AQ55,$C55:AP55,DL55,$BY55:DL55) -> 107000 | DN55: =payout($A55,AR55,$C55:AQ55,DM55,$BY55:DM55) -> 0 | DO55: 0 | DP55: 0 | DQ55: 0 | DR55: 0 | DS55: 0 | DT55: 0 | DU55: 0 | DV55: 0 | DW55: 0 | DX55: 0 | DY55: 0 | DZ55: 0 | EA55: 0 | EB55: 0 | EC55: 0 | ED55: 0 | EE55: 0 | EF55: 0 | EG55: 0 | EH55: 0 | EI55: 0 | EJ55: 0 | EK55: 0 | EL55: 0 | EM55: 0 | EN55: 0 | EO55: 0 | EP55: 0 | EQ55: 0
A56: =get_bond_grade($A$16:A55,$BX$5,$BY$5,$BZ$5) -> A | B56: 41 | C56: 1 | D56: 1 | E56: 1 | F56: 1 | G56: 1 | H56: 1 | I56: 1 | J56: 1 | K56: 1 | L56: 1 | M56: 1 | N56: 1 | O56: 1 | P56: 1 | Q56: 1 | R56: 1 | S56: 1 | T56: 1 | U56: 1 | V56: 1 | W56: 1 | X56: 1 | Y56: 1 | Z56: 1 | AA56: 1 | AB56: 1 | AC56: 1 | AD56: 1 | AE56: 1 | AF56: 1 | AG56: 1 | AH56: 1 | AI56: 1 | AJ56: 1 | AK56: 1 | AL56: 0 | AM56: 0 | AN56: 0 | AO56: 0 | AP56: 0 | AQ56: 0 | AR56: 0 | AS56: 0 | AT56: 0 | AU56: 0 | AV56: 0 | AW56: 0 | AX56: 0 | AY56: 0 | AZ56: 0 | BA56: 0 | BB56: 0 | BC56: 0 | BD56: 0 | BE56: 0 | BF56: 0 | BG56: 0 | BH56: 0 | BI56: 0 | BJ56: 0 | BK56: 0 | BL56: 0 | BM56: 0 | BN56: 0 | BO56: 0 | BP56: 0 | BQ56: 0 | BR56: 0 | BS56: 0 | BT56: 0 | BU56: 0 | BW56: A | BX56: 41 | BY56: -100000 | BZ56: =payout($A56,D56,$C56:C56,BY56,$BY56:BY56) -> 7000 | CA56: =payout($A56,E56,$C56:D56,BZ56,$BY56:BZ56) -> 7000 | CB56: =payout($A56,F56,$C56:E56,CA56,$BY56:CA56) -> 7000 | CC56: =payout($A56,G56,$C56:F56,CB56,$BY56:CB56) -> 7000 | CD56: =payout($A56,H56,$C56:G56,CC56,$BY56:CC56) -> 7000 | CE56: =payout($A56,I56,$C56:H56,CD56,$BY56:CD56) -> 7000 | CF56: =payout($A56,J56,$C56:I56,CE56,$BY56:CE56) -> 7000 | CG56: =payout($A56,K56,$C56:J56,CF56,$BY56:CF56) -> 7000 | CH56: =payout($A56,L56,$C56:K56,CG56,$BY56:CG56) -> 7000 | CI56: =payout($A56,M56,$C56:L56,CH56,$BY56:CH56) -> 7000 | CJ56: =payout($A56,N56,$C56:M56,CI56,$BY56:CI56) -> 7000 | CK56: =payout($A56,O56,$C56:N56,CJ56,$BY56:CJ56) -> 7000 | CL56: =payout($A56,P56,$C56:O56,CK56,$BY56:CK56) -> 7000 | CM56: =payout($A56,Q56,$C56:P56,CL56,$BY56:CL56) -> 7000 | CN56: =payout($A56,R56,$C56:Q56,CM56,$BY56:CM56) -> 7000 | CO56: =payout($A56,S56,$C56:R56,CN56,$BY56:CN56) -> 7000 | CP56: =payout($A56,T56,$C56:S56,CO56,$BY56:CO56) -> 7000 | CQ56: =payout($A56,U56,$C56:T56,CP56,$BY56:CP56) -> 7000 | CR56: =payout($A56,V56,$C56:U56,CQ56,$BY56:CQ56) -> 7000 | CS56: =payout($A56,W56,$C56:V56,CR56,$BY56:CR56) -> 7000 | CT56: =payout($A56,X56,$C56:W56,CS56,$BY56:CS56) -> 7000 | CU56: =payout($A56,Y56,$C56:X56,CT56,$BY56:CT56) -> 7000 | CV56: =payout($A56,Z56,$C56:Y56,CU56,$BY56:CU56) -> 7000 | CW56: =payout($A56,AA56,$C56:Z56,CV56,$BY56:CV56) -> 7000 | CX56: =payout($A56,AB56,$C56:AA56,CW56,$BY56:CW56) -> 7000 | CY56: =payout($A56,AC56,$C56:AB56,CX56,$BY56:CX56) -> 7000 | CZ56: =payout($A56,AD56,$C56:AC56,CY56,$BY56:CY56) -> 7000 | DA56: =payout($A56,AE56,$C56:AD56,CZ56,$BY56:CZ56) -> 7000 | DB56: =payout($A56,AF56,$C56:AE56,DA56,$BY56:DA56) -> 7000 | DC56: =payout($A56,AG56,$C56:AF56,DB56,$BY56:DB56) -> 7000 | DD56: =payout($A56,AH56,$C56:AG56,DC56,$BY56:DC56) -> 7000 | DE56: =payout($A56,AI56,$C56:AH56,DD56,$BY56:DD56) -> 7000 | DF56: =payout($A56,AJ56,$C56:AI56,DE56,$BY56:DE56) -> 7000 | DG56: =payout($A56,AK56,$C56:AJ56,DF56,$BY56:DF56) -> 7000 | DH56: =payout($A56,AL56,$C56:AK56,DG56,$BY56:DG56) -> 7000 | DI56: =payout($A56,AM56,$C56:AL56,DH56,$BY56:DH56) -> 7000 | DJ56: =payout($A56,AN56,$C56:AM56,DI56,$BY56:DI56) -> 7000 | DK56: =payout($A56,AO56,$C56:AN56,DJ56,$BY56:DJ56) -> 7000 | DL56: =payout($A56,AP56,$C56:AO56,DK56,$BY56:DK56) -> 7000 | DM56: =payout($A56,AQ56,$C56:AP56,DL56,$BY56:DL56) -> 107000 | DN56: =payout($A56,AR56,$C56:AQ56,DM56,$BY56:DM56) -> 0 | DO56: 0 | DP56: 0 | DQ56: 0 | DR56: 0 | DS56: 0 | DT56: 0 | DU56: 0 | DV56: 0 | DW56: 0 | DX56: 0 | DY56: 0 | DZ56: 0 | EA56: 0 | EB56: 0 | EC56: 0 | ED56: 0 | EE56: 0 | EF56: 0 | EG56: 0 | EH56: 0 | EI56: 0 | EJ56: 0 | EK56: 0 | EL56: 0 | EM56: 0 | EN56: 0 | EO56: 0 | EP56: 0 | EQ56: 0
A57: =get_bond_grade($A$16:A56,$BX$5,$BY$5,$BZ$5) -> AAA | B57: 42 | C57: 1 | D57: 1 | E57: 1 | F57: 1 | G57: 1 | H57: 1 | I57: 1 | J57: 1 | K57: 1 | L57: 1 | M57: 1 | N57: 1 | O57: 1 | P57: 1 | Q57: 1 | R57: 1 | S57: 1 | T57: 1 | U57: 1 | V57: 1 | W57: 1 | X57: 1 | Y57: 1 | Z57: 1 | AA57: 1 | AB57: 1 | AC57: 1 | AD57: 1 | AE57: 1 | AF57: 1 | AG57: 1 | AH57: 1 | AI57: 1 | AJ57: 1 | AK57: 1 | AL57: 0 | AM57: 0 | AN57: 0 | AO57: 0 | AP57: 0 | AQ57: 0 | AR57: 0 | AS57: 0 | AT57: 0 | AU57: 0 | AV57: 0 | AW57: 0 | AX57: 0 | AY57: 0 | AZ57: 0 | BA57: 0 | BB57: 0 | BC57: 0 | BD57: 0 | BE57: 0 | BF57: 0 | BG57: 0 | BH57: 0 | BI57: 0 | BJ57: 0 | BK57: 0 | BL57: 0 | BM57: 0 | BN57: 0 | BO57: 0 | BP57: 0 | BQ57: 0 | BR57: 0 | BS57: 0 | BT57: 0 | BU57: 0 | BW57: AAA | BX57: 42 | BY57: -100000 | BZ57: =payout($A57,D57,$C57:C57,BY57,$BY57:BY57) -> 5000 | CA57: =payout($A57,E57,$C57:D57,BZ57,$BY57:BZ57) -> 5000 | CB57: =payout($A57,F57,$C57:E57,CA57,$BY57:CA57) -> 5000 | CC57: =payout($A57,G57,$C57:F57,CB57,$BY57:CB57) -> 5000 | CD57: =payout($A57,H57,$C57:G57,CC57,$BY57:CC57) -> 5000 | CE57: =payout($A57,I57,$C57:H57,CD57,$BY57:CD57) -> 5000 | CF57: =payout($A57,J57,$C57:I57,CE57,$BY57:CE57) -> 5000 | CG57: =payout($A57,K57,$C57:J57,CF57,$BY57:CF57) -> 5000 | CH57: =payout($A57,L57,$C57:K57,CG57,$BY57:CG57) -> 5000 | CI57: =payout($A57,M57,$C57:L57,CH57,$BY57:CH57) -> 5000 | CJ57: =payout($A57,N57,$C57:M57,CI57,$BY57:CI57) -> 5000 | CK57: =payout($A57,O57,$C57:N57,CJ57,$BY57:CJ57) -> 5000 | CL57: =payout($A57,P57,$C57:O57,CK57,$BY57:CK57) -> 5000 | CM57: =payout($A57,Q57,$C57:P57,CL57,$BY57:CL57) -> 5000 | CN57: =payout($A57,R57,$C57:Q57,CM57,$BY57:CM57) -> 5000 | CO57: =payout($A57,S57,$C57:R57,CN57,$BY57:CN57) -> 5000 | CP57: =payout($A57,T57,$C57:S57,CO57,$BY57:CO57) -> 5000 | CQ57: =payout($A57,U57,$C57:T57,CP57,$BY57:CP57) -> 5000 | CR57: =payout($A57,V57,$C57:U57,CQ57,$BY57:CQ57) -> 5000 | CS57: =payout($A57,W57,$C57:V57,CR57,$BY57:CR57) -> 5000 | CT57: =payout($A57,X57,$C57:W57,CS57,$BY57:CS57) -> 5000 | CU57: =payout($A57,Y57,$C57:X57,CT57,$BY57:CT57) -> 5000 | CV57: =payout($A57,Z57,$C57:Y57,CU57,$BY57:CU57) -> 5000 | CW57: =payout($A57,AA57,$C57:Z57,CV57,$BY57:CV57) -> 5000 | CX57: =payout($A57,AB57,$C57:AA57,CW57,$BY57:CW57) -> 5000 | CY57: =payout($A57,AC57,$C57:AB57,CX57,$BY57:CX57) -> 5000 | CZ57: =payout($A57,AD57,$C57:AC57,CY57,$BY57:CY57) -> 5000 | DA57: =payout($A57,AE57,$C57:AD57,CZ57,$BY57:CZ57) -> 5000 | DB57: =payout($A57,AF57,$C57:AE57,DA57,$BY57:DA57) -> 5000 | DC57: =payout($A57,AG57,$C57:AF57,DB57,$BY57:DB57) -> 5000 | DD57: =payout($A57,AH57,$C57:AG57,DC57,$BY57:DC57) -> 5000 | DE57: =payout($A57,AI57,$C57:AH57,DD57,$BY57:DD57) -> 5000 | DF57: =payout($A57,AJ57,$C57:AI57,DE57,$BY57:DE57) -> 5000 | DG57: =payout($A57,AK57,$C57:AJ57,DF57,$BY57:DF57) -> 5000 | DH57: =payout($A57,AL57,$C57:AK57,DG57,$BY57:DG57) -> 5000 | DI57: =payout($A57,AM57,$C57:AL57,DH57,$BY57:DH57) -> 5000 | DJ57: =payout($A57,AN57,$C57:AM57,DI57,$BY57:DI57) -> 5000 | DK57: =payout($A57,AO57,$C57:AN57,DJ57,$BY57:DJ57) -> 5000 | DL57: =payout($A57,AP57,$C57:AO57,DK57,$BY57:DK57) -> 5000 | DM57: =payout($A57,AQ57,$C57:AP57,DL57,$BY57:DL57) -> 105000 | DN57: =payout($A57,AR57,$C57:AQ57,DM57,$BY57:DM57) -> 0 | DO57: 0 | DP57: 0 | DQ57: 0 | DR57: 0 | DS57: 0 | DT57: 0 | DU57: 0 | DV57: 0 | DW57: 0 | DX57: 0 | DY57: 0 | DZ57: 0 | EA57: 0 | EB57: 0 | EC57: 0 | ED57: 0 | EE57: 0 | EF57: 0 | EG57: 0 | EH57: 0 | EI57: 0 | EJ57: 0 | EK57: 0 | EL57: 0 | EM57: 0 | EN57: 0 | EO57: 0 | EP57: 0 | EQ57: 0
A58: =get_bond_grade($A$16:A57,$BX$5,$BY$5,$BZ$5) -> AA | B58: 43 | C58: 1 | D58: 1 | E58: 1 | F58: 1 | G58: 1 | H58: 1 | I58: 1 | J58: 1 | K58: 1 | L58: 1 | M58: 1 | N58: 1 | O58: 1 | P58: 1 | Q58: 1 | R58: 1 | S58: 1 | T58: 1 | U58: 1 | V58: 1 | W58: 1 | X58: 1 | Y58: 1 | Z58: 1 | AA58: 1 | AB58: 1 | AC58: 1 | AD58: 1 | AE58: 1 | AF58: 1 | AG58: 1 | AH58: 1 | AI58: 1 | AJ58: 1 | AK58: 1 | AL58: 0 | AM58: 0 | AN58: 0 | AO58: 0 | AP58: 0 | AQ58: 0 | AR58: 0 | AS58: 0 | AT58: 0 | AU58: 0 | AV58: 0 | AW58: 0 | AX58: 0 | AY58: 0 | AZ58: 0 | BA58: 0 | BB58: 0 | BC58: 0 | BD58: 0 | BE58: 0 | BF58: 0 | BG58: 0 | BH58: 0 | BI58: 0 | BJ58: 0 | BK58: 0 | BL58: 0 | BM58: 0 | BN58: 0 | BO58: 0 | BP58: 0 | BQ58: 0 | BR58: 0 | BS58: 0 | BT58: 0 | BU58: 0 | BW58: AA | BX58: 43 | BY58: -100000 | BZ58: =payout($A58,D58,$C58:C58,BY58,$BY58:BY58) -> 6000 | CA58: =payout($A58,E58,$C58:D58,BZ58,$BY58:BZ58) -> 6000 | CB58: =payout($A58,F58,$C58:E58,CA58,$BY58:CA58) -> 6000 | CC58: =payout($A58,G58,$C58:F58,CB58,$BY58:CB58) -> 6000 | CD58: =payout($A58,H58,$C58:G58,CC58,$BY58:CC58) -> 6000 | CE58: =payout($A58,I58,$C58:H58,CD58,$BY58:CD58) -> 6000 | CF58: =payout($A58,J58,$C58:I58,CE58,$BY58:CE58) -> 6000 | CG58: =payout($A58,K58,$C58:J58,CF58,$BY58:CF58) -> 6000 | CH58: =payout($A58,L58,$C58:K58,CG58,$BY58:CG58) -> 6000 | CI58: =payout($A58,M58,$C58:L58,CH58,$BY58:CH58) -> 6000 | CJ58: =payout($A58,N58,$C58:M58,CI58,$BY58:CI58) -> 6000 | CK58: =payout($A58,O58,$C58:N58,CJ58,$BY58:CJ58) -> 6000 | CL58: =payout($A58,P58,$C58:O58,CK58,$BY58:CK58) -> 6000 | CM58: =payout($A58,Q58,$C58:P58,CL58,$BY58:CL58) -> 6000 | CN58: =payout($A58,R58,$C58:Q58,CM58,$BY58:CM58) -> 6000 | CO58: =payout($A58,S58,$C58:R58,CN58,$BY58:CN58) -> 6000 | CP58: =payout($A58,T58,$C58:S58,CO58,$BY58:CO58) -> 6000 | CQ58: =payout($A58,U58,$C58:T58,CP58,$BY58:CP58) -> 6000 | CR58: =payout($A58,V58,$C58:U58,CQ58,$BY58:CQ58) -> 6000 | CS58: =payout($A58,W58,$C58:V58,CR58,$BY58:CR58) -> 6000 | CT58: =payout($A58,X58,$C58:W58,CS58,$BY58:CS58) -> 6000 | CU58: =payout($A58,Y58,$C58:X58,CT58,$BY58:CT58) -> 6000 | CV58: =payout($A58,Z58,$C58:Y58,CU58,$BY58:CU58) -> 6000 | CW58: =payout($A58,AA58,$C58:Z58,CV58,$BY58:CV58) -> 6000 | CX58: =payout($A58,AB58,$C58:AA58,CW58,$BY58:CW58) -> 6000 | CY58: =payout($A58,AC58,$C58:AB58,CX58,$BY58:CX58) -> 6000 | CZ58: =payout($A58,AD58,$C58:AC58,CY58,$BY58:CY58) -> 6000 | DA58: =payout($A58,AE58,$C58:AD58,CZ58,$BY58:CZ58) -> 6000 | DB58: =payout($A58,AF58,$C58:AE58,DA58,$BY58:DA58) -> 6000 | DC58: =payout($A58,AG58,$C58:AF58,DB58,$BY58:DB58) -> 6000 | DD58: =payout($A58,AH58,$C58:AG58,DC58,$BY58:DC58) -> 6000 | DE58: =payout($A58,AI58,$C58:AH58,DD58,$BY58:DD58) -> 6000 | DF58: =payout($A58,AJ58,$C58:AI58,DE58,$BY58:DE58) -> 6000 | DG58: =payout($A58,AK58,$C58:AJ58,DF58,$BY58:DF58) -> 6000 | DH58: =payout($A58,AL58,$C58:AK58,DG58,$BY58:DG58) -> 6000 | DI58: =payout($A58,AM58,$C58:AL58,DH58,$BY58:DH58) -> 6000 | DJ58: =payout($A58,AN58,$C58:AM58,DI58,$BY58:DI58) -> 6000 | DK58: =payout($A58,AO58,$C58:AN58,DJ58,$BY58:DJ58) -> 6000 | DL58: =payout($A58,AP58,$C58:AO58,DK58,$BY58:DK58) -> 6000 | DM58: =payout($A58,AQ58,$C58:AP58,DL58,$BY58:DL58) -> 106000 | DN58: =payout($A58,AR58,$C58:AQ58,DM58,$BY58:DM58) -> 0 | DO58: 0 | DP58: 0 | DQ58: 0 | DR58: 0 | DS58: 0 | DT58: 0 | DU58: 0 | DV58: 0 | DW58: 0 | DX58: 0 | DY58: 0 | DZ58: 0 | EA58: 0 | EB58: 0 | EC58: 0 | ED58: 0 | EE58: 0 | EF58: 0 | EG58: 0 | EH58: 0 | EI58: 0 | EJ58: 0 | EK58: 0 | EL58: 0 | EM58: 0 | EN58: 0 | EO58: 0 | EP58: 0 | EQ58: 0
A59: =get_bond_grade($A$16:A58,$BX$5,$BY$5,$BZ$5) -> AAA | B59: 44 | C59: 1 | D59: 1 | E59: 1 | F59: 1 | G59: 1 | H59: 1 | I59: 1 | J59: 1 | K59: 1 | L59: 1 | M59: 1 | N59: 1 | O59: 1 | P59: 1 | Q59: 1 | R59: 1 | S59: 1 | T59: 1 | U59: 1 | V59: 1 | W59: 1 | X59: 1 | Y59: 1 | Z59: 1 | AA59: 1 | AB59: 1 | AC59: 1 | AD59: 1 | AE59: 1 | AF59: 1 | AG59: 1 | AH59: 1 | AI59: 1 | AJ59: 1 | AK59: 1 | AL59: 0 | AM59: 0 | AN59: 0 | AO59: 0 | AP59: 0 | AQ59: 0 | AR59: 0 | AS59: 0 | AT59: 0 | AU59: 0 | AV59: 0 | AW59: 0 | AX59: 0 | AY59: 0 | AZ59: 0 | BA59: 0 | BB59: 0 | BC59: 0 | BD59: 0 | BE59: 0 | BF59: 0 | BG59: 0 | BH59: 0 | BI59: 0 | BJ59: 0 | BK59: 0 | BL59: 0 | BM59: 0 | BN59: 0 | BO59: 0 | BP59: 0 | BQ59: 0 | BR59: 0 | BS59: 0 | BT59: 0 | BU59: 0 | BW59: AAA | BX59: 44 | BY59: -100000 | BZ59: =payout($A59,D59,$C59:C59,BY59,$BY59:BY59) -> 5000 | CA59: =payout($A59,E59,$C59:D59,BZ59,$BY59:BZ59) -> 5000 | CB59: =payout($A59,F59,$C59:E59,CA59,$BY59:CA59) -> 5000 | CC59: =payout($A59,G59,$C59:F59,CB59,$BY59:CB59) -> 5000 | CD59: =payout($A59,H59,$C59:G59,CC59,$BY59:CC59) -> 5000 | CE59: =payout($A59,I59,$C59:H59,CD59,$BY59:CD59) -> 5000 | CF59: =payout($A59,J59,$C59:I59,CE59,$BY59:CE59) -> 5000 | CG59: =payout($A59,K59,$C59:J59,CF59,$BY59:CF59) -> 5000 | CH59: =payout($A59,L59,$C59:K59,CG59,$BY59:CG59) -> 5000 | CI59: =payout($A59,M59,$C59:L59,CH59,$BY59:CH59) -> 5000 | CJ59: =payout($A59,N59,$C59:M59,CI59,$BY59:CI59) -> 5000 | CK59: =payout($A59,O59,$C59:N59,CJ59,$BY59:CJ59) -> 5000 | CL59: =payout($A59,P59,$C59:O59,CK59,$BY59:CK59) -> 5000 | CM59: =payout($A59,Q59,$C59:P59,CL59,$BY59:CL59) -> 5000 | CN59: =payout($A59,R59,$C59:Q59,CM59,$BY59:CM59) -> 5000 | CO59: =payout($A59,S59,$C59:R59,CN59,$BY59:CN59) -> 5000 | CP59: =payout($A59,T59,$C59:S59,CO59,$BY59:CO59) -> 5000 | CQ59: =payout($A59,U59,$C59:T59,CP59,$BY59:CP59) -> 5000 | CR59: =payout($A59,V59,$C59:U59,CQ59,$BY59:CQ59) -> 5000 | CS59: =payout($A59,W59,$C59:V59,CR59,$BY59:CR59) -> 5000 | CT59: =payout($A59,X59,$C59:W59,CS59,$BY59:CS59) -> 5000 | CU59: =payout($A59,Y59,$C59:X59,CT59,$BY59:CT59) -> 5000 | CV59: =payout($A59,Z59,$C59:Y59,CU59,$BY59:CU59) -> 5000 | CW59: =payout($A59,AA59,$C59:Z59,CV59,$BY59:CV59) -> 5000 | CX59: =payout($A59,AB59,$C59:AA59,CW59,$BY59:CW59) -> 5000 | CY59: =payout($A59,AC59,$C59:AB59,CX59,$BY59:CX59) -> 5000 | CZ59: =payout($A59,AD59,$C59:AC59,CY59,$BY59:CY59) -> 5000 | DA59: =payout($A59,AE59,$C59:AD59,CZ59,$BY59:CZ59) -> 5000 | DB59: =payout($A59,AF59,$C59:AE59,DA59,$BY59:DA59) -> 5000 | DC59: =payout($A59,AG59,$C59:AF59,DB59,$BY59:DB59) -> 5000 | DD59: =payout($A59,AH59,$C59:AG59,DC59,$BY59:DC59) -> 5000 | DE59: =payout($A59,AI59,$C59:AH59,DD59,$BY59:DD59) -> 5000 | DF59: =payout($A59,AJ59,$C59:AI59,DE59,$BY59:DE59) -> 5000 | DG59: =payout($A59,AK59,$C59:AJ59,DF59,$BY59:DF59) -> 5000 | DH59: =payout($A59,AL59,$C59:AK59,DG59,$BY59:DG59) -> 5000 | DI59: =payout($A59,AM59,$C59:AL59,DH59,$BY59:DH59) -> 5000 | DJ59: =payout($A59,AN59,$C59:AM59,DI59,$BY59:DI59) -> 5000 | DK59: =payout($A59,AO59,$C59:AN59,DJ59,$BY59:DJ59) -> 5000 | DL59: =payout($A59,AP59,$C59:AO59,DK59,$BY59:DK59) -> 5000 | DM59: =payout($A59,AQ59,$C59:AP59,DL59,$BY59:DL59) -> 105000 | DN59: =payout($A59,AR59,$C59:AQ59,DM59,$BY59:DM59) -> 0 | DO59: 0 | DP59: 0 | DQ59: 0 | DR59: 0 | DS59: 0 | DT59: 0 | DU59: 0 | DV59: 0 | DW59: 0 | DX59: 0 | DY59: 0 | DZ59: 0 | EA59: 0 | EB59: 0 | EC59: 0 | ED59: 0 | EE59: 0 | EF59: 0 | EG59: 0 | EH59: 0 | EI59: 0 | EJ59: 0 | EK59: 0 | EL59: 0 | EM59: 0 | EN59: 0 | EO59: 0 | EP59: 0 | EQ59: 0
A60: =get_bond_grade($A$16:A59,$BX$5,$BY$5,$BZ$5) -> AA | B60: 45 | C60: 1 | D60: 1 | E60: 1 | F60: 1 | G60: 1 | H60: 1 | I60: 1 | J60: 1 | K60: 1 | L60: 1 | M60: 1 | N60: 1 | O60: 1 | P60: 1 | Q60: 1 | R60: 1 | S60: 1 | T60: 1 | U60: 1 | V60: 1 | W60: 1 | X60: 1 | Y60: 1 | Z60: 1 | AA60: 1 | AB60: 1 | AC60: 1 | AD60: 1 | AE60: 1 | AF60: 1 | AG60: 1 | AH60: 1 | AI60: 1 | AJ60: 1 | AK60: 1 | AL60: 0 | AM60: 0 | AN60: 0 | AO60: 0 | AP60: 0 | AQ60: 0 | AR60: 0 | AS60: 0 | AT60: 0 | AU60: 0 | AV60: 0 | AW60: 0 | AX60: 0 | AY60: 0 | AZ60: 0 | BA60: 0 | BB60: 0 | BC60: 0 | BD60: 0 | BE60: 0 | BF60: 0 | BG60: 0 | BH60: 0 | BI60: 0 | BJ60: 0 | BK60: 0 | BL60: 0 | BM60: 0 | BN60: 0 | BO60: 0 | BP60: 0 | BQ60: 0 | BR60: 0 | BS60: 0 | BT60: 0 | BU60: 0 | BW60: AA | BX60: 45 | BY60: -100000 | BZ60: =payout($A60,D60,$C60:C60,BY60,$BY60:BY60) -> 6000 | CA60: =payout($A60,E60,$C60:D60,BZ60,$BY60:BZ60) -> 6000 | CB60: =payout($A60,F60,$C60:E60,CA60,$BY60:CA60) -> 6000 | CC60: =payout($A60,G60,$C60:F60,CB60,$BY60:CB60) -> 6000 | CD60: =payout($A60,H60,$C60:G60,CC60,$BY60:CC60) -> 6000 | CE60: =payout($A60,I60,$C60:H60,CD60,$BY60:CD60) -> 6000 | CF60: =payout($A60,J60,$C60:I60,CE60,$BY60:CE60) -> 6000 | CG60: =payout($A60,K60,$C60:J60,CF60,$BY60:CF60) -> 6000 | CH60: =payout($A60,L60,$C60:K60,CG60,$BY60:CG60) -> 6000 | CI60: =payout($A60,M60,$C60:L60,CH60,$BY60:CH60) -> 6000 | CJ60: =payout($A60,N60,$C60:M60,CI60,$BY60:CI60) -> 6000 | CK60: =payout($A60,O60,$C60:N60,CJ60,$BY60:CJ60) -> 6000 | CL60: =payout($A60,P60,$C60:O60,CK60,$BY60:CK60) -> 6000 | CM60: =payout($A60,Q60,$C60:P60,CL60,$BY60:CL60) -> 6000 | CN60: =payout($A60,R60,$C60:Q60,CM60,$BY60:CM60) -> 6000 | CO60: =payout($A60,S60,$C60:R60,CN60,$BY60:CN60) -> 6000 | CP60: =payout($A60,T60,$C60:S60,CO60,$BY60:CO60) -> 6000 | CQ60: =payout($A60,U60,$C60:T60,CP60,$BY60:CP60) -> 6000 | CR60: =payout($A60,V60,$C60:U60,CQ60,$BY60:CQ60) -> 6000 | CS60: =payout($A60,W60,$C60:V60,CR60,$BY60:CR60) -> 6000 | CT60: =payout($A60,X60,$C60:W60,CS60,$BY60:CS60) -> 6000 | CU60: =payout($A60,Y60,$C60:X60,CT60,$BY60:CT60) -> 6000 | CV60: =payout($A60,Z60,$C60:Y60,CU60,$BY60:CU60) -> 6000 | CW60: =payout($A60,AA60,$C60:Z60,CV60,$BY60:CV60) -> 6000 | CX60: =payout($A60,AB60,$C60:AA60,CW60,$BY60:CW60) -> 6000 | CY60: =payout($A60,AC60,$C60:AB60,CX60,$BY60:CX60) -> 6000 | CZ60: =payout($A60,AD60,$C60:AC60,CY60,$BY60:CY60) -> 6000 | DA60: =payout($A60,AE60,$C60:AD60,CZ60,$BY60:CZ60) -> 6000 | DB60: =payout($A60,AF60,$C60:AE60,DA60,$BY60:DA60) -> 6000 | DC60: =payout($A60,AG60,$C60:AF60,DB60,$BY60:DB60) -> 6000 | DD60: =payout($A60,AH60,$C60:AG60,DC60,$BY60:DC60) -> 6000 | DE60: =payout($A60,AI60,$C60:AH60,DD60,$BY60:DD60) -> 6000 | DF60: =payout($A60,AJ60,$C60:AI60,DE60,$BY60:DE60) -> 6000 | DG60: =payout($A60,AK60,$C60:AJ60,DF60,$BY60:DF60) -> 6000 | DH60: =payout($A60,AL60,$C60:AK60,DG60,$BY60:DG60) -> 6000 | DI60: =payout($A60,AM60,$C60:AL60,DH60,$BY60:DH60) -> 6000 | DJ60: =payout($A60,AN60,$C60:AM60,DI60,$BY60:DI60) -> 6000 | DK60: =payout($A60,AO60,$C60:AN60,DJ60,$BY60:DJ60) -> 6000 | DL60: =payout($A60,AP60,$C60:AO60,DK60,$BY60:DK60) -> 6000 | DM60: =payout($A60,AQ60,$C60:AP60,DL60,$BY60:DL60) -> 106000 | DN60: =payout($A60,AR60,$C60:AQ60,DM60,$BY60:DM60) -> 0 | DO60: 0 | DP60: 0 | DQ60: 0 | DR60: 0 | DS60: 0 | DT60: 0 | DU60: 0 | DV60: 0 | DW60: 0 | DX60: 0 | DY60: 0 | DZ60: 0 | EA60: 0 | EB60: 0 | EC60: 0 | ED60: 0 | EE60: 0 | EF60: 0 | EG60: 0 | EH60: 0 | EI60: 0 | EJ60: 0 | EK60: 0 | EL60: 0 | EM60: 0 | EN60: 0 | EO60: 0 | EP60: 0 | EQ60: 0
A61: =get_bond_grade($A$16:A60,$BX$5,$BY$5,$BZ$5) -> A | B61: 46 | C61: 1 | D61: 1 | E61: 1 | F61: 1 | G61: 1 | H61: 1 | I61: 1 | J61: 1 | K61: 1 | L61: 1 | M61: 1 | N61: 1 | O61: 1 | P61: 1 | Q61: 1 | R61: 1 | S61: 1 | T61: 1 | U61: 1 | V61: 1 | W61: 1 | X61: 1 | Y61: 1 | Z61: 1 | AA61: 1 | AB61: 1 | AC61: 1 | AD61: 1 | AE61: 1 | AF61: 1 | AG61: 1 | AH61: 1 | AI61: 1 | AJ61: 1 | AK61: 1 | AL61: 0 | AM61: 0 | AN61: 0 | AO61: 0 | AP61: 0 | AQ61: 0 | AR61: 0 | AS61: 0 | AT61: 0 | AU61: 0 | AV61: 0 | AW61: 0 | AX61: 0 | AY61: 0 | AZ61: 0 | BA61: 0 | BB61: 0 | BC61: 0 | BD61: 0 | BE61: 0 | BF61: 0 | BG61: 0 | BH61: 0 | BI61: 0 | BJ61: 0 | BK61: 0 | BL61: 0 | BM61: 0 | BN61: 0 | BO61: 0 | BP61: 0 | BQ61: 0 | BR61: 0 | BS61: 0 | BT61: 0 | BU61: 0 | BW61: A | BX61: 46 | BY61: -100000 | BZ61: =payout($A61,D61,$C61:C61,BY61,$BY61:BY61) -> 7000 | CA61: =payout($A61,E61,$C61:D61,BZ61,$BY61:BZ61) -> 7000 | CB61: =payout($A61,F61,$C61:E61,CA61,$BY61:CA61) -> 7000 | CC61: =payout($A61,G61,$C61:F61,CB61,$BY61:CB61) -> 7000 | CD61: =payout($A61,H61,$C61:G61,CC61,$BY61:CC61) -> 7000 | CE61: =payout($A61,I61,$C61:H61,CD61,$BY61:CD61) -> 7000 | CF61: =payout($A61,J61,$C61:I61,CE61,$BY61:CE61) -> 7000 | CG61: =payout($A61,K61,$C61:J61,CF61,$BY61:CF61) -> 7000 | CH61: =payout($A61,L61,$C61:K61,CG61,$BY61:CG61) -> 7000 | CI61: =payout($A61,M61,$C61:L61,CH61,$BY61:CH61) -> 7000 | CJ61: =payout($A61,N61,$C61:M61,CI61,$BY61:CI61) -> 7000 | CK61: =payout($A61,O61,$C61:N61,CJ61,$BY61:CJ61) -> 7000 | CL61: =payout($A61,P61,$C61:O61,CK61,$BY61:CK61) -> 7000 | CM61: =payout($A61,Q61,$C61:P61,CL61,$BY61:CL61) -> 7000 | CN61: =payout($A61,R61,$C61:Q61,CM61,$BY61:CM61) -> 7000 | CO61: =payout($A61,S61,$C61:R61,CN61,$BY61:CN61) -> 7000 | CP61: =payout($A61,T61,$C61:S61,CO61,$BY61:CO61) -> 7000 | CQ61: =payout($A61,U61,$C61:T61,CP61,$BY61:CP61) -> 7000 | CR61: =payout($A61,V61,$C61:U61,CQ61,$BY61:CQ61) -> 7000 | CS61: =payout($A61,W61,$C61:V61,CR61,$BY61:CR61) -> 7000 | CT61: =payout($A61,X61,$C61:W61,CS61,$BY61:CS61) -> 7000 | CU61: =payout($A61,Y61,$C61:X61,CT61,$BY61:CT61) -> 7000 | CV61: =payout($A61,Z61,$C61:Y61,CU61,$BY61:CU61) -> 7000 | CW61: =payout($A61,AA61,$C61:Z61,CV61,$BY61:CV61) -> 7000 | CX61: =payout($A61,AB61,$C61:AA61,CW61,$BY61:CW61) -> 7000 | CY61: =payout($A61,AC61,$C61:AB61,CX61,$BY61:CX61) -> 7000 | CZ61: =payout($A61,AD61,$C61:AC61,CY61,$BY61:CY61) -> 7000 | DA61: =payout($A61,AE61,$C61:AD61,CZ61,$BY61:CZ61) -> 7000 | DB61: =payout($A61,AF61,$C61:AE61,DA61,$BY61:DA61) -> 7000 | DC61: =payout($A61,AG61,$C61:AF61,DB61,$BY61:DB61) -> 7000 | DD61: =payout($A61,AH61,$C61:AG61,DC61,$BY61:DC61) -> 7000 | DE61: =payout($A61,AI61,$C61:AH61,DD61,$BY61:DD61) -> 7000 | DF61: =payout($A61,AJ61,$C61:AI61,DE61,$BY61:DE61) -> 7000 | DG61: =payout($A61,AK61,$C61:AJ61,DF61,$BY61:DF61) -> 7000 | DH61: =payout($A61,AL61,$C61:AK61,DG61,$BY61:DG61) -> 7000 | DI61: =payout($A61,AM61,$C61:AL61,DH61,$BY61:DH61) -> 7000 | DJ61: =payout($A61,AN61,$C61:AM61,DI61,$BY61:DI61) -> 7000 | DK61: =payout($A61,AO61,$C61:AN61,DJ61,$BY61:DJ61) -> 7000 | DL61: =payout($A61,AP61,$C61:AO61,DK61,$BY61:DK61) -> 7000 | DM61: =payout($A61,AQ61,$C61:AP61,DL61,$BY61:DL61) -> 107000 | DN61: =payout($A61,AR61,$C61:AQ61,DM61,$BY61:DM61) -> 0 | DO61: 0 | DP61: 0 | DQ61: 0 | DR61: 0 | DS61: 0 | DT61: 0 | DU61: 0 | DV61: 0 | DW61: 0 | DX61: 0 | DY61: 0 | DZ61: 0 | EA61: 0 | EB61: 0 | EC61: 0 | ED61: 0 | EE61: 0 | EF61: 0 | EG61: 0 | EH61: 0 | EI61: 0 | EJ61: 0 | EK61: 0 | EL61: 0 | EM61: 0 | EN61: 0 | EO61: 0 | EP61: 0 | EQ61: 0
A62: =get_bond_grade($A$16:A61,$BX$5,$BY$5,$BZ$5) -> AAA | B62: 47 | C62: 1 | D62: 1 | E62: 1 | F62: 1 | G62: 1 | H62: 1 | I62: 1 | J62: 1 | K62: 1 | L62: 1 | M62: 1 | N62: 1 | O62: 1 | P62: 1 | Q62: 1 | R62: 1 | S62: 1 | T62: 1 | U62: 1 | V62: 1 | W62: 1 | X62: 1 | Y62: 1 | Z62: 1 | AA62: 1 | AB62: 1 | AC62: 1 | AD62: 1 | AE62: 1 | AF62: 1 | AG62: 1 | AH62: 1 | AI62: 1 | AJ62: 1 | AK62: 1 | AL62: 0 | AM62: 0 | AN62: 0 | AO62: 0 | AP62: 0 | AQ62: 0 | AR62: 0 | AS62: 0 | AT62: 0 | AU62: 0 | AV62: 0 | AW62: 0 | AX62: 0 | AY62: 0 | AZ62: 0 | BA62: 0 | BB62: 0 | BC62: 0 | BD62: 0 | BE62: 0 | BF62: 0 | BG62: 0 | BH62: 0 | BI62: 0 | BJ62: 0 | BK62: 0 | BL62: 0 | BM62: 0 | BN62: 0 | BO62: 0 | BP62: 0 | BQ62: 0 | BR62: 0 | BS62: 0 | BT62: 0 | BU62: 0 | BW62: AAA | BX62: 47 | BY62: -100000 | BZ62: =payout($A62,D62,$C62:C62,BY62,$BY62:BY62) -> 5000 | CA62: =payout($A62,E62,$C62:D62,BZ62,$BY62:BZ62) -> 5000 | CB62: =payout($A62,F62,$C62:E62,CA62,$BY62:CA62) -> 5000 | CC62: =payout($A62,G62,$C62:F62,CB62,$BY62:CB62) -> 5000 | CD62: =payout($A62,H62,$C62:G62,CC62,$BY62:CC62) -> 5000 | CE62: =payout($A62,I62,$C62:H62,CD62,$BY62:CD62) -> 5000 | CF62: =payout($A62,J62,$C62:I62,CE62,$BY62:CE62) -> 5000 | CG62: =payout($A62,K62,$C62:J62,CF62,$BY62:CF62) -> 5000 | CH62: =payout($A62,L62,$C62:K62,CG62,$BY62:CG62) -> 5000 | CI62: =payout($A62,M62,$C62:L62,CH62,$BY62:CH62) -> 5000 | CJ62: =payout($A62,N62,$C62:M62,CI62,$BY62:CI62) -> 5000 | CK62: =payout($A62,O62,$C62:N62,CJ62,$BY62:CJ62) -> 5000 | CL62: =payout($A62,P62,$C62:O62,CK62,$BY62:CK62) -> 5000 | CM62: =payout($A62,Q62,$C62:P62,CL62,$BY62:CL62) -> 5000 | CN62: =payout($A62,R62,$C62:Q62,CM62,$BY62:CM62) -> 5000 | CO62: =payout($A62,S62,$C62:R62,CN62,$BY62:CN62) -> 5000 | CP62: =payout($A62,T62,$C62:S62,CO62,$BY62:CO62) -> 5000 | CQ62: =payout($A62,U62,$C62:T62,CP62,$BY62:CP62) -> 5000 | CR62: =payout($A62,V62,$C62:U62,CQ62,$BY62:CQ62) -> 5000 | CS62: =payout($A62,W62,$C62:V62,CR62,$BY62:CR62) -> 5000 | CT62: =payout($A62,X62,$C62:W62,CS62,$BY62:CS62) -> 5000 | CU62: =payout($A62,Y62,$C62:X62,CT62,$BY62:CT62) -> 5000 | CV62: =payout($A62,Z62,$C62:Y62,CU62,$BY62:CU62) -> 5000 | CW62: =payout($A62,AA62,$C62:Z62,CV62,$BY62:CV62) -> 5000 | CX62: =payout($A62,AB62,$C62:AA62,CW62,$BY62:CW62) -> 5000 | CY62: =payout($A62,AC62,$C62:AB62,CX62,$BY62:CX62) -> 5000 | CZ62: =payout($A62,AD62,$C62:AC62,CY62,$BY62:CY62) -> 5000 | DA62: =payout($A62,AE62,$C62:AD62,CZ62,$BY62:CZ62) -> 5000 | DB62: =payout($A62,AF62,$C62:AE62,DA62,$BY62:DA62) -> 5000 | DC62: =payout($A62,AG62,$C62:AF62,DB62,$BY62:DB62) -> 5000 | DD62: =payout($A62,AH62,$C62:AG62,DC62,$BY62:DC62) -> 5000 | DE62: =payout($A62,AI62,$C62:AH62,DD62,$BY62:DD62) -> 5000 | DF62: =payout($A62,AJ62,$C62:AI62,DE62,$BY62:DE62) -> 5000 | DG62: =payout($A62,AK62,$C62:AJ62,DF62,$BY62:DF62) -> 5000 | DH62: =payout($A62,AL62,$C62:AK62,DG62,$BY62:DG62) -> 5000 | DI62: =payout($A62,AM62,$C62:AL62,DH62,$BY62:DH62) -> 5000 | DJ62: =payout($A62,AN62,$C62:AM62,DI62,$BY62:DI62) -> 5000 | DK62: =payout($A62,AO62,$C62:AN62,DJ62,$BY62:DJ62) -> 5000 | DL62: =payout($A62,AP62,$C62:AO62,DK62,$BY62:DK62) -> 5000 | DM62: =payout($A62,AQ62,$C62:AP62,DL62,$BY62:DL62) -> 105000 | DN62: =payout($A62,AR62,$C62:AQ62,DM62,$BY62:DM62) -> 0 | DO62: 0 | DP62: 0 | DQ62: 0 | DR62: 0 | DS62: 0 | DT62: 0 | DU62: 0 | DV62: 0 | DW62: 0 | DX62: 0 | DY62: 0 | DZ62: 0 | EA62: 0 | EB62: 0 | EC62: 0 | ED62: 0 | EE62: 0 | EF62: 0 | EG62: 0 | EH62: 0 | EI62: 0 | EJ62: 0 | EK62: 0 | EL62: 0 | EM62: 0 | EN62: 0 | EO62: 0 | EP62: 0 | EQ62: 0
A63: =get_bond_grade($A$16:A62,$BX$5,$BY$5,$BZ$5) -> AA | B63: 48 | C63: 1 | D63: 1 | E63: 1 | F63: 1 | G63: 1 | H63: 1 | I63: 1 | J63: 1 | K63: 1 | L63: 1 | M63: 1 | N63: 1 | O63: 1 | P63: 1 | Q63: 1 | R63: 1 | S63: 1 | T63: 1 | U63: 1 | V63: 1 | W63: 1 | X63: 1 | Y63: 1 | Z63: 1 | AA63: 1 | AB63: 1 | AC63: 1 | AD63: 1 | AE63: 1 | AF63: 1 | AG63: 1 | AH63: 1 | AI63: 1 | AJ63: 1 | AK63: 1 | AL63: 0 | AM63: 0 | AN63: 0 | AO63: 0 | AP63: 0 | AQ63: 0 | AR63: 0 | AS63: 0 | AT63: 0 | AU63: 0 | AV63: 0 | AW63: 0 | AX63: 0 | AY63: 0 | AZ63: 0 | BA63: 0 | BB63: 0 | BC63: 0 | BD63: 0 | BE63: 0 | BF63: 0 | BG63: 0 | BH63: 0 | BI63: 0 | BJ63: 0 | BK63: 0 | BL63: 0 | BM63: 0 | BN63: 0 | BO63: 0 | BP63: 0 | BQ63: 0 | BR63: 0 | BS63: 0 | BT63: 0 | BU63: 0 | BW63: AA | BX63: 48 | BY63: -100000 | BZ63: =payout($A63,D63,$C63:C63,BY63,$BY63:BY63) -> 6000 | CA63: =payout($A63,E63,$C63:D63,BZ63,$BY63:BZ63) -> 6000 | CB63: =payout($A63,F63,$C63:E63,CA63,$BY63:CA63) -> 6000 | CC63: =payout($A63,G63,$C63:F63,CB63,$BY63:CB63) -> 6000 | CD63: =payout($A63,H63,$C63:G63,CC63,$BY63:CC63) -> 6000 | CE63: =payout($A63,I63,$C63:H63,CD63,$BY63:CD63) -> 6000 | CF63: =payout($A63,J63,$C63:I63,CE63,$BY63:CE63) -> 6000 | CG63: =payout($A63,K63,$C63:J63,CF63,$BY63:CF63) -> 6000 | CH63: =payout($A63,L63,$C63:K63,CG63,$BY63:CG63) -> 6000 | CI63: =payout($A63,M63,$C63:L63,CH63,$BY63:CH63) -> 6000 | CJ63: =payout($A63,N63,$C63:M63,CI63,$BY63:CI63) -> 6000 | CK63: =payout($A63,O63,$C63:N63,CJ63,$BY63:CJ63) -> 6000 | CL63: =payout($A63,P63,$C63:O63,CK63,$BY63:CK63) -> 6000 | CM63: =payout($A63,Q63,$C63:P63,CL63,$BY63:CL63) -> 6000 | CN63: =payout($A63,R63,$C63:Q63,CM63,$BY63:CM63) -> 6000 | CO63: =payout($A63,S63,$C63:R63,CN63,$BY63:CN63) -> 6000 | CP63: =payout($A63,T63,$C63:S63,CO63,$BY63:CO63) -> 6000 | CQ63: =payout($A63,U63,$C63:T63,CP63,$BY63:CP63) -> 6000 | CR63: =payout($A63,V63,$C63:U63,CQ63,$BY63:CQ63) -> 6000 | CS63: =payout($A63,W63,$C63:V63,CR63,$BY63:CR63) -> 6000 | CT63: =payout($A63,X63,$C63:W63,CS63,$BY63:CS63) -> 6000 | CU63: =payout($A63,Y63,$C63:X63,CT63,$BY63:CT63) -> 6000 | CV63: =payout($A63,Z63,$C63:Y63,CU63,$BY63:CU63) -> 6000 | CW63: =payout($A63,AA63,$C63:Z63,CV63,$BY63:CV63) -> 6000 | CX63: =payout($A63,AB63,$C63:AA63,CW63,$BY63:CW63) -> 6000 | CY63: =payout($A63,AC63,$C63:AB63,CX63,$BY63:CX63) -> 6000 | CZ63: =payout($A63,AD63,$C63:AC63,CY63,$BY63:CY63) -> 6000 | DA63: =payout($A63,AE63,$C63:AD63,CZ63,$BY63:CZ63) -> 6000 | DB63: =payout($A63,AF63,$C63:AE63,DA63,$BY63:DA63) -> 6000 | DC63: =payout($A63,AG63,$C63:AF63,DB63,$BY63:DB63) -> 6000 | DD63: =payout($A63,AH63,$C63:AG63,DC63,$BY63:DC63) -> 6000 | DE63: =payout($A63,AI63,$C63:AH63,DD63,$BY63:DD63) -> 6000 | DF63: =payout($A63,AJ63,$C63:AI63,DE63,$BY63:DE63) -> 6000 | DG63: =payout($A63,AK63,$C63:AJ63,DF63,$BY63:DF63) -> 6000 | DH63: =payout($A63,AL63,$C63:AK63,DG63,$BY63:DG63) -> 6000 | DI63: =payout($A63,AM63,$C63:AL63,DH63,$BY63:DH63) -> 6000 | DJ63: =payout($A63,AN63,$C63:AM63,DI63,$BY63:DI63) -> 6000 | DK63: =payout($A63,AO63,$C63:AN63,DJ63,$BY63:DJ63) -> 6000 | DL63: =payout($A63,AP63,$C63:AO63,DK63,$BY63:DK63) -> 6000 | DM63: =payout($A63,AQ63,$C63:AP63,DL63,$BY63:DL63) -> 106000 | DN63: =payout($A63,AR63,$C63:AQ63,DM63,$BY63:DM63) -> 0 | DO63: 0 | DP63: 0 | DQ63: 0 | DR63: 0 | DS63: 0 | DT63: 0 | DU63: 0 | DV63: 0 | DW63: 0 | DX63: 0 | DY63: 0 | DZ63: 0 | EA63: 0 | EB63: 0 | EC63: 0 | ED63: 0 | EE63: 0 | EF63: 0 | EG63: 0 | EH63: 0 | EI63: 0 | EJ63: 0 | EK63: 0 | EL63: 0 | EM63: 0 | EN63: 0 | EO63: 0 | EP63: 0 | EQ63: 0
A64: =get_bond_grade($A$16:A63,$BX$5,$BY$5,$BZ$5) -> AAA | B64: 49 | C64: 1 | D64: 1 | E64: 1 | F64: 1 | G64: 1 | H64: 1 | I64: 1 | J64: 1 | K64: 1 | L64: 1 | M64: 1 | N64: 1 | O64: 1 | P64: 1 | Q64: 1 | R64: 1 | S64: 1 | T64: 1 | U64: 1 | V64: 1 | W64: 1 | X64: 1 | Y64: 1 | Z64: 1 | AA64: 1 | AB64: 1 | AC64: 1 | AD64: 1 | AE64: 1 | AF64: 1 | AG64: 1 | AH64: 1 | AI64: 1 | AJ64: 1 | AK64: 1 | AL64: 0 | AM64: 0 | AN64: 0 | AO64: 0 | AP64: 0 | AQ64: 0 | AR64: 0 | AS64: 0 | AT64: 0 | AU64: 0 | AV64: 0 | AW64: 0 | AX64: 0 | AY64: 0 | AZ64: 0 | BA64: 0 | BB64: 0 | BC64: 0 | BD64: 0 | BE64: 0 | BF64: 0 | BG64: 0 | BH64: 0 | BI64: 0 | BJ64: 0 | BK64: 0 | BL64: 0 | BM64: 0 | BN64: 0 | BO64: 0 | BP64: 0 | BQ64: 0 | BR64: 0 | BS64: 0 | BT64: 0 | BU64: 0 | BW64: AAA | BX64: 49 | BY64: -100000 | BZ64: =payout($A64,D64,$C64:C64,BY64,$BY64:BY64) -> 5000 | CA64: =payout($A64,E64,$C64:D64,BZ64,$BY64:BZ64) -> 5000 | CB64: =payout($A64,F64,$C64:E64,CA64,$BY64:CA64) -> 5000 | CC64: =payout($A64,G64,$C64:F64,CB64,$BY64:CB64) -> 5000 | CD64: =payout($A64,H64,$C64:G64,CC64,$BY64:CC64) -> 5000 | CE64: =payout($A64,I64,$C64:H64,CD64,$BY64:CD64) -> 5000 | CF64: =payout($A64,J64,$C64:I64,CE64,$BY64:CE64) -> 5000 | CG64: =payout($A64,K64,$C64:J64,CF64,$BY64:CF64) -> 5000 | CH64: =payout($A64,L64,$C64:K64,CG64,$BY64:CG64) -> 5000 | CI64: =payout($A64,M64,$C64:L64,CH64,$BY64:CH64) -> 5000 | CJ64: =payout($A64,N64,$C64:M64,CI64,$BY64:CI64) -> 5000 | CK64: =payout($A64,O64,$C64:N64,CJ64,$BY64:CJ64) -> 5000 | CL64: =payout($A64,P64,$C64:O64,CK64,$BY64:CK64) -> 5000 | CM64: =payout($A64,Q64,$C64:P64,CL64,$BY64:CL64) -> 5000 | CN64: =payout($A64,R64,$C64:Q64,CM64,$BY64:CM64) -> 5000 | CO64: =payout($A64,S64,$C64:R64,CN64,$BY64:CN64) -> 5000 | CP64: =payout($A64,T64,$C64:S64,CO64,$BY64:CO64) -> 5000 | CQ64: =payout($A64,U64,$C64:T64,CP64,$BY64:CP64) -> 5000 | CR64: =payout($A64,V64,$C64:U64,CQ64,$BY64:CQ64) -> 5000 | CS64: =payout($A64,W64,$C64:V64,CR64,$BY64:CR64) -> 5000 | CT64: =payout($A64,X64,$C64:W64,CS64,$BY64:CS64) -> 5000 | CU64: =payout($A64,Y64,$C64:X64,CT64,$BY64:CT64) -> 5000 | CV64: =payout($A64,Z64,$C64:Y64,CU64,$BY64:CU64) -> 5000 | CW64: =payout($A64,AA64,$C64:Z64,CV64,$BY64:CV64) -> 5000 | CX64: =payout($A64,AB64,$C64:AA64,CW64,$BY64:CW64) -> 5000 | CY64: =payout($A64,AC64,$C64:AB64,CX64,$BY64:CX64) -> 5000 | CZ64: =payout($A64,AD64,$C64:AC64,CY64,$BY64:CY64) -> 5000 | DA64: =payout($A64,AE64,$C64:AD64,CZ64,$BY64:CZ64) -> 5000 | DB64: =payout($A64,AF64,$C64:AE64,DA64,$BY64:DA64) -> 5000 | DC64: =payout($A64,AG64,$C64:AF64,DB64,$BY64:DB64) -> 5000 | DD64: =payout($A64,AH64,$C64:AG64,DC64,$BY64:DC64) -> 5000 | DE64: =payout($A64,AI64,$C64:AH64,DD64,$BY64:DD64) -> 5000 | DF64: =payout($A64,AJ64,$C64:AI64,DE64,$BY64:DE64) -> 5000 | DG64: =payout($A64,AK64,$C64:AJ64,DF64,$BY64:DF64) -> 5000 | DH64: =payout($A64,AL64,$C64:AK64,DG64,$BY64:DG64) -> 5000 | DI64: =payout($A64,AM64,$C64:AL64,DH64,$BY64:DH64) -> 5000 | DJ64: =payout($A64,AN64,$C64:AM64,DI64,$BY64:DI64) -> 5000 | DK64: =payout($A64,AO64,$C64:AN64,DJ64,$BY64:DJ64) -> 5000 | DL64: =payout($A64,AP64,$C64:AO64,DK64,$BY64:DK64) -> 5000 | DM64: =payout($A64,AQ64,$C64:AP64,DL64,$BY64:DL64) -> 105000 | DN64: =payout($A64,AR64,$C64:AQ64,DM64,$BY64:DM64) -> 0 | DO64: 0 | DP64: 0 | DQ64: 0 | DR64: 0 | DS64: 0 | DT64: 0 | DU64: 0 | DV64: 0 | DW64: 0 | DX64: 0 | DY64: 0 | DZ64: 0 | EA64: 0 | EB64: 0 | EC64: 0 | ED64: 0 | EE64: 0 | EF64: 0 | EG64: 0 | EH64: 0 | EI64: 0 | EJ64: 0 | EK64: 0 | EL64: 0 | EM64: 0 | EN64: 0 | EO64: 0 | EP64: 0 | EQ64: 0
A65: =get_bond_grade($A$16:A64,$BX$5,$BY$5,$BZ$5) -> A | B65: 50 | C65: 1 | D65: 1 | E65: 1 | F65: 1 | G65: 1 | H65: 1 | I65: 1 | J65: 1 | K65: 1 | L65: 1 | M65: 1 | N65: 1 | O65: 1 | P65: 1 | Q65: 1 | R65: 1 | S65: 1 | T65: 1 | U65: 1 | V65: 1 | W65: 1 | X65: 1 | Y65: 1 | Z65: 1 | AA65: 1 | AB65: 1 | AC65: 1 | AD65: 1 | AE65: 1 | AF65: 1 | AG65: 1 | AH65: 1 | AI65: 1 | AJ65: 1 | AK65: 0 | AL65: 0 | AM65: 0 | AN65: 0 | AO65: 0 | AP65: 0 | AQ65: 0 | AR65: 0 | AS65: 0 | AT65: 0 | AU65: 0 | AV65: 0 | AW65: 0 | AX65: 0 | AY65: 0 | AZ65: 0 | BA65: 0 | BB65: 0 | BC65: 0 | BD65: 0 | BE65: 0 | BF65: 0 | BG65: 0 | BH65: 0 | BI65: 0 | BJ65: 0 | BK65: 0 | BL65: 0 | BM65: 0 | BN65: 0 | BO65: 0 | BP65: 0 | BQ65: 0 | BR65: 0 | BS65: 0 | BT65: 0 | BU65: 0 | BW65: A | BX65: 50 | BY65: -100000 | BZ65: =payout($A65,D65,$C65:C65,BY65,$BY65:BY65) -> 7000 | CA65: =payout($A65,E65,$C65:D65,BZ65,$BY65:BZ65) -> 7000 | CB65: =payout($A65,F65,$C65:E65,CA65,$BY65:CA65) -> 7000 | CC65: =payout($A65,G65,$C65:F65,CB65,$BY65:CB65) -> 7000 | CD65: =payout($A65,H65,$C65:G65,CC65,$BY65:CC65) -> 7000 | CE65: =payout($A65,I65,$C65:H65,CD65,$BY65:CD65) -> 7000 | CF65: =payout($A65,J65,$C65:I65,CE65,$BY65:CE65) -> 7000 | CG65: =payout($A65,K65,$C65:J65,CF65,$BY65:CF65) -> 7000 | CH65: =payout($A65,L65,$C65:K65,CG65,$BY65:CG65) -> 7000 | CI65: =payout($A65,M65,$C65:L65,CH65,$BY65:CH65) -> 7000 | CJ65: =payout($A65,N65,$C65:M65,CI65,$BY65:CI65) -> 7000 | CK65: =payout($A65,O65,$C65:N65,CJ65,$BY65:CJ65) -> 7000 | CL65: =payout($A65,P65,$C65:O65,CK65,$BY65:CK65) -> 7000 | CM65: =payout($A65,Q65,$C65:P65,CL65,$BY65:CL65) -> 7000 | CN65: =payout($A65,R65,$C65:Q65,CM65,$BY65:CM65) -> 7000 | CO65: =payout($A65,S65,$C65:R65,CN65,$BY65:CN65) -> 7000 | CP65: =payout($A65,T65,$C65:S65,CO65,$BY65:CO65) -> 7000 | CQ65: =payout($A65,U65,$C65:T65,CP65,$BY65:CP65) -> 7000 | CR65: =payout($A65,V65,$C65:U65,CQ65,$BY65:CQ65) -> 7000 | CS65: =payout($A65,W65,$C65:V65,CR65,$BY65:CR65) -> 7000 | CT65: =payout($A65,X65,$C65:W65,CS65,$BY65:CS65) -> 7000 | CU65: =payout($A65,Y65,$C65:X65,CT65,$BY65:CT65) -> 7000 | CV65: =payout($A65,Z65,$C65:Y65,CU65,$BY65:CU65) -> 7000 | CW65: =payout($A65,AA65,$C65:Z65,CV65,$BY65:CV65) -> 7000 | CX65: =payout($A65,AB65,$C65:AA65,CW65,$BY65:CW65) -> 7000 | CY65: =payout($A65,AC65,$C65:AB65,CX65,$BY65:CX65) -> 7000 | CZ65: =payout($A65,AD65,$C65:AC65,CY65,$BY65:CY65) -> 7000 | DA65: =payout($A65,AE65,$C65:AD65,CZ65,$BY65:CZ65) -> 7000 | DB65: =payout($A65,AF65,$C65:AE65,DA65,$BY65:DA65) -> 7000 | DC65: =payout($A65,AG65,$C65:AF65,DB65,$BY65:DB65) -> 7000 | DD65: =payout($A65,AH65,$C65:AG65,DC65,$BY65:DC65) -> 7000 | DE65: =payout($A65,AI65,$C65:AH65,DD65,$BY65:DD65) -> 7000 | DF65: =payout($A65,AJ65,$C65:AI65,DE65,$BY65:DE65) -> 7000 | DG65: =payout($A65,AK65,$C65:AJ65,DF65,$BY65:DF65) -> 7000 | DH65: =payout($A65,AL65,$C65:AK65,DG65,$BY65:DG65) -> 7000 | DI65: =payout($A65,AM65,$C65:AL65,DH65,$BY65:DH65) -> 7000 | DJ65: =payout($A65,AN65,$C65:AM65,DI65,$BY65:DI65) -> 7000 | DK65: =payout($A65,AO65,$C65:AN65,DJ65,$BY65:DJ65) -> 7000 | DL65: =payout($A65,AP65,$C65:AO65,DK65,$BY65:DK65) -> 7000 | DM65: =payout($A65,AQ65,$C65:AP65,DL65,$BY65:DL65) -> 107000 | DN65: =payout($A65,AR65,$C65:AQ65,DM65,$BY65:DM65) -> 0 | DO65: 0 | DP65: 0 | DQ65: 0 | DR65: 0 | DS65: 0 | DT65: 0 | DU65: 0 | DV65: 0 | DW65: 0 | DX65: 0 | DY65: 0 | DZ65: 0 | EA65: 0 | EB65: 0 | EC65: 0 | ED65: 0 | EE65: 0 | EF65: 0 | EG65: 0 | EH65: 0 | EI65: 0 | EJ65: 0 | EK65: 0 | EL65: 0 | EM65: 0 | EN65: 0 | EO65: 0 | EP65: 0 | EQ65: 0
A66: =get_bond_grade($A$16:A65,$BX$5,$BY$5,$BZ$5) -> A | B66: 51 | C66: 1 | D66: 1 | E66: 1 | F66: 1 | G66: 1 | H66: 1 | I66: 1 | J66: 1 | K66: 1 | L66: 1 | M66: 1 | N66: 1 | O66: 1 | P66: 1 | Q66: 1 | R66: 1 | S66: 1 | T66: 1 | U66: 1 | V66: 1 | W66: 1 | X66: 1 | Y66: 1 | Z66: 1 | AA66: 1 | AB66: 1 | AC66: 1 | AD66: 1 | AE66: 1 | AF66: 1 | AG66: 1 | AH66: 1 | AI66: 1 | AJ66: 1 | AK66: 1 | AL66: 0 | AM66: 0 | AN66: 0 | AO66: 0 | AP66: 0 | AQ66: 0 | AR66: 0 | AS66: 0 | AT66: 0 | AU66: 0 | AV66: 0 | AW66: 0 | AX66: 0 | AY66: 0 | AZ66: 0 | BA66: 0 | BB66: 0 | BC66: 0 | BD66: 0 | BE66: 0 | BF66: 0 | BG66: 0 | BH66: 0 | BI66: 0 | BJ66: 0 | BK66: 0 | BL66: 0 | BM66: 0 | BN66: 0 | BO66: 0 | BP66: 0 | BQ66: 0 | BR66: 0 | BS66: 0 | BT66: 0 | BU66: 0 | BW66: A | BX66: 51 | BY66: -100000 | BZ66: =payout($A66,D66,$C66:C66,BY66,$BY66:BY66) -> 7000 | CA66: =payout($A66,E66,$C66:D66,BZ66,$BY66:BZ66) -> 7000 | CB66: =payout($A66,F66,$C66:E66,CA66,$BY66:CA66) -> 7000 | CC66: =payout($A66,G66,$C66:F66,CB66,$BY66:CB66) -> 7000 | CD66: =payout($A66,H66,$C66:G66,CC66,$BY66:CC66) -> 7000 | CE66: =payout($A66,I66,$C66:H66,CD66,$BY66:CD66) -> 7000 | CF66: =payout($A66,J66,$C66:I66,CE66,$BY66:CE66) -> 7000 | CG66: =payout($A66,K66,$C66:J66,CF66,$BY66:CF66) -> 7000 | CH66: =payout($A66,L66,$C66:K66,CG66,$BY66:CG66) -> 7000 | CI66: =payout($A66,M66,$C66:L66,CH66,$BY66:CH66) -> 7000 | CJ66: =payout($A66,N66,$C66:M66,CI66,$BY66:CI66) -> 7000 | CK66: =payout($A66,O66,$C66:N66,CJ66,$BY66:CJ66) -> 7000 | CL66: =payout($A66,P66,$C66:O66,CK66,$BY66:CK66) -> 7000 | CM66: =payout($A66,Q66,$C66:P66,CL66,$BY66:CL66) -> 7000 | CN66: =payout($A66,R66,$C66:Q66,CM66,$BY66:CM66) -> 7000 | CO66: =payout($A66,S66,$C66:R66,CN66,$BY66:CN66) -> 7000 | CP66: =payout($A66,T66,$C66:S66,CO66,$BY66:CO66) -> 7000 | CQ66: =payout($A66,U66,$C66:T66,CP66,$BY66:CP66) -> 7000 | CR66: =payout($A66,V66,$C66:U66,CQ66,$BY66:CQ66) -> 7000 | CS66: =payout($A66,W66,$C66:V66,CR66,$BY66:CR66) -> 7000 | CT66: =payout($A66,X66,$C66:W66,CS66,$BY66:CS66) -> 7000 | CU66: =payout($A66,Y66,$C66:X66,CT66,$BY66:CT66) -> 7000 | CV66: =payout($A66,Z66,$C66:Y66,CU66,$BY66:CU66) -> 7000 | CW66: =payout($A66,AA66,$C66:Z66,CV66,$BY66:CV66) -> 7000 | CX66: =payout($A66,AB66,$C66:AA66,CW66,$BY66:CW66) -> 7000 | CY66: =payout($A66,AC66,$C66:AB66,CX66,$BY66:CX66) -> 7000 | CZ66: =payout($A66,AD66,$C66:AC66,CY66,$BY66:CY66) -> 7000 | DA66: =payout($A66,AE66,$C66:AD66,CZ66,$BY66:CZ66) -> 7000 | DB66: =payout($A66,AF66,$C66:AE66,DA66,$BY66:DA66) -> 7000 | DC66: =payout($A66,AG66,$C66:AF66,DB66,$BY66:DB66) -> 7000 | DD66: =payout($A66,AH66,$C66:AG66,DC66,$BY66:DC66) -> 7000 | DE66: =payout($A66,AI66,$C66:AH66,DD66,$BY66:DD66) -> 7000 | DF66: =payout($A66,AJ66,$C66:AI66,DE66,$BY66:DE66) -> 7000 | DG66: =payout($A66,AK66,$C66:AJ66,DF66,$BY66:DF66) -> 7000 | DH66: =payout($A66,AL66,$C66:AK66,DG66,$BY66:DG66) -> 7000 | DI66: =payout($A66,AM66,$C66:AL66,DH66,$BY66:DH66) -> 7000 | DJ66: =payout($A66,AN66,$C66:AM66,DI66,$BY66:DI66) -> 7000 | DK66: =payout($A66,AO66,$C66:AN66,DJ66,$BY66:DJ66) -> 7000 | DL66: =payout($A66,AP66,$C66:AO66,DK66,$BY66:DK66) -> 7000 | DM66: =payout($A66,AQ66,$C66:AP66,DL66,$BY66:DL66) -> 107000 | DN66: =payout($A66,AR66,$C66:AQ66,DM66,$BY66:DM66) -> 0 | DO66: 0 | DP66: 0 | DQ66: 0 | DR66: 0 | DS66: 0 | DT66: 0 | DU66: 0 | DV66: 0 | DW66: 0 | DX66: 0 | DY66: 0 | DZ66: 0 | EA66: 0 | EB66: 0 | EC66: 0 | ED66: 0 | EE66: 0 | EF66: 0 | EG66: 0 | EH66: 0 | EI66: 0 | EJ66: 0 | EK66: 0 | EL66: 0 | EM66: 0 | EN66: 0 | EO66: 0 | EP66: 0 | EQ66: 0
A67: =get_bond_grade($A$16:A66,$BX$5,$BY$5,$BZ$5) -> AAA | B67: 52 | C67: 1 | D67: 1 | E67: 1 | F67: 1 | G67: 1 | H67: 1 | I67: 1 | J67: 1 | K67: 1 | L67: 1 | M67: 1 | N67: 1 | O67: 1 | P67: 1 | Q67: 1 | R67: 1 | S67: 1 | T67: 1 | U67: 1 | V67: 1 | W67: 1 | X67: 1 | Y67: 1 | Z67: 1 | AA67: 1 | AB67: 1 | AC67: 1 | AD67: 1 | AE67: 1 | AF67: 1 | AG67: 1 | AH67: 1 | AI67: 1 | AJ67: 1 | AK67: 1 | AL67: 0 | AM67: 0 | AN67: 0 | AO67: 0 | AP67: 0 | AQ67: 0 | AR67: 0 | AS67: 0 | AT67: 0 | AU67: 0 | AV67: 0 | AW67: 0 | AX67: 0 | AY67: 0 | AZ67: 0 | BA67: 0 | BB67: 0 | BC67: 0 | BD67: 0 | BE67: 0 | BF67: 0 | BG67: 0 | BH67: 0 | BI67: 0 | BJ67: 0 | BK67: 0 | BL67: 0 | BM67: 0 | BN67: 0 | BO67: 0 | BP67: 0 | BQ67: 0 | BR67: 0 | BS67: 0 | BT67: 0 | BU67: 0 | BW67: AAA | BX67: 52 | BY67: -100000 | BZ67: =payout($A67,D67,$C67:C67,BY67,$BY67:BY67) -> 5000 | CA67: =payout($A67,E67,$C67:D67,BZ67,$BY67:BZ67) -> 5000 | CB67: =payout($A67,F67,$C67:E67,CA67,$BY67:CA67) -> 5000 | CC67: =payout($A67,G67,$C67:F67,CB67,$BY67:CB67) -> 5000 | CD67: =payout($A67,H67,$C67:G67,CC67,$BY67:CC67) -> 5000 | CE67: =payout($A67,I67,$C67:H67,CD67,$BY67:CD67) -> 5000 | CF67: =payout($A67,J67,$C67:I67,CE67,$BY67:CE67) -> 5000 | CG67: =payout($A67,K67,$C67:J67,CF67,$BY67:CF67) -> 5000 | CH67: =payout($A67,L67,$C67:K67,CG67,$BY67:CG67) -> 5000 | CI67: =payout($A67,M67,$C67:L67,CH67,$BY67:CH67) -> 5000 | CJ67: =payout($A67,N67,$C67:M67,CI67,$BY67:CI67) -> 5000 | CK67: =payout($A67,O67,$C67:N67,CJ67,$BY67:CJ67) -> 5000 | CL67: =payout($A67,P67,$C67:O67,CK67,$BY67:CK67) -> 5000 | CM67: =payout($A67,Q67,$C67:P67,CL67,$BY67:CL67) -> 5000 | CN67: =payout($A67,R67,$C67:Q67,CM67,$BY67:CM67) -> 5000 | CO67: =payout($A67,S67,$C67:R67,CN67,$BY67:CN67) -> 5000 | CP67: =payout($A67,T67,$C67:S67,CO67,$BY67:CO67) -> 5000 | CQ67: =payout($A67,U67,$C67:T67,CP67,$BY67:CP67) -> 5000 | CR67: =payout($A67,V67,$C67:U67,CQ67,$BY67:CQ67) -> 5000 | CS67: =payout($A67,W67,$C67:V67,CR67,$BY67:CR67) -> 5000 | CT67: =payout($A67,X67,$C67:W67,CS67,$BY67:CS67) -> 5000 | CU67: =payout($A67,Y67,$C67:X67,CT67,$BY67:CT67) -> 5000 | CV67: =payout($A67,Z67,$C67:Y67,CU67,$BY67:CU67) -> 5000 | CW67: =payout($A67,AA67,$C67:Z67,CV67,$BY67:CV67) -> 5000 | CX67: =payout($A67,AB67,$C67:AA67,CW67,$BY67:CW67) -> 5000 | CY67: =payout($A67,AC67,$C67:AB67,CX67,$BY67:CX67) -> 5000 | CZ67: =payout($A67,AD67,$C67:AC67,CY67,$BY67:CY67) -> 5000 | DA67: =payout($A67,AE67,$C67:AD67,CZ67,$BY67:CZ67) -> 5000 | DB67: =payout($A67,AF67,$C67:AE67,DA67,$BY67:DA67) -> 5000 | DC67: =payout($A67,AG67,$C67:AF67,DB67,$BY67:DB67) -> 5000 | DD67: =payout($A67,AH67,$C67:AG67,DC67,$BY67:DC67) -> 5000 | DE67: =payout($A67,AI67,$C67:AH67,DD67,$BY67:DD67) -> 5000 | DF67: =payout($A67,AJ67,$C67:AI67,DE67,$BY67:DE67) -> 5000 | DG67: =payout($A67,AK67,$C67:AJ67,DF67,$BY67:DF67) -> 5000 | DH67: =payout($A67,AL67,$C67:AK67,DG67,$BY67:DG67) -> 5000 | DI67: =payout($A67,AM67,$C67:AL67,DH67,$BY67:DH67) -> 5000 | DJ67: =payout($A67,AN67,$C67:AM67,DI67,$BY67:DI67) -> 5000 | DK67: =payout($A67,AO67,$C67:AN67,DJ67,$BY67:DJ67) -> 5000 | DL67: =payout($A67,AP67,$C67:AO67,DK67,$BY67:DK67) -> 5000 | DM67: =payout($A67,AQ67,$C67:AP67,DL67,$BY67:DL67) -> 105000 | DN67: =payout($A67,AR67,$C67:AQ67,DM67,$BY67:DM67) -> 0 | DO67: 0 | DP67: 0 | DQ67: 0 | DR67: 0 | DS67: 0 | DT67: 0 | DU67: 0 | DV67: 0 | DW67: 0 | DX67: 0 | DY67: 0 | DZ67: 0 | EA67: 0 | EB67: 0 | EC67: 0 | ED67: 0 | EE67: 0 | EF67: 0 | EG67: 0 | EH67: 0 | EI67: 0 | EJ67: 0 | EK67: 0 | EL67: 0 | EM67: 0 | EN67: 0 | EO67: 0 | EP67: 0 | EQ67: 0
A68: =get_bond_grade($A$16:A67,$BX$5,$BY$5,$BZ$5) -> AA | B68: 53 | C68: 1 | D68: 1 | E68: 1 | F68: 1 | G68: 1 | H68: 1 | I68: 1 | J68: 1 | K68: 1 | L68: 1 | M68: 1 | N68: 1 | O68: 1 | P68: 1 | Q68: 1 | R68: 1 | S68: 1 | T68: 1 | U68: 1 | V68: 1 | W68: 1 | X68: 1 | Y68: 1 | Z68: 1 | AA68: 1 | AB68: 1 | AC68: 1 | AD68: 1 | AE68: 0 | AF68: 0 | AG68: 0 | AH68: 0 | AI68: 0 | AJ68: 0 | AK68: 0 | AL68: 0 | AM68: 0 | AN68: 0 | AO68: 0 | AP68: 0 | AQ68: 0 | AR68: 0 | AS68: 0 | AT68: 0 | AU68: 0 | AV68: 0 | AW68: 0 | AX68: 0 | AY68: 0 | AZ68: 0 | BA68: 0 | BB68: 0 | BC68: 0 | BD68: 0 | BE68: 0 | BF68: 0 | BG68: 0 | BH68: 0 | BI68: 0 | BJ68: 0 | BK68: 0 | BL68: 0 | BM68: 0 | BN68: 0 | BO68: 0 | BP68: 0 | BQ68: 0 | BR68: 0 | BS68: 0 | BT68: 0 | BU68: 0 | BW68: AA | BX68: 53 | BY68: -100000 | BZ68: =payout($A68,D68,$C68:C68,BY68,$BY68:BY68) -> 6000 | CA68: =payout($A68,E68,$C68:D68,BZ68,$BY68:BZ68) -> 6000 | CB68: =payout($A68,F68,$C68:E68,CA68,$BY68:CA68) -> 6000 | CC68: =payout($A68,G68,$C68:F68,CB68,$BY68:CB68) -> 6000 | CD68: =payout($A68,H68,$C68:G68,CC68,$BY68:CC68) -> 6000 | CE68: =payout($A68,I68,$C68:H68,CD68,$BY68:CD68) -> 6000 | CF68: =payout($A68,J68,$C68:I68,CE68,$BY68:CE68) -> 6000 | CG68: =payout($A68,K68,$C68:J68,CF68,$BY68:CF68) -> 6000 | CH68: =payout($A68,L68,$C68:K68,CG68,$BY68:CG68) -> 6000 | CI68: =payout($A68,M68,$C68:L68,CH68,$BY68:CH68) -> 6000 | CJ68: =payout($A68,N68,$C68:M68,CI68,$BY68:CI68) -> 6000 | CK68: =payout($A68,O68,$C68:N68,CJ68,$BY68:CJ68) -> 6000 | CL68: =payout($A68,P68,$C68:O68,CK68,$BY68:CK68) -> 6000 | CM68: =payout($A68,Q68,$C68:P68,CL68,$BY68:CL68) -> 6000 | CN68: =payout($A68,R68,$C68:Q68,CM68,$BY68:CM68) -> 6000 | CO68: =payout($A68,S68,$C68:R68,CN68,$BY68:CN68) -> 6000 | CP68: =payout($A68,T68,$C68:S68,CO68,$BY68:CO68) -> 6000 | CQ68: =payout($A68,U68,$C68:T68,CP68,$BY68:CP68) -> 6000 | CR68: =payout($A68,V68,$C68:U68,CQ68,$BY68:CQ68) -> 6000 | CS68: =payout($A68,W68,$C68:V68,CR68,$BY68:CR68) -> 6000 | CT68: =payout($A68,X68,$C68:W68,CS68,$BY68:CS68) -> 6000 | CU68: =payout($A68,Y68,$C68:X68,CT68,$BY68:CT68) -> 6000 | CV68: =payout($A68,Z68,$C68:Y68,CU68,$BY68:CU68) -> 6000 | CW68: =payout($A68,AA68,$C68:Z68,CV68,$BY68:CV68) -> 6000 | CX68: =payout($A68,AB68,$C68:AA68,CW68,$BY68:CW68) -> 6000 | CY68: =payout($A68,AC68,$C68:AB68,CX68,$BY68:CX68) -> 6000 | CZ68: =payout($A68,AD68,$C68:AC68,CY68,$BY68:CY68) -> 6000 | DA68: =payout($A68,AE68,$C68:AD68,CZ68,$BY68:CZ68) -> 6000 | DB68: =payout($A68,AF68,$C68:AE68,DA68,$BY68:DA68) -> 6000 | DC68: =payout($A68,AG68,$C68:AF68,DB68,$BY68:DB68) -> 6000 | DD68: =payout($A68,AH68,$C68:AG68,DC68,$BY68:DC68) -> 6000 | DE68: =payout($A68,AI68,$C68:AH68,DD68,$BY68:DD68) -> 6000 | DF68: =payout($A68,AJ68,$C68:AI68,DE68,$BY68:DE68) -> 6000 | DG68: =payout($A68,AK68,$C68:AJ68,DF68,$BY68:DF68) -> 6000 | DH68: =payout($A68,AL68,$C68:AK68,DG68,$BY68:DG68) -> 6000 | DI68: =payout($A68,AM68,$C68:AL68,DH68,$BY68:DH68) -> 6000 | DJ68: =payout($A68,AN68,$C68:AM68,DI68,$BY68:DI68) -> 6000 | DK68: =payout($A68,AO68,$C68:AN68,DJ68,$BY68:DJ68) -> 6000 | DL68: =payout($A68,AP68,$C68:AO68,DK68,$BY68:DK68) -> 6000 | DM68: =payout($A68,AQ68,$C68:AP68,DL68,$BY68:DL68) -> 106000 | DN68: =payout($A68,AR68,$C68:AQ68,DM68,$BY68:DM68) -> 0 | DO68: 0 | DP68: 0 | DQ68: 0 | DR68: 0 | DS68: 0 | DT68: 0 | DU68: 0 | DV68: 0 | DW68: 0 | DX68: 0 | DY68: 0 | DZ68: 0 | EA68: 0 | EB68: 0 | EC68: 0 | ED68: 0 | EE68: 0 | EF68: 0 | EG68: 0 | EH68: 0 | EI68: 0 | EJ68: 0 | EK68: 0 | EL68: 0 | EM68: 0 | EN68: 0 | EO68: 0 | EP68: 0 | EQ68: 0
A69: =get_bond_grade($A$16:A68,$BX$5,$BY$5,$BZ$5) -> AAA | B69: 54 | C69: 1 | D69: 0 | E69: 0 | F69: 0 | G69: 0 | H69: 0 | I69: 0 | J69: 0 | K69: 0 | L69: 0 | M69: 0 | N69: 0 | O69: 0 | P69: 0 | Q69: 0 | R69: 0 | S69: 0 | T69: 0 | U69: 0 | V69: 0 | W69: 0 | X69: 0 | Y69: 0 | Z69: 0 | AA69: 0 | AB69: 0 | AC69: 0 | AD69: 0 | AE69: 0 | AF69: 0 | AG69: 0 | AH69: 0 | AI69: 0 | AJ69: 0 | AK69: 0 | AL69: 0 | AM69: 0 | AN69: 0 | AO69: 0 | AP69: 0 | AQ69: 0 | AR69: 0 | AS69: 0 | AT69: 0 | AU69: 0 | AV69: 0 | AW69: 0 | AX69: 0 | AY69: 0 | AZ69: 0 | BA69: 0 | BB69: 0 | BC69: 0 | BD69: 0 | BE69: 0 | BF69: 0 | BG69: 0 | BH69: 0 | BI69: 0 | BJ69: 0 | BK69: 0 | BL69: 0 | BM69: 0 | BN69: 0 | BO69: 0 | BP69: 0 | BQ69: 0 | BR69: 0 | BS69: 0 | BT69: 0 | BU69: 0 | BW69: AAA | BX69: 54 | BY69: -100000 | BZ69: =payout($A69,D69,$C69:C69,BY69,$BY69:BY69) -> 5000 | CA69: =payout($A69,E69,$C69:D69,BZ69,$BY69:BZ69) -> 5000 | CB69: =payout($A69,F69,$C69:E69,CA69,$BY69:CA69) -> 5000 | CC69: =payout($A69,G69,$C69:F69,CB69,$BY69:CB69) -> 5000 | CD69: =payout($A69,H69,$C69:G69,CC69,$BY69:CC69) -> 5000 | CE69: =payout($A69,I69,$C69:H69,CD69,$BY69:CD69) -> 5000 | CF69: =payout($A69,J69,$C69:I69,CE69,$BY69:CE69) -> 5000 | CG69: =payout($A69,K69,$C69:J69,CF69,$BY69:CF69) -> 5000 | CH69: =payout($A69,L69,$C69:K69,CG69,$BY69:CG69) -> 5000 | CI69: =payout($A69,M69,$C69:L69,CH69,$BY69:CH69) -> 5000 | CJ69: =payout($A69,N69,$C69:M69,CI69,$BY69:CI69) -> 5000 | CK69: =payout($A69,O69,$C69:N69,CJ69,$BY69:CJ69) -> 5000 | CL69: =payout($A69,P69,$C69:O69,CK69,$BY69:CK69) -> 5000 | CM69: =payout($A69,Q69,$C69:P69,CL69,$BY69:CL69) -> 5000 | CN69: =payout($A69,R69,$C69:Q69,CM69,$BY69:CM69) -> 5000 | CO69: =payout($A69,S69,$C69:R69,CN69,$BY69:CN69) -> 5000 | CP69: =payout($A69,T69,$C69:S69,CO69,$BY69:CO69) -> 5000 | CQ69: =payout($A69,U69,$C69:T69,CP69,$BY69:CP69) -> 5000 | CR69: =payout($A69,V69,$C69:U69,CQ69,$BY69:CQ69) -> 5000 | CS69: =payout($A69,W69,$C69:V69,CR69,$BY69:CR69) -> 5000 | CT69: =payout($A69,X69,$C69:W69,CS69,$BY69:CS69) -> 5000 | CU69: =payout($A69,Y69,$C69:X69,CT69,$BY69:CT69) -> 5000 | CV69: =payout($A69,Z69,$C69:Y69,CU69,$BY69:CU69) -> 5000 | CW69: =payout($A69,AA69,$C69:Z69,CV69,$BY69:CV69) -> 5000 | CX69: =payout($A69,AB69,$C69:AA69,CW69,$BY69:CW69) -> 5000 | CY69: =payout($A69,AC69,$C69:AB69,CX69,$BY69:CX69) -> 5000 | CZ69: =payout($A69,AD69,$C69:AC69,CY69,$BY69:CY69) -> 5000 | DA69: =payout($A69,AE69,$C69:AD69,CZ69,$BY69:CZ69) -> 5000 | DB69: =payout($A69,AF69,$C69:AE69,DA69,$BY69:DA69) -> 5000 | DC69: =payout($A69,AG69,$C69:AF69,DB69,$BY69:DB69) -> 5000 | DD69: =payout($A69,AH69,$C69:AG69,DC69,$BY69:DC69) -> 5000 | DE69: =payout($A69,AI69,$C69:AH69,DD69,$BY69:DD69) -> 5000 | DF69: =payout($A69,AJ69,$C69:AI69,DE69,$BY69:DE69) -> 5000 | DG69: =payout($A69,AK69,$C69:AJ69,DF69,$BY69:DF69) -> 5000 | DH69: =payout($A69,AL69,$C69:AK69,DG69,$BY69:DG69) -> 5000 | DI69: =payout($A69,AM69,$C69:AL69,DH69,$BY69:DH69) -> 5000 | DJ69: =payout($A69,AN69,$C69:AM69,DI69,$BY69:DI69) -> 5000 | DK69: =payout($A69,AO69,$C69:AN69,DJ69,$BY69:DJ69) -> 5000 | DL69: =payout($A69,AP69,$C69:AO69,DK69,$BY69:DK69) -> 5000 | DM69: =payout($A69,AQ69,$C69:AP69,DL69,$BY69:DL69) -> 105000 | DN69: =payout($A69,AR69,$C69:AQ69,DM69,$BY69:DM69) -> 0 | DO69: 0 | DP69: 0 | DQ69: 0 | DR69: 0 | DS69: 0 | DT69: 0 | DU69: 0 | DV69: 0 | DW69: 0 | DX69: 0 | DY69: 0 | DZ69: 0 | EA69: 0 | EB69: 0 | EC69: 0 | ED69: 0 | EE69: 0 | EF69: 0 | EG69: 0 | EH69: 0 | EI69: 0 | EJ69: 0 | EK69: 0 | EL69: 0 | EM69: 0 | EN69: 0 | EO69: 0 | EP69: 0 | EQ69: 0
A70: =get_bond_grade($A$16:A69,$BX$5,$BY$5,$BZ$5) -> AA | B70: 55 | C70: 1 | D70: 1 | E70: 1 | F70: 1 | G70: 1 | H70: 1 | I70: 1 | J70: 1 | K70: 1 | L70: 1 | M70: 1 | N70: 1 | O70: 1 | P70: 1 | Q70: 1 | R70: 1 | S70: 1 | T70: 1 | U70: 1 | V70: 1 | W70: 1 | X70: 1 | Y70: 1 | Z70: 1 | AA70: 1 | AB70: 1 | AC70: 1 | AD70: 1 | AE70: 1 | AF70: 1 | AG70: 1 | AH70: 1 | AI70: 1 | AJ70: 1 | AK70: 1 | AL70: 0 | AM70: 0 | AN70: 0 | AO70: 0 | AP70: 0 | AQ70: 0 | AR70: 0 | AS70: 0 | AT70: 0 | AU70: 0 | AV70: 0 | AW70: 0 | AX70: 0 | AY70: 0 | AZ70: 0 | BA70: 0 | BB70: 0 | BC70: 0 | BD70: 0 | BE70: 0 | BF70: 0 | BG70: 0 | BH70: 0 | BI70: 0 | BJ70: 0 | BK70: 0 | BL70: 0 | BM70: 0 | BN70: 0 | BO70: 0 | BP70: 0 | BQ70: 0 | BR70: 0 | BS70: 0 | BT70: 0 | BU70: 0 | BW70: AA | BX70: 55 | BY70: -100000 | BZ70: =payout($A70,D70,$C70:C70,BY70,$BY70:BY70) -> 6000 | CA70: =payout($A70,E70,$C70:D70,BZ70,$BY70:BZ70) -> 6000 | CB70: =payout($A70,F70,$C70:E70,CA70,$BY70:CA70) -> 6000 | CC70: =payout($A70,G70,$C70:F70,CB70,$BY70:CB70) -> 6000 | CD70: =payout($A70,H70,$C70:G70,CC70,$BY70:CC70) -> 6000 | CE70: =payout($A70,I70,$C70:H70,CD70,$BY70:CD70) -> 6000 | CF70: =payout($A70,J70,$C70:I70,CE70,$BY70:CE70) -> 6000 | CG70: =payout($A70,K70,$C70:J70,CF70,$BY70:CF70) -> 6000 | CH70: =payout($A70,L70,$C70:K70,CG70,$BY70:CG70) -> 6000 | CI70: =payout($A70,M70,$C70:L70,CH70,$BY70:CH70) -> 6000 | CJ70: =payout($A70,N70,$C70:M70,CI70,$BY70:CI70) -> 6000 | CK70: =payout($A70,O70,$C70:N70,CJ70,$BY70:CJ70) -> 6000 | CL70: =payout($A70,P70,$C70:O70,CK70,$BY70:CK70) -> 6000 | CM70: =payout($A70,Q70,$C70:P70,CL70,$BY70:CL70) -> 6000 | CN70: =payout($A70,R70,$C70:Q70,CM70,$BY70:CM70) -> 6000 | CO70: =payout($A70,S70,$C70:R70,CN70,$BY70:CN70) -> 6000 | CP70: =payout($A70,T70,$C70:S70,CO70,$BY70:CO70) -> 6000 | CQ70: =payout($A70,U70,$C70:T70,CP70,$BY70:CP70) -> 6000 | CR70: =payout($A70,V70,$C70:U70,CQ70,$BY70:CQ70) -> 6000 | CS70: =payout($A70,W70,$C70:V70,CR70,$BY70:CR70) -> 6000 | CT70: =payout($A70,X70,$C70:W70,CS70,$BY70:CS70) -> 6000 | CU70: =payout($A70,Y70,$C70:X70,CT70,$BY70:CT70) -> 6000 | CV70: =payout($A70,Z70,$C70:Y70,CU70,$BY70:CU70) -> 6000 | CW70: =payout($A70,AA70,$C70:Z70,CV70,$BY70:CV70) -> 6000 | CX70: =payout($A70,AB70,$C70:AA70,CW70,$BY70:CW70) -> 6000 | CY70: =payout($A70,AC70,$C70:AB70,CX70,$BY70:CX70) -> 6000 | CZ70: =payout($A70,AD70,$C70:AC70,CY70,$BY70:CY70) -> 6000 | DA70: =payout($A70,AE70,$C70:AD70,CZ70,$BY70:CZ70) -> 6000 | DB70: =payout($A70,AF70,$C70:AE70,DA70,$BY70:DA70) -> 6000 | DC70: =payout($A70,AG70,$C70:AF70,DB70,$BY70:DB70) -> 6000 | DD70: =payout($A70,AH70,$C70:AG70,DC70,$BY70:DC70) -> 6000 | DE70: =payout($A70,AI70,$C70:AH70,DD70,$BY70:DD70) -> 6000 | DF70: =payout($A70,AJ70,$C70:AI70,DE70,$BY70:DE70) -> 6000 | DG70: =payout($A70,AK70,$C70:AJ70,DF70,$BY70:DF70) -> 6000 | DH70: =payout($A70,AL70,$C70:AK70,DG70,$BY70:DG70) -> 6000 | DI70: =payout($A70,AM70,$C70:AL70,DH70,$BY70:DH70) -> 6000 | DJ70: =payout($A70,AN70,$C70:AM70,DI70,$BY70:DI70) -> 6000 | DK70: =payout($A70,AO70,$C70:AN70,DJ70,$BY70:DJ70) -> 6000 | DL70: =payout($A70,AP70,$C70:AO70,DK70,$BY70:DK70) -> 6000 | DM70: =payout($A70,AQ70,$C70:AP70,DL70,$BY70:DL70) -> 106000 | DN70: =payout($A70,AR70,$C70:AQ70,DM70,$BY70:DM70) -> 0 | DO70: 0 | DP70: 0 | DQ70: 0 | DR70: 0 | DS70: 0 | DT70: 0 | DU70: 0 | DV70: 0 | DW70: 0 | DX70: 0 | DY70: 0 | DZ70: 0 | EA70: 0 | EB70: 0 | EC70: 0 | ED70: 0 | EE70: 0 | EF70: 0 | EG70: 0 | EH70: 0 | EI70: 0 | EJ70: 0 | EK70: 0 | EL70: 0 | EM70: 0 | EN70: 0 | EO70: 0 | EP70: 0 | EQ70: 0
A71: =get_bond_grade($A$16:A70,$BX$5,$BY$5,$BZ$5) -> A | B71: 56 | C71: 1 | D71: 1 | E71: 0 | F71: 0 | G71: 0 | H71: 0 | I71: 0 | J71: 0 | K71: 0 | L71: 0 | M71: 0 | N71: 0 | O71: 0 | P71: 0 | Q71: 0 | R71: 0 | S71: 0 | T71: 0 | U71: 0 | V71: 0 | W71: 0 | X71: 0 | Y71: 0 | Z71: 0 | AA71: 0 | AB71: 0 | AC71: 0 | AD71: 0 | AE71: 0 | AF71: 0 | AG71: 0 | AH71: 0 | AI71: 0 | AJ71: 0 | AK71: 0 | AL71: 0 | AM71: 0 | AN71: 0 | AO71: 0 | AP71: 0 | AQ71: 0 | AR71: 0 | AS71: 0 | AT71: 0 | AU71: 0 | AV71: 0 | AW71: 0 | AX71: 0 | AY71: 0 | AZ71: 0 | BA71: 0 | BB71: 0 | BC71: 0 | BD71: 0 | BE71: 0 | BF71: 0 | BG71: 0 | BH71: 0 | BI71: 0 | BJ71: 0 | BK71: 0 | BL71: 0 | BM71: 0 | BN71: 0 | BO71: 0 | BP71: 0 | BQ71: 0 | BR71: 0 | BS71: 0 | BT71: 0 | BU71: 0 | BW71: A | BX71: 56 | BY71: -100000 | BZ71: =payout($A71,D71,$C71:C71,BY71,$BY71:BY71) -> 7000 | CA71: =payout($A71,E71,$C71:D71,BZ71,$BY71:BZ71) -> 7000 | CB71: =payout($A71,F71,$C71:E71,CA71,$BY71:CA71) -> 7000 | CC71: =payout($A71,G71,$C71:F71,CB71,$BY71:CB71) -> 7000 | CD71: =payout($A71,H71,$C71:G71,CC71,$BY71:CC71) -> 7000 | CE71: =payout($A71,I71,$C71:H71,CD71,$BY71:CD71) -> 7000 | CF71: =payout($A71,J71,$C71:I71,CE71,$BY71:CE71) -> 7000 | CG71: =payout($A71,K71,$C71:J71,CF71,$BY71:CF71) -> 7000 | CH71: =payout($A71,L71,$C71:K71,CG71,$BY71:CG71) -> 7000 | CI71: =payout($A71,M71,$C71:L71,CH71,$BY71:CH71) -> 7000 | CJ71: =payout($A71,N71,$C71:M71,CI71,$BY71:CI71) -> 7000 | CK71: =payout($A71,O71,$C71:N71,CJ71,$BY71:CJ71) -> 7000 | CL71: =payout($A71,P71,$C71:O71,CK71,$BY71:CK71) -> 7000 | CM71: =payout($A71,Q71,$C71:P71,CL71,$BY71:CL71) -> 7000 | CN71: =payout($A71,R71,$C71:Q71,CM71,$BY71:CM71) -> 7000 | CO71: =payout($A71,S71,$C71:R71,CN71,$BY71:CN71) -> 7000 | CP71: =payout($A71,T71,$C71:S71,CO71,$BY71:CO71) -> 7000 | CQ71: =payout($A71,U71,$C71:T71,CP71,$BY71:CP71) -> 7000 | CR71: =payout($A71,V71,$C71:U71,CQ71,$BY71:CQ71) -> 7000 | CS71: =payout($A71,W71,$C71:V71,CR71,$BY71:CR71) -> 7000 | CT71: =payout($A71,X71,$C71:W71,CS71,$BY71:CS71) -> 7000 | CU71: =payout($A71,Y71,$C71:X71,CT71,$BY71:CT71) -> 7000 | CV71: =payout($A71,Z71,$C71:Y71,CU71,$BY71:CU71) -> 7000 | CW71: =payout($A71,AA71,$C71:Z71,CV71,$BY71:CV71) -> 7000 | CX71: =payout($A71,AB71,$C71:AA71,CW71,$BY71:CW71) -> 7000 | CY71: =payout($A71,AC71,$C71:AB71,CX71,$BY71:CX71) -> 7000 | CZ71: =payout($A71,AD71,$C71:AC71,CY71,$BY71:CY71) -> 7000 | DA71: =payout($A71,AE71,$C71:AD71,CZ71,$BY71:CZ71) -> 7000 | DB71: =payout($A71,AF71,$C71:AE71,DA71,$BY71:DA71) -> 7000 | DC71: =payout($A71,AG71,$C71:AF71,DB71,$BY71:DB71) -> 7000 | DD71: =payout($A71,AH71,$C71:AG71,DC71,$BY71:DC71) -> 7000 | DE71: =payout($A71,AI71,$C71:AH71,DD71,$BY71:DD71) -> 7000 | DF71: =payout($A71,AJ71,$C71:AI71,DE71,$BY71:DE71) -> 7000 | DG71: =payout($A71,AK71,$C71:AJ71,DF71,$BY71:DF71) -> 7000 | DH71: =payout($A71,AL71,$C71:AK71,DG71,$BY71:DG71) -> 7000 | DI71: =payout($A71,AM71,$C71:AL71,DH71,$BY71:DH71) -> 7000 | DJ71: =payout($A71,AN71,$C71:AM71,DI71,$BY71:DI71) -> 7000 | DK71: =payout($A71,AO71,$C71:AN71,DJ71,$BY71:DJ71) -> 7000 | DL71: =payout($A71,AP71,$C71:AO71,DK71,$BY71:DK71) -> 7000 | DM71: =payout($A71,AQ71,$C71:AP71,DL71,$BY71:DL71) -> 107000 | DN71: =payout($A71,AR71,$C71:AQ71,DM71,$BY71:DM71) -> 0 | DO71: 0 | DP71: 0 | DQ71: 0 | DR71: 0 | DS71: 0 | DT71: 0 | DU71: 0 | DV71: 0 | DW71: 0 | DX71: 0 | DY71: 0 | DZ71: 0 | EA71: 0 | EB71: 0 | EC71: 0 | ED71: 0 | EE71: 0 | EF71: 0 | EG71: 0 | EH71: 0 | EI71: 0 | EJ71: 0 | EK71: 0 | EL71: 0 | EM71: 0 | EN71: 0 | EO71: 0 | EP71: 0 | EQ71: 0
A72: =get_bond_grade($A$16:A71,$BX$5,$BY$5,$BZ$5) -> AAA | B72: 57 | C72: 1 | D72: 1 | E72: 1 | F72: 1 | G72: 1 | H72: 1 | I72: 1 | J72: 1 | K72: 1 | L72: 1 | M72: 1 | N72: 1 | O72: 1 | P72: 0 | Q72: 0 | R72: 0 | S72: 0 | T72: 0 | U72: 0 | V72: 0 | W72: 0 | X72: 0 | Y72: 0 | Z72: 0 | AA72: 0 | AB72: 0 | AC72: 0 | AD72: 0 | AE72: 0 | AF72: 0 | AG72: 0 | AH72: 0 | AI72: 0 | AJ72: 0 | AK72: 0 | AL72: 0 | AM72: 0 | AN72: 0 | AO72: 0 | AP72: 0 | AQ72: 0 | AR72: 0 | AS72: 0 | AT72: 0 | AU72: 0 | AV72: 0 | AW72: 0 | AX72: 0 | AY72: 0 | AZ72: 0 | BA72: 0 | BB72: 0 | BC72: 0 | BD72: 0 | BE72: 0 | BF72: 0 | BG72: 0 | BH72: 0 | BI72: 0 | BJ72: 0 | BK72: 0 | BL72: 0 | BM72: 0 | BN72: 0 | BO72: 0 | BP72: 0 | BQ72: 0 | BR72: 0 | BS72: 0 | BT72: 0 | BU72: 0 | BW72: AAA | BX72: 57 | BY72: -100000 | BZ72: =payout($A72,D72,$C72:C72,BY72,$BY72:BY72) -> 5000 | CA72: =payout($A72,E72,$C72:D72,BZ72,$BY72:BZ72) -> 5000 | CB72: =payout($A72,F72,$C72:E72,CA72,$BY72:CA72) -> 5000 | CC72: =payout($A72,G72,$C72:F72,CB72,$BY72:CB72) -> 5000 | CD72: =payout($A72,H72,$C72:G72,CC72,$BY72:CC72) -> 5000 | CE72: =payout($A72,I72,$C72:H72,CD72,$BY72:CD72) -> 5000 | CF72: =payout($A72,J72,$C72:I72,CE72,$BY72:CE72) -> 5000 | CG72: =payout($A72,K72,$C72:J72,CF72,$BY72:CF72) -> 5000 | CH72: =payout($A72,L72,$C72:K72,CG72,$BY72:CG72) -> 5000 | CI72: =payout($A72,M72,$C72:L72,CH72,$BY72:CH72) -> 5000 | CJ72: =payout($A72,N72,$C72:M72,CI72,$BY72:CI72) -> 5000 | CK72: =payout($A72,O72,$C72:N72,CJ72,$BY72:CJ72) -> 5000 | CL72: =payout($A72,P72,$C72:O72,CK72,$BY72:CK72) -> 5000 | CM72: =payout($A72,Q72,$C72:P72,CL72,$BY72:CL72) -> 5000 | CN72: =payout($A72,R72,$C72:Q72,CM72,$BY72:CM72) -> 5000 | CO72: =payout($A72,S72,$C72:R72,CN72,$BY72:CN72) -> 5000 | CP72: =payout($A72,T72,$C72:S72,CO72,$BY72:CO72) -> 5000 | CQ72: =payout($A72,U72,$C72:T72,CP72,$BY72:CP72) -> 5000 | CR72: =payout($A72,V72,$C72:U72,CQ72,$BY72:CQ72) -> 5000 | CS72: =payout($A72,W72,$C72:V72,CR72,$BY72:CR72) -> 5000 | CT72: =payout($A72,X72,$C72:W72,CS72,$BY72:CS72) -> 5000 | CU72: =payout($A72,Y72,$C72:X72,CT72,$BY72:CT72) -> 5000 | CV72: =payout($A72,Z72,$C72:Y72,CU72,$BY72:CU72) -> 5000 | CW72: =payout($A72,AA72,$C72:Z72,CV72,$BY72:CV72) -> 5000 | CX72: =payout($A72,AB72,$C72:AA72,CW72,$BY72:CW72) -> 5000 | CY72: =payout($A72,AC72,$C72:AB72,CX72,$BY72:CX72) -> 5000 | CZ72: =payout($A72,AD72,$C72:AC72,CY72,$BY72:CY72) -> 5000 | DA72: =payout($A72,AE72,$C72:AD72,CZ72,$BY72:CZ72) -> 5000 | DB72: =payout($A72,AF72,$C72:AE72,DA72,$BY72:DA72) -> 5000 | DC72: =payout($A72,AG72,$C72:AF72,DB72,$BY72:DB72) -> 5000 | DD72: =payout($A72,AH72,$C72:AG72,DC72,$BY72:DC72) -> 5000 | DE72: =payout($A72,AI72,$C72:AH72,DD72,$BY72:DD72) -> 5000 | DF72: =payout($A72,AJ72,$C72:AI72,DE72,$BY72:DE72) -> 5000 | DG72: =payout($A72,AK72,$C72:AJ72,DF72,$BY72:DF72) -> 5000 | DH72: =payout($A72,AL72,$C72:AK72,DG72,$BY72:DG72) -> 5000 | DI72: =payout($A72,AM72,$C72:AL72,DH72,$BY72:DH72) -> 5000 | DJ72: =payout($A72,AN72,$C72:AM72,DI72,$BY72:DI72) -> 5000 | DK72: =payout($A72,AO72,$C72:AN72,DJ72,$BY72:DJ72) -> 5000 | DL72: =payout($A72,AP72,$C72:AO72,DK72,$BY72:DK72) -> 5000 | DM72: =payout($A72,AQ72,$C72:AP72,DL72,$BY72:DL72) -> 105000 | DN72: =payout($A72,AR72,$C72:AQ72,DM72,$BY72:DM72) -> 0 | DO72: 0 | DP72: 0 | DQ72: 0 | DR72: 0 | DS72: 0 | DT72: 0 | DU72: 0 | DV72: 0 | DW72: 0 | DX72: 0 | DY72: 0 | DZ72: 0 | EA72: 0 | EB72: 0 | EC72: 0 | ED72: 0 | EE72: 0 | EF72: 0 | EG72: 0 | EH72: 0 | EI72: 0 | EJ72: 0 | EK72: 0 | EL72: 0 | EM72: 0 | EN72: 0 | EO72: 0 | EP72: 0 | EQ72: 0
A73: =get_bond_grade($A$16:A72,$BX$5,$BY$5,$BZ$5) -> AA | B73: 58 | C73: 1 | D73: 1 | E73: 1 | F73: 1 | G73: 1 | H73: 1 | I73: 1 | J73: 1 | K73: 1 | L73: 1 | M73: 1 | N73: 0 | O73: 0 | P73: 0 | Q73: 0 | R73: 0 | S73: 0 | T73: 0 | U73: 0 | V73: 0 | W73: 0 | X73: 0 | Y73: 0 | Z73: 0 | AA73: 0 | AB73: 0 | AC73: 0 | AD73: 0 | AE73: 0 | AF73: 0 | AG73: 0 | AH73: 0 | AI73: 0 | AJ73: 0 | AK73: 0 | AL73: 0 | AM73: 0 | AN73: 0 | AO73: 0 | AP73: 0 | AQ73: 0 | AR73: 0 | AS73: 0 | AT73: 0 | AU73: 0 | AV73: 0 | AW73: 0 | AX73: 0 | AY73: 0 | AZ73: 0 | BA73: 0 | BB73: 0 | BC73: 0 | BD73: 0 | BE73: 0 | BF73: 0 | BG73: 0 | BH73: 0 | BI73: 0 | BJ73: 0 | BK73: 0 | BL73: 0 | BM73: 0 | BN73: 0 | BO73: 0 | BP73: 0 | BQ73: 0 | BR73: 0 | BS73: 0 | BT73: 0 | BU73: 0 | BW73: AA | BX73: 58 | BY73: -100000 | BZ73: =payout($A73,D73,$C73:C73,BY73,$BY73:BY73) -> 6000 | CA73: =payout($A73,E73,$C73:D73,BZ73,$BY73:BZ73) -> 6000 | CB73: =payout($A73,F73,$C73:E73,CA73,$BY73:CA73) -> 6000 | CC73: =payout($A73,G73,$C73:F73,CB73,$BY73:CB73) -> 6000 | CD73: =payout($A73,H73,$C73:G73,CC73,$BY73:CC73) -> 6000 | CE73: =payout($A73,I73,$C73:H73,CD73,$BY73:CD73) -> 6000 | CF73: =payout($A73,J73,$C73:I73,CE73,$BY73:CE73) -> 6000 | CG73: =payout($A73,K73,$C73:J73,CF73,$BY73:CF73) -> 6000 | CH73: =payout($A73,L73,$C73:K73,CG73,$BY73:CG73) -> 6000 | CI73: =payout($A73,M73,$C73:L73,CH73,$BY73:CH73) -> 6000 | CJ73: =payout($A73,N73,$C73:M73,CI73,$BY73:CI73) -> 6000 | CK73: =payout($A73,O73,$C73:N73,CJ73,$BY73:CJ73) -> 6000 | CL73: =payout($A73,P73,$C73:O73,CK73,$BY73:CK73) -> 6000 | CM73: =payout($A73,Q73,$C73:P73,CL73,$BY73:CL73) -> 6000 | CN73: =payout($A73,R73,$C73:Q73,CM73,$BY73:CM73) -> 6000 | CO73: =payout($A73,S73,$C73:R73,CN73,$BY73:CN73) -> 6000 | CP73: =payout($A73,T73,$C73:S73,CO73,$BY73:CO73) -> 6000 | CQ73: =payout($A73,U73,$C73:T73,CP73,$BY73:CP73) -> 6000 | CR73: =payout($A73,V73,$C73:U73,CQ73,$BY73:CQ73) -> 6000 | CS73: =payout($A73,W73,$C73:V73,CR73,$BY73:CR73) -> 6000 | CT73: =payout($A73,X73,$C73:W73,CS73,$BY73:CS73) -> 6000 | CU73: =payout($A73,Y73,$C73:X73,CT73,$BY73:CT73) -> 6000 | CV73: =payout($A73,Z73,$C73:Y73,CU73,$BY73:CU73) -> 6000 | CW73: =payout($A73,AA73,$C73:Z73,CV73,$BY73:CV73) -> 6000 | CX73: =payout($A73,AB73,$C73:AA73,CW73,$BY73:CW73) -> 6000 | CY73: =payout($A73,AC73,$C73:AB73,CX73,$BY73:CX73) -> 6000 | CZ73: =payout($A73,AD73,$C73:AC73,CY73,$BY73:CY73) -> 6000 | DA73: =payout($A73,AE73,$C73:AD73,CZ73,$BY73:CZ73) -> 6000 | DB73: =payout($A73,AF73,$C73:AE73,DA73,$BY73:DA73) -> 6000 | DC73: =payout($A73,AG73,$C73:AF73,DB73,$BY73:DB73) -> 6000 | DD73: =payout($A73,AH73,$C73:AG73,DC73,$BY73:DC73) -> 6000 | DE73: =payout($A73,AI73,$C73:AH73,DD73,$BY73:DD73) -> 6000 | DF73: =payout($A73,AJ73,$C73:AI73,DE73,$BY73:DE73) -> 6000 | DG73: =payout($A73,AK73,$C73:AJ73,DF73,$BY73:DF73) -> 6000 | DH73: =payout($A73,AL73,$C73:AK73,DG73,$BY73:DG73) -> 6000 | DI73: =payout($A73,AM73,$C73:AL73,DH73,$BY73:DH73) -> 6000 | DJ73: =payout($A73,AN73,$C73:AM73,DI73,$BY73:DI73) -> 6000 | DK73: =payout($A73,AO73,$C73:AN73,DJ73,$BY73:DJ73) -> 6000 | DL73: =payout($A73,AP73,$C73:AO73,DK73,$BY73:DK73) -> 6000 | DM73: =payout($A73,AQ73,$C73:AP73,DL73,$BY73:DL73) -> 106000 | DN73: =payout($A73,AR73,$C73:AQ73,DM73,$BY73:DM73) -> 0 | DO73: 0 | DP73: 0 | DQ73: 0 | DR73: 0 | DS73: 0 | DT73: 0 | DU73: 0 | DV73: 0 | DW73: 0 | DX73: 0 | DY73: 0 | DZ73: 0 | EA73: 0 | EB73: 0 | EC73: 0 | ED73: 0 | EE73: 0 | EF73: 0 | EG73: 0 | EH73: 0 | EI73: 0 | EJ73: 0 | EK73: 0 | EL73: 0 | EM73: 0 | EN73: 0 | EO73: 0 | EP73: 0 | EQ73: 0
A74: =get_bond_grade($A$16:A73,$BX$5,$BY$5,$BZ$5) -> AAA | B74: 59 | C74: 1 | D74: 1 | E74: 1 | F74: 1 | G74: 1 | H74: 1 | I74: 1 | J74: 1 | K74: 1 | L74: 1 | M74: 1 | N74: 1 | O74: 1 | P74: 1 | Q74: 1 | R74: 1 | S74: 1 | T74: 1 | U74: 1 | V74: 1 | W74: 1 | X74: 1 | Y74: 1 | Z74: 1 | AA74: 1 | AB74: 1 | AC74: 1 | AD74: 1 | AE74: 1 | AF74: 1 | AG74: 1 | AH74: 1 | AI74: 1 | AJ74: 1 | AK74: 1 | AL74: 0 | AM74: 0 | AN74: 0 | AO74: 0 | AP74: 0 | AQ74: 0 | AR74: 0 | AS74: 0 | AT74: 0 | AU74: 0 | AV74: 0 | AW74: 0 | AX74: 0 | AY74: 0 | AZ74: 0 | BA74: 0 | BB74: 0 | BC74: 0 | BD74: 0 | BE74: 0 | BF74: 0 | BG74: 0 | BH74: 0 | BI74: 0 | BJ74: 0 | BK74: 0 | BL74: 0 | BM74: 0 | BN74: 0 | BO74: 0 | BP74: 0 | BQ74: 0 | BR74: 0 | BS74: 0 | BT74: 0 | BU74: 0 | BW74: AAA | BX74: 59 | BY74: -100000 | BZ74: =payout($A74,D74,$C74:C74,BY74,$BY74:BY74) -> 5000 | CA74: =payout($A74,E74,$C74:D74,BZ74,$BY74:BZ74) -> 5000 | CB74: =payout($A74,F74,$C74:E74,CA74,$BY74:CA74) -> 5000 | CC74: =payout($A74,G74,$C74:F74,CB74,$BY74:CB74) -> 5000 | CD74: =payout($A74,H74,$C74:G74,CC74,$BY74:CC74) -> 5000 | CE74: =payout($A74,I74,$C74:H74,CD74,$BY74:CD74) -> 5000 | CF74: =payout($A74,J74,$C74:I74,CE74,$BY74:CE74) -> 5000 | CG74: =payout($A74,K74,$C74:J74,CF74,$BY74:CF74) -> 5000 | CH74: =payout($A74,L74,$C74:K74,CG74,$BY74:CG74) -> 5000 | CI74: =payout($A74,M74,$C74:L74,CH74,$BY74:CH74) -> 5000 | CJ74: =payout($A74,N74,$C74:M74,CI74,$BY74:CI74) -> 5000 | CK74: =payout($A74,O74,$C74:N74,CJ74,$BY74:CJ74) -> 5000 | CL74: =payout($A74,P74,$C74:O74,CK74,$BY74:CK74) -> 5000 | CM74: =payout($A74,Q74,$C74:P74,CL74,$BY74:CL74) -> 5000 | CN74: =payout($A74,R74,$C74:Q74,CM74,$BY74:CM74) -> 5000 | CO74: =payout($A74,S74,$C74:R74,CN74,$BY74:CN74) -> 5000 | CP74: =payout($A74,T74,$C74:S74,CO74,$BY74:CO74) -> 5000 | CQ74: =payout($A74,U74,$C74:T74,CP74,$BY74:CP74) -> 5000 | CR74: =payout($A74,V74,$C74:U74,CQ74,$BY74:CQ74) -> 5000 | CS74: =payout($A74,W74,$C74:V74,CR74,$BY74:CR74) -> 5000 | CT74: =payout($A74,X74,$C74:W74,CS74,$BY74:CS74) -> 5000 | CU74: =payout($A74,Y74,$C74:X74,CT74,$BY74:CT74) -> 5000 | CV74: =payout($A74,Z74,$C74:Y74,CU74,$BY74:CU74) -> 5000 | CW74: =payout($A74,AA74,$C74:Z74,CV74,$BY74:CV74) -> 5000 | CX74: =payout($A74,AB74,$C74:AA74,CW74,$BY74:CW74) -> 5000 | CY74: =payout($A74,AC74,$C74:AB74,CX74,$BY74:CX74) -> 5000 | CZ74: =payout($A74,AD74,$C74:AC74,CY74,$BY74:CY74) -> 5000 | DA74: =payout($A74,AE74,$C74:AD74,CZ74,$BY74:CZ74) -> 5000 | DB74: =payout($A74,AF74,$C74:AE74,DA74,$BY74:DA74) -> 5000 | DC74: =payout($A74,AG74,$C74:AF74,DB74,$BY74:DB74) -> 5000 | DD74: =payout($A74,AH74,$C74:AG74,DC74,$BY74:DC74) -> 5000 | DE74: =payout($A74,AI74,$C74:AH74,DD74,$BY74:DD74) -> 5000 | DF74: =payout($A74,AJ74,$C74:AI74,DE74,$BY74:DE74) -> 5000 | DG74: =payout($A74,AK74,$C74:AJ74,DF74,$BY74:DF74) -> 5000 | DH74: =payout($A74,AL74,$C74:AK74,DG74,$BY74:DG74) -> 5000 | DI74: =payout($A74,AM74,$C74:AL74,DH74,$BY74:DH74) -> 5000 | DJ74: =payout($A74,AN74,$C74:AM74,DI74,$BY74:DI74) -> 5000 | DK74: =payout($A74,AO74,$C74:AN74,DJ74,$BY74:DJ74) -> 5000 | DL74: =payout($A74,AP74,$C74:AO74,DK74,$BY74:DK74) -> 5000 | DM74: =payout($A74,AQ74,$C74:AP74,DL74,$BY74:DL74) -> 105000 | DN74: =payout($A74,AR74,$C74:AQ74,DM74,$BY74:DM74) -> 0 | DO74: 0 | DP74: 0 | DQ74: 0 | DR74: 0 | DS74: 0 | DT74: 0 | DU74: 0 | DV74: 0 | DW74: 0 | DX74: 0 | DY74: 0 | DZ74: 0 | EA74: 0 | EB74: 0 | EC74: 0 | ED74: 0 | EE74: 0 | EF74: 0 | EG74: 0 | EH74: 0 | EI74: 0 | EJ74: 0 | EK74: 0 | EL74: 0 | EM74: 0 | EN74: 0 | EO74: 0 | EP74: 0 | EQ74: 0
A75: =get_bond_grade($A$16:A74,$BX$5,$BY$5,$BZ$5) -> A | B75: 60 | C75: 1 | D75: 1 | E75: 1 | F75: 1 | G75: 1 | H75: 1 | I75: 1 | J75: 1 | K75: 1 | L75: 1 | M75: 1 | N75: 1 | O75: 1 | P75: 1 | Q75: 1 | R75: 1 | S75: 1 | T75: 1 | U75: 1 | V75: 1 | W75: 1 | X75: 1 | Y75: 1 | Z75: 1 | AA75: 1 | AB75: 1 | AC75: 1 | AD75: 1 | AE75: 1 | AF75: 1 | AG75: 1 | AH75: 1 | AI75: 1 | AJ75: 1 | AK75: 1 | AL75: 0 | AM75: 0 | AN75: 0 | AO75: 0 | AP75: 0 | AQ75: 0 | AR75: 0 | AS75: 0 | AT75: 0 | AU75: 0 | AV75: 0 | AW75: 0 | AX75: 0 | AY75: 0 | AZ75: 0 | BA75: 0 | BB75: 0 | BC75: 0 | BD75: 0 | BE75: 0 | BF75: 0 | BG75: 0 | BH75: 0 | BI75: 0 | BJ75: 0 | BK75: 0 | BL75: 0 | BM75: 0 | BN75: 0 | BO75: 0 | BP75: 0 | BQ75: 0 | BR75: 0 | BS75: 0 | BT75: 0 | BU75: 0 | BW75: A | BX75: 60 | BY75: -100000 | BZ75: =payout($A75,D75,$C75:C75,BY75,$BY75:BY75) -> 7000 | CA75: =payout($A75,E75,$C75:D75,BZ75,$BY75:BZ75) -> 7000 | CB75: =payout($A75,F75,$C75:E75,CA75,$BY75:CA75) -> 7000 | CC75: =payout($A75,G75,$C75:F75,CB75,$BY75:CB75) -> 7000 | CD75: =payout($A75,H75,$C75:G75,CC75,$BY75:CC75) -> 7000 | CE75: =payout($A75,I75,$C75:H75,CD75,$BY75:CD75) -> 7000 | CF75: =payout($A75,J75,$C75:I75,CE75,$BY75:CE75) -> 7000 | CG75: =payout($A75,K75,$C75:J75,CF75,$BY75:CF75) -> 7000 | CH75: =payout($A75,L75,$C75:K75,CG75,$BY75:CG75) -> 7000 | CI75: =payout($A75,M75,$C75:L75,CH75,$BY75:CH75) -> 7000 | CJ75: =payout($A75,N75,$C75:M75,CI75,$BY75:CI75) -> 7000 | CK75: =payout($A75,O75,$C75:N75,CJ75,$BY75:CJ75) -> 7000 | CL75: =payout($A75,P75,$C75:O75,CK75,$BY75:CK75) -> 7000 | CM75: =payout($A75,Q75,$C75:P75,CL75,$BY75:CL75) -> 7000 | CN75: =payout($A75,R75,$C75:Q75,CM75,$BY75:CM75) -> 7000 | CO75: =payout($A75,S75,$C75:R75,CN75,$BY75:CN75) -> 7000 | CP75: =payout($A75,T75,$C75:S75,CO75,$BY75:CO75) -> 7000 | CQ75: =payout($A75,U75,$C75:T75,CP75,$BY75:CP75) -> 7000 | CR75: =payout($A75,V75,$C75:U75,CQ75,$BY75:CQ75) -> 7000 | CS75: =payout($A75,W75,$C75:V75,CR75,$BY75:CR75) -> 7000 | CT75: =payout($A75,X75,$C75:W75,CS75,$BY75:CS75) -> 7000 | CU75: =payout($A75,Y75,$C75:X75,CT75,$BY75:CT75) -> 7000 | CV75: =payout($A75,Z75,$C75:Y75,CU75,$BY75:CU75) -> 7000 | CW75: =payout($A75,AA75,$C75:Z75,CV75,$BY75:CV75) -> 7000 | CX75: =payout($A75,AB75,$C75:AA75,CW75,$BY75:CW75) -> 7000 | CY75: =payout($A75,AC75,$C75:AB75,CX75,$BY75:CX75) -> 7000 | CZ75: =payout($A75,AD75,$C75:AC75,CY75,$BY75:CY75) -> 7000 | DA75: =payout($A75,AE75,$C75:AD75,CZ75,$BY75:CZ75) -> 7000 | DB75: =payout($A75,AF75,$C75:AE75,DA75,$BY75:DA75) -> 7000 | DC75: =payout($A75,AG75,$C75:AF75,DB75,$BY75:DB75) -> 7000 | DD75: =payout($A75,AH75,$C75:AG75,DC75,$BY75:DC75) -> 7000 | DE75: =payout($A75,AI75,$C75:AH75,DD75,$BY75:DD75) -> 7000 | DF75: =payout($A75,AJ75,$C75:AI75,DE75,$BY75:DE75) -> 7000 | DG75: =payout($A75,AK75,$C75:AJ75,DF75,$BY75:DF75) -> 7000 | DH75: =payout($A75,AL75,$C75:AK75,DG75,$BY75:DG75) -> 7000 | DI75: =payout($A75,AM75,$C75:AL75,DH75,$BY75:DH75) -> 7000 | DJ75: =payout($A75,AN75,$C75:AM75,DI75,$BY75:DI75) -> 7000 | DK75: =payout($A75,AO75,$C75:AN75,DJ75,$BY75:DJ75) -> 7000 | DL75: =payout($A75,AP75,$C75:AO75,DK75,$BY75:DK75) -> 7000 | DM75: =payout($A75,AQ75,$C75:AP75,DL75,$BY75:DL75) -> 107000 | DN75: =payout($A75,AR75,$C75:AQ75,DM75,$BY75:DM75) -> 0 | DO75: 0 | DP75: 0 | DQ75: 0 | DR75: 0 | DS75: 0 | DT75: 0 | DU75: 0 | DV75: 0 | DW75: 0 | DX75: 0 | DY75: 0 | DZ75: 0 | EA75: 0 | EB75: 0 | EC75: 0 | ED75: 0 | EE75: 0 | EF75: 0 | EG75: 0 | EH75: 0 | EI75: 0 | EJ75: 0 | EK75: 0 | EL75: 0 | EM75: 0 | EN75: 0 | EO75: 0 | EP75: 0 | EQ75: 0
A76: =get_bond_grade($A$16:A75,$BX$5,$BY$5,$BZ$5) -> A | B76: 61 | C76: 1 | D76: 1 | E76: 1 | F76: 1 | G76: 1 | H76: 1 | I76: 1 | J76: 1 | K76: 1 | L76: 1 | M76: 1 | N76: 1 | O76: 1 | P76: 1 | Q76: 1 | R76: 1 | S76: 1 | T76: 1 | U76: 1 | V76: 1 | W76: 1 | X76: 1 | Y76: 1 | Z76: 1 | AA76: 1 | AB76: 1 | AC76: 1 | AD76: 1 | AE76: 1 | AF76: 1 | AG76: 1 | AH76: 1 | AI76: 1 | AJ76: 1 | AK76: 1 | AL76: 0 | AM76: 0 | AN76: 0 | AO76: 0 | AP76: 0 | AQ76: 0 | AR76: 0 | AS76: 0 | AT76: 0 | AU76: 0 | AV76: 0 | AW76: 0 | AX76: 0 | AY76: 0 | AZ76: 0 | BA76: 0 | BB76: 0 | BC76: 0 | BD76: 0 | BE76: 0 | BF76: 0 | BG76: 0 | BH76: 0 | BI76: 0 | BJ76: 0 | BK76: 0 | BL76: 0 | BM76: 0 | BN76: 0 | BO76: 0 | BP76: 0 | BQ76: 0 | BR76: 0 | BS76: 0 | BT76: 0 | BU76: 0 | BW76: A | BX76: 61 | BY76: -100000 | BZ76: =payout($A76,D76,$C76:C76,BY76,$BY76:BY76) -> 7000 | CA76: =payout($A76,E76,$C76:D76,BZ76,$BY76:BZ76) -> 7000 | CB76: =payout($A76,F76,$C76:E76,CA76,$BY76:CA76) -> 7000 | CC76: =payout($A76,G76,$C76:F76,CB76,$BY76:CB76) -> 7000 | CD76: =payout($A76,H76,$C76:G76,CC76,$BY76:CC76) -> 7000 | CE76: =payout($A76,I76,$C76:H76,CD76,$BY76:CD76) -> 7000 | CF76: =payout($A76,J76,$C76:I76,CE76,$BY76:CE76) -> 7000 | CG76: =payout($A76,K76,$C76:J76,CF76,$BY76:CF76) -> 7000 | CH76: =payout($A76,L76,$C76:K76,CG76,$BY76:CG76) -> 7000 | CI76: =payout($A76,M76,$C76:L76,CH76,$BY76:CH76) -> 7000 | CJ76: =payout($A76,N76,$C76:M76,CI76,$BY76:CI76) -> 7000 | CK76: =payout($A76,O76,$C76:N76,CJ76,$BY76:CJ76) -> 7000 | CL76: =payout($A76,P76,$C76:O76,CK76,$BY76:CK76) -> 7000 | CM76: =payout($A76,Q76,$C76:P76,CL76,$BY76:CL76) -> 7000 | CN76: =payout($A76,R76,$C76:Q76,CM76,$BY76:CM76) -> 7000 | CO76: =payout($A76,S76,$C76:R76,CN76,$BY76:CN76) -> 7000 | CP76: =payout($A76,T76,$C76:S76,CO76,$BY76:CO76) -> 7000 | CQ76: =payout($A76,U76,$C76:T76,CP76,$BY76:CP76) -> 7000 | CR76: =payout($A76,V76,$C76:U76,CQ76,$BY76:CQ76) -> 7000 | CS76: =payout($A76,W76,$C76:V76,CR76,$BY76:CR76) -> 7000 | CT76: =payout($A76,X76,$C76:W76,CS76,$BY76:CS76) -> 7000 | CU76: =payout($A76,Y76,$C76:X76,CT76,$BY76:CT76) -> 7000 | CV76: =payout($A76,Z76,$C76:Y76,CU76,$BY76:CU76) -> 7000 | CW76: =payout($A76,AA76,$C76:Z76,CV76,$BY76:CV76) -> 7000 | CX76: =payout($A76,AB76,$C76:AA76,CW76,$BY76:CW76) -> 7000 | CY76: =payout($A76,AC76,$C76:AB76,CX76,$BY76:CX76) -> 7000 | CZ76: =payout($A76,AD76,$C76:AC76,CY76,$BY76:CY76) -> 7000 | DA76: =payout($A76,AE76,$C76:AD76,CZ76,$BY76:CZ76) -> 7000 | DB76: =payout($A76,AF76,$C76:AE76,DA76,$BY76:DA76) -> 7000 | DC76: =payout($A76,AG76,$C76:AF76,DB76,$BY76:DB76) -> 7000 | DD76: =payout($A76,AH76,$C76:AG76,DC76,$BY76:DC76) -> 7000 | DE76: =payout($A76,AI76,$C76:AH76,DD76,$BY76:DD76) -> 7000 | DF76: =payout($A76,AJ76,$C76:AI76,DE76,$BY76:DE76) -> 7000 | DG76: =payout($A76,AK76,$C76:AJ76,DF76,$BY76:DF76) -> 7000 | DH76: =payout($A76,AL76,$C76:AK76,DG76,$BY76:DG76) -> 7000 | DI76: =payout($A76,AM76,$C76:AL76,DH76,$BY76:DH76) -> 7000 | DJ76: =payout($A76,AN76,$C76:AM76,DI76,$BY76:DI76) -> 7000 | DK76: =payout($A76,AO76,$C76:AN76,DJ76,$BY76:DJ76) -> 7000 | DL76: =payout($A76,AP76,$C76:AO76,DK76,$BY76:DK76) -> 7000 | DM76: =payout($A76,AQ76,$C76:AP76,DL76,$BY76:DL76) -> 107000 | DN76: =payout($A76,AR76,$C76:AQ76,DM76,$BY76:DM76) -> 0 | DO76: 0 | DP76: 0 | DQ76: 0 | DR76: 0 | DS76: 0 | DT76: 0 | DU76: 0 | DV76: 0 | DW76: 0 | DX76: 0 | DY76: 0 | DZ76: 0 | EA76: 0 | EB76: 0 | EC76: 0 | ED76: 0 | EE76: 0 | EF76: 0 | EG76: 0 | EH76: 0 | EI76: 0 | EJ76: 0 | EK76: 0 | EL76: 0 | EM76: 0 | EN76: 0 | EO76: 0 | EP76: 0 | EQ76: 0
A77: =get_bond_grade($A$16:A76,$BX$5,$BY$5,$BZ$5) -> AAA | B77: 62 | C77: 1 | D77: 1 | E77: 1 | F77: 1 | G77: 1 | H77: 1 | I77: 1 | J77: 1 | K77: 1 | L77: 1 | M77: 1 | N77: 1 | O77: 1 | P77: 1 | Q77: 1 | R77: 1 | S77: 1 | T77: 1 | U77: 1 | V77: 1 | W77: 1 | X77: 1 | Y77: 1 | Z77: 1 | AA77: 1 | AB77: 1 | AC77: 1 | AD77: 1 | AE77: 1 | AF77: 1 | AG77: 1 | AH77: 1 | AI77: 1 | AJ77: 1 | AK77: 1 | AL77: 0 | AM77: 0 | AN77: 0 | AO77: 0 | AP77: 0 | AQ77: 0 | AR77: 0 | AS77: 0 | AT77: 0 | AU77: 0 | AV77: 0 | AW77: 0 | AX77: 0 | AY77: 0 | AZ77: 0 | BA77: 0 | BB77: 0 | BC77: 0 | BD77: 0 | BE77: 0 | BF77: 0 | BG77: 0 | BH77: 0 | BI77: 0 | BJ77: 0 | BK77: 0 | BL77: 0 | BM77: 0 | BN77: 0 | BO77: 0 | BP77: 0 | BQ77: 0 | BR77: 0 | BS77: 0 | BT77: 0 | BU77: 0 | BW77: AAA | BX77: 62 | BY77: -100000 | BZ77: =payout($A77,D77,$C77:C77,BY77,$BY77:BY77) -> 5000 | CA77: =payout($A77,E77,$C77:D77,BZ77,$BY77:BZ77) -> 5000 | CB77: =payout($A77,F77,$C77:E77,CA77,$BY77:CA77) -> 5000 | CC77: =payout($A77,G77,$C77:F77,CB77,$BY77:CB77) -> 5000 | CD77: =payout($A77,H77,$C77:G77,CC77,$BY77:CC77) -> 5000 | CE77: =payout($A77,I77,$C77:H77,CD77,$BY77:CD77) -> 5000 | CF77: =payout($A77,J77,$C77:I77,CE77,$BY77:CE77) -> 5000 | CG77: =payout($A77,K77,$C77:J77,CF77,$BY77:CF77) -> 5000 | CH77: =payout($A77,L77,$C77:K77,CG77,$BY77:CG77) -> 5000 | CI77: =payout($A77,M77,$C77:L77,CH77,$BY77:CH77) -> 5000 | CJ77: =payout($A77,N77,$C77:M77,CI77,$BY77:CI77) -> 5000 | CK77: =payout($A77,O77,$C77:N77,CJ77,$BY77:CJ77) -> 5000 | CL77: =payout($A77,P77,$C77:O77,CK77,$BY77:CK77) -> 5000 | CM77: =payout($A77,Q77,$C77:P77,CL77,$BY77:CL77) -> 5000 | CN77: =payout($A77,R77,$C77:Q77,CM77,$BY77:CM77) -> 5000 | CO77: =payout($A77,S77,$C77:R77,CN77,$BY77:CN77) -> 5000 | CP77: =payout($A77,T77,$C77:S77,CO77,$BY77:CO77) -> 5000 | CQ77: =payout($A77,U77,$C77:T77,CP77,$BY77:CP77) -> 5000 | CR77: =payout($A77,V77,$C77:U77,CQ77,$BY77:CQ77) -> 5000 | CS77: =payout($A77,W77,$C77:V77,CR77,$BY77:CR77) -> 5000 | CT77: =payout($A77,X77,$C77:W77,CS77,$BY77:CS77) -> 5000 | CU77: =payout($A77,Y77,$C77:X77,CT77,$BY77:CT77) -> 5000 | CV77: =payout($A77,Z77,$C77:Y77,CU77,$BY77:CU77) -> 5000 | CW77: =payout($A77,AA77,$C77:Z77,CV77,$BY77:CV77) -> 5000 | CX77: =payout($A77,AB77,$C77:AA77,CW77,$BY77:CW77) -> 5000 | CY77: =payout($A77,AC77,$C77:AB77,CX77,$BY77:CX77) -> 5000 | CZ77: =payout($A77,AD77,$C77:AC77,CY77,$BY77:CY77) -> 5000 | DA77: =payout($A77,AE77,$C77:AD77,CZ77,$BY77:CZ77) -> 5000 | DB77: =payout($A77,AF77,$C77:AE77,DA77,$BY77:DA77) -> 5000 | DC77: =payout($A77,AG77,$C77:AF77,DB77,$BY77:DB77) -> 5000 | DD77: =payout($A77,AH77,$C77:AG77,DC77,$BY77:DC77) -> 5000 | DE77: =payout($A77,AI77,$C77:AH77,DD77,$BY77:DD77) -> 5000 | DF77: =payout($A77,AJ77,$C77:AI77,DE77,$BY77:DE77) -> 5000 | DG77: =payout($A77,AK77,$C77:AJ77,DF77,$BY77:DF77) -> 5000 | DH77: =payout($A77,AL77,$C77:AK77,DG77,$BY77:DG77) -> 5000 | DI77: =payout($A77,AM77,$C77:AL77,DH77,$BY77:DH77) -> 5000 | DJ77: =payout($A77,AN77,$C77:AM77,DI77,$BY77:DI77) -> 5000 | DK77: =payout($A77,AO77,$C77:AN77,DJ77,$BY77:DJ77) -> 5000 | DL77: =payout($A77,AP77,$C77:AO77,DK77,$BY77:DK77) -> 5000 | DM77: =payout($A77,AQ77,$C77:AP77,DL77,$BY77:DL77) -> 105000 | DN77: =payout($A77,AR77,$C77:AQ77,DM77,$BY77:DM77) -> 0 | DO77: 0 | DP77: 0 | DQ77: 0 | DR77: 0 | DS77: 0 | DT77: 0 | DU77: 0 | DV77: 0 | DW77: 0 | DX77: 0 | DY77: 0 | DZ77: 0 | EA77: 0 | EB77: 0 | EC77: 0 | ED77: 0 | EE77: 0 | EF77: 0 | EG77: 0 | EH77: 0 | EI77: 0 | EJ77: 0 | EK77: 0 | EL77: 0 | EM77: 0 | EN77: 0 | EO77: 0 | EP77: 0 | EQ77: 0
A78: =get_bond_grade($A$16:A77,$BX$5,$BY$5,$BZ$5) -> AA | B78: 63 | C78: 1 | D78: 1 | E78: 1 | F78: 1 | G78: 1 | H78: 1 | I78: 1 | J78: 1 | K78: 1 | L78: 1 | M78: 1 | N78: 1 | O78: 1 | P78: 1 | Q78: 1 | R78: 1 | S78: 1 | T78: 1 | U78: 1 | V78: 1 | W78: 1 | X78: 1 | Y78: 1 | Z78: 1 | AA78: 1 | AB78: 1 | AC78: 1 | AD78: 1 | AE78: 1 | AF78: 1 | AG78: 1 | AH78: 1 | AI78: 1 | AJ78: 1 | AK78: 1 | AL78: 0 | AM78: 0 | AN78: 0 | AO78: 0 | AP78: 0 | AQ78: 0 | AR78: 0 | AS78: 0 | AT78: 0 | AU78: 0 | AV78: 0 | AW78: 0 | AX78: 0 | AY78: 0 | AZ78: 0 | BA78: 0 | BB78: 0 | BC78: 0 | BD78: 0 | BE78: 0 | BF78: 0 | BG78: 0 | BH78: 0 | BI78: 0 | BJ78: 0 | BK78: 0 | BL78: 0 | BM78: 0 | BN78: 0 | BO78: 0 | BP78: 0 | BQ78: 0 | BR78: 0 | BS78: 0 | BT78: 0 | BU78: 0 | BW78: AA | BX78: 63 | BY78: -100000 | BZ78: =payout($A78,D78,$C78:C78,BY78,$BY78:BY78) -> 6000 | CA78: =payout($A78,E78,$C78:D78,BZ78,$BY78:BZ78) -> 6000 | CB78: =payout($A78,F78,$C78:E78,CA78,$BY78:CA78) -> 6000 | CC78: =payout($A78,G78,$C78:F78,CB78,$BY78:CB78) -> 6000 | CD78: =payout($A78,H78,$C78:G78,CC78,$BY78:CC78) -> 6000 | CE78: =payout($A78,I78,$C78:H78,CD78,$BY78:CD78) -> 6000 | CF78: =payout($A78,J78,$C78:I78,CE78,$BY78:CE78) -> 6000 | CG78: =payout($A78,K78,$C78:J78,CF78,$BY78:CF78) -> 6000 | CH78: =payout($A78,L78,$C78:K78,CG78,$BY78:CG78) -> 6000 | CI78: =payout($A78,M78,$C78:L78,CH78,$BY78:CH78) -> 6000 | CJ78: =payout($A78,N78,$C78:M78,CI78,$BY78:CI78) -> 6000 | CK78: =payout($A78,O78,$C78:N78,CJ78,$BY78:CJ78) -> 6000 | CL78: =payout($A78,P78,$C78:O78,CK78,$BY78:CK78) -> 6000 | CM78: =payout($A78,Q78,$C78:P78,CL78,$BY78:CL78) -> 6000 | CN78: =payout($A78,R78,$C78:Q78,CM78,$BY78:CM78) -> 6000 | CO78: =payout($A78,S78,$C78:R78,CN78,$BY78:CN78) -> 6000 | CP78: =payout($A78,T78,$C78:S78,CO78,$BY78:CO78) -> 6000 | CQ78: =payout($A78,U78,$C78:T78,CP78,$BY78:CP78) -> 6000 | CR78: =payout($A78,V78,$C78:U78,CQ78,$BY78:CQ78) -> 6000 | CS78: =payout($A78,W78,$C78:V78,CR78,$BY78:CR78) -> 6000 | CT78: =payout($A78,X78,$C78:W78,CS78,$BY78:CS78) -> 6000 | CU78: =payout($A78,Y78,$C78:X78,CT78,$BY78:CT78) -> 6000 | CV78: =payout($A78,Z78,$C78:Y78,CU78,$BY78:CU78) -> 6000 | CW78: =payout($A78,AA78,$C78:Z78,CV78,$BY78:CV78) -> 6000 | CX78: =payout($A78,AB78,$C78:AA78,CW78,$BY78:CW78) -> 6000 | CY78: =payout($A78,AC78,$C78:AB78,CX78,$BY78:CX78) -> 6000 | CZ78: =payout($A78,AD78,$C78:AC78,CY78,$BY78:CY78) -> 6000 | DA78: =payout($A78,AE78,$C78:AD78,CZ78,$BY78:CZ78) -> 6000 | DB78: =payout($A78,AF78,$C78:AE78,DA78,$BY78:DA78) -> 6000 | DC78: =payout($A78,AG78,$C78:AF78,DB78,$BY78:DB78) -> 6000 | DD78: =payout($A78,AH78,$C78:AG78,DC78,$BY78:DC78) -> 6000 | DE78: =payout($A78,AI78,$C78:AH78,DD78,$BY78:DD78) -> 6000 | DF78: =payout($A78,AJ78,$C78:AI78,DE78,$BY78:DE78) -> 6000 | DG78: =payout($A78,AK78,$C78:AJ78,DF78,$BY78:DF78) -> 6000 | DH78: =payout($A78,AL78,$C78:AK78,DG78,$BY78:DG78) -> 6000 | DI78: =payout($A78,AM78,$C78:AL78,DH78,$BY78:DH78) -> 6000 | DJ78: =payout($A78,AN78,$C78:AM78,DI78,$BY78:DI78) -> 6000 | DK78: =payout($A78,AO78,$C78:AN78,DJ78,$BY78:DJ78) -> 6000 | DL78: =payout($A78,AP78,$C78:AO78,DK78,$BY78:DK78) -> 6000 | DM78: =payout($A78,AQ78,$C78:AP78,DL78,$BY78:DL78) -> 106000 | DN78: =payout($A78,AR78,$C78:AQ78,DM78,$BY78:DM78) -> 0 | DO78: 0 | DP78: 0 | DQ78: 0 | DR78: 0 | DS78: 0 | DT78: 0 | DU78: 0 | DV78: 0 | DW78: 0 | DX78: 0 | DY78: 0 | DZ78: 0 | EA78: 0 | EB78: 0 | EC78: 0 | ED78: 0 | EE78: 0 | EF78: 0 | EG78: 0 | EH78: 0 | EI78: 0 | EJ78: 0 | EK78: 0 | EL78: 0 | EM78: 0 | EN78: 0 | EO78: 0 | EP78: 0 | EQ78: 0
A79: =get_bond_grade($A$16:A78,$BX$5,$BY$5,$BZ$5) -> AAA | B79: 64 | C79: 1 | D79: 1 | E79: 1 | F79: 1 | G79: 1 | H79: 1 | I79: 1 | J79: 1 | K79: 1 | L79: 1 | M79: 1 | N79: 1 | O79: 1 | P79: 1 | Q79: 1 | R79: 1 | S79: 1 | T79: 1 | U79: 1 | V79: 1 | W79: 1 | X79: 1 | Y79: 1 | Z79: 1 | AA79: 1 | AB79: 1 | AC79: 1 | AD79: 1 | AE79: 1 | AF79: 1 | AG79: 1 | AH79: 1 | AI79: 1 | AJ79: 1 | AK79: 1 | AL79: 0 | AM79: 0 | AN79: 0 | AO79: 0 | AP79: 0 | AQ79: 0 | AR79: 0 | AS79: 0 | AT79: 0 | AU79: 0 | AV79: 0 | AW79: 0 | AX79: 0 | AY79: 0 | AZ79: 0 | BA79: 0 | BB79: 0 | BC79: 0 | BD79: 0 | BE79: 0 | BF79: 0 | BG79: 0 | BH79: 0 | BI79: 0 | BJ79: 0 | BK79: 0 | BL79: 0 | BM79: 0 | BN79: 0 | BO79: 0 | BP79: 0 | BQ79: 0 | BR79: 0 | BS79: 0 | BT79: 0 | BU79: 0 | BW79: AAA | BX79: 64 | BY79: -100000 | BZ79: =payout($A79,D79,$C79:C79,BY79,$BY79:BY79) -> 5000 | CA79: =payout($A79,E79,$C79:D79,BZ79,$BY79:BZ79) -> 5000 | CB79: =payout($A79,F79,$C79:E79,CA79,$BY79:CA79) -> 5000 | CC79: =payout($A79,G79,$C79:F79,CB79,$BY79:CB79) -> 5000 | CD79: =payout($A79,H79,$C79:G79,CC79,$BY79:CC79) -> 5000 | CE79: =payout($A79,I79,$C79:H79,CD79,$BY79:CD79) -> 5000 | CF79: =payout($A79,J79,$C79:I79,CE79,$BY79:CE79) -> 5000 | CG79: =payout($A79,K79,$C79:J79,CF79,$BY79:CF79) -> 5000 | CH79: =payout($A79,L79,$C79:K79,CG79,$BY79:CG79) -> 5000 | CI79: =payout($A79,M79,$C79:L79,CH79,$BY79:CH79) -> 5000 | CJ79: =payout($A79,N79,$C79:M79,CI79,$BY79:CI79) -> 5000 | CK79: =payout($A79,O79,$C79:N79,CJ79,$BY79:CJ79) -> 5000 | CL79: =payout($A79,P79,$C79:O79,CK79,$BY79:CK79) -> 5000 | CM79: =payout($A79,Q79,$C79:P79,CL79,$BY79:CL79) -> 5000 | CN79: =payout($A79,R79,$C79:Q79,CM79,$BY79:CM79) -> 5000 | CO79: =payout($A79,S79,$C79:R79,CN79,$BY79:CN79) -> 5000 | CP79: =payout($A79,T79,$C79:S79,CO79,$BY79:CO79) -> 5000 | CQ79: =payout($A79,U79,$C79:T79,CP79,$BY79:CP79) -> 5000 | CR79: =payout($A79,V79,$C79:U79,CQ79,$BY79:CQ79) -> 5000 | CS79: =payout($A79,W79,$C79:V79,CR79,$BY79:CR79) -> 5000 | CT79: =payout($A79,X79,$C79:W79,CS79,$BY79:CS79) -> 5000 | CU79: =payout($A79,Y79,$C79:X79,CT79,$BY79:CT79) -> 5000 | CV79: =payout($A79,Z79,$C79:Y79,CU79,$BY79:CU79) -> 5000 | CW79: =payout($A79,AA79,$C79:Z79,CV79,$BY79:CV79) -> 5000 | CX79: =payout($A79,AB79,$C79:AA79,CW79,$BY79:CW79) -> 5000 | CY79: =payout($A79,AC79,$C79:AB79,CX79,$BY79:CX79) -> 5000 | CZ79: =payout($A79,AD79,$C79:AC79,CY79,$BY79:CY79) -> 5000 | DA79: =payout($A79,AE79,$C79:AD79,CZ79,$BY79:CZ79) -> 5000 | DB79: =payout($A79,AF79,$C79:AE79,DA79,$BY79:DA79) -> 5000 | DC79: =payout($A79,AG79,$C79:AF79,DB79,$BY79:DB79) -> 5000 | DD79: =payout($A79,AH79,$C79:AG79,DC79,$BY79:DC79) -> 5000 | DE79: =payout($A79,AI79,$C79:AH79,DD79,$BY79:DD79) -> 5000 | DF79: =payout($A79,AJ79,$C79:AI79,DE79,$BY79:DE79) -> 5000 | DG79: =payout($A79,AK79,$C79:AJ79,DF79,$BY79:DF79) -> 5000 | DH79: =payout($A79,AL79,$C79:AK79,DG79,$BY79:DG79) -> 5000 | DI79: =payout($A79,AM79,$C79:AL79,DH79,$BY79:DH79) -> 5000 | DJ79: =payout($A79,AN79,$C79:AM79,DI79,$BY79:DI79) -> 5000 | DK79: =payout($A79,AO79,$C79:AN79,DJ79,$BY79:DJ79) -> 5000 | DL79: =payout($A79,AP79,$C79:AO79,DK79,$BY79:DK79) -> 5000 | DM79: =payout($A79,AQ79,$C79:AP79,DL79,$BY79:DL79) -> 105000 | DN79: =payout($A79,AR79,$C79:AQ79,DM79,$BY79:DM79) -> 0 | DO79: 0 | DP79: 0 | DQ79: 0 | DR79: 0 | DS79: 0 | DT79: 0 | DU79: 0 | DV79: 0 | DW79: 0 | DX79: 0 | DY79: 0 | DZ79: 0 | EA79: 0 | EB79: 0 | EC79: 0 | ED79: 0 | EE79: 0 | EF79: 0 | EG79: 0 | EH79: 0 | EI79: 0 | EJ79: 0 | EK79: 0 | EL79: 0 | EM79: 0 | EN79: 0 | EO79: 0 | EP79: 0 | EQ79: 0
A80: =get_bond_grade($A$16:A79,$BX$5,$BY$5,$BZ$5) -> AA | B80: 65 | C80: 1 | D80: =IF(C5083=10000,0,default_model($A80,D$13,$B80,D$14)) -> 1 | E80: =IF(D5083=BZ5083,0,default_model($A80,E$13,$B80,E$14)) -> 1 | F80: =IF(E5083=CA5083,0,default_model($A80,F$13,$B80,F$14)) -> 1 | G80: =IF(F5083=CB5083,0,default_model($A80,G$13,$B80,G$14)) -> 1 | H80: =IF(G5083=CC5083,0,default_model($A80,H$13,$B80,H$14)) -> 1 | I80: =IF(H5083=CD5083,0,default_model($A80,I$13,$B80,I$14)) -> 1 | J80: =IF(I5083=CE5083,0,default_model($A80,J$13,$B80,J$14)) -> 1 | K80: =IF(J5083=CF5083,0,default_model($A80,K$13,$B80,K$14)) -> 1 | L80: =IF(K5083=CG5083,0,default_model($A80,L$13,$B80,L$14)) -> 1 | M80: =IF(L5083=CH5083,0,default_model($A80,M$13,$B80,M$14)) -> 1 | N80: =IF(M5083=CI5083,0,default_model($A80,N$13,$B80,N$14)) -> 1 | O80: =IF(N5083=CJ5083,0,default_model($A80,O$13,$B80,O$14)) -> 1 | P80: =IF(O5083=CK5083,0,default_model($A80,P$13,$B80,P$14)) -> 1 | Q80: =IF(P5083=CL5083,0,default_model($A80,Q$13,$B80,Q$14)) -> 1 | R80: =IF(Q5083=CM5083,0,default_model($A80,R$13,$B80,R$14)) -> 1 | S80: =IF(R5083=CN5083,0,default_model($A80,S$13,$B80,S$14)) -> 1 | T80: =IF(S5083=CO5083,0,default_model($A80,T$13,$B80,T$14)) -> 1 | U80: =IF(T5083=CP5083,0,default_model($A80,U$13,$B80,U$14)) -> 1 | V80: =IF(U5083=CQ5083,0,default_model($A80,V$13,$B80,V$14)) -> 1 | W80: =IF(V5083=CR5083,0,default_model($A80,W$13,$B80,W$14)) -> 1 | X80: =IF(W5083=CS5083,0,default_model($A80,X$13,$B80,X$14)) -> 1 | Y80: =IF(X5083=CT5083,0,default_model($A80,Y$13,$B80,Y$14)) -> 1 | Z80: =IF(Y5083=CU5083,0,default_model($A80,Z$13,$B80,Z$14)) -> 1 | AA80: =IF(Z5083=CV5083,0,default_model($A80,AA$13,$B80,AA$14)) -> 1 | AB80: =IF(AA5083=CW5083,0,default_model($A80,AB$13,$B80,AB$14)) -> 1 | AC80: =IF(AB5083=CX5083,0,default_model($A80,AC$13,$B80,AC$14)) -> 1 | AD80: =IF(AC5083=CY5083,0,default_model($A80,AD$13,$B80,AD$14)) -> 1 | AE80: =IF(AD5083=CZ5083,0,default_model($A80,AE$13,$B80,AE$14)) -> 1 | AF80: =IF(AE5083=DA5083,0,default_model($A80,AF$13,$B80,AF$14)) -> 1 | AG80: =IF(AF5083=DB5083,0,default_model($A80,AG$13,$B80,AG$14)) -> 1 | AH80: =IF(AG5083=DC5083,0,default_model($A80,AH$13,$B80,AH$14)) -> 1 | AI80: =IF(AH5083=DD5083,0,default_model($A80,AI$13,$B80,AI$14)) -> 1 | AJ80: =IF(AI5083=DE5083,0,default_model($A80,AJ$13,$B80,AJ$14)) -> 1 | AK80: =IF(AJ5083=DF5083,0,default_model($A80,AK$13,$B80,AK$14)) -> 1 | AL80: =IF(AK5083=DG5083,0,default_model($A80,AL$13,$B80,AL$14)) -> 0 | AM80: =IF(AL5083=DH5083,0,default_model($A80,AM$13,$B80,AM$14)) -> 0 | AN80: =IF(AM5083=DI5083,0,default_model($A80,AN$13,$B80,AN$14)) -> 0 | AO80: =IF(AN5083=DJ5083,0,default_model($A80,AO$13,$B80,AO$14)) -> 0 | AP80: =IF(AO5083=DK5083,0,default_model($A80,AP$13,$B80,AP$14)) -> 0 | AQ80: =IF(AP5083=DL5083,0,default_model($A80,AQ$13,$B80,AQ$14)) -> 0 | AR80: =IF(AQ5083=DM5083,0,default_model($A80,AR$13,$B80,AR$14)) -> 0 | AS80: =IF(AR5083=DN5083,0,default_model($A80,AS$13,$B80,AS$14)) -> 0 | AT80: =IF(AS5083=DO5083,0,default_model($A80,AT$13,$B80,AT$14)) -> 0 | AU80: =IF(AT5083=DP5083,0,default_model($A80,AU$13,$B80,AU$14)) -> 0 | AV80: =IF(AU5083=DQ5083,0,default_model($A80,AV$13,$B80,AV$14)) -> 0 | AW80: =IF(AV5083=DR5083,0,default_model($A80,AW$13,$B80,AW$14)) -> 0 | AX80: =IF(AW5083=DS5083,0,default_model($A80,AX$13,$B80,AX$14)) -> 0 | AY80: =IF(AX5083=DT5083,0,default_model($A80,AY$13,$B80,AY$14)) -> 0 | AZ80: =IF(AY5083=DU5083,0,default_model($A80,AZ$13,$B80,AZ$14)) -> 0 | BA80: =IF(AZ5083=DV5083,0,default_model($A80,BA$13,$B80,BA$14)) -> 0 | BB80: =IF(BA5083=DW5083,0,default_model($A80,BB$13,$B80,BB$14)) -> 0 | BC80: =IF(BB5083=DX5083,0,default_model($A80,BC$13,$B80,BC$14)) -> 0 | BD80: =IF(BC5083=DY5083,0,default_model($A80,BD$13,$B80,BD$14)) -> 0 | BE80: =IF(BD5083=DZ5083,0,default_model($A80,BE$13,$B80,BE$14)) -> 0 | BF80: =IF(BE5083=EA5083,0,default_model($A80,BF$13,$B80,BF$14)) -> 0 | BG80: =IF(BF5083=EB5083,0,default_model($A80,BG$13,$B80,BG$14)) -> 0 | BH80: =IF(BG5083=EC5083,0,default_model($A80,BH$13,$B80,BH$14)) -> 0 | BI80: =IF(BH5083=ED5083,0,default_model($A80,BI$13,$B80,BI$14)) -> 0 | BJ80: =IF(BI5083=EE5083,0,default_model($A80,BJ$13,$B80,BJ$14)) -> 0 | BK80: =IF(BJ5083=EF5083,0,default_model($A80,BK$13,$B80,BK$14)) -> 0 | BL80: =IF(BK5083=EG5083,0,default_model($A80,BL$13,$B80,BL$14)) -> 0 | BM80: =IF(BL5083=EH5083,0,default_model($A80,BM$13,$B80,BM$14)) -> 0 | BN80: =IF(BM5083=EI5083,0,default_model($A80,BN$13,$B80,BN$14)) -> 0 | BO80: =IF(BN5083=EJ5083,0,default_model($A80,BO$13,$B80,BO$14)) -> 0 | BP80: =IF(BO5083=EK5083,0,default_model($A80,BP$13,$B80,BP$14)) -> 0 | BQ80: =IF(BP5083=EL5083,0,default_model($A80,BQ$13,$B80,BQ$14)) -> 0 | BR80: =IF(BQ5083=EM5083,0,default_model($A80,BR$13,$B80,BR$14)) -> 0 | BS80: =IF(BR5083=EN5083,0,default_model($A80,BS$13,$B80,BS$14)) -> 0 | BT80: =IF(BS5083=EO5083,0,default_model($A80,BT$13,$B80,BT$14)) -> 0 | BU80: =IF(BT5083=EP5083,0,default_model($A80,BU$13,$B80,BU$14)) -> 0 | BW80: AA | BX80: 65 | BY80: -100000 | BZ80: =payout($A80,D80,$C80:C80,BY80,$BY80:BY80) -> 6000 | CA80: =payout($A80,E80,$C80:D80,BZ80,$BY80:BZ80) -> 6000 | CB80: =payout($A80,F80,$C80:E80,CA80,$BY80:CA80) -> 6000 | CC80: =payout($A80,G80,$C80:F80,CB80,$BY80:CB80) -> 6000 | CD80: =payout($A80,H80,$C80:G80,CC80,$BY80:CC80) -> 6000 | CE80: =payout($A80,I80,$C80:H80,CD80,$BY80:CD80) -> 6000 | CF80: =payout($A80,J80,$C80:I80,CE80,$BY80:CE80) -> 6000 | CG80: =payout($A80,K80,$C80:J80,CF80,$BY80:CF80) -> 6000 | CH80: =payout($A80,L80,$C80:K80,CG80,$BY80:CG80) -> 6000 | CI80: =payout($A80,M80,$C80:L80,CH80,$BY80:CH80) -> 6000 | CJ80: =payout($A80,N80,$C80:M80,CI80,$BY80:CI80) -> 6000 | CK80: =payout($A80,O80,$C80:N80,CJ80,$BY80:CJ80) -> 6000 | CL80: =payout($A80,P80,$C80:O80,CK80,$BY80:CK80) -> 6000 | CM80: =payout($A80,Q80,$C80:P80,CL80,$BY80:CL80) -> 6000 | CN80: =payout($A80,R80,$C80:Q80,CM80,$BY80:CM80) -> 6000 | CO80: =payout($A80,S80,$C80:R80,CN80,$BY80:CN80) -> 6000 | CP80: =payout($A80,T80,$C80:S80,CO80,$BY80:CO80) -> 6000 | CQ80: =payout($A80,U80,$C80:T80,CP80,$BY80:CP80) -> 6000 | CR80: =payout($A80,V80,$C80:U80,CQ80,$BY80:CQ80) -> 6000 | CS80: =payout($A80,W80,$C80:V80,CR80,$BY80:CR80) -> 6000 | CT80: =payout($A80,X80,$C80:W80,CS80,$BY80:CS80) -> 6000 | CU80: =payout($A80,Y80,$C80:X80,CT80,$BY80:CT80) -> 6000 | CV80: =payout($A80,Z80,$C80:Y80,CU80,$BY80:CU80) -> 6000 | CW80: =payout($A80,AA80,$C80:Z80,CV80,$BY80:CV80) -> 6000 | CX80: =payout($A80,AB80,$C80:AA80,CW80,$BY80:CW80) -> 6000 | CY80: =payout($A80,AC80,$C80:AB80,CX80,$BY80:CX80) -> 6000 | CZ80: =payout($A80,AD80,$C80:AC80,CY80,$BY80:CY80) -> 6000 | DA80: =payout($A80,AE80,$C80:AD80,CZ80,$BY80:CZ80) -> 6000 | DB80: =payout($A80,AF80,$C80:AE80,DA80,$BY80:DA80) -> 6000 | DC80: =payout($A80,AG80,$C80:AF80,DB80,$BY80:DB80) -> 6000 | DD80: =payout($A80,AH80,$C80:AG80,DC80,$BY80:DC80) -> 6000 | DE80: =payout($A80,AI80,$C80:AH80,DD80,$BY80:DD80) -> 6000 | DF80: =payout($A80,AJ80,$C80:AI80,DE80,$BY80:DE80) -> 6000 | DG80: =payout($A80,AK80,$C80:AJ80,DF80,$BY80:DF80) -> 6000 | DH80: =payout($A80,AL80,$C80:AK80,DG80,$BY80:DG80) -> 6000 | DI80: =payout($A80,AM80,$C80:AL80,DH80,$BY80:DH80) -> 6000 | DJ80: =payout($A80,AN80,$C80:AM80,DI80,$BY80:DI80) -> 6000 | DK80: =payout($A80,AO80,$C80:AN80,DJ80,$BY80:DJ80) -> 6000 | DL80: =payout($A80,AP80,$C80:AO80,DK80,$BY80:DK80) -> 6000 | DM80: =payout($A80,AQ80,$C80:AP80,DL80,$BY80:DL80) -> 106000 | DN80: =payout($A80,AR80,$C80:AQ80,DM80,$BY80:DM80) -> 0 | DO80: 0 | DP80: 0 | DQ80: 0 | DR80: 0 | DS80: 0 | DT80: 0 | DU80: 0 | DV80: 0 | DW80: 0 | DX80: 0 | DY80: 0 | DZ80: 0 | EA80: 0 | EB80: 0 | EC80: 0 | ED80: 0 | EE80: 0 | EF80: 0 | EG80: 0 | EH80: 0 | EI80: 0 | EJ80: 0 | EK80: 0 | EL80: 0 | EM80: 0 | EN80: 0 | EO80: 0 | EP80: 0 | EQ80: 0
A81: =get_bond_grade($A$16:A80,$BX$5,$BY$5,$BZ$5) -> A | B81: 66 | C81: =default_model(A81,$C$13,$B81,C$14,TRUE) -> 1 | D81: 1 | E81: 1 | F81: 1 | G81: 1 | H81: 1 | I81: 1 | J81: 1 | K81: 1 | L81: 1 | M81: 1 | N81: 1 | O81: 1 | P81: 1 | Q81: 1 | R81: 1 | S81: 1 | T81: 1 | U81: 1 | V81: 1 | W81: 1 | X81: 1 | Y81: 1 | Z81: 1 | AA81: 1 | AB81: 1 | AC81: 1 | AD81: 1 | AE81: 1 | AF81: 1 | AG81: 1 | AH81: 1 | AI81: 1 | AJ81: 1 | AK81: 1 | AL81: 0 | AM81: 0 | AN81: 0 | AO81: 0 | AP81: 0 | AQ81: 0 | AR81: 0 | AS81: 0 | AT81: 0 | AU81: 0 | AV81: 0 | AW81: 0 | AX81: 0 | AY81: 0 | AZ81: 0 | BA81: 0 | BB81: 0 | BC81: 0 | BD81: 0 | BE81: 0 | BF81: 0 | BG81: 0 | BH81: 0 | BI81: 0 | BJ81: 0 | BK81: 0 | BL81: 0 | BM81: 0 | BN81: 0 | BO81: 0 | BP81: 0 | BQ81: 0 | BR81: 0 | BS81: 0 | BT81: 0 | BU81: 0 | BW81: =A81 -> A | BX81: 66 | BY81: =IF(C81,-100000,0) -> -100000 | BZ81: =payout($A81,D81,$C81:C81,BY81,$BY81:BY81) -> 7000 | CA81: =payout($A81,E81,$C81:D81,BZ81,$BY81:BZ81) -> 7000 | CB81: =payout($A81,F81,$C81:E81,CA81,$BY81:CA81) -> 7000 | CC81: =payout($A81,G81,$C81:F81,CB81,$BY81:CB81) -> 7000 | CD81: =payout($A81,H81,$C81:G81,CC81,$BY81:CC81) -> 7000 | CE81: =payout($A81,I81,$C81:H81,CD81,$BY81:CD81) -> 7000 | CF81: =payout($A81,J81,$C81:I81,CE81,$BY81:CE81) -> 7000 | CG81: =payout($A81,K81,$C81:J81,CF81,$BY81:CF81) -> 7000 | CH81: =payout($A81,L81,$C81:K81,CG81,$BY81:CG81) -> 7000 | CI81: =payout($A81,M81,$C81:L81,CH81,$BY81:CH81) -> 7000 | CJ81: =payout($A81,N81,$C81:M81,CI81,$BY81:CI81) -> 7000 | CK81: =payout($A81,O81,$C81:N81,CJ81,$BY81:CJ81) -> 7000 | CL81: =payout($A81,P81,$C81:O81,CK81,$BY81:CK81) -> 7000 | CM81: =payout($A81,Q81,$C81:P81,CL81,$BY81:CL81) -> 7000 | CN81: =payout($A81,R81,$C81:Q81,CM81,$BY81:CM81) -> 7000 | CO81: =payout($A81,S81,$C81:R81,CN81,$BY81:CN81) -> 7000 | CP81: =payout($A81,T81,$C81:S81,CO81,$BY81:CO81) -> 7000 | CQ81: =payout($A81,U81,$C81:T81,CP81,$BY81:CP81) -> 7000 | CR81: =payout($A81,V81,$C81:U81,CQ81,$BY81:CQ81) -> 7000 | CS81: =payout($A81,W81,$C81:V81,CR81,$BY81:CR81) -> 7000 | CT81: =payout($A81,X81,$C81:W81,CS81,$BY81:CS81) -> 7000 | CU81: =payout($A81,Y81,$C81:X81,CT81,$BY81:CT81) -> 7000 | CV81: =payout($A81,Z81,$C81:Y81,CU81,$BY81:CU81) -> 7000 | CW81: =payout($A81,AA81,$C81:Z81,CV81,$BY81:CV81) -> 7000 | CX81: =payout($A81,AB81,$C81:AA81,CW81,$BY81:CW81) -> 7000 | CY81: =payout($A81,AC81,$C81:AB81,CX81,$BY81:CX81) -> 7000 | CZ81: =payout($A81,AD81,$C81:AC81,CY81,$BY81:CY81) -> 7000 | DA81: =payout($A81,AE81,$C81:AD81,CZ81,$BY81:CZ81) -> 7000 | DB81: =payout($A81,AF81,$C81:AE81,DA81,$BY81:DA81) -> 7000 | DC81: =payout($A81,AG81,$C81:AF81,DB81,$BY81:DB81) -> 7000 | DD81: =payout($A81,AH81,$C81:AG81,DC81,$BY81:DC81) -> 7000 | DE81: =payout($A81,AI81,$C81:AH81,DD81,$BY81:DD81) -> 7000 | DF81: =payout($A81,AJ81,$C81:AI81,DE81,$BY81:DE81) -> 7000 | DG81: =payout($A81,AK81,$C81:AJ81,DF81,$BY81:DF81) -> 7000 | DH81: =payout($A81,AL81,$C81:AK81,DG81,$BY81:DG81) -> 7000 | DI81: =payout($A81,AM81,$C81:AL81,DH81,$BY81:DH81) -> 7000 | DJ81: =payout($A81,AN81,$C81:AM81,DI81,$BY81:DI81) -> 7000 | DK81: =payout($A81,AO81,$C81:AN81,DJ81,$BY81:DJ81) -> 7000 | DL81: =payout($A81,AP81,$C81:AO81,DK81,$BY81:DK81) -> 7000 | DM81: =payout($A81,AQ81,$C81:AP81,DL81,$BY81:DL81) -> 107000 | DN81: =payout($A81,AR81,$C81:AQ81,DM81,$BY81:DM81) -> 0 | DO81: 0 | DP81: 0 | DQ81: 0 | DR81: 0 | DS81: 0 | DT81: 0 | DU81: 0 | DV81: 0 | DW81: 0 | DX81: 0 | DY81: 0 | DZ81: 0 | EA81: 0 | EB81: 0 | EC81: 0 | ED81: 0 | EE81: 0 | EF81: 0 | EG81: 0 | EH81: 0 | EI81: 0 | EJ81: 0 | EK81: 0 | EL81: 0 | EM81: 0 | EN81: 0 | EO81: 0 | EP81: 0 | EQ81: 0
A82: =get_bond_grade($A$16:A81,$BX$5,$BY$5,$BZ$5) -> AAA | B82: 67 | C82: 1 | D82: 1 | E82: 1 | F82: 1 | G82: 1 | H82: 1 | I82: 1 | J82: 1 | K82: 1 | L82: 1 | M82: 1 | N82: 1 | O82: 1 | P82: 1 | Q82: 1 | R82: 1 | S82: 1 | T82: 1 | U82: 1 | V82: 1 | W82: 1 | X82: 1 | Y82: 1 | Z82: 1 | AA82: 1 | AB82: 1 | AC82: 1 | AD82: 1 | AE82: 1 | AF82: 1 | AG82: 1 | AH82: 1 | AI82: 1 | AJ82: 1 | AK82: 1 | AL82: 0 | AM82: 0 | AN82: 0 | AO82: 0 | AP82: 0 | AQ82: 0 | AR82: 0 | AS82: 0 | AT82: 0 | AU82: 0 | AV82: 0 | AW82: 0 | AX82: 0 | AY82: 0 | AZ82: 0 | BA82: 0 | BB82: 0 | BC82: 0 | BD82: 0 | BE82: 0 | BF82: 0 | BG82: 0 | BH82: 0 | BI82: 0 | BJ82: 0 | BK82: 0 | BL82: 0 | BM82: 0 | BN82: 0 | BO82: 0 | BP82: 0 | BQ82: 0 | BR82: 0 | BS82: 0 | BT82: 0 | BU82: 0 | BW82: AAA | BX82: 67 | BY82: -100000 | BZ82: =payout($A82,D82,$C82:C82,BY82,$BY82:BY82) -> 5000 | CA82: =payout($A82,E82,$C82:D82,BZ82,$BY82:BZ82) -> 5000 | CB82: =payout($A82,F82,$C82:E82,CA82,$BY82:CA82) -> 5000 | CC82: =payout($A82,G82,$C82:F82,CB82,$BY82:CB82) -> 5000 | CD82: =payout($A82,H82,$C82:G82,CC82,$BY82:CC82) -> 5000 | CE82: =payout($A82,I82,$C82:H82,CD82,$BY82:CD82) -> 5000 | CF82: =payout($A82,J82,$C82:I82,CE82,$BY82:CE82) -> 5000 | CG82: =payout($A82,K82,$C82:J82,CF82,$BY82:CF82) -> 5000 | CH82: =payout($A82,L82,$C82:K82,CG82,$BY82:CG82) -> 5000 | CI82: =payout($A82,M82,$C82:L82,CH82,$BY82:CH82) -> 5000 | CJ82: =payout($A82,N82,$C82:M82,CI82,$BY82:CI82) -> 5000 | CK82: =payout($A82,O82,$C82:N82,CJ82,$BY82:CJ82) -> 5000 | CL82: =payout($A82,P82,$C82:O82,CK82,$BY82:CK82) -> 5000 | CM82: =payout($A82,Q82,$C82:P82,CL82,$BY82:CL82) -> 5000 | CN82: =payout($A82,R82,$C82:Q82,CM82,$BY82:CM82) -> 5000 | CO82: =payout($A82,S82,$C82:R82,CN82,$BY82:CN82) -> 5000 | CP82: =payout($A82,T82,$C82:S82,CO82,$BY82:CO82) -> 5000 | CQ82: =payout($A82,U82,$C82:T82,CP82,$BY82:CP82) -> 5000 | CR82: =payout($A82,V82,$C82:U82,CQ82,$BY82:CQ82) -> 5000 | CS82: =payout($A82,W82,$C82:V82,CR82,$BY82:CR82) -> 5000 | CT82: =payout($A82,X82,$C82:W82,CS82,$BY82:CS82) -> 5000 | CU82: =payout($A82,Y82,$C82:X82,CT82,$BY82:CT82) -> 5000 | CV82: =payout($A82,Z82,$C82:Y82,CU82,$BY82:CU82) -> 5000 | CW82: =payout($A82,AA82,$C82:Z82,CV82,$BY82:CV82) -> 5000 | CX82: =payout($A82,AB82,$C82:AA82,CW82,$BY82:CW82) -> 5000 | CY82: =payout($A82,AC82,$C82:AB82,CX82,$BY82:CX82) -> 5000 | CZ82: =payout($A82,AD82,$C82:AC82,CY82,$BY82:CY82) -> 5000 | DA82: =payout($A82,AE82,$C82:AD82,CZ82,$BY82:CZ82) -> 5000 | DB82: =payout($A82,AF82,$C82:AE82,DA82,$BY82:DA82) -> 5000 | DC82: =payout($A82,AG82,$C82:AF82,DB82,$BY82:DB82) -> 5000 | DD82: =payout($A82,AH82,$C82:AG82,DC82,$BY82:DC82) -> 5000 | DE82: =payout($A82,AI82,$C82:AH82,DD82,$BY82:DD82) -> 5000 | DF82: =payout($A82,AJ82,$C82:AI82,DE82,$BY82:DE82) -> 5000 | DG82: =payout($A82,AK82,$C82:AJ82,DF82,$BY82:DF82) -> 5000 | DH82: =payout($A82,AL82,$C82:AK82,DG82,$BY82:DG82) -> 5000 | DI82: =payout($A82,AM82,$C82:AL82,DH82,$BY82:DH82) -> 5000 | DJ82: =payout($A82,AN82,$C82:AM82,DI82,$BY82:DI82) -> 5000 | DK82: =payout($A82,AO82,$C82:AN82,DJ82,$BY82:DJ82) -> 5000 | DL82: =payout($A82,AP82,$C82:AO82,DK82,$BY82:DK82) -> 5000 | DM82: =payout($A82,AQ82,$C82:AP82,DL82,$BY82:DL82) -> 105000 | DN82: =payout($A82,AR82,$C82:AQ82,DM82,$BY82:DM82) -> 0 | DO82: 0 | DP82: 0 | DQ82: 0 | DR82: 0 | DS82: 0 | DT82: 0 | DU82: 0 | DV82: 0 | DW82: 0 | DX82: 0 | DY82: 0 | DZ82: 0 | EA82: 0 | EB82: 0 | EC82: 0 | ED82: 0 | EE82: 0 | EF82: 0 | EG82: 0 | EH82: 0 | EI82: 0 | EJ82: 0 | EK82: 0 | EL82: 0 | EM82: 0 | EN82: 0 | EO82: 0 | EP82: 0 | EQ82: 0
A83: =get_bond_grade($A$16:A82,$BX$5,$BY$5,$BZ$5) -> AA | B83: 68 | C83: 1 | D83: 1 | E83: 1 | F83: 1 | G83: 1 | H83: 1 | I83: 1 | J83: 1 | K83: 1 | L83: 1 | M83: 1 | N83: 1 | O83: 1 | P83: 1 | Q83: 1 | R83: 1 | S83: 1 | T83: 1 | U83: 1 | V83: 1 | W83: 1 | X83: 1 | Y83: 1 | Z83: 1 | AA83: 1 | AB83: 1 | AC83: 1 | AD83: 1 | AE83: 1 | AF83: 1 | AG83: 0 | AH83: 0 | AI83: 0 | AJ83: 0 | AK83: 0 | AL83: 0 | AM83: 0 | AN83: 0 | AO83: 0 | AP83: 0 | AQ83: 0 | AR83: 0 | AS83: 0 | AT83: 0 | AU83: 0 | AV83: 0 | AW83: 0 | AX83: 0 | AY83: 0 | AZ83: 0 | BA83: 0 | BB83: 0 | BC83: 0 | BD83: 0 | BE83: 0 | BF83: 0 | BG83: 0 | BH83: 0 | BI83: 0 | BJ83: 0 | BK83: 0 | BL83: 0 | BM83: 0 | BN83: 0 | BO83: 0 | BP83: 0 | BQ83: 0 | BR83: 0 | BS83: 0 | BT83: 0 | BU83: 0 | BW83: AA | BX83: 68 | BY83: -100000 | BZ83: =payout($A83,D83,$C83:C83,BY83,$BY83:BY83) -> 6000 | CA83: =payout($A83,E83,$C83:D83,BZ83,$BY83:BZ83) -> 6000 | CB83: =payout($A83,F83,$C83:E83,CA83,$BY83:CA83) -> 6000 | CC83: =payout($A83,G83,$C83:F83,CB83,$BY83:CB83) -> 6000 | CD83: =payout($A83,H83,$C83:G83,CC83,$BY83:CC83) -> 6000 | CE83: =payout($A83,I83,$C83:H83,CD83,$BY83:CD83) -> 6000 | CF83: =payout($A83,J83,$C83:I83,CE83,$BY83:CE83) -> 6000 | CG83: =payout($A83,K83,$C83:J83,CF83,$BY83:CF83) -> 6000 | CH83: =payout($A83,L83,$C83:K83,CG83,$BY83:CG83) -> 6000 | CI83: =payout($A83,M83,$C83:L83,CH83,$BY83:CH83) -> 6000 | CJ83: =payout($A83,N83,$C83:M83,CI83,$BY83:CI83) -> 6000 | CK83: =payout($A83,O83,$C83:N83,CJ83,$BY83:CJ83) -> 6000 | CL83: =payout($A83,P83,$C83:O83,CK83,$BY83:CK83) -> 6000 | CM83: =payout($A83,Q83,$C83:P83,CL83,$BY83:CL83) -> 6000 | CN83: =payout($A83,R83,$C83:Q83,CM83,$BY83:CM83) -> 6000 | CO83: =payout($A83,S83,$C83:R83,CN83,$BY83:CN83) -> 6000 | CP83: =payout($A83,T83,$C83:S83,CO83,$BY83:CO83) -> 6000 | CQ83: =payout($A83,U83,$C83:T83,CP83,$BY83:CP83) -> 6000 | CR83: =payout($A83,V83,$C83:U83,CQ83,$BY83:CQ83) -> 6000 | CS83: =payout($A83,W83,$C83:V83,CR83,$BY83:CR83) -> 6000 | CT83: =payout($A83,X83,$C83:W83,CS83,$BY83:CS83) -> 6000 | CU83: =payout($A83,Y83,$C83:X83,CT83,$BY83:CT83) -> 6000 | CV83: =payout($A83,Z83,$C83:Y83,CU83,$BY83:CU83) -> 6000 | CW83: =payout($A83,AA83,$C83:Z83,CV83,$BY83:CV83) -> 6000 | CX83: =payout($A83,AB83,$C83:AA83,CW83,$BY83:CW83) -> 6000 | CY83: =payout($A83,AC83,$C83:AB83,CX83,$BY83:CX83) -> 6000 | CZ83: =payout($A83,AD83,$C83:AC83,CY83,$BY83:CY83) -> 6000 | DA83: =payout($A83,AE83,$C83:AD83,CZ83,$BY83:CZ83) -> 6000 | DB83: =payout($A83,AF83,$C83:AE83,DA83,$BY83:DA83) -> 6000 | DC83: =payout($A83,AG83,$C83:AF83,DB83,$BY83:DB83) -> 6000 | DD83: =payout($A83,AH83,$C83:AG83,DC83,$BY83:DC83) -> 6000 | DE83: =payout($A83,AI83,$C83:AH83,DD83,$BY83:DD83) -> 6000 | DF83: =payout($A83,AJ83,$C83:AI83,DE83,$BY83:DE83) -> 6000 | DG83: =payout($A83,AK83,$C83:AJ83,DF83,$BY83:DF83) -> 6000 | DH83: =payout($A83,AL83,$C83:AK83,DG83,$BY83:DG83) -> 6000 | DI83: =payout($A83,AM83,$C83:AL83,DH83,$BY83:DH83) -> 6000 | DJ83: =payout($A83,AN83,$C83:AM83,DI83,$BY83:DI83) -> 6000 | DK83: =payout($A83,AO83,$C83:AN83,DJ83,$BY83:DJ83) -> 6000 | DL83: =payout($A83,AP83,$C83:AO83,DK83,$BY83:DK83) -> 6000 | DM83: =payout($A83,AQ83,$C83:AP83,DL83,$BY83:DL83) -> 106000 | DN83: =payout($A83,AR83,$C83:AQ83,DM83,$BY83:DM83) -> 0 | DO83: 0 | DP83: 0 | DQ83: 0 | DR83: 0 | DS83: 0 | DT83: 0 | DU83: 0 | DV83: 0 | DW83: 0 | DX83: 0 | DY83: 0 | DZ83: 0 | EA83: 0 | EB83: 0 | EC83: 0 | ED83: 0 | EE83: 0 | EF83: 0 | EG83: 0 | EH83: 0 | EI83: 0 | EJ83: 0 | EK83: 0 | EL83: 0 | EM83: 0 | EN83: 0 | EO83: 0 | EP83: 0 | EQ83: 0
A84: =get_bond_grade($A$16:A83,$BX$5,$BY$5,$BZ$5) -> AAA | B84: 69 | C84: 1 | D84: 1 | E84: 1 | F84: 1 | G84: 1 | H84: 1 | I84: 1 | J84: 1 | K84: 1 | L84: 1 | M84: 1 | N84: 1 | O84: 1 | P84: 1 | Q84: 1 | R84: 1 | S84: 1 | T84: 1 | U84: 1 | V84: 1 | W84: 1 | X84: 1 | Y84: 1 | Z84: 1 | AA84: 1 | AB84: 1 | AC84: 1 | AD84: 1 | AE84: 1 | AF84: 1 | AG84: 1 | AH84: 0 | AI84: 0 | AJ84: 0 | AK84: 0 | AL84: 0 | AM84: 0 | AN84: 0 | AO84: 0 | AP84: 0 | AQ84: 0 | AR84: 0 | AS84: 0 | AT84: 0 | AU84: 0 | AV84: 0 | AW84: 0 | AX84: 0 | AY84: 0 | AZ84: 0 | BA84: 0 | BB84: 0 | BC84: 0 | BD84: 0 | BE84: 0 | BF84: 0 | BG84: 0 | BH84: 0 | BI84: 0 | BJ84: 0 | BK84: 0 | BL84: 0 | BM84: 0 | BN84: 0 | BO84: 0 | BP84: 0 | BQ84: 0 | BR84: 0 | BS84: 0 | BT84: 0 | BU84: 0 | BW84: AAA | BX84: 69 | BY84: -100000 | BZ84: =payout($A84,D84,$C84:C84,BY84,$BY84:BY84) -> 5000 | CA84: =payout($A84,E84,$C84:D84,BZ84,$BY84:BZ84) -> 5000 | CB84: =payout($A84,F84,$C84:E84,CA84,$BY84:CA84) -> 5000 | CC84: =payout($A84,G84,$C84:F84,CB84,$BY84:CB84) -> 5000 | CD84: =payout($A84,H84,$C84:G84,CC84,$BY84:CC84) -> 5000 | CE84: =payout($A84,I84,$C84:H84,CD84,$BY84:CD84) -> 5000 | CF84: =payout($A84,J84,$C84:I84,CE84,$BY84:CE84) -> 5000 | CG84: =payout($A84,K84,$C84:J84,CF84,$BY84:CF84) -> 5000 | CH84: =payout($A84,L84,$C84:K84,CG84,$BY84:CG84) -> 5000 | CI84: =payout($A84,M84,$C84:L84,CH84,$BY84:CH84) -> 5000 | CJ84: =payout($A84,N84,$C84:M84,CI84,$BY84:CI84) -> 5000 | CK84: =payout($A84,O84,$C84:N84,CJ84,$BY84:CJ84) -> 5000 | CL84: =payout($A84,P84,$C84:O84,CK84,$BY84:CK84) -> 5000 | CM84: =payout($A84,Q84,$C84:P84,CL84,$BY84:CL84) -> 5000 | CN84: =payout($A84,R84,$C84:Q84,CM84,$BY84:CM84) -> 5000 | CO84: =payout($A84,S84,$C84:R84,CN84,$BY84:CN84) -> 5000 | CP84: =payout($A84,T84,$C84:S84,CO84,$BY84:CO84) -> 5000 | CQ84: =payout($A84,U84,$C84:T84,CP84,$BY84:CP84) -> 5000 | CR84: =payout($A84,V84,$C84:U84,CQ84,$BY84:CQ84) -> 5000 | CS84: =payout($A84,W84,$C84:V84,CR84,$BY84:CR84) -> 5000 | CT84: =payout($A84,X84,$C84:W84,CS84,$BY84:CS84) -> 5000 | CU84: =payout($A84,Y84,$C84:X84,CT84,$BY84:CT84) -> 5000 | CV84: =payout($A84,Z84,$C84:Y84,CU84,$BY84:CU84) -> 5000 | CW84: =payout($A84,AA84,$C84:Z84,CV84,$BY84:CV84) -> 5000 | CX84: =payout($A84,AB84,$C84:AA84,CW84,$BY84:CW84) -> 5000 | CY84: =payout($A84,AC84,$C84:AB84,CX84,$BY84:CX84) -> 5000 | CZ84: =payout($A84,AD84,$C84:AC84,CY84,$BY84:CY84) -> 5000 | DA84: =payout($A84,AE84,$C84:AD84,CZ84,$BY84:CZ84) -> 5000 | DB84: =payout($A84,AF84,$C84:AE84,DA84,$BY84:DA84) -> 5000 | DC84: =payout($A84,AG84,$C84:AF84,DB84,$BY84:DB84) -> 5000 | DD84: =payout($A84,AH84,$C84:AG84,DC84,$BY84:DC84) -> 5000 | DE84: =payout($A84,AI84,$C84:AH84,DD84,$BY84:DD84) -> 5000 | DF84: =payout($A84,AJ84,$C84:AI84,DE84,$BY84:DE84) -> 5000 | DG84: =payout($A84,AK84,$C84:AJ84,DF84,$BY84:DF84) -> 5000 | DH84: =payout($A84,AL84,$C84:AK84,DG84,$BY84:DG84) -> 5000 | DI84: =payout($A84,AM84,$C84:AL84,DH84,$BY84:DH84) -> 5000 | DJ84: =payout($A84,AN84,$C84:AM84,DI84,$BY84:DI84) -> 5000 | DK84: =payout($A84,AO84,$C84:AN84,DJ84,$BY84:DJ84) -> 5000 | DL84: =payout($A84,AP84,$C84:AO84,DK84,$BY84:DK84) -> 5000 | DM84: =payout($A84,AQ84,$C84:AP84,DL84,$BY84:DL84) -> 105000 | DN84: =payout($A84,AR84,$C84:AQ84,DM84,$BY84:DM84) -> 0 | DO84: 0 | DP84: 0 | DQ84: 0 | DR84: 0 | DS84: 0 | DT84: 0 | DU84: 0 | DV84: 0 | DW84: 0 | DX84: 0 | DY84: 0 | DZ84: 0 | EA84: 0 | EB84: 0 | EC84: 0 | ED84: 0 | EE84: 0 | EF84: 0 | EG84: 0 | EH84: 0 | EI84: 0 | EJ84: 0 | EK84: 0 | EL84: 0 | EM84: 0 | EN84: 0 | EO84: 0 | EP84: 0 | EQ84: 0
A85: =get_bond_grade($A$16:A84,$BX$5,$BY$5,$BZ$5) -> A | B85: 70 | C85: 1 | D85: 1 | E85: 1 | F85: 1 | G85: 1 | H85: 1 | I85: 1 | J85: 1 | K85: 1 | L85: 1 | M85: 1 | N85: 1 | O85: 1 | P85: 1 | Q85: 1 | R85: 1 | S85: 1 | T85: 1 | U85: 1 | V85: 1 | W85: 1 | X85: 1 | Y85: 1 | Z85: 1 | AA85: 1 | AB85: 1 | AC85: 1 | AD85: 1 | AE85: 1 | AF85: 1 | AG85: 1 | AH85: 1 | AI85: 1 | AJ85: 1 | AK85: 1 | AL85: 0 | AM85: 0 | AN85: 0 | AO85: 0 | AP85: 0 | AQ85: 0 | AR85: 0 | AS85: 0 | AT85: 0 | AU85: 0 | AV85: 0 | AW85: 0 | AX85: 0 | AY85: 0 | AZ85: 0 | BA85: 0 | BB85: 0 | BC85: 0 | BD85: 0 | BE85: 0 | BF85: 0 | BG85: 0 | BH85: 0 | BI85: 0 | BJ85: 0 | BK85: 0 | BL85: 0 | BM85: 0 | BN85: 0 | BO85: 0 | BP85: 0 | BQ85: 0 | BR85: 0 | BS85: 0 | BT85: 0 | BU85: 0 | BW85: A | BX85: 70 | BY85: -100000 | BZ85: =payout($A85,D85,$C85:C85,BY85,$BY85:BY85) -> 7000 | CA85: =payout($A85,E85,$C85:D85,BZ85,$BY85:BZ85) -> 7000 | CB85: =payout($A85,F85,$C85:E85,CA85,$BY85:CA85) -> 7000 | CC85: =payout($A85,G85,$C85:F85,CB85,$BY85:CB85) -> 7000 | CD85: =payout($A85,H85,$C85:G85,CC85,$BY85:CC85) -> 7000 | CE85: =payout($A85,I85,$C85:H85,CD85,$BY85:CD85) -> 7000 | CF85: =payout($A85,J85,$C85:I85,CE85,$BY85:CE85) -> 7000 | CG85: =payout($A85,K85,$C85:J85,CF85,$BY85:CF85) -> 7000 | CH85: =payout($A85,L85,$C85:K85,CG85,$BY85:CG85) -> 7000 | CI85: =payout($A85,M85,$C85:L85,CH85,$BY85:CH85) -> 7000 | CJ85: =payout($A85,N85,$C85:M85,CI85,$BY85:CI85) -> 7000 | CK85: =payout($A85,O85,$C85:N85,CJ85,$BY85:CJ85) -> 7000 | CL85: =payout($A85,P85,$C85:O85,CK85,$BY85:CK85) -> 7000 | CM85: =payout($A85,Q85,$C85:P85,CL85,$BY85:CL85) -> 7000 | CN85: =payout($A85,R85,$C85:Q85,CM85,$BY85:CM85) -> 7000 | CO85: =payout($A85,S85,$C85:R85,CN85,$BY85:CN85) -> 7000 | CP85: =payout($A85,T85,$C85:S85,CO85,$BY85:CO85) -> 7000 | CQ85: =payout($A85,U85,$C85:T85,CP85,$BY85:CP85) -> 7000 | CR85: =payout($A85,V85,$C85:U85,CQ85,$BY85:CQ85) -> 7000 | CS85: =payout($A85,W85,$C85:V85,CR85,$BY85:CR85) -> 7000 | CT85: =payout($A85,X85,$C85:W85,CS85,$BY85:CS85) -> 7000 | CU85: =payout($A85,Y85,$C85:X85,CT85,$BY85:CT85) -> 7000 | CV85: =payout($A85,Z85,$C85:Y85,CU85,$BY85:CU85) -> 7000 | CW85: =payout($A85,AA85,$C85:Z85,CV85,$BY85:CV85) -> 7000 | CX85: =payout($A85,AB85,$C85:AA85,CW85,$BY85:CW85) -> 7000 | CY85: =payout($A85,AC85,$C85:AB85,CX85,$BY85:CX85) -> 7000 | CZ85: =payout($A85,AD85,$C85:AC85,CY85,$BY85:CY85) -> 7000 | DA85: =payout($A85,AE85,$C85:AD85,CZ85,$BY85:CZ85) -> 7000 | DB85: =payout($A85,AF85,$C85:AE85,DA85,$BY85:DA85) -> 7000 | DC85: =payout($A85,AG85,$C85:AF85,DB85,$BY85:DB85) -> 7000 | DD85: =payout($A85,AH85,$C85:AG85,DC85,$BY85:DC85) -> 7000 | DE85: =payout($A85,AI85,$C85:AH85,DD85,$BY85:DD85) -> 7000 | DF85: =payout($A85,AJ85,$C85:AI85,DE85,$BY85:DE85) -> 7000 | DG85: =payout($A85,AK85,$C85:AJ85,DF85,$BY85:DF85) -> 7000 | DH85: =payout($A85,AL85,$C85:AK85,DG85,$BY85:DG85) -> 7000 | DI85: =payout($A85,AM85,$C85:AL85,DH85,$BY85:DH85) -> 7000 | DJ85: =payout($A85,AN85,$C85:AM85,DI85,$BY85:DI85) -> 7000 | DK85: =payout($A85,AO85,$C85:AN85,DJ85,$BY85:DJ85) -> 7000 | DL85: =payout($A85,AP85,$C85:AO85,DK85,$BY85:DK85) -> 7000 | DM85: =payout($A85,AQ85,$C85:AP85,DL85,$BY85:DL85) -> 107000 | DN85: =payout($A85,AR85,$C85:AQ85,DM85,$BY85:DM85) -> 0 | DO85: 0 | DP85: 0 | DQ85: 0 | DR85: 0 | DS85: 0 | DT85: 0 | DU85: 0 | DV85: 0 | DW85: 0 | DX85: 0 | DY85: 0 | DZ85: 0 | EA85: 0 | EB85: 0 | EC85: 0 | ED85: 0 | EE85: 0 | EF85: 0 | EG85: 0 | EH85: 0 | EI85: 0 | EJ85: 0 | EK85: 0 | EL85: 0 | EM85: 0 | EN85: 0 | EO85: 0 | EP85: 0 | EQ85: 0
A86: =get_bond_grade($A$16:A85,$BX$5,$BY$5,$BZ$5) -> A | B86: 71 | C86: 1 | D86: 1 | E86: 1 | F86: 1 | G86: 1 | H86: 1 | I86: 1 | J86: 1 | K86: 1 | L86: 1 | M86: 1 | N86: 1 | O86: 1 | P86: 1 | Q86: 1 | R86: 1 | S86: 1 | T86: 1 | U86: 1 | V86: 1 | W86: 1 | X86: 1 | Y86: 1 | Z86: 1 | AA86: 1 | AB86: 1 | AC86: 1 | AD86: 1 | AE86: 1 | AF86: 1 | AG86: 1 | AH86: 1 | AI86: 1 | AJ86: 1 | AK86: 1 | AL86: 0 | AM86: 0 | AN86: 0 | AO86: 0 | AP86: 0 | AQ86: 0 | AR86: 0 | AS86: 0 | AT86: 0 | AU86: 0 | AV86: 0 | AW86: 0 | AX86: 0 | AY86: 0 | AZ86: 0 | BA86: 0 | BB86: 0 | BC86: 0 | BD86: 0 | BE86: 0 | BF86: 0 | BG86: 0 | BH86: 0 | BI86: 0 | BJ86: 0 | BK86: 0 | BL86: 0 | BM86: 0 | BN86: 0 | BO86: 0 | BP86: 0 | BQ86: 0 | BR86: 0 | BS86: 0 | BT86: 0 | BU86: 0 | BW86: A | BX86: 71 | BY86: -100000 | BZ86: =payout($A86,D86,$C86:C86,BY86,$BY86:BY86) -> 7000 | CA86: =payout($A86,E86,$C86:D86,BZ86,$BY86:BZ86) -> 7000 | CB86: =payout($A86,F86,$C86:E86,CA86,$BY86:CA86) -> 7000 | CC86: =payout($A86,G86,$C86:F86,CB86,$BY86:CB86) -> 7000 | CD86: =payout($A86,H86,$C86:G86,CC86,$BY86:CC86) -> 7000 | CE86: =payout($A86,I86,$C86:H86,CD86,$BY86:CD86) -> 7000 | CF86: =payout($A86,J86,$C86:I86,CE86,$BY86:CE86) -> 7000 | CG86: =payout($A86,K86,$C86:J86,CF86,$BY86:CF86) -> 7000 | CH86: =payout($A86,L86,$C86:K86,CG86,$BY86:CG86) -> 7000 | CI86: =payout($A86,M86,$C86:L86,CH86,$BY86:CH86) -> 7000 | CJ86: =payout($A86,N86,$C86:M86,CI86,$BY86:CI86) -> 7000 | CK86: =payout($A86,O86,$C86:N86,CJ86,$BY86:CJ86) -> 7000 | CL86: =payout($A86,P86,$C86:O86,CK86,$BY86:CK86) -> 7000 | CM86: =payout($A86,Q86,$C86:P86,CL86,$BY86:CL86) -> 7000 | CN86: =payout($A86,R86,$C86:Q86,CM86,$BY86:CM86) -> 7000 | CO86: =payout($A86,S86,$C86:R86,CN86,$BY86:CN86) -> 7000 | CP86: =payout($A86,T86,$C86:S86,CO86,$BY86:CO86) -> 7000 | CQ86: =payout($A86,U86,$C86:T86,CP86,$BY86:CP86) -> 7000 | CR86: =payout($A86,V86,$C86:U86,CQ86,$BY86:CQ86) -> 7000 | CS86: =payout($A86,W86,$C86:V86,CR86,$BY86:CR86) -> 7000 | CT86: =payout($A86,X86,$C86:W86,CS86,$BY86:CS86) -> 7000 | CU86: =payout($A86,Y86,$C86:X86,CT86,$BY86:CT86) -> 7000 | CV86: =payout($A86,Z86,$C86:Y86,CU86,$BY86:CU86) -> 7000 | CW86: =payout($A86,AA86,$C86:Z86,CV86,$BY86:CV86) -> 7000 | CX86: =payout($A86,AB86,$C86:AA86,CW86,$BY86:CW86) -> 7000 | CY86: =payout($A86,AC86,$C86:AB86,CX86,$BY86:CX86) -> 7000 | CZ86: =payout($A86,AD86,$C86:AC86,CY86,$BY86:CY86) -> 7000 | DA86: =payout($A86,AE86,$C86:AD86,CZ86,$BY86:CZ86) -> 7000 | DB86: =payout($A86,AF86,$C86:AE86,DA86,$BY86:DA86) -> 7000 | DC86: =payout($A86,AG86,$C86:AF86,DB86,$BY86:DB86) -> 7000 | DD86: =payout($A86,AH86,$C86:AG86,DC86,$BY86:DC86) -> 7000 | DE86: =payout($A86,AI86,$C86:AH86,DD86,$BY86:DD86) -> 7000 | DF86: =payout($A86,AJ86,$C86:AI86,DE86,$BY86:DE86) -> 7000 | DG86: =payout($A86,AK86,$C86:AJ86,DF86,$BY86:DF86) -> 7000 | DH86: =payout($A86,AL86,$C86:AK86,DG86,$BY86:DG86) -> 7000 | DI86: =payout($A86,AM86,$C86:AL86,DH86,$BY86:DH86) -> 7000 | DJ86: =payout($A86,AN86,$C86:AM86,DI86,$BY86:DI86) -> 7000 | DK86: =payout($A86,AO86,$C86:AN86,DJ86,$BY86:DJ86) -> 7000 | DL86: =payout($A86,AP86,$C86:AO86,DK86,$BY86:DK86) -> 7000 | DM86: =payout($A86,AQ86,$C86:AP86,DL86,$BY86:DL86) -> 107000 | DN86: =payout($A86,AR86,$C86:AQ86,DM86,$BY86:DM86) -> 0 | DO86: 0 | DP86: 0 | DQ86: 0 | DR86: 0 | DS86: 0 | DT86: 0 | DU86: 0 | DV86: 0 | DW86: 0 | DX86: 0 | DY86: 0 | DZ86: 0 | EA86: 0 | EB86: 0 | EC86: 0 | ED86: 0 | EE86: 0 | EF86: 0 | EG86: 0 | EH86: 0 | EI86: 0 | EJ86: 0 | EK86: 0 | EL86: 0 | EM86: 0 | EN86: 0 | EO86: 0 | EP86: 0 | EQ86: 0
A87: =get_bond_grade($A$16:A86,$BX$5,$BY$5,$BZ$5) -> AAA | B87: 72 | C87: 1 | D87: 1 | E87: 1 | F87: 1 | G87: 1 | H87: 1 | I87: 1 | J87: 1 | K87: 1 | L87: 1 | M87: 1 | N87: 1 | O87: 1 | P87: 1 | Q87: 1 | R87: 1 | S87: 1 | T87: 1 | U87: 1 | V87: 1 | W87: 1 | X87: 1 | Y87: 1 | Z87: 1 | AA87: 1 | AB87: 1 | AC87: 1 | AD87: 1 | AE87: 1 | AF87: 1 | AG87: 1 | AH87: 1 | AI87: 1 | AJ87: 1 | AK87: 1 | AL87: 0 | AM87: 0 | AN87: 0 | AO87: 0 | AP87: 0 | AQ87: 0 | AR87: 0 | AS87: 0 | AT87: 0 | AU87: 0 | AV87: 0 | AW87: 0 | AX87: 0 | AY87: 0 | AZ87: 0 | BA87: 0 | BB87: 0 | BC87: 0 | BD87: 0 | BE87: 0 | BF87: 0 | BG87: 0 | BH87: 0 | BI87: 0 | BJ87: 0 | BK87: 0 | BL87: 0 | BM87: 0 | BN87: 0 | BO87: 0 | BP87: 0 | BQ87: 0 | BR87: 0 | BS87: 0 | BT87: 0 | BU87: 0 | BW87: AAA | BX87: 72 | BY87: -100000 | BZ87: =payout($A87,D87,$C87:C87,BY87,$BY87:BY87) -> 5000 | CA87: =payout($A87,E87,$C87:D87,BZ87,$BY87:BZ87) -> 5000 | CB87: =payout($A87,F87,$C87:E87,CA87,$BY87:CA87) -> 5000 | CC87: =payout($A87,G87,$C87:F87,CB87,$BY87:CB87) -> 5000 | CD87: =payout($A87,H87,$C87:G87,CC87,$BY87:CC87) -> 5000 | CE87: =payout($A87,I87,$C87:H87,CD87,$BY87:CD87) -> 5000 | CF87: =payout($A87,J87,$C87:I87,CE87,$BY87:CE87) -> 5000 | CG87: =payout($A87,K87,$C87:J87,CF87,$BY87:CF87) -> 5000 | CH87: =payout($A87,L87,$C87:K87,CG87,$BY87:CG87) -> 5000 | CI87: =payout($A87,M87,$C87:L87,CH87,$BY87:CH87) -> 5000 | CJ87: =payout($A87,N87,$C87:M87,CI87,$BY87:CI87) -> 5000 | CK87: =payout($A87,O87,$C87:N87,CJ87,$BY87:CJ87) -> 5000 | CL87: =payout($A87,P87,$C87:O87,CK87,$BY87:CK87) -> 5000 | CM87: =payout($A87,Q87,$C87:P87,CL87,$BY87:CL87) -> 5000 | CN87: =payout($A87,R87,$C87:Q87,CM87,$BY87:CM87) -> 5000 | CO87: =payout($A87,S87,$C87:R87,CN87,$BY87:CN87) -> 5000 | CP87: =payout($A87,T87,$C87:S87,CO87,$BY87:CO87) -> 5000 | CQ87: =payout($A87,U87,$C87:T87,CP87,$BY87:CP87) -> 5000 | CR87: =payout($A87,V87,$C87:U87,CQ87,$BY87:CQ87) -> 5000 | CS87: =payout($A87,W87,$C87:V87,CR87,$BY87:CR87) -> 5000 | CT87: =payout($A87,X87,$C87:W87,CS87,$BY87:CS87) -> 5000 | CU87: =payout($A87,Y87,$C87:X87,CT87,$BY87:CT87) -> 5000 | CV87: =payout($A87,Z87,$C87:Y87,CU87,$BY87:CU87) -> 5000 | CW87: =payout($A87,AA87,$C87:Z87,CV87,$BY87:CV87) -> 5000 | CX87: =payout($A87,AB87,$C87:AA87,CW87,$BY87:CW87) -> 5000 | CY87: =payout($A87,AC87,$C87:AB87,CX87,$BY87:CX87) -> 5000 | CZ87: =payout($A87,AD87,$C87:AC87,CY87,$BY87:CY87) -> 5000 | DA87: =payout($A87,AE87,$C87:AD87,CZ87,$BY87:CZ87) -> 5000 | DB87: =payout($A87,AF87,$C87:AE87,DA87,$BY87:DA87) -> 5000 | DC87: =payout($A87,AG87,$C87:AF87,DB87,$BY87:DB87) -> 5000 | DD87: =payout($A87,AH87,$C87:AG87,DC87,$BY87:DC87) -> 5000 | DE87: =payout($A87,AI87,$C87:AH87,DD87,$BY87:DD87) -> 5000 | DF87: =payout($A87,AJ87,$C87:AI87,DE87,$BY87:DE87) -> 5000 | DG87: =payout($A87,AK87,$C87:AJ87,DF87,$BY87:DF87) -> 5000 | DH87: =payout($A87,AL87,$C87:AK87,DG87,$BY87:DG87) -> 5000 | DI87: =payout($A87,AM87,$C87:AL87,DH87,$BY87:DH87) -> 5000 | DJ87: =payout($A87,AN87,$C87:AM87,DI87,$BY87:DI87) -> 5000 | DK87: =payout($A87,AO87,$C87:AN87,DJ87,$BY87:DJ87) -> 5000 | DL87: =payout($A87,AP87,$C87:AO87,DK87,$BY87:DK87) -> 5000 | DM87: =payout($A87,AQ87,$C87:AP87,DL87,$BY87:DL87) -> 105000 | DN87: =payout($A87,AR87,$C87:AQ87,DM87,$BY87:DM87) -> 0 | DO87: 0 | DP87: 0 | DQ87: 0 | DR87: 0 | DS87: 0 | DT87: 0 | DU87: 0 | DV87: 0 | DW87: 0 | DX87: 0 | DY87: 0 | DZ87: 0 | EA87: 0 | EB87: 0 | EC87: 0 | ED87: 0 | EE87: 0 | EF87: 0 | EG87: 0 | EH87: 0 | EI87: 0 | EJ87: 0 | EK87: 0 | EL87: 0 | EM87: 0 | EN87: 0 | EO87: 0 | EP87: 0 | EQ87: 0
A88: =get_bond_grade($A$16:A87,$BX$5,$BY$5,$BZ$5) -> AA | B88: 73 | C88: 1 | D88: 1 | E88: 1 | F88: 1 | G88: 1 | H88: 1 | I88: 1 | J88: 1 | K88: 1 | L88: 1 | M88: 1 | N88: 1 | O88: 1 | P88: 1 | Q88: 1 | R88: 1 | S88: 1 | T88: 1 | U88: 1 | V88: 1 | W88: 1 | X88: 1 | Y88: 1 | Z88: 1 | AA88: 1 | AB88: 1 | AC88: 1 | AD88: 1 | AE88: 1 | AF88: 1 | AG88: 1 | AH88: 1 | AI88: 1 | AJ88: 1 | AK88: 1 | AL88: 0 | AM88: 0 | AN88: 0 | AO88: 0 | AP88: 0 | AQ88: 0 | AR88: 0 | AS88: 0 | AT88: 0 | AU88: 0 | AV88: 0 | AW88: 0 | AX88: 0 | AY88: 0 | AZ88: 0 | BA88: 0 | BB88: 0 | BC88: 0 | BD88: 0 | BE88: 0 | BF88: 0 | BG88: 0 | BH88: 0 | BI88: 0 | BJ88: 0 | BK88: 0 | BL88: 0 | BM88: 0 | BN88: 0 | BO88: 0 | BP88: 0 | BQ88: 0 | BR88: 0 | BS88: 0 | BT88: 0 | BU88: 0 | BW88: AA | BX88: 73 | BY88: -100000 | BZ88: =payout($A88,D88,$C88:C88,BY88,$BY88:BY88) -> 6000 | CA88: =payout($A88,E88,$C88:D88,BZ88,$BY88:BZ88) -> 6000 | CB88: =payout($A88,F88,$C88:E88,CA88,$BY88:CA88) -> 6000 | CC88: =payout($A88,G88,$C88:F88,CB88,$BY88:CB88) -> 6000 | CD88: =payout($A88,H88,$C88:G88,CC88,$BY88:CC88) -> 6000 | CE88: =payout($A88,I88,$C88:H88,CD88,$BY88:CD88) -> 6000 | CF88: =payout($A88,J88,$C88:I88,CE88,$BY88:CE88) -> 6000 | CG88: =payout($A88,K88,$C88:J88,CF88,$BY88:CF88) -> 6000 | CH88: =payout($A88,L88,$C88:K88,CG88,$BY88:CG88) -> 6000 | CI88: =payout($A88,M88,$C88:L88,CH88,$BY88:CH88) -> 6000 | CJ88: =payout($A88,N88,$C88:M88,CI88,$BY88:CI88) -> 6000 | CK88: =payout($A88,O88,$C88:N88,CJ88,$BY88:CJ88) -> 6000 | CL88: =payout($A88,P88,$C88:O88,CK88,$BY88:CK88) -> 6000 | CM88: =payout($A88,Q88,$C88:P88,CL88,$BY88:CL88) -> 6000 | CN88: =payout($A88,R88,$C88:Q88,CM88,$BY88:CM88) -> 6000 | CO88: =payout($A88,S88,$C88:R88,CN88,$BY88:CN88) -> 6000 | CP88: =payout($A88,T88,$C88:S88,CO88,$BY88:CO88) -> 6000 | CQ88: =payout($A88,U88,$C88:T88,CP88,$BY88:CP88) -> 6000 | CR88: =payout($A88,V88,$C88:U88,CQ88,$BY88:CQ88) -> 6000 | CS88: =payout($A88,W88,$C88:V88,CR88,$BY88:CR88) -> 6000 | CT88: =payout($A88,X88,$C88:W88,CS88,$BY88:CS88) -> 6000 | CU88: =payout($A88,Y88,$C88:X88,CT88,$BY88:CT88) -> 6000 | CV88: =payout($A88,Z88,$C88:Y88,CU88,$BY88:CU88) -> 6000 | CW88: =payout($A88,AA88,$C88:Z88,CV88,$BY88:CV88) -> 6000 | CX88: =payout($A88,AB88,$C88:AA88,CW88,$BY88:CW88) -> 6000 | CY88: =payout($A88,AC88,$C88:AB88,CX88,$BY88:CX88) -> 6000 | CZ88: =payout($A88,AD88,$C88:AC88,CY88,$BY88:CY88) -> 6000 | DA88: =payout($A88,AE88,$C88:AD88,CZ88,$BY88:CZ88) -> 6000 | DB88: =payout($A88,AF88,$C88:AE88,DA88,$BY88:DA88) -> 6000 | DC88: =payout($A88,AG88,$C88:AF88,DB88,$BY88:DB88) -> 6000 | DD88: =payout($A88,AH88,$C88:AG88,DC88,$BY88:DC88) -> 6000 | DE88: =payout($A88,AI88,$C88:AH88,DD88,$BY88:DD88) -> 6000 | DF88: =payout($A88,AJ88,$C88:AI88,DE88,$BY88:DE88) -> 6000 | DG88: =payout($A88,AK88,$C88:AJ88,DF88,$BY88:DF88) -> 6000 | DH88: =payout($A88,AL88,$C88:AK88,DG88,$BY88:DG88) -> 6000 | DI88: =payout($A88,AM88,$C88:AL88,DH88,$BY88:DH88) -> 6000 | DJ88: =payout($A88,AN88,$C88:AM88,DI88,$BY88:DI88) -> 6000 | DK88: =payout($A88,AO88,$C88:AN88,DJ88,$BY88:DJ88) -> 6000 | DL88: =payout($A88,AP88,$C88:AO88,DK88,$BY88:DK88) -> 6000 | DM88: =payout($A88,AQ88,$C88:AP88,DL88,$BY88:DL88) -> 106000 | DN88: =payout($A88,AR88,$C88:AQ88,DM88,$BY88:DM88) -> 0 | DO88: 0 | DP88: 0 | DQ88: 0 | DR88: 0 | DS88: 0 | DT88: 0 | DU88: 0 | DV88: 0 | DW88: 0 | DX88: 0 | DY88: 0 | DZ88: 0 | EA88: 0 | EB88: 0 | EC88: 0 | ED88: 0 | EE88: 0 | EF88: 0 | EG88: 0 | EH88: 0 | EI88: 0 | EJ88: 0 | EK88: 0 | EL88: 0 | EM88: 0 | EN88: 0 | EO88: 0 | EP88: 0 | EQ88: 0
A89: =get_bond_grade($A$16:A88,$BX$5,$BY$5,$BZ$5) -> AAA | B89: 74 | C89: 1 | D89: 1 | E89: 1 | F89: 1 | G89: 1 | H89: 1 | I89: 1 | J89: 1 | K89: 1 | L89: 1 | M89: 1 | N89: 1 | O89: 1 | P89: 1 | Q89: 1 | R89: 1 | S89: 1 | T89: 1 | U89: 1 | V89: 1 | W89: 1 | X89: 1 | Y89: 1 | Z89: 1 | AA89: 1 | AB89: 1 | AC89: 1 | AD89: 1 | AE89: 1 | AF89: 1 | AG89: 1 | AH89: 1 | AI89: 1 | AJ89: 1 | AK89: 1 | AL89: 0 | AM89: 0 | AN89: 0 | AO89: 0 | AP89: 0 | AQ89: 0 | AR89: 0 | AS89: 0 | AT89: 0 | AU89: 0 | AV89: 0 | AW89: 0 | AX89: 0 | AY89: 0 | AZ89: 0 | BA89: 0 | BB89: 0 | BC89: 0 | BD89: 0 | BE89: 0 | BF89: 0 | BG89: 0 | BH89: 0 | BI89: 0 | BJ89: 0 | BK89: 0 | BL89: 0 | BM89: 0 | BN89: 0 | BO89: 0 | BP89: 0 | BQ89: 0 | BR89: 0 | BS89: 0 | BT89: 0 | BU89: 0 | BW89: AAA | BX89: 74 | BY89: -100000 | BZ89: =payout($A89,D89,$C89:C89,BY89,$BY89:BY89) -> 5000 | CA89: =payout($A89,E89,$C89:D89,BZ89,$BY89:BZ89) -> 5000 | CB89: =payout($A89,F89,$C89:E89,CA89,$BY89:CA89) -> 5000 | CC89: =payout($A89,G89,$C89:F89,CB89,$BY89:CB89) -> 5000 | CD89: =payout($A89,H89,$C89:G89,CC89,$BY89:CC89) -> 5000 | CE89: =payout($A89,I89,$C89:H89,CD89,$BY89:CD89) -> 5000 | CF89: =payout($A89,J89,$C89:I89,CE89,$BY89:CE89) -> 5000 | CG89: =payout($A89,K89,$C89:J89,CF89,$BY89:CF89) -> 5000 | CH89: =payout($A89,L89,$C89:K89,CG89,$BY89:CG89) -> 5000 | CI89: =payout($A89,M89,$C89:L89,CH89,$BY89:CH89) -> 5000 | CJ89: =payout($A89,N89,$C89:M89,CI89,$BY89:CI89) -> 5000 | CK89: =payout($A89,O89,$C89:N89,CJ89,$BY89:CJ89) -> 5000 | CL89: =payout($A89,P89,$C89:O89,CK89,$BY89:CK89) -> 5000 | CM89: =payout($A89,Q89,$C89:P89,CL89,$BY89:CL89) -> 5000 | CN89: =payout($A89,R89,$C89:Q89,CM89,$BY89:CM89) -> 5000 | CO89: =payout($A89,S89,$C89:R89,CN89,$BY89:CN89) -> 5000 | CP89: =payout($A89,T89,$C89:S89,CO89,$BY89:CO89) -> 5000 | CQ89: =payout($A89,U89,$C89:T89,CP89,$BY89:CP89) -> 5000 | CR89: =payout($A89,V89,$C89:U89,CQ89,$BY89:CQ89) -> 5000 | CS89: =payout($A89,W89,$C89:V89,CR89,$BY89:CR89) -> 5000 | CT89: =payout($A89,X89,$C89:W89,CS89,$BY89:CS89) -> 5000 | CU89: =payout($A89,Y89,$C89:X89,CT89,$BY89:CT89) -> 5000 | CV89: =payout($A89,Z89,$C89:Y89,CU89,$BY89:CU89) -> 5000 | CW89: =payout($A89,AA89,$C89:Z89,CV89,$BY89:CV89) -> 5000 | CX89: =payout($A89,AB89,$C89:AA89,CW89,$BY89:CW89) -> 5000 | CY89: =payout($A89,AC89,$C89:AB89,CX89,$BY89:CX89) -> 5000 | CZ89: =payout($A89,AD89,$C89:AC89,CY89,$BY89:CY89) -> 5000 | DA89: =payout($A89,AE89,$C89:AD89,CZ89,$BY89:CZ89) -> 5000 | DB89: =payout($A89,AF89,$C89:AE89,DA89,$BY89:DA89) -> 5000 | DC89: =payout($A89,AG89,$C89:AF89,DB89,$BY89:DB89) -> 5000 | DD89: =payout($A89,AH89,$C89:AG89,DC89,$BY89:DC89) -> 5000 | DE89: =payout($A89,AI89,$C89:AH89,DD89,$BY89:DD89) -> 5000 | DF89: =payout($A89,AJ89,$C89:AI89,DE89,$BY89:DE89) -> 5000 | DG89: =payout($A89,AK89,$C89:AJ89,DF89,$BY89:DF89) -> 5000 | DH89: =payout($A89,AL89,$C89:AK89,DG89,$BY89:DG89) -> 5000 | DI89: =payout($A89,AM89,$C89:AL89,DH89,$BY89:DH89) -> 5000 | DJ89: =payout($A89,AN89,$C89:AM89,DI89,$BY89:DI89) -> 5000 | DK89: =payout($A89,AO89,$C89:AN89,DJ89,$BY89:DJ89) -> 5000 | DL89: =payout($A89,AP89,$C89:AO89,DK89,$BY89:DK89) -> 5000 | DM89: =payout($A89,AQ89,$C89:AP89,DL89,$BY89:DL89) -> 105000 | DN89: =payout($A89,AR89,$C89:AQ89,DM89,$BY89:DM89) -> 0 | DO89: 0 | DP89: 0 | DQ89: 0 | DR89: 0 | DS89: 0 | DT89: 0 | DU89: 0 | DV89: 0 | DW89: 0 | DX89: 0 | DY89: 0 | DZ89: 0 | EA89: 0 | EB89: 0 | EC89: 0 | ED89: 0 | EE89: 0 | EF89: 0 | EG89: 0 | EH89: 0 | EI89: 0 | EJ89: 0 | EK89: 0 | EL89: 0 | EM89: 0 | EN89: 0 | EO89: 0 | EP89: 0 | EQ89: 0
A90: =get_bond_grade($A$16:A89,$BX$5,$BY$5,$BZ$5) -> AA | B90: 75 | C90: 1 | D90: 1 | E90: 1 | F90: 1 | G90: 1 | H90: 1 | I90: 1 | J90: 1 | K90: 1 | L90: 1 | M90: 1 | N90: 1 | O90: 1 | P90: 1 | Q90: 1 | R90: 1 | S90: 1 | T90: 1 | U90: 1 | V90: 1 | W90: 1 | X90: 1 | Y90: 1 | Z90: 1 | AA90: 1 | AB90: 1 | AC90: 1 | AD90: 1 | AE90: 1 | AF90: 1 | AG90: 1 | AH90: 1 | AI90: 1 | AJ90: 1 | AK90: 1 | AL90: 0 | AM90: 0 | AN90: 0 | AO90: 0 | AP90: 0 | AQ90: 0 | AR90: 0 | AS90: 0 | AT90: 0 | AU90: 0 | AV90: 0 | AW90: 0 | AX90: 0 | AY90: 0 | AZ90: 0 | BA90: 0 | BB90: 0 | BC90: 0 | BD90: 0 | BE90: 0 | BF90: 0 | BG90: 0 | BH90: 0 | BI90: 0 | BJ90: 0 | BK90: 0 | BL90: 0 | BM90: 0 | BN90: 0 | BO90: 0 | BP90: 0 | BQ90: 0 | BR90: 0 | BS90: 0 | BT90: 0 | BU90: 0 | BW90: AA | BX90: 75 | BY90: -100000 | BZ90: =payout($A90,D90,$C90:C90,BY90,$BY90:BY90) -> 6000 | CA90: =payout($A90,E90,$C90:D90,BZ90,$BY90:BZ90) -> 6000 | CB90: =payout($A90,F90,$C90:E90,CA90,$BY90:CA90) -> 6000 | CC90: =payout($A90,G90,$C90:F90,CB90,$BY90:CB90) -> 6000 | CD90: =payout($A90,H90,$C90:G90,CC90,$BY90:CC90) -> 6000 | CE90: =payout($A90,I90,$C90:H90,CD90,$BY90:CD90) -> 6000 | CF90: =payout($A90,J90,$C90:I90,CE90,$BY90:CE90) -> 6000 | CG90: =payout($A90,K90,$C90:J90,CF90,$BY90:CF90) -> 6000 | CH90: =payout($A90,L90,$C90:K90,CG90,$BY90:CG90) -> 6000 | CI90: =payout($A90,M90,$C90:L90,CH90,$BY90:CH90) -> 6000 | CJ90: =payout($A90,N90,$C90:M90,CI90,$BY90:CI90) -> 6000 | CK90: =payout($A90,O90,$C90:N90,CJ90,$BY90:CJ90) -> 6000 | CL90: =payout($A90,P90,$C90:O90,CK90,$BY90:CK90) -> 6000 | CM90: =payout($A90,Q90,$C90:P90,CL90,$BY90:CL90) -> 6000 | CN90: =payout($A90,R90,$C90:Q90,CM90,$BY90:CM90) -> 6000 | CO90: =payout($A90,S90,$C90:R90,CN90,$BY90:CN90) -> 6000 | CP90: =payout($A90,T90,$C90:S90,CO90,$BY90:CO90) -> 6000 | CQ90: =payout($A90,U90,$C90:T90,CP90,$BY90:CP90) -> 6000 | CR90: =payout($A90,V90,$C90:U90,CQ90,$BY90:CQ90) -> 6000 | CS90: =payout($A90,W90,$C90:V90,CR90,$BY90:CR90) -> 6000 | CT90: =payout($A90,X90,$C90:W90,CS90,$BY90:CS90) -> 6000 | CU90: =payout($A90,Y90,$C90:X90,CT90,$BY90:CT90) -> 6000 | CV90: =payout($A90,Z90,$C90:Y90,CU90,$BY90:CU90) -> 6000 | CW90: =payout($A90,AA90,$C90:Z90,CV90,$BY90:CV90) -> 6000 | CX90: =payout($A90,AB90,$C90:AA90,CW90,$BY90:CW90) -> 6000 | CY90: =payout($A90,AC90,$C90:AB90,CX90,$BY90:CX90) -> 6000 | CZ90: =payout($A90,AD90,$C90:AC90,CY90,$BY90:CY90) -> 6000 | DA90: =payout($A90,AE90,$C90:AD90,CZ90,$BY90:CZ90) -> 6000 | DB90: =payout($A90,AF90,$C90:AE90,DA90,$BY90:DA90) -> 6000 | DC90: =payout($A90,AG90,$C90:AF90,DB90,$BY90:DB90) -> 6000 | DD90: =payout($A90,AH90,$C90:AG90,DC90,$BY90:DC90) -> 6000 | DE90: =payout($A90,AI90,$C90:AH90,DD90,$BY90:DD90) -> 6000 | DF90: =payout($A90,AJ90,$C90:AI90,DE90,$BY90:DE90) -> 6000 | DG90: =payout($A90,AK90,$C90:AJ90,DF90,$BY90:DF90) -> 6000 | DH90: =payout($A90,AL90,$C90:AK90,DG90,$BY90:DG90) -> 6000 | DI90: =payout($A90,AM90,$C90:AL90,DH90,$BY90:DH90) -> 6000 | DJ90: =payout($A90,AN90,$C90:AM90,DI90,$BY90:DI90) -> 6000 | DK90: =payout($A90,AO90,$C90:AN90,DJ90,$BY90:DJ90) -> 6000 | DL90: =payout($A90,AP90,$C90:AO90,DK90,$BY90:DK90) -> 6000 | DM90: =payout($A90,AQ90,$C90:AP90,DL90,$BY90:DL90) -> 106000 | DN90: =payout($A90,AR90,$C90:AQ90,DM90,$BY90:DM90) -> 0 | DO90: 0 | DP90: 0 | DQ90: 0 | DR90: 0 | DS90: 0 | DT90: 0 | DU90: 0 | DV90: 0 | DW90: 0 | DX90: 0 | DY90: 0 | DZ90: 0 | EA90: 0 | EB90: 0 | EC90: 0 | ED90: 0 | EE90: 0 | EF90: 0 | EG90: 0 | EH90: 0 | EI90: 0 | EJ90: 0 | EK90: 0 | EL90: 0 | EM90: 0 | EN90: 0 | EO90: 0 | EP90: 0 | EQ90: 0
A91: =get_bond_grade($A$16:A90,$BX$5,$BY$5,$BZ$5) -> A | B91: 76 | C91: 1 | D91: 1 | E91: 0 | F91: 0 | G91: 0 | H91: 0 | I91: 0 | J91: 0 | K91: 0 | L91: 0 | M91: 0 | N91: 0 | O91: 0 | P91: 0 | Q91: 0 | R91: 0 | S91: 0 | T91: 0 | U91: 0 | V91: 0 | W91: 0 | X91: 0 | Y91: 0 | Z91: 0 | AA91: 0 | AB91: 0 | AC91: 0 | AD91: 0 | AE91: 0 | AF91: 0 | AG91: 0 | AH91: 0 | AI91: 0 | AJ91: 0 | AK91: 0 | AL91: 0 | AM91: 0 | AN91: 0 | AO91: 0 | AP91: 0 | AQ91: 0 | AR91: 0 | AS91: 0 | AT91: 0 | AU91: 0 | AV91: 0 | AW91: 0 | AX91: 0 | AY91: 0 | AZ91: 0 | BA91: 0 | BB91: 0 | BC91: 0 | BD91: 0 | BE91: 0 | BF91: 0 | BG91: 0 | BH91: 0 | BI91: 0 | BJ91: 0 | BK91: 0 | BL91: 0 | BM91: 0 | BN91: 0 | BO91: 0 | BP91: 0 | BQ91: 0 | BR91: 0 | BS91: 0 | BT91: 0 | BU91: 0 | BW91: A | BX91: 76 | BY91: -100000 | BZ91: =payout($A91,D91,$C91:C91,BY91,$BY91:BY91) -> 7000 | CA91: =payout($A91,E91,$C91:D91,BZ91,$BY91:BZ91) -> 7000 | CB91: =payout($A91,F91,$C91:E91,CA91,$BY91:CA91) -> 7000 | CC91: =payout($A91,G91,$C91:F91,CB91,$BY91:CB91) -> 7000 | CD91: =payout($A91,H91,$C91:G91,CC91,$BY91:CC91) -> 7000 | CE91: =payout($A91,I91,$C91:H91,CD91,$BY91:CD91) -> 7000 | CF91: =payout($A91,J91,$C91:I91,CE91,$BY91:CE91) -> 7000 | CG91: =payout($A91,K91,$C91:J91,CF91,$BY91:CF91) -> 7000 | CH91: =payout($A91,L91,$C91:K91,CG91,$BY91:CG91) -> 7000 | CI91: =payout($A91,M91,$C91:L91,CH91,$BY91:CH91) -> 7000 | CJ91: =payout($A91,N91,$C91:M91,CI91,$BY91:CI91) -> 7000 | CK91: =payout($A91,O91,$C91:N91,CJ91,$BY91:CJ91) -> 7000 | CL91: =payout($A91,P91,$C91:O91,CK91,$BY91:CK91) -> 7000 | CM91: =payout($A91,Q91,$C91:P91,CL91,$BY91:CL91) -> 7000 | CN91: =payout($A91,R91,$C91:Q91,CM91,$BY91:CM91) -> 7000 | CO91: =payout($A91,S91,$C91:R91,CN91,$BY91:CN91) -> 7000 | CP91: =payout($A91,T91,$C91:S91,CO91,$BY91:CO91) -> 7000 | CQ91: =payout($A91,U91,$C91:T91,CP91,$BY91:CP91) -> 7000 | CR91: =payout($A91,V91,$C91:U91,CQ91,$BY91:CQ91) -> 7000 | CS91: =payout($A91,W91,$C91:V91,CR91,$BY91:CR91) -> 7000 | CT91: =payout($A91,X91,$C91:W91,CS91,$BY91:CS91) -> 7000 | CU91: =payout($A91,Y91,$C91:X91,CT91,$BY91:CT91) -> 7000 | CV91: =payout($A91,Z91,$C91:Y91,CU91,$BY91:CU91) -> 7000 | CW91: =payout($A91,AA91,$C91:Z91,CV91,$BY91:CV91) -> 7000 | CX91: =payout($A91,AB91,$C91:AA91,CW91,$BY91:CW91) -> 7000 | CY91: =payout($A91,AC91,$C91:AB91,CX91,$BY91:CX91) -> 7000 | CZ91: =payout($A91,AD91,$C91:AC91,CY91,$BY91:CY91) -> 7000 | DA91: =payout($A91,AE91,$C91:AD91,CZ91,$BY91:CZ91) -> 7000 | DB91: =payout($A91,AF91,$C91:AE91,DA91,$BY91:DA91) -> 7000 | DC91: =payout($A91,AG91,$C91:AF91,DB91,$BY91:DB91) -> 7000 | DD91: =payout($A91,AH91,$C91:AG91,DC91,$BY91:DC91) -> 7000 | DE91: =payout($A91,AI91,$C91:AH91,DD91,$BY91:DD91) -> 7000 | DF91: =payout($A91,AJ91,$C91:AI91,DE91,$BY91:DE91) -> 7000 | DG91: =payout($A91,AK91,$C91:AJ91,DF91,$BY91:DF91) -> 7000 | DH91: =payout($A91,AL91,$C91:AK91,DG91,$BY91:DG91) -> 7000 | DI91: =payout($A91,AM91,$C91:AL91,DH91,$BY91:DH91) -> 7000 | DJ91: =payout($A91,AN91,$C91:AM91,DI91,$BY91:DI91) -> 7000 | DK91: =payout($A91,AO91,$C91:AN91,DJ91,$BY91:DJ91) -> 7000 | DL91: =payout($A91,AP91,$C91:AO91,DK91,$BY91:DK91) -> 7000 | DM91: =payout($A91,AQ91,$C91:AP91,DL91,$BY91:DL91) -> 107000 | DN91: =payout($A91,AR91,$C91:AQ91,DM91,$BY91:DM91) -> 0 | DO91: 0 | DP91: 0 | DQ91: 0 | DR91: 0 | DS91: 0 | DT91: 0 | DU91: 0 | DV91: 0 | DW91: 0 | DX91: 0 | DY91: 0 | DZ91: 0 | EA91: 0 | EB91: 0 | EC91: 0 | ED91: 0 | EE91: 0 | EF91: 0 | EG91: 0 | EH91: 0 | EI91: 0 | EJ91: 0 | EK91: 0 | EL91: 0 | EM91: 0 | EN91: 0 | EO91: 0 | EP91: 0 | EQ91: 0
A92: =get_bond_grade($A$16:A91,$BX$5,$BY$5,$BZ$5) -> AAA | B92: 77 | C92: 1 | D92: 1 | E92: 1 | F92: 1 | G92: 1 | H92: 1 | I92: 1 | J92: 1 | K92: 1 | L92: 1 | M92: 1 | N92: 1 | O92: 1 | P92: 1 | Q92: 1 | R92: 1 | S92: 1 | T92: 1 | U92: 1 | V92: 1 | W92: 1 | X92: 1 | Y92: 1 | Z92: 1 | AA92: 1 | AB92: 1 | AC92: 1 | AD92: 1 | AE92: 1 | AF92: 1 | AG92: 1 | AH92: 1 | AI92: 1 | AJ92: 1 | AK92: 1 | AL92: 0 | AM92: 0 | AN92: 0 | AO92: 0 | AP92: 0 | AQ92: 0 | AR92: 0 | AS92: 0 | AT92: 0 | AU92: 0 | AV92: 0 | AW92: 0 | AX92: 0 | AY92: 0 | AZ92: 0 | BA92: 0 | BB92: 0 | BC92: 0 | BD92: 0 | BE92: 0 | BF92: 0 | BG92: 0 | BH92: 0 | BI92: 0 | BJ92: 0 | BK92: 0 | BL92: 0 | BM92: 0 | BN92: 0 | BO92: 0 | BP92: 0 | BQ92: 0 | BR92: 0 | BS92: 0 | BT92: 0 | BU92: 0 | BW92: AAA | BX92: 77 | BY92: -100000 | BZ92: =payout($A92,D92,$C92:C92,BY92,$BY92:BY92) -> 5000 | CA92: =payout($A92,E92,$C92:D92,BZ92,$BY92:BZ92) -> 5000 | CB92: =payout($A92,F92,$C92:E92,CA92,$BY92:CA92) -> 5000 | CC92: =payout($A92,G92,$C92:F92,CB92,$BY92:CB92) -> 5000 | CD92: =payout($A92,H92,$C92:G92,CC92,$BY92:CC92) -> 5000 | CE92: =payout($A92,I92,$C92:H92,CD92,$BY92:CD92) -> 5000 | CF92: =payout($A92,J92,$C92:I92,CE92,$BY92:CE92) -> 5000 | CG92: =payout($A92,K92,$C92:J92,CF92,$BY92:CF92) -> 5000 | CH92: =payout($A92,L92,$C92:K92,CG92,$BY92:CG92) -> 5000 | CI92: =payout($A92,M92,$C92:L92,CH92,$BY92:CH92) -> 5000 | CJ92: =payout($A92,N92,$C92:M92,CI92,$BY92:CI92) -> 5000 | CK92: =payout($A92,O92,$C92:N92,CJ92,$BY92:CJ92) -> 5000 | CL92: =payout($A92,P92,$C92:O92,CK92,$BY92:CK92) -> 5000 | CM92: =payout($A92,Q92,$C92:P92,CL92,$BY92:CL92) -> 5000 | CN92: =payout($A92,R92,$C92:Q92,CM92,$BY92:CM92) -> 5000 | CO92: =payout($A92,S92,$C92:R92,CN92,$BY92:CN92) -> 5000 | CP92: =payout($A92,T92,$C92:S92,CO92,$BY92:CO92) -> 5000 | CQ92: =payout($A92,U92,$C92:T92,CP92,$BY92:CP92) -> 5000 | CR92: =payout($A92,V92,$C92:U92,CQ92,$BY92:CQ92) -> 5000 | CS92: =payout($A92,W92,$C92:V92,CR92,$BY92:CR92) -> 5000 | CT92: =payout($A92,X92,$C92:W92,CS92,$BY92:CS92) -> 5000 | CU92: =payout($A92,Y92,$C92:X92,CT92,$BY92:CT92) -> 5000 | CV92: =payout($A92,Z92,$C92:Y92,CU92,$BY92:CU92) -> 5000 | CW92: =payout($A92,AA92,$C92:Z92,CV92,$BY92:CV92) -> 5000 | CX92: =payout($A92,AB92,$C92:AA92,CW92,$BY92:CW92) -> 5000 | CY92: =payout($A92,AC92,$C92:AB92,CX92,$BY92:CX92) -> 5000 | CZ92: =payout($A92,AD92,$C92:AC92,CY92,$BY92:CY92) -> 5000 | DA92: =payout($A92,AE92,$C92:AD92,CZ92,$BY92:CZ92) -> 5000 | DB92: =payout($A92,AF92,$C92:AE92,DA92,$BY92:DA92) -> 5000 | DC92: =payout($A92,AG92,$C92:AF92,DB92,$BY92:DB92) -> 5000 | DD92: =payout($A92,AH92,$C92:AG92,DC92,$BY92:DC92) -> 5000 | DE92: =payout($A92,AI92,$C92:AH92,DD92,$BY92:DD92) -> 5000 | DF92: =payout($A92,AJ92,$C92:AI92,DE92,$BY92:DE92) -> 5000 | DG92: =payout($A92,AK92,$C92:AJ92,DF92,$BY92:DF92) -> 5000 | DH92: =payout($A92,AL92,$C92:AK92,DG92,$BY92:DG92) -> 5000 | DI92: =payout($A92,AM92,$C92:AL92,DH92,$BY92:DH92) -> 5000 | DJ92: =payout($A92,AN92,$C92:AM92,DI92,$BY92:DI92) -> 5000 | DK92: =payout($A92,AO92,$C92:AN92,DJ92,$BY92:DJ92) -> 5000 | DL92: =payout($A92,AP92,$C92:AO92,DK92,$BY92:DK92) -> 5000 | DM92: =payout($A92,AQ92,$C92:AP92,DL92,$BY92:DL92) -> 105000 | DN92: =payout($A92,AR92,$C92:AQ92,DM92,$BY92:DM92) -> 0 | DO92: 0 | DP92: 0 | DQ92: 0 | DR92: 0 | DS92: 0 | DT92: 0 | DU92: 0 | DV92: 0 | DW92: 0 | DX92: 0 | DY92: 0 | DZ92: 0 | EA92: 0 | EB92: 0 | EC92: 0 | ED92: 0 | EE92: 0 | EF92: 0 | EG92: 0 | EH92: 0 | EI92: 0 | EJ92: 0 | EK92: 0 | EL92: 0 | EM92: 0 | EN92: 0 | EO92: 0 | EP92: 0 | EQ92: 0
A93: =get_bond_grade($A$16:A92,$BX$5,$BY$5,$BZ$5) -> AA | B93: 78 | C93: 1 | D93: 1 | E93: 1 | F93: 1 | G93: 1 | H93: 1 | I93: 1 | J93: 1 | K93: 1 | L93: 1 | M93: 1 | N93: 1 | O93: 1 | P93: 1 | Q93: 1 | R93: 1 | S93: 1 | T93: 1 | U93: 1 | V93: 1 | W93: 1 | X93: 1 | Y93: 1 | Z93: 1 | AA93: 1 | AB93: 1 | AC93: 1 | AD93: 1 | AE93: 1 | AF93: 1 | AG93: 1 | AH93: 1 | AI93: 1 | AJ93: 1 | AK93: 1 | AL93: 0 | AM93: 0 | AN93: 0 | AO93: 0 | AP93: 0 | AQ93: 0 | AR93: 0 | AS93: 0 | AT93: 0 | AU93: 0 | AV93: 0 | AW93: 0 | AX93: 0 | AY93: 0 | AZ93: 0 | BA93: 0 | BB93: 0 | BC93: 0 | BD93: 0 | BE93: 0 | BF93: 0 | BG93: 0 | BH93: 0 | BI93: 0 | BJ93: 0 | BK93: 0 | BL93: 0 | BM93: 0 | BN93: 0 | BO93: 0 | BP93: 0 | BQ93: 0 | BR93: 0 | BS93: 0 | BT93: 0 | BU93: 0 | BW93: AA | BX93: 78 | BY93: -100000 | BZ93: =payout($A93,D93,$C93:C93,BY93,$BY93:BY93) -> 6000 | CA93: =payout($A93,E93,$C93:D93,BZ93,$BY93:BZ93) -> 6000 | CB93: =payout($A93,F93,$C93:E93,CA93,$BY93:CA93) -> 6000 | CC93: =payout($A93,G93,$C93:F93,CB93,$BY93:CB93) -> 6000 | CD93: =payout($A93,H93,$C93:G93,CC93,$BY93:CC93) -> 6000 | CE93: =payout($A93,I93,$C93:H93,CD93,$BY93:CD93) -> 6000 | CF93: =payout($A93,J93,$C93:I93,CE93,$BY93:CE93) -> 6000 | CG93: =payout($A93,K93,$C93:J93,CF93,$BY93:CF93) -> 6000 | CH93: =payout($A93,L93,$C93:K93,CG93,$BY93:CG93) -> 6000 | CI93: =payout($A93,M93,$C93:L93,CH93,$BY93:CH93) -> 6000 | CJ93: =payout($A93,N93,$C93:M93,CI93,$BY93:CI93) -> 6000 | CK93: =payout($A93,O93,$C93:N93,CJ93,$BY93:CJ93) -> 6000 | CL93: =payout($A93,P93,$C93:O93,CK93,$BY93:CK93) -> 6000 | CM93: =payout($A93,Q93,$C93:P93,CL93,$BY93:CL93) -> 6000 | CN93: =payout($A93,R93,$C93:Q93,CM93,$BY93:CM93) -> 6000 | CO93: =payout($A93,S93,$C93:R93,CN93,$BY93:CN93) -> 6000 | CP93: =payout($A93,T93,$C93:S93,CO93,$BY93:CO93) -> 6000 | CQ93: =payout($A93,U93,$C93:T93,CP93,$BY93:CP93) -> 6000 | CR93: =payout($A93,V93,$C93:U93,CQ93,$BY93:CQ93) -> 6000 | CS93: =payout($A93,W93,$C93:V93,CR93,$BY93:CR93) -> 6000 | CT93: =payout($A93,X93,$C93:W93,CS93,$BY93:CS93) -> 6000 | CU93: =payout($A93,Y93,$C93:X93,CT93,$BY93:CT93) -> 6000 | CV93: =payout($A93,Z93,$C93:Y93,CU93,$BY93:CU93) -> 6000 | CW93: =payout($A93,AA93,$C93:Z93,CV93,$BY93:CV93) -> 6000 | CX93: =payout($A93,AB93,$C93:AA93,CW93,$BY93:CW93) -> 6000 | CY93: =payout($A93,AC93,$C93:AB93,CX93,$BY93:CX93) -> 6000 | CZ93: =payout($A93,AD93,$C93:AC93,CY93,$BY93:CY93) -> 6000 | DA93: =payout($A93,AE93,$C93:AD93,CZ93,$BY93:CZ93) -> 6000 | DB93: =payout($A93,AF93,$C93:AE93,DA93,$BY93:DA93) -> 6000 | DC93: =payout($A93,AG93,$C93:AF93,DB93,$BY93:DB93) -> 6000 | DD93: =payout($A93,AH93,$C93:AG93,DC93,$BY93:DC93) -> 6000 | DE93: =payout($A93,AI93,$C93:AH93,DD93,$BY93:DD93) -> 6000 | DF93: =payout($A93,AJ93,$C93:AI93,DE93,$BY93:DE93) -> 6000 | DG93: =payout($A93,AK93,$C93:AJ93,DF93,$BY93:DF93) -> 6000 | DH93: =payout($A93,AL93,$C93:AK93,DG93,$BY93:DG93) -> 6000 | DI93: =payout($A93,AM93,$C93:AL93,DH93,$BY93:DH93) -> 6000 | DJ93: =payout($A93,AN93,$C93:AM93,DI93,$BY93:DI93) -> 6000 | DK93: =payout($A93,AO93,$C93:AN93,DJ93,$BY93:DJ93) -> 6000 | DL93: =payout($A93,AP93,$C93:AO93,DK93,$BY93:DK93) -> 6000 | DM93: =payout($A93,AQ93,$C93:AP93,DL93,$BY93:DL93) -> 106000 | DN93: =payout($A93,AR93,$C93:AQ93,DM93,$BY93:DM93) -> 0 | DO93: 0 | DP93: 0 | DQ93: 0 | DR93: 0 | DS93: 0 | DT93: 0 | DU93: 0 | DV93: 0 | DW93: 0 | DX93: 0 | DY93: 0 | DZ93: 0 | EA93: 0 | EB93: 0 | EC93: 0 | ED93: 0 | EE93: 0 | EF93: 0 | EG93: 0 | EH93: 0 | EI93: 0 | EJ93: 0 | EK93: 0 | EL93: 0 | EM93: 0 | EN93: 0 | EO93: 0 | EP93: 0 | EQ93: 0
